Workbook

Sheet dati_scuola
C1: Compilare solo le celle di colore giallo
A3: Nota assegnazione Ministeriale | B3: Prot. 46445 del 4 ottobre 2022
A4: Codice meccanografico | B4: FOPC030008
A5: Nome Istituto | B5: I.C. Foscolo
A6: Comune | B6: Bagnara Calabra
A7: Nome Cognome del DS | B7: Mario Rossi
A8: Nome Cognome del DSGA | B8: Danilo Postorino
A9: Aliquota IRAP | B9: 0.085
A10: Aliquota IRAP (Inserire 8,65% per le Regioni Calabria e Molise. Lasciare 8,50 % per tutte le altre Regioni) | B10: =B9 -> 0.085
A12: Assegnazioni anno scolastico corrente (desumibili dalla Nota prot. n. 46445 del 4 ottobre 2022)
A13: Descrizione | B13: Economie a.s. precedente | C13: Assegnazione a.s. corrente | D13: Piano Gestionale | E13: Spostamenti economie decisi in contrattazione | F13: Totale disponibilità a.s. corrente
A14: Fondo delle Istituzioni scolastiche | B14: 0 | C14: =VLOOKUP(B4,_MOF,36,) -> 55723.86 | D14: 05 | E14: 0 | F14: =B14+C14+E14 -> 55723.86
A15: Funzioni Strumentali all’offerta formativa | B15: 0 | C15: =VLOOKUP(B4,_MOF,11,) -> 3671 | D15: 05 | E15: 0 | F15: =B15+C15+E15 -> 3671
A16: Incarichi Specifici del personale ATA | B16: 0 | C16: =VLOOKUP(B4,_MOF,14,) -> 3293.37 | D16: 05 | E16: 0 | F16: 3293.37
A17: Ore Eccedenti scuola infanzia/primaria | B17: 0 | C17: =VLOOKUP(B4,_MOF,17,) -> 0 | D17: 06 | E17: 0 | F17: 0
A18: Ore Eccedenti scuola secondaria | B18: 0 | C18: =VLOOKUP(B4,_MOF,20,) -> 3386.41 | D18: 06 | E18: 0 | F18: 3386.41
A19: valorizzazione del personale scolastico | B19: 0 | C19: =VLOOKUP(B4,_MOF,46,) -> 14855.37 | D19: 05 e/o 13 | E19: 0 | F19: 14855.37
A20: Aree a rischio, a forte processo immigratorio | B20: 0 | C20: =VLOOKUP(B4,_MOF,44,) -> 1589.62 | D20: 05 | E20: 0 | F20: 1589.62
A21: attività complementari di educazione fisica | B21: 0 | C21: =VLOOKUP(B4,_MOF,39,) -> 3648.52 | D21: 12 | E21: 0 | F21: 3648.52
A22: Turni notturni e festivi svolti dal personale ATA ed educativo | B22: 0 | C22: =VLOOKUP(B4,_MOF,42,) -> 0 | D22: 05 | E22: 0 | F22: 0
A23: Totali (lordo dipendente) | B23: =SUM(B14:B22) -> 0 | C23: =SUM(C14:C22) -> 86168.15 | E23: =SUM(E14:E22) -> 0 | F23: =SUM(F14:F22) -> 86168.15
A25: Parametri per il calcolo Indennità di direzione al titolare e al sostituto | C25: Ins. Manuale | D25: Dati Doc/ATA
A26: Numero DOCENTI in organico dell'autonomia (posti potenziamento, cattedre interne, cattedre esterne) | B26: =IF(C26="NO",VLOOKUP(B4,_MOF,7,),D26) -> 96 | C26: NO
A27: Numero PERSONALE ATA in organico di diritto (compreso DSGA) | B27: =IF(C27="NO",SUM(VLOOKUP(B4,_MOF,12,)+1),D27) -> 30 | C27: NO
A28: Totale personale per Indennità di direzione | B28: =B26+B27 -> 126
A29: a) azienda agraria - € 1.220,00 (da moltiplicare per il n° delle aziende funzionanti presso l'istituto) | B29: 0
A30: b) convitti ed educandati annessi - € 820,00 (da moltiplicare per il n° dei convitti e degli educandati funzionanti presso l'istituto) | B30: 0
A31: c) istituti verticalizzati ed istituti con almeno due punti di erogazione del servizio scolastico, istituti di secondo grado aggregati ed istituti tecnici, professionali e d’arte con laboratori e/o reparti di lavorazione - € 750,00 (spettante in misura unica, indipendentemente dall'esistenza di più situazioni di cui alla lettera c) | B31: 0
A32: d) scuole medie, scuole elementari e licei non rientranti nelle tipologie di cui alla lettera c) - € 650,00 | B32: 0
A33: Stima del n° di gg. di assenza del DSGA titolare (necessari per accantonare l'Ind. di direzione per il sostituto). Inserire, ad esempio 40 gg. | B33: 40
A34: Se sei un DSGA FF inserire euro 1023,00 (Differenziale annuo tra quota fissa DSGA 1984,20 e CIA dell'Ass.te amm.vo 961,20) nella casella gialla. Se hai iniziato dopo il 1° settembre calcola l'importo in proporzione: 1023,00 / 360 x i gg. di incarico = importo da inserire. Aggiungere eventuale Ind. di Direzione al DSGA in distacco sindacale o utilizzato in altri compiti. | C34: Ind. di direzione da accantonare per il DSGA titolare | D34: Ind. direzione da accantonare per il sostituto del DSGA | E34: Totale da accantonare
A35: Totale parametri a) - b) - c) - d) | B35: =SUM(B29:B32) -> 0 | C35: =ROUND('Ind. direzione_dsga'!D2,2) -> 3780 | D35: =ROUND('Ind. direzione_dsga'!F70,2) -> 533.6 | E35: =C35+D35 -> 4313.6
A37: Eventuali risorse per indennità di direzione del sostituto del DSGA assegnate a seguito di rilevazione SIDI (inserirle solo se già pagate negli anni scolastici precedenti) | B37: 0
C39: In euro (LD) | D39: stima ore (a 35,00 euro) | E39: stima ore (a 50,00 euro)
A40: Indicare eventuale percentuale di scorporo dal FIS per gli IDEI (interventi didattici educativi e integrativi) / corsi di recupero | B40: 0 | C40: =ROUND(ripartizione!C8*dati_scuola!B40,2) -> 0 | D40: =ROUND(C40/35,0) -> 0 | E40: =ROUND(C40/50,0) -> 0
A42: Scorpori a monte per docenti / ATA | C42: stima ore | D42: Eventuali annotazioni relative agli scorpori effettuati
A43: Vuoi fare scorpori prima della ripartizione del FIS tra Docenti e ATA? (SI / NO) | B43: NO
A44: Se hai risposto SI' indicare l'importo da scorporare a monte SOLO a favore dei DOCENTI | B44: 0 | C44: =ROUND(B44/17.5,0) -> 0
A45: Se hai risposto SI' indicare l'importo da scorporare a monte SOLO a favore del PERSONALE ATA | B45: 0 | C45: =ROUND(B45/13.5,0) -> 0
A47: Totale Fondo di Istituto da ripartire tra docenti e ATA al netto dell'Ind. di direzione al DSGA titolare, del sostituto e di eventuali altri accontonamenti | C47: =C49+C51+C52 -> 51410.25
A48: Ripartizione fondo tra personale docente e personale ATA (ad es.: 70% ai docenti e 30% al Personale ATA) | B48: Percentuale | C48: In euro (LD) | D48: stima ore | E48: Particolare impegno professionale 'in aula' connesso alle innovazioni e alla ricerca didattica e flessibilità organizzativa e didattica (art. 88, comma 2, lettera a) CCNL 29/11/2007) | F48: Attività aggiuntive di insegnamento (art. 88, comma 2, lettera b) CCNL 29/11/2007) | G48: Attività aggiuntive funzionali all'insegnamento (art. 88, comma 2, lettera d) CCNL 29/11/2007) | H48: Compensi attribuiti ai collaboratori del dirigente scolastico (art. 88, comma 2, lettera f) CCNL 29/11/2007) | I48: Compensi per il personale docente ed educativo per ogni altra attività deliberata nell’ambito del PTOF (art. 88, comma 2, lettera k) CCNL 29/11/2007) | J48: Particolare impegno per la valutazione degli alunni | K48: Disponibilità ancora da impegnare
A49: Percentuale da destinare ai docenti | B49: 0.75 | C49: =ROUND(ripartizione!C14,2)+B44 -> 38557.69 | D49: =ripartizione!D19 -> 2203 | E49: 0 | F49: 0 | G49: 0 | H49: 0 | I49: 0 | J49: 0 | K49: =ROUND(C49-SUM(E49:J49),2) -> 38557.69
E50: Prestazioni aggiuntive del personale ATA (art. 88, comma 2, lettera e) CCNL 29/11/2007) | G50: Compensi per il personale ATA per ogni altra attività deliberata nell'ambito del PTOF (art. 88, comma 2, lettera k) CCNL 29/11/2007) | I50: Compensi DSGA (art. 89 CCNL 29/11/2007 come sostituito dall’art. 3 della sequenza contrattuale personale ATA 25/7/2008) | K50: Disponibilità ancora da impegnare
A51: Percentuale da destinare al Personale ATA | B51: 0.25 | C51: =ROUND(ripartizione!C15,2)+B45 -> 12852.56 | D51: =ripartizione!D20 -> 952 | E51: 0 | G51: 0 | I51: 0 | K51: =ROUND(C51-SUM(E51:J51),2) -> 12852.56
A52: Accantonamento Fondo di riserva (calcolato in automatico) | B52: =1-B49-B51 -> 0 | C52: =ROUND(ripartizione!C16,2) -> 0 | D52: =ripartizione!D21 -> 0
A54: Ripartizione Valorizzazione personale scolastico a.s. corrente | B54: Percentuale | C54: In euro (LD) | D54: stima ore
A55: Valorizzazione personale scolastico DOCENTI | B55: 0.7 | C55: =ROUND(F19*B55,2) -> 10398.76 | D55: =ROUND(C55/17.5,0) -> 594
A56: Valorizzazione personale scolastico PERSONALE ATA | B56: 0.3 | C56: =ROUND(F19*B56,2) -> 4456.61 | D56: =ROUND(C56/15.16,0) -> 294
A58: Ripartizione Finanziamenti per aree a rischio | B58: Percentuale | C58: In euro (LD) | D58: stima ore
A59: Aree a rischio DOCENTI | B59: 0.7 | C59: =ROUND(F20*B59,2) -> 1112.73 | D59: =ROUND(C59/35,0) -> 32
A60: Aree a rischio PERSONALE ATA | B60: 0.3 | C60: =ROUND(F20*B60,2) -> 476.89 | D60: =ROUND(C60/15.16,0) -> 31
A62: Ripartizione Finanziamenti turni notturni e festivi svolti dal personale ATA ed educativo | B62: Percentuale | C62: In euro (LD) | D62: stima ore
A63: Turni festivi e notturni personale educativo | B63: 0.7 | C63: =ROUND(F22*B63,2) -> 0 | D63: =ROUND(C63/35,0) -> 0
A64: Turni festivi e notturni personale ATA | B64: 0.3 | C64: =ROUND(F22*B64,2) -> 0 | D64: =ROUND(C64/15.16,0) -> 0
A66: Altre risorse presenti nel Programma annuale (indicare le somme al LORDO STATO) | B66: Economie | C66: Assegnazione a.s. corrente | D66: Totale disponibilità | E66: Quota docenti | F66: Quota ATA
A67: Finanziamenti PTCO (ex Alternanza Scuola Lavoro) | B67: 0 | C67: 0 | D67: =B67+C67 -> 0 | E67: 0 | F67: 0
A68: Finanziamenti per progetti nazionali e comunitari destinati a remunerare il personale | B68: 0 | C68: 0 | D68: =B68+C68 -> 0 | E68: 0 | F68: 0
A70: Altre risorse presenti nel Programma annuale (indicare le somme al lordo stato) | B70: Economie | C70: Assegnazione a.s. corrente
A71: Finanziamenti ex l. 440/97 destinati a remunerare il personale
A72: Risorse specificamente destinate ai corsi per il recupero dei debiti formativi
A73: Risorse per la formazione del personale
A74: Eventuali altre risorse (specificare)
A75: Totali (lordo Stato) | B75: =SUM(B67:B74) -> 0 | C75: =SUM(C67:C74) -> 0
A77: Importi non utilizzati nell'a.s. corrente | B77: Disponibilità | C77: Indicare (eventuali) importi non utilizzati
A78: Fondo di Istituto | B78: =F14 -> 55723.86 | C78: =K49+K51 -> 51410.25
A79: Funzioni Strumentali | B79: =F15 -> 3671
A80: Incarichi specifici ATA | B80: =F16 -> 3293.37
A81: Ore eccedenti sostituzione colleghi assenti | B81: =F17+F18 -> 3386.41
A82: Attività complementari Scienze Motorie | B82: =F21 -> 3648.52
A83: Finanziamenti aree a rischio | B83: =F20 -> 1589.62
A84: Finanziamenti progetti naz.li e comunitari | B84: =B68+C68 -> 0
A85: Finanziamenti PTCO | B85: =B67+C67 -> 0
A86: Ind. turni notturni e festivi | B86: =F22 -> 0
A87: Valorizzazione personale scolastico | B87: =F19 -> 14855.37
A88: Assegnazione indennità direzione a seguito monitoraggio SIDI | B88: =B37 -> 0
A90: Confronto con il corrispondente fondo MOF dell'a.s. precedente (lordo stato)
A91: Importo certificato riferito al MOF (escluse le ore eccedenti) nella contrattazione dell'a.s. precedente (Desumibile da verbale Athena dell'a.s. precedente ultima riga della tabella iniziale denominata "Risorse") | B91: 0
A92: Economie MOF al lordo Stato (escluse le ore eccedenti) riferite all'anno scolastico precedente | B92: =ROUND((B23-B18-B17)*(1.242)+((B23-B18-B17)*dati_scuola!$B$10),2) -> 0
A93: Ore eccedenti disponibili nell'a.s. precedente (vedere relazione tecnico - finanziaria DSGA anno precedente) | B93: 0
A94: Economie Ore eccedenti al lordo Stato anno scolastico precedente | B94: =ROUND((B18+B17)*(1.242)+((B18+B17)*dati_scuola!$B$10),2) -> 0 | F94: IL DIRIGENTE SCOLASTICO | J94: RSU
F96: =B7 -> Mario Rossi

Sheet lenzuolo (hidden)
A1: Codice meccanografico | B1: Quota Base Funzioni strumentali LS A | C1: Quota Base Funzioni strumentali LD AA=A/1,327 | D1: Numero complessità B3 | E1: Quota Complessità Funzioni strumentali LS B=B3*607,84 | F1: Quota Complessità Funzioni strumentali LD BB=B/1,327 | G1: Posti Personale docente OD2022-23 C2 | H1: Quota Posti docenti Funzioni strumentali LS C=C2* 35,85 | I1: Quota Posti docenti Funzioni strumentali LD CC=C/1,327 | J1: Quota FUNZIONI STRUMENTALI LS D=A+B+C | K1: Quota FUNZIONI STRUMENTALI LD DD=AA+BB+CC | L1: Posti Personale ATA OD2022-23(esclusi DSGA e inclusi posti accantonati per COCOCO e per exLSU) E3 | M1: Quota INCARICHI SPECIFICI LS E=E3*150,70 | N1: Quota INCARICHI SPECIFICI LD EE=E/1,327 | O1: Posti docenti di scuola dell'infanzia e primaria OD2022-23 G3 | P1: Quota ORE ECCEDENTI sostituzione colleghi assenti infanzia e primaria LS G=G3*26,89 | Q1: Quota ORE ECCEDENTI sostituzione colleghi assenti infanzia e primaria LD GG=G/1,327 | R1: Posti docenti di scuola secondaria OD2022-23 H3 | S1: Quota ORE ECCEDENTI sostituzione colleghi assenti secondaria LS H=H3*46,81 | T1: Quota ORE ECCEDENTI sostituzione colleghi assenti secondaria LD HH=H/1,327 | U1: Quota ORE ECCEDENTI sostituzione colleghi assenti LS I=G+H | V1: Quota ORE ECCEDENTI sostituzione colleghi assenti LD II=GG+HH | W1: Punti di erogazione del servizio L3 | X1: Quota Punti erogazione del servizio FIS LS L=L3*2552,04 | Y1: Quota Punti erogazione del servizio FIS LD LL=L/1,327 | Z1: Posti in OD2022-23 M3 | AA1: Quota Posti totali FIS LS M=M3*318,60 | AB1: Quota Posti totali FIS LD MM=M/1,327 | AC1: Posti Personale educativo OD2022-23 FIS N3 | AD1: Quota Posti Personale educativo FIS LS N=N3*1067,43 | AE1: Quota Posti Personale educativo FIS LD NN=N/1,327 | AF1: Posti Docenti di scuole secondaria di II grado OD202-23 FIS O3 | AG1: Quota Posti Docenti II grado FIS LS O=O3*325,52 | AH1: Quota Posti Docenti II grado FIS LD OO=O/1,327 | AI1: Quota FIS LS P=L+M+N+O | AJ1: Quota FIS LD PP=LL+MM+NN+OO | AK1: Classi di scuola secondaria di I e II grado OD2022-23 F3 | AL1: Quota Attività complementari di Educazione fisica LS F=F3*84,94 | AM1: Quota Attività complementari di Educazione fisica LD FF=F/1,327 | AN1: Posti Personale educativo ed ATA OD2022-23 per Lavoro notturno/festivo S3 | AO1: Quota Indennità lavoro notturno/festivo LS S=S3*317,55 | AP1: Quota Indennità lavoro notturno/festivo LD SS=S/1,327 | AQ1: Aree a Rischio LS T | AR1: Aree a Rischio LD TT=T/1,327 | AS1: Valorizzazione del personale scolastico LS | AT1: Valorizzazione del personale scolastico LD | AU1: TOTALE MOF 2022-23 LS Q=D+E+I+P+F+S+T | AV1: TOTALE MOF 202f2-23 LD QQ=DD+EE+II+PP+FF+SS+TT | AW1: Classi V di scuola secondaria di II grado | AX1: Acconto Esami di stato
A2: AGEE01100C | B2: 1429.81 | C2: 1077.48 | D2: 0 | E2: 0 | F2: 0 | G2: 71 | H2: 2545.35 | I2: 1918.12 | J2: 3975.16 | K2: 2995.6 | L2: 18 | M2: 2712.6 | N2: 2044.16 | O2: 71 | P2: 1909.19 | Q2: 1438.73 | R2: 0 | S2: 0 | T2: 0 | U2: 1909.19 | V2: 1438.73 | W2: 4 | X2: 10208.16 | Y2: 7692.66 | Z2: 90 | AA2: 28674 | AB2: 21608.14 | AC2: 0 | AD2: 0 | AE2: 0 | AF2: 0 | AG2: 0 | AH2: 0 | AI2: 38882.16 | AJ2: 29300.8 | AK2: 0 | AL2: 0 | AM2: 0 | AN2: 0 | AO2: 0 | AP2: 0 | AQ2: 519.24 | AR2: 391.29 | AS2: 12644.28 | AT2: 9528.47 | AU2: 60642.63 | AV2: 45699.05 | AW2: 0 | AX2: 0
A3: AGEE034005 | B3: 1429.81 | C3: 1077.48 | D3: 0 | E3: 0 | F3: 0 | G3: 78 | H3: 2796.3 | I3: 2107.23 | J3: 4226.11 | K3: 3184.71 | L3: 24 | M3: 3616.8 | N3: 2725.55 | O3: 78 | P3: 2097.42 | Q3: 1580.57 | R3: 0 | S3: 0 | T3: 0 | U3: 2097.42 | V3: 1580.57 | W3: 7 | X3: 17864.28 | Y3: 13462.16 | Z3: 103 | AA3: 32815.8 | AB3: 24729.31 | AC3: 0 | AD3: 0 | AE3: 0 | AF3: 0 | AG3: 0 | AH3: 0 | AI3: 50680.08 | AJ3: 38191.47 | AK3: 0 | AL3: 0 | AM3: 0 | AN3: 0 | AO3: 0 | AP3: 0 | AQ3: 486.79 | AR3: 366.83 | AS3: 13868.34 | AT3: 10450.9 | AU3: 74975.54 | AV3: 56500.03 | AW3: 0 | AX3: 0
A4: AGEE035001 | B4: 1429.81 | C4: 1077.48 | D4: 0 | E4: 0 | F4: 0 | G4: 54 | H4: 1935.9 | I4: 1458.85 | J4: 3365.71 | K4: 2536.33 | L4: 14 | M4: 2109.8 | N4: 1589.9 | O4: 54 | P4: 1452.06 | Q4: 1094.24 | R4: 0 | S4: 0 | T4: 0 | U4: 1452.06 | V4: 1094.24 | W4: 4 | X4: 10208.16 | Y4: 7692.66 | Z4: 69 | AA4: 21983.4 | AB4: 16566.24 | AC4: 0 | AD4: 0 | AE4: 0 | AF4: 0 | AG4: 0 | AH4: 0 | AI4: 32191.56 | AJ4: 24258.9 | AK4: 0 | AL4: 0 | AM4: 0 | AN4: 0 | AO4: 0 | AP4: 0 | AQ4: 324.53 | AR4: 244.56 | AS4: 9554.92 | AT4: 7200.39 | AU4: 48998.58 | AV4: 36924.32 | AW4: 0 | AX4: 0
A5: AGIC805003 | B5: 1429.81 | C5: 1077.48 | D5: 1 | E5: 607.84 | F5: 458.06 | G5: 74 | H5: 2652.9 | I5: 1999.17 | J5: 4690.55 | K5: 3534.71 | L5: 19 | M5: 2863.3 | N5: 2157.72 | O5: 33 | P5: 887.37 | Q5: 668.7 | R5: 41 | S5: 1919.21 | T5: 1446.28 | U5: 2806.58 | V5: 2114.98 | W5: 9 | X5: 22968.36 | Y5: 17308.49 | Z5: 94 | AA5: 29948.4 | AB5: 22568.5 | AC5: 0 | AD5: 0 | AE5: 0 | AF5: 0 | AG5: 0 | AH5: 0 | AI5: 52916.76 | AJ5: 39876.99 | AK5: 20 | AL5: 1698.8 | AM5: 1280.18 | AN5: 0 | AO5: 0 | AP5: 0 | AQ5: 843.77 | AR5: 635.85 | AS5: 12411.65 | AT5: 9353.17 | AU5: 78231.41 | AV5: 58953.6 | AW5: 0 | AX5: 0
A6: AGIC80800E | B6: 1429.81 | C6: 1077.48 | D6: 1 | E6: 607.84 | F6: 458.06 | G6: 173 | H6: 6202.05 | I6: 4673.74 | J6: 8239.7 | K6: 6209.28 | L6: 35 | M6: 5274.5 | N6: 3974.76 | O6: 104 | P6: 2796.56 | Q6: 2107.43 | R6: 69 | S6: 3229.89 | T6: 2433.98 | U6: 6026.45 | V6: 4541.41 | W6: 9 | X6: 22968.36 | Y6: 17308.49 | Z6: 209 | AA6: 66587.4 | AB6: 50178.9 | AC6: 0 | AD6: 0 | AE6: 0 | AF6: 0 | AG6: 0 | AH6: 0 | AI6: 89555.76 | AJ6: 67487.39 | AK6: 24 | AL6: 2038.56 | AM6: 1536.22 | AN6: 0 | AO6: 0 | AP6: 0 | AQ6: 1168.29 | AR6: 880.4 | AS6: 27945.41 | AT6: 21059.09 | AU6: 140248.67 | AV6: 105688.55 | AW6: 0 | AX6: 0
A7: AGIC81000E | B7: 1429.81 | C7: 1077.48 | D7: 1 | E7: 607.84 | F7: 458.06 | G7: 90 | H7: 3226.5 | I7: 2431.42 | J7: 5264.15 | K7: 3966.96 | L7: 24 | M7: 3616.8 | N7: 2725.55 | O7: 39 | P7: 1048.71 | Q7: 790.29 | R7: 51 | S7: 2387.31 | T7: 1799.03 | U7: 3436.02 | V7: 2589.32 | W7: 7 | X7: 17864.28 | Y7: 13462.16 | Z7: 115 | AA7: 36639 | AB7: 27610.4 | AC7: 0 | AD7: 0 | AE7: 0 | AF7: 28 | AG7: 9114.56 | AH7: 6868.55 | AI7: 63617.84 | AJ7: 47941.11 | AK7: 27 | AL7: 2293.38 | AM7: 1728.24 | AN7: 0 | AO7: 0 | AP7: 0 | AQ7: 1719.99 | AR7: 1296.15 | AS7: 18302.2 | AT7: 13792.16 | AU7: 98250.38 | AV7: 74039.49 | AW7: 4 | AX7: 16000
A8: AGIC812006 | B8: 1429.81 | C8: 1077.48 | D8: 1 | E8: 607.84 | F8: 458.06 | G8: 101 | H8: 3620.85 | I8: 2728.6 | J8: 5658.5 | K8: 4264.14 | L8: 20 | M8: 3014 | N8: 2271.29 | O8: 56 | P8: 1505.84 | Q8: 1134.77 | R8: 45 | S8: 2106.45 | T8: 1587.38 | U8: 3612.29 | V8: 2722.15 | W8: 9 | X8: 22968.36 | Y8: 17308.49 | Z8: 122 | AA8: 38869.2 | AB8: 29291.03 | AC8: 0 | AD8: 0 | AE8: 0 | AF8: 0 | AG8: 0 | AH8: 0 | AI8: 61837.56 | AJ8: 46599.52 | AK8: 12 | AL8: 1019.28 | AM8: 768.11 | AN8: 0 | AO8: 0 | AP8: 0 | AQ8: 292.07 | AR8: 220.1 | AS8: 16235.95 | AT8: 12235.08 | AU8: 91669.65 | AV8: 69080.39 | AW8: 0 | AX8: 0
A9: AGIC813002 | B9: 1429.81 | C9: 1077.48 | D9: 1 | E9: 607.84 | F9: 458.06 | G9: 72 | H9: 2581.2 | I9: 1945.14 | J9: 4618.85 | K9: 3480.68 | L9: 15 | M9: 2260.5 | N9: 1703.47 | O9: 44 | P9: 1183.16 | Q9: 891.61 | R9: 28 | S9: 1310.68 | T9: 987.7 | U9: 2493.84 | V9: 1879.31 | W9: 6 | X9: 15312.24 | Y9: 11538.99 | Z9: 88 | AA9: 28036.8 | AB9: 21127.96 | AC9: 0 | AD9: 0 | AE9: 0 | AF9: 0 | AG9: 0 | AH9: 0 | AI9: 43349.04 | AJ9: 32666.95 | AK9: 9 | AL9: 764.46 | AM9: 576.08 | AN9: 0 | AO9: 0 | AP9: 0 | AQ9: 97.36 | AR9: 73.37 | AS9: 12055.61 | AT9: 9084.86 | AU9: 65639.66 | AV9: 49464.72 | AW9: 0 | AX9: 0
A10: AGIC81500N | B10: 1429.81 | C10: 1077.48 | D10: 1 | E10: 607.84 | F10: 458.06 | G10: 99 | H10: 3549.15 | I10: 2674.57 | J10: 5586.8 | K10: 4210.11 | L10: 21 | M10: 3164.7 | N10: 2384.85 | O10: 29 | P10: 779.81 | Q10: 587.65 | R10: 70 | S10: 3276.7 | T10: 2469.25 | U10: 4056.51 | V10: 3056.9 | W10: 6 | X10: 15312.24 | Y10: 11538.99 | Z10: 121 | AA10: 38550.6 | AB10: 29050.94 | AC10: 0 | AD10: 0 | AE10: 0 | AF10: 0 | AG10: 0 | AH10: 0 | AI10: 53862.84 | AJ10: 40589.93 | AK10: 25 | AL10: 2123.5 | AM10: 1600.23 | AN10: 0 | AO10: 0 | AP10: 0 | AQ10: 908.67 | AR10: 684.76 | AS10: 17172.23 | AT10: 12940.64 | AU10: 86875.25 | AV10: 65467.42 | AW10: 0 | AX10: 0
A11: AGIC818005 | B11: 1429.81 | C11: 1077.48 | D11: 1 | E11: 607.84 | F11: 458.06 | G11: 77 | H11: 2760.45 | I11: 2080.22 | J11: 4798.1 | K11: 3615.76 | L11: 19 | M11: 2863.3 | N11: 2157.72 | O11: 46 | P11: 1236.94 | Q11: 932.13 | R11: 31 | S11: 1451.11 | T11: 1093.53 | U11: 2688.05 | V11: 2025.66 | W11: 4 | X11: 10208.16 | Y11: 7692.66 | Z11: 97 | AA11: 30904.2 | AB11: 23288.77 | AC11: 0 | AD11: 0 | AE11: 0 | AF11: 0 | AG11: 0 | AH11: 0 | AI11: 41112.36 | AJ11: 30981.43 | AK11: 13 | AL11: 1104.22 | AM11: 832.12 | AN11: 0 | AO11: 0 | AP11: 0 | AQ11: 454.34 | AR11: 342.38 | AS11: 15406.88 | AT11: 11610.31 | AU11: 68427.25 | AV11: 51565.38 | AW11: 0 | AX11: 0
A12: AGIC819001 | B12: 1429.81 | C12: 1077.48 | D12: 1 | E12: 607.84 | F12: 458.06 | G12: 147 | H12: 5269.95 | I12: 3971.33 | J12: 7307.6 | K12: 5506.87 | L12: 41 | M12: 6178.7 | N12: 4656.14 | O12: 91 | P12: 2446.99 | Q12: 1844 | R12: 56 | S12: 2621.36 | T12: 1975.4 | U12: 5068.35 | V12: 3819.4 | W12: 14 | X12: 35728.56 | Y12: 26924.31 | Z12: 189 | AA12: 60215.4 | AB12: 45377.09 | AC12: 0 | AD12: 0 | AE12: 0 | AF12: 0 | AG12: 0 | AH12: 0 | AI12: 95943.96 | AJ12: 72301.4 | AK12: 19 | AL12: 1613.86 | AM12: 1216.17 | AN12: 0 | AO12: 0 | AP12: 0 | AQ12: 713.96 | AR12: 538.03 | AS12: 24823.11 | AT12: 18706.19 | AU12: 141649.54 | AV12: 106744.2 | AW12: 0 | AX12: 0
A13: AGIC820005 | B13: 1429.81 | C13: 1077.48 | D13: 1 | E13: 607.84 | F13: 458.06 | G13: 108 | H13: 3871.8 | I13: 2917.71 | J13: 5909.45 | K13: 4453.25 | L13: 27 | M13: 4068.9 | N13: 3066.24 | O13: 77 | P13: 2070.53 | Q13: 1560.31 | R13: 31 | S13: 1451.11 | T13: 1093.53 | U13: 3521.64 | V13: 2653.84 | W13: 12 | X13: 30624.48 | Y13: 23077.98 | Z13: 136 | AA13: 43329.6 | AB13: 32652.3 | AC13: 0 | AD13: 0 | AE13: 0 | AF13: 0 | AG13: 0 | AH13: 0 | AI13: 73954.08 | AJ13: 55730.28 | AK13: 17 | AL13: 1443.98 | AM13: 1088.15 | AN13: 0 | AO13: 0 | AP13: 0 | AQ13: 551.69 | AR13: 415.74 | AS13: 17898.94 | AT13: 13488.27 | AU13: 107348.68 | AV13: 80895.77 | AW13: 0 | AX13: 0
A14: AGIC821001 | B14: 1429.81 | C14: 1077.48 | D14: 1 | E14: 607.84 | F14: 458.06 | G14: 93 | H14: 3334.05 | I14: 2512.47 | J14: 5371.7 | K14: 4048.01 | L14: 19 | M14: 2863.3 | N14: 2157.72 | O14: 57 | P14: 1532.73 | Q14: 1155.03 | R14: 36 | S14: 1685.16 | T14: 1269.9 | U14: 3217.89 | V14: 2424.93 | W14: 5 | X14: 12760.2 | Y14: 9615.83 | Z14: 113 | AA14: 36001.8 | AB14: 27130.22 | AC14: 0 | AD14: 0 | AE14: 0 | AF14: 0 | AG14: 0 | AH14: 0 | AI14: 48762 | AJ14: 36746.05 | AK14: 16 | AL14: 1359.04 | AM14: 1024.14 | AN14: 0 | AO14: 0 | AP14: 0 | AQ14: 1395.46 | AR14: 1051.59 | AS14: 15469.97 | AT14: 11657.85 | AU14: 78439.36 | AV14: 59110.29 | AW14: 0 | AX14: 0
A15: AGIC82200R | B15: 1429.81 | C15: 1077.48 | D15: 1 | E15: 607.84 | F15: 458.06 | G15: 94 | H15: 3369.9 | I15: 2539.49 | J15: 5407.55 | K15: 4075.03 | L15: 18 | M15: 2712.6 | N15: 2044.16 | O15: 49 | P15: 1317.61 | Q15: 992.92 | R15: 45 | S15: 2106.45 | T15: 1587.38 | U15: 3424.06 | V15: 2580.3 | W15: 3 | X15: 7656.12 | Y15: 5769.5 | Z15: 113 | AA15: 36001.8 | AB15: 27130.22 | AC15: 0 | AD15: 0 | AE15: 0 | AF15: 0 | AG15: 0 | AH15: 0 | AI15: 43657.92 | AJ15: 32899.72 | AK15: 18 | AL15: 1528.92 | AM15: 1152.16 | AN15: 0 | AO15: 0 | AP15: 0 | AQ15: 876.22 | AR15: 660.3 | AS15: 15723.14 | AT15: 11848.64 | AU15: 73330.41 | AV15: 55260.31 | AW15: 0 | AX15: 0
A16: AGIC82400C | B16: 1429.81 | C16: 1077.48 | D16: 1 | E16: 607.84 | F16: 458.06 | G16: 119 | H16: 4266.15 | I16: 3214.88 | J16: 6303.8 | K16: 4750.42 | L16: 24 | M16: 3616.8 | N16: 2725.55 | O16: 85 | P16: 2285.65 | Q16: 1722.42 | R16: 34 | S16: 1591.54 | T16: 1199.35 | U16: 3877.19 | V16: 2921.77 | W16: 11 | X16: 28072.44 | Y16: 21154.82 | Z16: 144 | AA16: 45878.4 | AB16: 34573.02 | AC16: 0 | AD16: 0 | AE16: 0 | AF16: 0 | AG16: 0 | AH16: 0 | AI16: 73950.84 | AJ16: 55727.84 | AK16: 14 | AL16: 1189.16 | AM16: 896.13 | AN16: 0 | AO16: 0 | AP16: 0 | AQ16: 1298.1 | AR16: 978.22 | AS16: 18952.02 | AT16: 14281.85 | AU16: 109187.91 | AV16: 82281.78 | AW16: 0 | AX16: 0
A17: AGIC826004 | B17: 1429.81 | C17: 1077.48 | D17: 1 | E17: 607.84 | F17: 458.06 | G17: 108 | H17: 3871.8 | I17: 2917.71 | J17: 5909.45 | K17: 4453.25 | L17: 25 | M17: 3767.5 | N17: 2839.11 | O17: 68 | P17: 1828.52 | Q17: 1377.94 | R17: 40 | S17: 1872.4 | T17: 1411 | U17: 3700.92 | V17: 2788.94 | W17: 14 | X17: 35728.56 | Y17: 26924.31 | Z17: 134 | AA17: 42692.4 | AB17: 32172.12 | AC17: 0 | AD17: 0 | AE17: 0 | AF17: 0 | AG17: 0 | AH17: 0 | AI17: 78420.96 | AJ17: 59096.43 | AK17: 13 | AL17: 1104.22 | AM17: 832.12 | AN17: 0 | AO17: 0 | AP17: 0 | AQ17: 1265.65 | AR17: 953.77 | AS17: 17151.18 | AT17: 12924.78 | AU17: 111319.88 | AV17: 83888.4 | AW17: 0 | AX17: 0
A18: AGIC82700X | B18: 1429.81 | C18: 1077.48 | D18: 1 | E18: 607.84 | F18: 458.06 | G18: 76 | H18: 2724.6 | I18: 2053.2 | J18: 4762.25 | K18: 3588.74 | L18: 19 | M18: 2863.3 | N18: 2157.72 | O18: 52 | P18: 1398.28 | Q18: 1053.72 | R18: 24 | S18: 1123.44 | T18: 846.6 | U18: 2521.72 | V18: 1900.32 | W18: 7 | X18: 17864.28 | Y18: 13462.16 | Z18: 96 | AA18: 30585.6 | AB18: 23048.68 | AC18: 0 | AD18: 0 | AE18: 0 | AF18: 0 | AG18: 0 | AH18: 0 | AI18: 48449.88 | AJ18: 36510.84 | AK18: 9 | AL18: 764.46 | AM18: 576.08 | AN18: 0 | AO18: 0 | AP18: 0 | AQ18: 259.62 | AR18: 195.64 | AS18: 14726.92 | AT18: 11097.91 | AU18: 74348.15 | AV18: 56027.25 | AW18: 0 | AX18: 0
A19: AGIC82800Q | B19: 1429.81 | C19: 1077.48 | D19: 1 | E19: 607.84 | F19: 458.06 | G19: 97 | H19: 3477.45 | I19: 2620.54 | J19: 5515.1 | K19: 4156.08 | L19: 23 | M19: 3466.1 | N19: 2611.98 | O19: 64 | P19: 1720.96 | Q19: 1296.88 | R19: 33 | S19: 1544.73 | T19: 1164.08 | U19: 3265.69 | V19: 2460.96 | W19: 8 | X19: 20416.32 | Y19: 15385.32 | Z19: 121 | AA19: 38550.6 | AB19: 29050.94 | AC19: 0 | AD19: 0 | AE19: 0 | AF19: 0 | AG19: 0 | AH19: 0 | AI19: 58966.92 | AJ19: 44436.26 | AK19: 13 | AL19: 1104.22 | AM19: 832.12 | AN19: 0 | AO19: 0 | AP19: 0 | AQ19: 649.05 | AR19: 489.11 | AS19: 16261.96 | AT19: 12254.68 | AU19: 89229.04 | AV19: 67241.19 | AW19: 0 | AX19: 0
A20: AGIC82900G | B20: 1429.81 | C20: 1077.48 | D20: 1 | E20: 607.84 | F20: 458.06 | G20: 115 | H20: 4122.75 | I20: 3106.82 | J20: 6160.4 | K20: 4642.36 | L20: 26 | M20: 3918.2 | N20: 2952.68 | O20: 67 | P20: 1801.63 | Q20: 1357.67 | R20: 48 | S20: 2246.88 | T20: 1693.2 | U20: 4048.51 | V20: 3050.87 | W20: 6 | X20: 15312.24 | Y20: 11538.99 | Z20: 142 | AA20: 45241.2 | AB20: 34092.84 | AC20: 0 | AD20: 0 | AE20: 0 | AF20: 0 | AG20: 0 | AH20: 0 | AI20: 60553.44 | AJ20: 45631.83 | AK20: 15 | AL20: 1274.1 | AM20: 960.14 | AN20: 0 | AO20: 0 | AP20: 0 | AQ20: 1135.84 | AR20: 855.95 | AS20: 19647.02 | AT20: 14805.59 | AU20: 96737.51 | AV20: 72899.42 | AW20: 0 | AX20: 0
A21: AGIC83000Q | B21: 1429.81 | C21: 1077.48 | D21: 1 | E21: 607.84 | F21: 458.06 | G21: 107 | H21: 3835.95 | I21: 2890.69 | J21: 5873.6 | K21: 4426.23 | L21: 21 | M21: 3164.7 | N21: 2384.85 | O21: 57 | P21: 1532.73 | Q21: 1155.03 | R21: 50 | S21: 2340.5 | T21: 1763.75 | U21: 3873.23 | V21: 2918.78 | W21: 3 | X21: 7656.12 | Y21: 5769.5 | Z21: 129 | AA21: 41099.4 | AB21: 30971.67 | AC21: 0 | AD21: 0 | AE21: 0 | AF21: 0 | AG21: 0 | AH21: 0 | AI21: 48755.52 | AJ21: 36741.17 | AK21: 22 | AL21: 1868.68 | AM21: 1408.2 | AN21: 0 | AO21: 0 | AP21: 0 | AQ21: 1460.37 | AR21: 1100.5 | AS21: 18184.2 | AT21: 13703.24 | AU21: 83180.3 | AV21: 62682.97 | AW21: 0 | AX21: 0
A22: AGIC83100G | B22: 1429.81 | C22: 1077.48 | D22: 1 | E22: 607.84 | F22: 458.06 | G22: 104 | H22: 3728.4 | I22: 2809.65 | J22: 5766.05 | K22: 4345.19 | L22: 21 | M22: 3164.7 | N22: 2384.85 | O22: 57 | P22: 1532.73 | Q22: 1155.03 | R22: 47 | S22: 2200.07 | T22: 1657.93 | U22: 3732.8 | V22: 2812.96 | W22: 10 | X22: 25520.4 | Y22: 19231.65 | Z22: 126 | AA22: 40143.6 | AB22: 30251.39 | AC22: 0 | AD22: 0 | AE22: 0 | AF22: 0 | AG22: 0 | AH22: 0 | AI22: 65664 | AJ22: 49483.04 | AK22: 17 | AL22: 1443.98 | AM22: 1088.15 | AN22: 0 | AO22: 0 | AP22: 0 | AQ22: 259.62 | AR22: 195.64 | AS22: 16898.75 | AT22: 12734.55 | AU22: 96929.9 | AV22: 73044.38 | AW22: 0 | AX22: 0
A23: AGIC83200B | B23: 1429.81 | C23: 1077.48 | D23: 1 | E23: 607.84 | F23: 458.06 | G23: 64 | H23: 2294.4 | I23: 1729.01 | J23: 4332.05 | K23: 3264.55 | L23: 16 | M23: 2411.2 | N23: 1817.03 | O23: 44 | P23: 1183.16 | Q23: 891.61 | R23: 20 | S23: 936.2 | T23: 705.5 | U23: 2119.36 | V23: 1597.11 | W23: 7 | X23: 17864.28 | Y23: 13462.16 | Z23: 81 | AA23: 25806.6 | AB23: 19447.32 | AC23: 0 | AD23: 0 | AE23: 0 | AF23: 0 | AG23: 0 | AH23: 0 | AI23: 43670.88 | AJ23: 32909.48 | AK23: 9 | AL23: 764.46 | AM23: 576.08 | AN23: 0 | AO23: 0 | AP23: 0 | AQ23: 389.43 | AR23: 293.47 | AS23: 11021.44 | AT23: 8305.53 | AU23: 64708.82 | AV23: 48763.25 | AW23: 0 | AX23: 0
A24: AGIC833007 | B24: 1429.81 | C24: 1077.48 | D24: 1 | E24: 607.84 | F24: 458.06 | G24: 108 | H24: 3871.8 | I24: 2917.71 | J24: 5909.45 | K24: 4453.25 | L24: 26 | M24: 3918.2 | N24: 2952.68 | O24: 71 | P24: 1909.19 | Q24: 1438.73 | R24: 37 | S24: 1731.97 | T24: 1305.18 | U24: 3641.16 | V24: 2743.91 | W24: 4 | X24: 10208.16 | Y24: 7692.66 | Z24: 135 | AA24: 43011 | AB24: 32412.21 | AC24: 0 | AD24: 0 | AE24: 0 | AF24: 0 | AG24: 0 | AH24: 0 | AI24: 53219.16 | AJ24: 40104.87 | AK24: 16 | AL24: 1359.04 | AM24: 1024.14 | AN24: 0 | AO24: 0 | AP24: 0 | AQ24: 1719.99 | AR24: 1296.15 | AS24: 18722.21 | AT24: 14108.67 | AU24: 88489.21 | AV24: 66683.67 | AW24: 0 | AX24: 0
A25: AGIC834003 | B25: 1429.81 | C25: 1077.48 | D25: 1 | E25: 607.84 | F25: 458.06 | G25: 104 | H25: 3728.4 | I25: 2809.65 | J25: 5766.05 | K25: 4345.19 | L25: 21 | M25: 3164.7 | N25: 2384.85 | O25: 63 | P25: 1694.07 | Q25: 1276.62 | R25: 41 | S25: 1919.21 | T25: 1446.28 | U25: 3613.28 | V25: 2722.9 | W25: 4 | X25: 10208.16 | Y25: 7692.66 | Z25: 126 | AA25: 40143.6 | AB25: 30251.39 | AC25: 0 | AD25: 0 | AE25: 0 | AF25: 0 | AG25: 0 | AH25: 0 | AI25: 50351.76 | AJ25: 37944.05 | AK25: 17 | AL25: 1443.98 | AM25: 1088.15 | AN25: 0 | AO25: 0 | AP25: 0 | AQ25: 1135.84 | AR25: 855.95 | AS25: 17674.1 | AT25: 13318.84 | AU25: 83149.71 | AV25: 62659.93 | AW25: 0 | AX25: 0
A26: AGIC83600P | B26: 1429.81 | C26: 1077.48 | D26: 1 | E26: 607.84 | F26: 458.06 | G26: 115 | H26: 4122.75 | I26: 3106.82 | J26: 6160.4 | K26: 4642.36 | L26: 22 | M26: 3315.4 | N26: 2498.42 | O26: 75 | P26: 2016.75 | Q26: 1519.78 | R26: 40 | S26: 1872.4 | T26: 1411 | U26: 3889.15 | V26: 2930.78 | W26: 7 | X26: 17864.28 | Y26: 13462.16 | Z26: 138 | AA26: 43966.8 | AB26: 33132.48 | AC26: 0 | AD26: 0 | AE26: 0 | AF26: 0 | AG26: 0 | AH26: 0 | AI26: 61831.08 | AJ26: 46594.64 | AK26: 17 | AL26: 1443.98 | AM26: 1088.15 | AN26: 0 | AO26: 0 | AP26: 0 | AQ26: 1006.03 | AR26: 758.12 | AS26: 18607.99 | AT26: 14022.6 | AU26: 96254.03 | AV26: 72535.07 | AW26: 0 | AX26: 0
A27: AGIC83800A | B27: 1429.81 | C27: 1077.48 | D27: 1 | E27: 607.84 | F27: 458.06 | G27: 95 | H27: 3405.75 | I27: 2566.5 | J27: 5443.4 | K27: 4102.04 | L27: 18 | M27: 2712.6 | N27: 2044.16 | O27: 57 | P27: 1532.73 | Q27: 1155.03 | R27: 38 | S27: 1778.78 | T27: 1340.45 | U27: 3311.51 | V27: 2495.48 | W27: 7 | X27: 17864.28 | Y27: 13462.16 | Z27: 114 | AA27: 36320.4 | AB27: 27370.31 | AC27: 0 | AD27: 0 | AE27: 0 | AF27: 0 | AG27: 0 | AH27: 0 | AI27: 54184.68 | AJ27: 40832.47 | AK27: 14 | AL27: 1189.16 | AM27: 896.13 | AN27: 0 | AO27: 0 | AP27: 0 | AQ27: 454.34 | AR27: 342.38 | AS27: 15632.7 | AT27: 11780.48 | AU27: 82928.39 | AV27: 62493.14 | AW27: 0 | AX27: 0
A28: AGIC84000A | B28: 1429.81 | C28: 1077.48 | D28: 1 | E28: 607.84 | F28: 458.06 | G28: 97 | H28: 3477.45 | I28: 2620.54 | J28: 5515.1 | K28: 4156.08 | L28: 20 | M28: 3014 | N28: 2271.29 | O28: 68 | P28: 1828.52 | Q28: 1377.94 | R28: 29 | S28: 1357.49 | T28: 1022.98 | U28: 3186.01 | V28: 2400.92 | W28: 6 | X28: 15312.24 | Y28: 11538.99 | Z28: 118 | AA28: 37594.8 | AB28: 28330.67 | AC28: 0 | AD28: 0 | AE28: 0 | AF28: 0 | AG28: 0 | AH28: 0 | AI28: 52907.04 | AJ28: 39869.66 | AK28: 12 | AL28: 1019.28 | AM28: 768.11 | AN28: 0 | AO28: 0 | AP28: 0 | AQ28: 324.53 | AR28: 244.56 | AS28: 15778.42 | AT28: 11890.29 | AU28: 81744.38 | AV28: 61600.91 | AW28: 0 | AX28: 0
A29: AGIC841006 | B29: 1429.81 | C29: 1077.48 | D29: 1 | E29: 607.84 | F29: 458.06 | G29: 98 | H29: 3513.3 | I29: 2647.55 | J29: 5550.95 | K29: 4183.09 | L29: 23 | M29: 3466.1 | N29: 2611.98 | O29: 69 | P29: 1855.41 | Q29: 1398.2 | R29: 29 | S29: 1357.49 | T29: 1022.98 | U29: 3212.9 | V29: 2421.18 | W29: 5 | X29: 12760.2 | Y29: 9615.83 | Z29: 122 | AA29: 38869.2 | AB29: 29291.03 | AC29: 0 | AD29: 0 | AE29: 0 | AF29: 0 | AG29: 0 | AH29: 0 | AI29: 51629.4 | AJ29: 38906.86 | AK29: 14 | AL29: 1189.16 | AM29: 896.13 | AN29: 0 | AO29: 0 | AP29: 0 | AQ29: 746.41 | AR29: 562.48 | AS29: 17422.99 | AT29: 13129.61 | AU29: 83217.91 | AV29: 62711.33 | AW29: 0 | AX29: 0
A30: AGIC84400N | B30: 1429.81 | C30: 1077.48 | D30: 1 | E30: 607.84 | F30: 458.06 | G30: 105 | H30: 3764.25 | I30: 2836.66 | J30: 5801.9 | K30: 4372.2 | L30: 23 | M30: 3466.1 | N30: 2611.98 | O30: 72 | P30: 1936.08 | Q30: 1458.99 | R30: 33 | S30: 1544.73 | T30: 1164.08 | U30: 3480.81 | V30: 2623.07 | W30: 8 | X30: 20416.32 | Y30: 15385.32 | Z30: 129 | AA30: 41099.4 | AB30: 30971.67 | AC30: 0 | AD30: 0 | AE30: 0 | AF30: 0 | AG30: 0 | AH30: 0 | AI30: 61515.72 | AJ30: 46356.99 | AK30: 13 | AL30: 1104.22 | AM30: 832.12 | AN30: 0 | AO30: 0 | AP30: 0 | AQ30: 486.79 | AR30: 366.83 | AS30: 17201.87 | AT30: 12962.98 | AU30: 93057.41 | AV30: 70126.17 | AW30: 0 | AX30: 0
A31: AGIC84500D | B31: 1429.81 | C31: 1077.48 | D31: 1 | E31: 607.84 | F31: 458.06 | G31: 86 | H31: 3083.1 | I31: 2323.36 | J31: 5120.75 | K31: 3858.9 | L31: 18 | M31: 2712.6 | N31: 2044.16 | O31: 43 | P31: 1156.27 | Q31: 871.34 | R31: 43 | S31: 2012.83 | T31: 1516.83 | U31: 3169.1 | V31: 2388.17 | W31: 4 | X31: 10208.16 | Y31: 7692.66 | Z31: 105 | AA31: 33453 | AB31: 25209.5 | AC31: 0 | AD31: 0 | AE31: 0 | AF31: 0 | AG31: 0 | AH31: 0 | AI31: 43661.16 | AJ31: 32902.16 | AK31: 18 | AL31: 1528.92 | AM31: 1152.16 | AN31: 0 | AO31: 0 | AP31: 0 | AQ31: 162.26 | AR31: 122.28 | AS31: 15093.63 | AT31: 11374.25 | AU31: 71448.42 | AV31: 53842.08 | AW31: 0 | AX31: 0
A32: AGIC846009 | B32: 1429.81 | C32: 1077.48 | D32: 1 | E32: 607.84 | F32: 458.06 | G32: 102 | H32: 3656.7 | I32: 2755.61 | J32: 5694.35 | K32: 4291.15 | L32: 26 | M32: 3918.2 | N32: 2952.68 | O32: 68 | P32: 1828.52 | Q32: 1377.94 | R32: 34 | S32: 1591.54 | T32: 1199.35 | U32: 3420.06 | V32: 2577.29 | W32: 7 | X32: 17864.28 | Y32: 13462.16 | Z32: 129 | AA32: 41099.4 | AB32: 30971.67 | AC32: 0 | AD32: 0 | AE32: 0 | AF32: 0 | AG32: 0 | AH32: 0 | AI32: 58963.68 | AJ32: 44433.83 | AK32: 15 | AL32: 1274.1 | AM32: 960.14 | AN32: 0 | AO32: 0 | AP32: 0 | AQ32: 973.58 | AR32: 733.67 | AS32: 16924.11 | AT32: 12753.66 | AU32: 91168.08 | AV32: 68702.42 | AW32: 0 | AX32: 0
A33: AGIC847005 | B33: 1429.81 | C33: 1077.48 | D33: 1 | E33: 607.84 | F33: 458.06 | G33: 86 | H33: 3083.1 | I33: 2323.36 | J33: 5120.75 | K33: 3858.9 | L33: 21 | M33: 3164.7 | N33: 2384.85 | O33: 67 | P33: 1801.63 | Q33: 1357.67 | R33: 19 | S33: 889.39 | T33: 670.23 | U33: 2691.02 | V33: 2027.9 | W33: 7 | X33: 17864.28 | Y33: 13462.16 | Z33: 108 | AA33: 34408.8 | AB33: 25929.77 | AC33: 0 | AD33: 0 | AE33: 0 | AF33: 0 | AG33: 0 | AH33: 0 | AI33: 52273.08 | AJ33: 39391.93 | AK33: 9 | AL33: 764.46 | AM33: 576.08 | AN33: 0 | AO33: 0 | AP33: 0 | AQ33: 519.24 | AR33: 391.29 | AS33: 14321.04 | AT33: 10792.04 | AU33: 78854.29 | AV33: 59422.99 | AW33: 0 | AX33: 0
A34: AGIC848001 | B34: 1429.81 | C34: 1077.48 | D34: 1 | E34: 607.84 | F34: 458.06 | G34: 107 | H34: 3835.95 | I34: 2890.69 | J34: 5873.6 | K34: 4426.23 | L34: 24 | M34: 3616.8 | N34: 2725.55 | O34: 73 | P34: 1962.97 | Q34: 1479.25 | R34: 34 | S34: 1591.54 | T34: 1199.35 | U34: 3554.51 | V34: 2678.6 | W34: 8 | X34: 20416.32 | Y34: 15385.32 | Z34: 132 | AA34: 42055.2 | AB34: 31691.94 | AC34: 0 | AD34: 0 | AE34: 0 | AF34: 0 | AG34: 0 | AH34: 0 | AI34: 62471.52 | AJ34: 47077.26 | AK34: 14 | AL34: 1189.16 | AM34: 896.13 | AN34: 0 | AO34: 0 | AP34: 0 | AQ34: 811.31 | AR34: 611.39 | AS34: 17728.22 | AT34: 13359.62 | AU34: 95245.12 | AV34: 71774.78 | AW34: 0 | AX34: 0
A35: AGIC850001 | B35: 1429.81 | C35: 1077.48 | D35: 1 | E35: 607.84 | F35: 458.06 | G35: 72 | H35: 2581.2 | I35: 1945.14 | J35: 4618.85 | K35: 3480.68 | L35: 16 | M35: 2411.2 | N35: 1817.03 | O35: 43 | P35: 1156.27 | Q35: 871.34 | R35: 29 | S35: 1357.49 | T35: 1022.98 | U35: 2513.76 | V35: 1894.32 | W35: 4 | X35: 10208.16 | Y35: 7692.66 | Z35: 89 | AA35: 28355.4 | AB35: 21368.05 | AC35: 0 | AD35: 0 | AE35: 0 | AF35: 0 | AG35: 0 | AH35: 0 | AI35: 38563.56 | AJ35: 29060.71 | AK35: 11 | AL35: 934.34 | AM35: 704.1 | AN35: 0 | AO35: 0 | AP35: 0 | AQ35: 324.53 | AR35: 244.56 | AS35: 12234.73 | AT35: 9219.84 | AU35: 61600.97 | AV35: 46421.24 | AW35: 0 | AX35: 0
A36: AGIC85100R | B36: 1429.81 | C36: 1077.48 | D36: 1 | E36: 607.84 | F36: 458.06 | G36: 65 | H36: 2330.25 | I36: 1756.03 | J36: 4367.9 | K36: 3291.57 | L36: 17 | M36: 2561.9 | N36: 1930.6 | O36: 42 | P36: 1129.38 | Q36: 851.08 | R36: 23 | S36: 1076.63 | T36: 811.33 | U36: 2206.01 | V36: 1662.41 | W36: 5 | X36: 12760.2 | Y36: 9615.83 | Z36: 83 | AA36: 26443.8 | AB36: 19927.51 | AC36: 0 | AD36: 0 | AE36: 0 | AF36: 0 | AG36: 0 | AH36: 0 | AI36: 39204 | AJ36: 29543.34 | AK36: 10 | AL36: 849.4 | AM36: 640.09 | AN36: 0 | AO36: 0 | AP36: 0 | AQ36: 227.17 | AR36: 171.19 | AS36: 11049.23 | AT36: 8326.47 | AU36: 60465.61 | AV36: 45565.67 | AW36: 0 | AX36: 0
A37: AGIC85200L | B37: 1429.81 | C37: 1077.48 | D37: 1 | E37: 607.84 | F37: 458.06 | G37: 66 | H37: 2366.1 | I37: 1783.04 | J37: 4403.75 | K37: 3318.58 | L37: 18 | M37: 2712.6 | N37: 2044.16 | O37: 41 | P37: 1102.49 | Q37: 830.81 | R37: 25 | S37: 1170.25 | T37: 881.88 | U37: 2272.74 | V37: 1712.69 | W37: 4 | X37: 10208.16 | Y37: 7692.66 | Z37: 85 | AA37: 27081 | AB37: 20407.69 | AC37: 0 | AD37: 0 | AE37: 0 | AF37: 0 | AG37: 0 | AH37: 0 | AI37: 37289.16 | AJ37: 28100.35 | AK37: 11 | AL37: 934.34 | AM37: 704.1 | AN37: 0 | AO37: 0 | AP37: 0 | AQ37: 162.26 | AR37: 122.28 | AS37: 11275.37 | AT37: 8496.89 | AU37: 59050.22 | AV37: 44499.05 | AW37: 0 | AX37: 0
A38: AGIC85300C | B38: 1429.81 | C38: 1077.48 | D38: 1 | E38: 607.84 | F38: 458.06 | G38: 70 | H38: 2509.5 | I38: 1891.11 | J38: 4547.15 | K38: 3426.65 | L38: 22 | M38: 3315.4 | N38: 2498.42 | O38: 47 | P38: 1263.83 | Q38: 952.4 | R38: 23 | S38: 1076.63 | T38: 811.33 | U38: 2340.46 | V38: 1763.73 | W38: 7 | X38: 17864.28 | Y38: 13462.16 | Z38: 93 | AA38: 29629.8 | AB38: 22328.41 | AC38: 0 | AD38: 0 | AE38: 0 | AF38: 0 | AG38: 0 | AH38: 0 | AI38: 47494.08 | AJ38: 35790.57 | AK38: 11 | AL38: 934.34 | AM38: 704.1 | AN38: 0 | AO38: 0 | AP38: 0 | AQ38: 1525.27 | AR38: 1149.41 | AS38: 12843.85 | AT38: 9678.86 | AU38: 73000.55 | AV38: 55011.74 | AW38: 0 | AX38: 0
A39: AGIC855004 | B39: 1429.81 | C39: 1077.48 | D39: 1 | E39: 607.84 | F39: 458.06 | G39: 102 | H39: 3656.7 | I39: 2755.61 | J39: 5694.35 | K39: 4291.15 | L39: 22 | M39: 3315.4 | N39: 2498.42 | O39: 67 | P39: 1801.63 | Q39: 1357.67 | R39: 35 | S39: 1638.35 | T39: 1234.63 | U39: 3439.98 | V39: 2592.3 | W39: 7 | X39: 17864.28 | Y39: 13462.16 | Z39: 125 | AA39: 39825 | AB39: 30011.3 | AC39: 0 | AD39: 0 | AE39: 0 | AF39: 0 | AG39: 0 | AH39: 0 | AI39: 57689.28 | AJ39: 43473.46 | AK39: 16 | AL39: 1359.04 | AM39: 1024.14 | AN39: 0 | AO39: 0 | AP39: 0 | AQ39: 778.86 | AR39: 586.93 | AS39: 17476.47 | AT39: 13169.91 | AU39: 89753.38 | AV39: 67636.31 | AW39: 0 | AX39: 0
A40: AGIC85600X | B40: 1429.81 | C40: 1077.48 | D40: 1 | E40: 607.84 | F40: 458.06 | G40: 89 | H40: 3190.65 | I40: 2404.41 | J40: 5228.3 | K40: 3939.95 | L40: 23 | M40: 3466.1 | N40: 2611.98 | O40: 50 | P40: 1344.5 | Q40: 1013.19 | R40: 39 | S40: 1825.59 | T40: 1375.73 | U40: 3170.09 | V40: 2388.92 | W40: 4 | X40: 10208.16 | Y40: 7692.66 | Z40: 113 | AA40: 36001.8 | AB40: 27130.22 | AC40: 0 | AD40: 0 | AE40: 0 | AF40: 0 | AG40: 0 | AH40: 0 | AI40: 46209.96 | AJ40: 34822.88 | AK40: 14 | AL40: 1189.16 | AM40: 896.13 | AN40: 0 | AO40: 0 | AP40: 0 | AQ40: 811.31 | AR40: 611.39 | AS40: 15578.05 | AT40: 11739.3 | AU40: 75652.97 | AV40: 57010.55 | AW40: 0 | AX40: 0
A41: AGIC85700Q | B41: 1429.81 | C41: 1077.48 | D41: 1 | E41: 607.84 | F41: 458.06 | G41: 100 | H41: 3585 | I41: 2701.58 | J41: 5622.65 | K41: 4237.12 | L41: 24 | M41: 3616.8 | N41: 2725.55 | O41: 68 | P41: 1828.52 | Q41: 1377.94 | R41: 32 | S41: 1497.92 | T41: 1128.8 | U41: 3326.44 | V41: 2506.74 | W41: 9 | X41: 22968.36 | Y41: 17308.49 | Z41: 125 | AA41: 39825 | AB41: 30011.3 | AC41: 0 | AD41: 0 | AE41: 0 | AF41: 0 | AG41: 0 | AH41: 0 | AI41: 62793.36 | AJ41: 47319.79 | AK41: 14 | AL41: 1189.16 | AM41: 896.13 | AN41: 0 | AO41: 0 | AP41: 0 | AQ41: 1784.89 | AR41: 1345.06 | AS41: 16712.42 | AT41: 12594.14 | AU41: 95045.72 | AV41: 71624.53 | AW41: 0 | AX41: 0
A42: AGIC85800G | B42: 1429.81 | C42: 1077.48 | D42: 1 | E42: 607.84 | F42: 458.06 | G42: 83 | H42: 2975.55 | I42: 2242.31 | J42: 5013.2 | K42: 3777.85 | L42: 19 | M42: 2863.3 | N42: 2157.72 | O42: 53 | P42: 1425.17 | Q42: 1073.98 | R42: 30 | S42: 1404.3 | T42: 1058.25 | U42: 2829.47 | V42: 2132.23 | W42: 6 | X42: 15312.24 | Y42: 11538.99 | Z42: 103 | AA42: 32815.8 | AB42: 24729.31 | AC42: 0 | AD42: 0 | AE42: 0 | AF42: 0 | AG42: 0 | AH42: 0 | AI42: 48128.04 | AJ42: 36268.3 | AK42: 12 | AL42: 1019.28 | AM42: 768.11 | AN42: 0 | AO42: 0 | AP42: 0 | AQ42: 746.41 | AR42: 562.48 | AS42: 13481.09 | AT42: 10159.07 | AU42: 74080.79 | AV42: 55825.76 | AW42: 0 | AX42: 0
A43: AGIC85900B | B43: 1429.81 | C43: 1077.48 | D43: 1 | E43: 607.84 | F43: 458.06 | G43: 78 | H43: 2796.3 | I43: 2107.23 | J43: 4833.95 | K43: 3642.77 | L43: 24 | M43: 3616.8 | N43: 2725.55 | O43: 48 | P43: 1290.72 | Q43: 972.66 | R43: 30 | S43: 1404.3 | T43: 1058.25 | U43: 2695.02 | V43: 2030.91 | W43: 5 | X43: 12760.2 | Y43: 9615.83 | Z43: 103 | AA43: 32815.8 | AB43: 24729.31 | AC43: 0 | AD43: 0 | AE43: 0 | AF43: 0 | AG43: 0 | AH43: 0 | AI43: 45576 | AJ43: 34345.14 | AK43: 12 | AL43: 1019.28 | AM43: 768.11 | AN43: 0 | AO43: 0 | AP43: 0 | AQ43: 64.91 | AR43: 48.91 | AS43: 13322.86 | AT43: 10039.83 | AU43: 71128.82 | AV43: 53601.22 | AW43: 0 | AX43: 0
A44: AGIC86100B | B44: 1429.81 | C44: 1077.48 | D44: 1 | E44: 607.84 | F44: 458.06 | G44: 98 | H44: 3513.3 | I44: 2647.55 | J44: 5550.95 | K44: 4183.09 | L44: 24 | M44: 3616.8 | N44: 2725.55 | O44: 65 | P44: 1747.85 | Q44: 1317.14 | R44: 33 | S44: 1544.73 | T44: 1164.08 | U44: 3292.58 | V44: 2481.22 | W44: 5 | X44: 12760.2 | Y44: 9615.83 | Z44: 123 | AA44: 39187.8 | AB44: 29531.12 | AC44: 0 | AD44: 0 | AE44: 0 | AF44: 0 | AG44: 0 | AH44: 0 | AI44: 51948 | AJ44: 39146.95 | AK44: 15 | AL44: 1274.1 | AM44: 960.14 | AN44: 0 | AO44: 0 | AP44: 0 | AQ44: 356.98 | AR44: 269.01 | AS44: 16988.67 | AT44: 12802.31 | AU44: 83028.08 | AV44: 62568.27 | AW44: 0 | AX44: 0
A45: AGIC863003 | B45: 1429.81 | C45: 1077.48 | D45: 1 | E45: 607.84 | F45: 458.06 | G45: 103 | H45: 3692.55 | I45: 2782.63 | J45: 5730.2 | K45: 4318.17 | L45: 23 | M45: 3466.1 | N45: 2611.98 | O45: 97 | P45: 2608.33 | Q45: 1965.58 | R45: 6 | S45: 280.86 | T45: 211.65 | U45: 2889.19 | V45: 2177.23 | W45: 7 | X45: 17864.28 | Y45: 13462.16 | Z45: 127 | AA45: 40462.2 | AB45: 30491.48 | AC45: 0 | AD45: 0 | AE45: 0 | AF45: 0 | AG45: 0 | AH45: 0 | AI45: 58326.48 | AJ45: 43953.64 | AK45: 3 | AL45: 254.82 | AM45: 192.03 | AN45: 0 | AO45: 0 | AP45: 0 | AQ45: 616.6 | AR45: 464.66 | AS45: 16849.98 | AT45: 12697.8 | AU45: 88133.37 | AV45: 66415.51 | AW45: 0 | AX45: 0
A46: AGIC86400V | B46: 1429.81 | C46: 1077.48 | D46: 1 | E46: 607.84 | F46: 458.06 | G46: 75 | H46: 2688.75 | I46: 2026.19 | J46: 4726.4 | K46: 3561.73 | L46: 20 | M46: 3014 | N46: 2271.29 | O46: 45 | P46: 1210.05 | Q46: 911.87 | R46: 30 | S46: 1404.3 | T46: 1058.25 | U46: 2614.35 | V46: 1970.12 | W46: 5 | X46: 12760.2 | Y46: 9615.83 | Z46: 96 | AA46: 30585.6 | AB46: 23048.68 | AC46: 0 | AD46: 0 | AE46: 0 | AF46: 0 | AG46: 0 | AH46: 0 | AI46: 43345.8 | AJ46: 32664.51 | AK46: 12 | AL46: 1019.28 | AM46: 768.11 | AN46: 0 | AO46: 0 | AP46: 0 | AQ46: 292.07 | AR46: 220.1 | AS46: 12697.7 | AT46: 9568.73 | AU46: 67709.6 | AV46: 51024.59 | AW46: 0 | AX46: 0
A47: AGIS00100X | B47: 1429.81 | C47: 1077.48 | D47: 1 | E47: 607.84 | F47: 458.06 | G47: 98 | H47: 3513.3 | I47: 2647.55 | J47: 5550.95 | K47: 4183.09 | L47: 25 | M47: 3767.5 | N47: 2839.11 | O47: 0 | P47: 0 | Q47: 0 | R47: 98 | S47: 4587.38 | T47: 3456.96 | U47: 4587.38 | V47: 3456.96 | W47: 2 | X47: 5104.08 | Y47: 3846.33 | Z47: 124 | AA47: 39506.4 | AB47: 29771.21 | AC47: 0 | AD47: 0 | AE47: 0 | AF47: 98 | AG47: 31900.96 | AH47: 24039.91 | AI47: 76511.44 | AJ47: 57657.45 | AK47: 53 | AL47: 4501.82 | AM47: 3392.48 | AN47: 0 | AO47: 0 | AP47: 0 | AQ47: 811.31 | AR47: 611.39 | AS47: 17516.33 | AT47: 13199.95 | AU47: 113246.73 | AV47: 85340.43 | AW47: 11 | AX47: 44000
A48: AGIS00800P | B48: 1429.81 | C48: 1077.48 | D48: 1 | E48: 607.84 | F48: 458.06 | G48: 85 | H48: 3047.25 | I48: 2296.35 | J48: 5084.9 | K48: 3831.89 | L48: 22 | M48: 3315.4 | N48: 2498.42 | O48: 0 | P48: 0 | Q48: 0 | R48: 85 | S48: 3978.85 | T48: 2998.38 | U48: 3978.85 | V48: 2998.38 | W48: 3 | X48: 7656.12 | Y48: 5769.5 | Z48: 108 | AA48: 34408.8 | AB48: 25929.77 | AC48: 0 | AD48: 0 | AE48: 0 | AF48: 85 | AG48: 27669.2 | AH48: 20850.94 | AI48: 69734.12 | AJ48: 52550.21 | AK48: 39 | AL48: 3312.66 | AM48: 2496.35 | AN48: 0 | AO48: 0 | AP48: 0 | AQ48: 486.79 | AR48: 366.83 | AS48: 14959.78 | AT48: 11273.38 | AU48: 100872.5 | AV48: 76015.46 | AW48: 8 | AX48: 32000
A49: AGIS01100E | B49: 1429.81 | C49: 1077.48 | D49: 2 | E49: 1215.68 | F49: 916.11 | G49: 92 | H49: 3298.2 | I49: 2485.46 | J49: 5943.69 | K49: 4479.05 | L49: 29 | M49: 4370.3 | N49: 3293.37 | O49: 0 | P49: 0 | Q49: 0 | R49: 92 | S49: 4306.52 | T49: 3245.31 | U49: 4306.52 | V49: 3245.31 | W49: 3 | X49: 7656.12 | Y49: 5769.5 | Z49: 122 | AA49: 38869.2 | AB49: 29291.03 | AC49: 0 | AD49: 0 | AE49: 0 | AF49: 92 | AG49: 29947.84 | AH49: 22568.08 | AI49: 76473.16 | AJ49: 57628.61 | AK49: 33 | AL49: 2803.02 | AM49: 2112.3 | AN49: 0 | AO49: 0 | AP49: 0 | AQ49: 1070.93 | AR49: 807.03 | AS49: 16250.08 | AT49: 12245.73 | AU49: 111217.7 | AV49: 83811.4 | AW49: 8 | AX49: 32000
A50: AGIS01200A | B50: 1429.81 | C50: 1077.48 | D50: 3 | E50: 1823.52 | F50: 1374.17 | G50: 90 | H50: 3226.5 | I50: 2431.42 | J50: 6479.83 | K50: 4883.07 | L50: 59 | M50: 8891.3 | N50: 6700.3 | O50: 0 | P50: 0 | Q50: 0 | R50: 90 | S50: 4212.9 | T50: 3174.76 | U50: 4212.9 | V50: 3174.76 | W50: 3 | X50: 7656.12 | Y50: 5769.5 | Z50: 155 | AA50: 49383 | AB50: 37214.02 | AC50: 5 | AD50: 5337.15 | AE50: 4021.97 | AF50: 90 | AG50: 29296.8 | AH50: 22077.47 | AI50: 91673.07 | AJ50: 69082.96 | AK50: 38 | AL50: 3227.72 | AM50: 2432.34 | AN50: 20 | AO50: 6351 | AP50: 4785.98 | AQ50: 1200.74 | AR50: 904.85 | AS50: 20039.93 | AT50: 15101.68 | AU50: 142076.49 | AV50: 107065.94 | AW50: 10 | AX50: 40000
A51: AGIS013006 | B51: 1429.81 | C51: 1077.48 | D51: 2 | E51: 1215.68 | F51: 916.11 | G51: 84 | H51: 3011.4 | I51: 2269.33 | J51: 5656.89 | K51: 4262.92 | L51: 26 | M51: 3918.2 | N51: 2952.68 | O51: 0 | P51: 0 | Q51: 0 | R51: 84 | S51: 3932.04 | T51: 2963.1 | U51: 3932.04 | V51: 2963.1 | W51: 3 | X51: 7656.12 | Y51: 5769.5 | Z51: 111 | AA51: 35364.6 | AB51: 26650.04 | AC51: 0 | AD51: 0 | AE51: 0 | AF51: 84 | AG51: 27343.68 | AH51: 20605.64 | AI51: 70364.4 | AJ51: 53025.18 | AK51: 28 | AL51: 2378.32 | AM51: 1792.25 | AN51: 0 | AO51: 0 | AP51: 0 | AQ51: 1622.63 | AR51: 1222.78 | AS51: 14541.09 | AT51: 10957.87 | AU51: 102413.57 | AV51: 77176.78 | AW51: 6 | AX51: 24000
A52: AGIS01600N | B52: 1429.81 | C52: 1077.48 | D52: 3 | E52: 1823.52 | F52: 1374.17 | G52: 152 | H52: 5449.2 | I52: 4106.41 | J52: 8702.53 | K52: 6558.06 | L52: 34 | M52: 5123.8 | N52: 3861.19 | O52: 0 | P52: 0 | Q52: 0 | R52: 152 | S52: 7115.12 | T52: 5361.81 | U52: 7115.12 | V52: 5361.81 | W52: 6 | X52: 15312.24 | Y52: 11538.99 | Z52: 187 | AA52: 59578.2 | AB52: 44896.91 | AC52: 0 | AD52: 0 | AE52: 0 | AF52: 152 | AG52: 49479.04 | AH52: 37286.39 | AI52: 124369.48 | AJ52: 93722.29 | AK52: 58 | AL52: 4926.52 | AM52: 3712.52 | AN52: 0 | AO52: 0 | AP52: 0 | AQ52: 1719.99 | AR52: 1296.15 | AS52: 24712.95 | AT52: 18623.17 | AU52: 176670.39 | AV52: 133135.19 | AW52: 13 | AX52: 52000
A53: AGIS01700D | B53: 1429.81 | C53: 1077.48 | D53: 3 | E53: 1823.52 | F53: 1374.17 | G53: 103 | H53: 3692.55 | I53: 2782.63 | J53: 6945.88 | K53: 5234.28 | L53: 29 | M53: 4370.3 | N53: 3293.37 | O53: 0 | P53: 0 | Q53: 0 | R53: 103 | S53: 4821.43 | T53: 3633.33 | U53: 4821.43 | V53: 3633.33 | W53: 6 | X53: 15312.24 | Y53: 11538.99 | Z53: 133 | AA53: 42373.8 | AB53: 31932.03 | AC53: 0 | AD53: 0 | AE53: 0 | AF53: 103 | AG53: 33528.56 | AH53: 25266.44 | AI53: 91214.6 | AJ53: 68737.46 | AK53: 43 | AL53: 3652.42 | AM53: 2752.39 | AN53: 0 | AO53: 0 | AP53: 0 | AQ53: 908.67 | AR53: 684.76 | AS53: 21415.78 | AT53: 16138.49 | AU53: 133329.08 | AV53: 100474.08 | AW53: 12 | AX53: 48000
A54: AGIS018009 | B54: 1429.81 | C54: 1077.48 | D54: 2 | E54: 1215.68 | F54: 916.11 | G54: 67 | H54: 2401.95 | I54: 1810.06 | J54: 5047.44 | K54: 3803.65 | L54: 22 | M54: 3315.4 | N54: 2498.42 | O54: 0 | P54: 0 | Q54: 0 | R54: 67 | S54: 3136.27 | T54: 2363.43 | U54: 3136.27 | V54: 2363.43 | W54: 3 | X54: 7656.12 | Y54: 5769.5 | Z54: 90 | AA54: 28674 | AB54: 21608.14 | AC54: 0 | AD54: 0 | AE54: 0 | AF54: 67 | AG54: 21809.84 | AH54: 16435.45 | AI54: 58139.96 | AJ54: 43813.09 | AK54: 33 | AL54: 2803.02 | AM54: 2112.3 | AN54: 0 | AO54: 0 | AP54: 0 | AQ54: 1590.18 | AR54: 1198.33 | AS54: 12522.07 | AT54: 9436.38 | AU54: 86554.34 | AV54: 65225.6 | AW54: 6 | AX54: 24000
A55: AGIS021005 | B55: 1429.81 | C55: 1077.48 | D55: 2 | E55: 1215.68 | F55: 916.11 | G55: 148 | H55: 5305.8 | I55: 3998.34 | J55: 7951.29 | K55: 5991.93 | L55: 37 | M55: 5575.9 | N55: 4201.88 | O55: 0 | P55: 0 | Q55: 0 | R55: 148 | S55: 6927.88 | T55: 5220.71 | U55: 6927.88 | V55: 5220.71 | W55: 4 | X55: 10208.16 | Y55: 7692.66 | Z55: 186 | AA55: 59259.6 | AB55: 44656.82 | AC55: 0 | AD55: 0 | AE55: 0 | AF55: 148 | AG55: 48176.96 | AH55: 36305.17 | AI55: 117644.72 | AJ55: 88654.65 | AK55: 64 | AL55: 5436.16 | AM55: 4096.58 | AN55: 0 | AO55: 0 | AP55: 0 | AQ55: 2044.51 | AR55: 1540.7 | AS55: 25388.44 | AT55: 19132.21 | AU55: 170968.9 | AV55: 128838.66 | AW55: 14 | AX55: 56000
A56: AGIS022001 | B56: 1429.81 | C56: 1077.48 | D56: 2 | E56: 1215.68 | F56: 916.11 | G56: 101 | H56: 3620.85 | I56: 2728.6 | J56: 6266.34 | K56: 4722.19 | L56: 26 | M56: 3918.2 | N56: 2952.68 | O56: 0 | P56: 0 | Q56: 0 | R56: 101 | S56: 4727.81 | T56: 3562.78 | U56: 4727.81 | V56: 3562.78 | W56: 4 | X56: 10208.16 | Y56: 7692.66 | Z56: 128 | AA56: 40780.8 | AB56: 30731.57 | AC56: 0 | AD56: 0 | AE56: 0 | AF56: 101 | AG56: 32877.52 | AH56: 24775.83 | AI56: 83866.48 | AJ56: 63200.06 | AK56: 48 | AL56: 4077.12 | AM56: 3072.43 | AN56: 0 | AO56: 0 | AP56: 0 | AQ56: 2369.04 | AR56: 1785.26 | AS56: 17332.72 | AT56: 13061.58 | AU56: 122557.71 | AV56: 92356.98 | AW56: 10 | AX56: 40000
A57: AGIS02300R | B57: 1429.81 | C57: 1077.48 | D57: 2 | E57: 1215.68 | F57: 916.11 | G57: 129 | H57: 4624.65 | I57: 3485.04 | J57: 7270.14 | K57: 5478.63 | L57: 43 | M57: 6480.1 | N57: 4883.27 | O57: 0 | P57: 0 | Q57: 0 | R57: 129 | S57: 6038.49 | T57: 4550.48 | U57: 6038.49 | V57: 4550.48 | W57: 4 | X57: 10208.16 | Y57: 7692.66 | Z57: 173 | AA57: 55117.8 | AB57: 41535.64 | AC57: 0 | AD57: 0 | AE57: 0 | AF57: 129 | AG57: 41992.08 | AH57: 31644.37 | AI57: 107318.04 | AJ57: 80872.67 | AK57: 42 | AL57: 3567.48 | AM57: 2688.38 | AN57: 0 | AO57: 0 | AP57: 0 | AQ57: 1914.7 | AR57: 1442.88 | AS57: 23323.76 | AT57: 17576.31 | AU57: 155912.71 | AV57: 117492.62 | AW57: 10 | AX57: 40000
A58: AGIS02400L | B58: 1429.81 | C58: 1077.48 | D58: 2 | E58: 1215.68 | F58: 916.11 | G58: 142 | H58: 5090.7 | I58: 3836.25 | J58: 7736.19 | K58: 5829.84 | L58: 39 | M58: 5877.3 | N58: 4429.01 | O58: 0 | P58: 0 | Q58: 0 | R58: 142 | S58: 6647.02 | T58: 5009.06 | U58: 6647.02 | V58: 5009.06 | W58: 5 | X58: 12760.2 | Y58: 9615.83 | Z58: 182 | AA58: 57985.2 | AB58: 43696.46 | AC58: 0 | AD58: 0 | AE58: 0 | AF58: 142 | AG58: 46223.84 | AH58: 34833.34 | AI58: 116969.24 | AJ58: 88145.63 | AK58: 44 | AL58: 3737.36 | AM58: 2816.4 | AN58: 0 | AO58: 0 | AP58: 0 | AQ58: 4089.02 | AR58: 3081.4 | AS58: 25597.06 | AT58: 19289.42 | AU58: 170653.19 | AV58: 128600.76 | AW58: 9 | AX58: 36000
A59: AGIS026008 | B59: 1429.81 | C59: 1077.48 | D59: 2 | E59: 1215.68 | F59: 916.11 | G59: 106 | H59: 3800.1 | I59: 2863.68 | J59: 6445.59 | K59: 4857.27 | L59: 37 | M59: 5575.9 | N59: 4201.88 | O59: 0 | P59: 0 | Q59: 0 | R59: 106 | S59: 4961.86 | T59: 3739.16 | U59: 4961.86 | V59: 3739.16 | W59: 6 | X59: 15312.24 | Y59: 11538.99 | Z59: 144 | AA59: 45878.4 | AB59: 34573.02 | AC59: 0 | AD59: 0 | AE59: 0 | AF59: 106 | AG59: 34505.12 | AH59: 26002.35 | AI59: 95695.76 | AJ59: 72114.36 | AK59: 42 | AL59: 3567.48 | AM59: 2688.38 | AN59: 0 | AO59: 0 | AP59: 0 | AQ59: 811.31 | AR59: 611.39 | AS59: 19226.96 | AT59: 14489.04 | AU59: 136284.86 | AV59: 102701.48 | AW59: 9 | AX59: 36000
A60: AGIS027004 | B60: 1429.81 | C60: 1077.48 | D60: 2 | E60: 1215.68 | F60: 916.11 | G60: 123 | H60: 4409.55 | I60: 3322.95 | J60: 7055.04 | K60: 5316.54 | L60: 37 | M60: 5575.9 | N60: 4201.88 | O60: 0 | P60: 0 | Q60: 0 | R60: 123 | S60: 5757.63 | T60: 4338.83 | U60: 5757.63 | V60: 4338.83 | W60: 4 | X60: 10208.16 | Y60: 7692.66 | Z60: 161 | AA60: 51294.6 | AB60: 38654.56 | AC60: 0 | AD60: 0 | AE60: 0 | AF60: 123 | AG60: 40038.96 | AH60: 30172.54 | AI60: 101541.72 | AJ60: 76519.76 | AK60: 50 | AL60: 4247 | AM60: 3200.45 | AN60: 0 | AO60: 0 | AP60: 0 | AQ60: 3180.35 | AR60: 2396.65 | AS60: 22711.71 | AT60: 17115.08 | AU60: 150069.35 | AV60: 113089.19 | AW60: 10 | AX60: 40000
A61: AGMM054009 | B61: 1429.81 | C61: 1077.48 | D61: 0 | E61: 0 | F61: 0 | G61: 59 | H61: 2115.15 | I61: 1593.93 | J61: 3544.96 | K61: 2671.41 | L61: 11 | M61: 1657.7 | N61: 1249.21 | O61: 0 | P61: 0 | Q61: 0 | R61: 59 | S61: 2761.79 | T61: 2081.23 | U61: 2761.79 | V61: 2081.23 | W61: 1 | X61: 2552.04 | Y61: 1923.17 | Z61: 71 | AA61: 22620.6 | AB61: 17046.42 | AC61: 0 | AD61: 0 | AE61: 0 | AF61: 0 | AG61: 0 | AH61: 0 | AI61: 25172.64 | AJ61: 18969.59 | AK61: 27 | AL61: 2293.38 | AM61: 1728.24 | AN61: 0 | AO61: 0 | AP61: 0 | AQ61: 129.81 | AR61: 97.82 | AS61: 9768.08 | AT61: 7361.02 | AU61: 45328.36 | AV61: 34158.52 | AW61: 0 | AX61: 0
A62: AGMM083009 | B62: 1429.81 | C62: 1077.48 | D62: 10 | E62: 6078.4 | F62: 4580.56 | G62: 60 | H62: 2151 | I62: 1620.95 | J62: 9659.21 | K62: 7278.99 | L62: 28 | M62: 4219.6 | N62: 3179.8 | O62: 28 | P62: 752.92 | Q62: 567.39 | R62: 32 | S62: 1497.92 | T62: 1128.8 | U62: 2250.84 | V62: 1696.19 | W62: 10 | X62: 25520.4 | Y62: 19231.65 | Z62: 89 | AA62: 28355.4 | AB62: 21368.05 | AC62: 0 | AD62: 0 | AE62: 0 | AF62: 0 | AG62: 0 | AH62: 0 | AI62: 53875.8 | AJ62: 40599.7 | AK62: 0 | AL62: 0 | AM62: 0 | AN62: 0 | AO62: 0 | AP62: 0 | AR62: 0 | AS62: 12772.25 | AT62: 9624.91 | AU62: 82777.7 | AV62: 62379.59 | AW62: 0 | AX62: 0
A63: AGPC010001 | B63: 1429.81 | C63: 1077.48 | D63: 0 | E63: 0 | F63: 0 | G63: 101 | H63: 3620.85 | I63: 2728.6 | J63: 5050.66 | K63: 3806.08 | L63: 24 | M63: 3616.8 | N63: 2725.55 | O63: 0 | P63: 0 | Q63: 0 | R63: 101 | S63: 4727.81 | T63: 3562.78 | U63: 4727.81 | V63: 3562.78 | W63: 1 | X63: 2552.04 | Y63: 1923.17 | Z63: 126 | AA63: 40143.6 | AB63: 30251.39 | AC63: 0 | AD63: 0 | AE63: 0 | AF63: 101 | AG63: 32877.52 | AH63: 24775.83 | AI63: 75573.16 | AJ63: 56950.39 | AK63: 43 | AL63: 3652.42 | AM63: 2752.39 | AN63: 0 | AO63: 0 | AP63: 0 | AQ63: 356.98 | AR63: 269.01 | AS63: 17123.24 | AT63: 12903.72 | AU63: 110101.07 | AV63: 82969.92 | AW63: 10 | AX63: 40000
A64: AGPC060002 | B64: 1429.81 | C64: 1077.48 | D64: 0 | E64: 0 | F64: 0 | G64: 57 | H64: 2043.45 | I64: 1539.9 | J64: 3473.26 | K64: 2617.38 | L64: 21 | M64: 3164.7 | N64: 2384.85 | O64: 0 | P64: 0 | Q64: 0 | R64: 57 | S64: 2668.17 | T64: 2010.68 | U64: 2668.17 | V64: 2010.68 | W64: 1 | X64: 2552.04 | Y64: 1923.17 | Z64: 79 | AA64: 25169.4 | AB64: 18967.14 | AC64: 0 | AD64: 0 | AE64: 0 | AF64: 57 | AG64: 18554.64 | AH64: 13982.4 | AI64: 46276.08 | AJ64: 34872.71 | AK64: 31 | AL64: 2633.14 | AM64: 1984.28 | AN64: 0 | AO64: 0 | AP64: 0 | AQ64: 356.98 | AR64: 269.01 | AS64: 10483.35 | AT64: 7900.04 | AU64: 69055.68 | AV64: 52038.95 | AW64: 6 | AX64: 24000
A65: AGPM02000Q | B65: 1429.81 | C65: 1077.48 | D65: 0 | E65: 0 | F65: 0 | G65: 79 | H65: 2832.15 | I65: 2134.25 | J65: 4261.96 | K65: 3211.73 | L65: 23 | M65: 3466.1 | N65: 2611.98 | O65: 0 | P65: 0 | Q65: 0 | R65: 79 | S65: 3697.99 | T65: 2786.73 | U65: 3697.99 | V65: 2786.73 | W65: 1 | X65: 2552.04 | Y65: 1923.17 | Z65: 103 | AA65: 32815.8 | AB65: 24729.31 | AC65: 0 | AD65: 0 | AE65: 0 | AF65: 79 | AG65: 25716.08 | AH65: 19379.11 | AI65: 61083.92 | AJ65: 46031.59 | AK65: 40 | AL65: 3397.6 | AM65: 2560.36 | AN65: 0 | AO65: 0 | AP65: 0 | AQ65: 129.81 | AR65: 97.82 | AS65: 14429.09 | AT65: 10873.47 | AU65: 90466.47 | AV65: 68173.68 | AW65: 8 | AX65: 32000
A66: AGPM03000A | B66: 1429.81 | C66: 1077.48 | D66: 0 | E66: 0 | F66: 0 | G66: 125 | H66: 4481.25 | I66: 3376.98 | J66: 5911.06 | K66: 4454.46 | L66: 32 | M66: 4822.4 | N66: 3634.06 | O66: 0 | P66: 0 | Q66: 0 | R66: 125 | S66: 5851.25 | T66: 4409.38 | U66: 5851.25 | V66: 4409.38 | W66: 1 | X66: 2552.04 | Y66: 1923.17 | Z66: 158 | AA66: 50338.8 | AB66: 37934.29 | AC66: 0 | AD66: 0 | AE66: 0 | AF66: 125 | AG66: 40690 | AH66: 30663.15 | AI66: 93580.84 | AJ66: 70520.61 | AK66: 68 | AL66: 5775.92 | AM66: 4352.61 | AN66: 0 | AO66: 0 | AP66: 0 | AQ66: 876.22 | AR66: 660.3 | AS66: 23001.68 | AT66: 17333.59 | AU66: 139819.37 | AV66: 105365.01 | AW66: 13 | AX66: 52000
A67: AGPS02000P | B67: 1429.81 | C67: 1077.48 | D67: 0 | E67: 0 | F67: 0 | G67: 87 | H67: 3118.95 | I67: 2350.38 | J67: 4548.76 | K67: 3427.86 | L67: 25 | M67: 3767.5 | N67: 2839.11 | O67: 0 | P67: 0 | Q67: 0 | R67: 87 | S67: 4072.47 | T67: 3068.93 | U67: 4072.47 | V67: 3068.93 | W67: 1 | X67: 2552.04 | Y67: 1923.17 | Z67: 113 | AA67: 36001.8 | AB67: 27130.22 | AC67: 0 | AD67: 0 | AE67: 0 | AF67: 87 | AG67: 28320.24 | AH67: 21341.55 | AI67: 66874.08 | AJ67: 50394.94 | AK67: 50 | AL67: 4247 | AM67: 3200.45 | AN67: 0 | AO67: 0 | AP67: 0 | AQ67: 389.43 | AR67: 293.47 | AS67: 15931.82 | AT67: 12005.89 | AU67: 99831.06 | AV67: 75230.65 | AW67: 10 | AX67: 40000
A68: AGPS030009 | B68: 1429.81 | C68: 1077.48 | D68: 0 | E68: 0 | F68: 0 | G68: 102 | H68: 3656.7 | I68: 2755.61 | J68: 5086.51 | K68: 3833.09 | L68: 27 | M68: 4068.9 | N68: 3066.24 | O68: 0 | P68: 0 | Q68: 0 | R68: 102 | S68: 4774.62 | T68: 3598.06 | U68: 4774.62 | V68: 3598.06 | W68: 1 | X68: 2552.04 | Y68: 1923.17 | Z68: 130 | AA68: 41418 | AB68: 31211.76 | AC68: 0 | AD68: 0 | AE68: 0 | AF68: 102 | AG68: 33203.04 | AH68: 25021.13 | AI68: 77173.08 | AJ68: 58156.06 | AK68: 57 | AL68: 4841.58 | AM68: 3648.52 | AN68: 0 | AO68: 0 | AP68: 0 | AQ68: 843.77 | AR68: 635.85 | AS68: 18175.56 | AT68: 13696.73 | AU68: 114964.02 | AV68: 86634.55 | AW68: 10 | AX68: 40000
A69: AGRH02000C | B69: 1429.81 | C69: 1077.48 | D69: 2 | E69: 1215.68 | F69: 916.11 | G69: 87 | H69: 3118.95 | I69: 2350.38 | J69: 5764.44 | K69: 4343.97 | L69: 32 | M69: 4822.4 | N69: 3634.06 | O69: 0 | P69: 0 | Q69: 0 | R69: 87 | S69: 4072.47 | T69: 3068.93 | U69: 4072.47 | V69: 3068.93 | W69: 3 | X69: 7656.12 | Y69: 5769.5 | Z69: 120 | AA69: 38232 | AB69: 28810.85 | AC69: 0 | AD69: 0 | AE69: 0 | AF69: 87 | AG69: 28320.24 | AH69: 21341.55 | AI69: 74208.36 | AJ69: 55921.9 | AK69: 41 | AL69: 3482.54 | AM69: 2624.37 | AN69: 0 | AO69: 0 | AP69: 0 | AQ69: 2498.85 | AR69: 1883.08 | AS69: 15343.65 | AT69: 11562.66 | AU69: 110192.71 | AV69: 83038.97 | AW69: 9 | AX69: 36000
A70: AGTD09000R | B70: 1429.81 | C70: 1077.48 | D70: 1 | E70: 607.84 | F70: 458.06 | G70: 84 | H70: 3011.4 | I70: 2269.33 | J70: 5049.05 | K70: 3804.87 | L70: 31 | M70: 4671.7 | N70: 3520.5 | O70: 0 | P70: 0 | Q70: 0 | R70: 84 | S70: 3932.04 | T70: 2963.1 | U70: 3932.04 | V70: 2963.1 | W70: 2 | X70: 5104.08 | Y70: 3846.33 | Z70: 116 | AA70: 36957.6 | AB70: 27850.49 | AC70: 0 | AD70: 0 | AE70: 0 | AF70: 84 | AG70: 27343.68 | AH70: 20605.64 | AI70: 69405.36 | AJ70: 52302.46 | AK70: 36 | AL70: 3057.84 | AM70: 2304.33 | AN70: 0 | AO70: 0 | AP70: 0 | AQ70: 1135.84 | AR70: 855.95 | AS70: 15168.56 | AT70: 11430.72 | AU70: 102420.39 | AV70: 77181.93 | AW70: 9 | AX70: 36000
A71: ALEE00700B | B71: 1429.81 | C71: 1077.48 | D71: 0 | E71: 0 | F71: 0 | G71: 71 | H71: 2545.35 | I71: 1918.12 | J71: 3975.16 | K71: 2995.6 | L71: 17 | M71: 2561.9 | N71: 1930.6 | O71: 71 | P71: 1909.19 | Q71: 1438.73 | R71: 0 | S71: 0 | T71: 0 | U71: 1909.19 | V71: 1438.73 | W71: 5 | X71: 12760.2 | Y71: 9615.83 | Z71: 89 | AA71: 28355.4 | AB71: 21368.05 | AC71: 0 | AD71: 0 | AE71: 0 | AF71: 0 | AG71: 0 | AH71: 0 | AI71: 41115.6 | AJ71: 30983.88 | AK71: 0 | AL71: 0 | AM71: 0 | AN71: 0 | AO71: 0 | AP71: 0 | AQ71: 3115.45 | AR71: 2347.74 | AS71: 13362.3 | AT71: 10069.56 | AU71: 66039.6 | AV71: 49766.11 | AW71: 0 | AX71: 0
A72: ALEE037007 | B72: 1429.81 | C72: 1077.48 | D72: 0 | E72: 0 | F72: 0 | G72: 86 | H72: 3083.1 | I72: 2323.36 | J72: 4512.91 | K72: 3400.84 | L72: 21 | M72: 3164.7 | N72: 2384.85 | O72: 86 | P72: 2312.54 | Q72: 1742.68 | R72: 0 | S72: 0 | T72: 0 | U72: 2312.54 | V72: 1742.68 | W72: 7 | X72: 17864.28 | Y72: 13462.16 | Z72: 108 | AA72: 34408.8 | AB72: 25929.77 | AC72: 0 | AD72: 0 | AE72: 0 | AF72: 0 | AG72: 0 | AH72: 0 | AI72: 52273.08 | AJ72: 39391.93 | AK72: 0 | AL72: 0 | AM72: 0 | AN72: 0 | AO72: 0 | AP72: 0 | AQ72: 1882.25 | AR72: 1418.43 | AS72: 15528.29 | AT72: 11701.8 | AU72: 79673.77 | AV72: 60040.53 | AW72: 0 | AX72: 0
A73: ALIC80600D | B73: 1429.81 | C73: 1077.48 | D73: 1 | E73: 607.84 | F73: 458.06 | G73: 70 | H73: 2509.5 | I73: 1891.11 | J73: 4547.15 | K73: 3426.65 | L73: 22 | M73: 3315.4 | N73: 2498.42 | O73: 46 | P73: 1236.94 | Q73: 932.13 | R73: 24 | S73: 1123.44 | T73: 846.6 | U73: 2360.38 | V73: 1778.73 | W73: 14 | X73: 35728.56 | Y73: 26924.31 | Z73: 93 | AA73: 29629.8 | AB73: 22328.41 | AC73: 0 | AD73: 0 | AE73: 0 | AF73: 0 | AG73: 0 | AH73: 0 | AI73: 65358.36 | AJ73: 49252.72 | AK73: 10 | AL73: 849.4 | AM73: 640.09 | AN73: 0 | AO73: 0 | AP73: 0 | AQ73: 1492.82 | AR73: 1124.96 | AS73: 13374.08 | AT73: 10078.43 | AU73: 91297.59 | AV73: 68800 | AW73: 0 | AX73: 0
A74: ALIC807009 | B74: 1429.81 | C74: 1077.48 | D74: 1 | E74: 607.84 | F74: 458.06 | G74: 91 | H74: 3262.35 | I74: 2458.44 | J74: 5300 | K74: 3993.98 | L74: 21 | M74: 3164.7 | N74: 2384.85 | O74: 60 | P74: 1613.4 | Q74: 1215.83 | R74: 31 | S74: 1451.11 | T74: 1093.53 | U74: 3064.51 | V74: 2309.36 | W74: 8 | X74: 20416.32 | Y74: 15385.32 | Z74: 113 | AA74: 36001.8 | AB74: 27130.22 | AC74: 0 | AD74: 0 | AE74: 0 | AF74: 0 | AG74: 0 | AH74: 0 | AI74: 56418.12 | AJ74: 42515.54 | AK74: 14 | AL74: 1189.16 | AM74: 896.13 | AN74: 0 | AO74: 0 | AP74: 0 | AQ74: 5030.15 | AR74: 3790.62 | AS74: 16806.63 | AT74: 12665.13 | AU74: 90973.27 | AV74: 68555.61 | AW74: 0 | AX74: 0
A75: ALIC808005 | B75: 1429.81 | C75: 1077.48 | D75: 1 | E75: 607.84 | F75: 458.06 | G75: 91 | H75: 3262.35 | I75: 2458.44 | J75: 5300 | K75: 3993.98 | L75: 24 | M75: 3616.8 | N75: 2725.55 | O75: 62 | P75: 1667.18 | Q75: 1256.35 | R75: 29 | S75: 1357.49 | T75: 1022.98 | U75: 3024.67 | V75: 2279.33 | W75: 20 | X75: 51040.8 | Y75: 38463.3 | Z75: 116 | AA75: 36957.6 | AB75: 27850.49 | AC75: 0 | AD75: 0 | AE75: 0 | AF75: 0 | AG75: 0 | AH75: 0 | AI75: 87998.4 | AJ75: 66313.79 | AK75: 16 | AL75: 1359.04 | AM75: 1024.14 | AN75: 0 | AO75: 0 | AP75: 0 | AQ75: 1557.72 | AR75: 1173.87 | AS75: 15702.6 | AT75: 11833.16 | AU75: 118559.23 | AV75: 89343.82 | AW75: 0 | AX75: 0
A76: ALIC809001 | B76: 1429.81 | C76: 1077.48 | D76: 1 | E76: 607.84 | F76: 458.06 | G76: 69 | H76: 2473.65 | I76: 1864.09 | J76: 4511.3 | K76: 3399.63 | L76: 18 | M76: 2712.6 | N76: 2044.16 | O76: 48 | P76: 1290.72 | Q76: 972.66 | R76: 21 | S76: 983.01 | T76: 740.78 | U76: 2273.73 | V76: 1713.44 | W76: 9 | X76: 22968.36 | Y76: 17308.49 | Z76: 88 | AA76: 28036.8 | AB76: 21127.96 | AC76: 0 | AD76: 0 | AE76: 0 | AF76: 0 | AG76: 0 | AH76: 0 | AI76: 51005.16 | AJ76: 38436.45 | AK76: 12 | AL76: 1019.28 | AM76: 768.11 | AN76: 0 | AO76: 0 | AP76: 0 | AQ76: 3375.07 | AR76: 2543.38 | AS76: 12779.53 | AT76: 9630.39 | AU76: 77676.67 | AV76: 58535.56 | AW76: 0 | AX76: 0
A77: ALIC810005 | B77: 1429.81 | C77: 1077.48 | D77: 1 | E77: 607.84 | F77: 458.06 | G77: 49 | H77: 1756.65 | I77: 1323.78 | J77: 3794.3 | K77: 2859.32 | L77: 14 | M77: 2109.8 | N77: 1589.9 | O77: 31 | P77: 833.59 | Q77: 628.18 | R77: 18 | S77: 842.58 | T77: 634.95 | U77: 1676.17 | V77: 1263.13 | W77: 12 | X77: 30624.48 | Y77: 23077.98 | Z77: 64 | AA77: 20390.4 | AB77: 15365.79 | AC77: 0 | AD77: 0 | AE77: 0 | AF77: 0 | AG77: 0 | AH77: 0 | AI77: 51014.88 | AJ77: 38443.77 | AK77: 9 | AL77: 764.46 | AM77: 576.08 | AN77: 0 | AO77: 0 | AP77: 0 | AQ77: 1265.65 | AR77: 953.77 | AS77: 8633.32 | AT77: 6505.89 | AU77: 69258.58 | AV77: 52191.86 | AW77: 0 | AX77: 0
A78: ALIC811001 | B78: 1429.81 | C78: 1077.48 | D78: 1 | E78: 607.84 | F78: 458.06 | G78: 64 | H78: 2294.4 | I78: 1729.01 | J78: 4332.05 | K78: 3264.55 | L78: 18 | M78: 2712.6 | N78: 2044.16 | O78: 35 | P78: 941.15 | Q78: 709.23 | R78: 29 | S78: 1357.49 | T78: 1022.98 | U78: 2298.64 | V78: 1732.21 | W78: 12 | X78: 30624.48 | Y78: 23077.98 | Z78: 83 | AA78: 26443.8 | AB78: 19927.51 | AC78: 0 | AD78: 0 | AE78: 0 | AF78: 0 | AG78: 0 | AH78: 0 | AI78: 57068.28 | AJ78: 43005.49 | AK78: 13 | AL78: 1104.22 | AM78: 832.12 | AN78: 0 | AO78: 0 | AP78: 0 | AQ78: 1265.65 | AR78: 953.77 | AS78: 10969.26 | AT78: 8266.21 | AU78: 79750.7 | AV78: 60098.51 | AW78: 0 | AX78: 0
A79: ALIC81200R | B79: 1429.81 | C79: 1077.48 | D79: 1 | E79: 607.84 | F79: 458.06 | G79: 79 | H79: 2832.15 | I79: 2134.25 | J79: 4869.8 | K79: 3669.79 | L79: 19 | M79: 2863.3 | N79: 2157.72 | O79: 50 | P79: 1344.5 | Q79: 1013.19 | R79: 29 | S79: 1357.49 | T79: 1022.98 | U79: 2701.99 | V79: 2036.17 | W79: 14 | X79: 35728.56 | Y79: 26924.31 | Z79: 99 | AA79: 31541.4 | AB79: 23768.95 | AC79: 0 | AD79: 0 | AE79: 0 | AF79: 0 | AG79: 0 | AH79: 0 | AI79: 67269.96 | AJ79: 50693.26 | AK79: 12 | AL79: 1019.28 | AM79: 768.11 | AN79: 0 | AO79: 0 | AP79: 0 | AQ79: 2531.3 | AR79: 1907.54 | AS79: 13981.88 | AT79: 10536.46 | AU79: 95237.51 | AV79: 71769.05 | AW79: 0 | AX79: 0
A80: ALIC81300L | B80: 1429.81 | C80: 1077.48 | D80: 1 | E80: 607.84 | F80: 458.06 | G80: 99 | H80: 3549.15 | I80: 2674.57 | J80: 5586.8 | K80: 4210.11 | L80: 22 | M80: 3315.4 | N80: 2498.42 | O80: 68 | P80: 1828.52 | Q80: 1377.94 | R80: 31 | S80: 1451.11 | T80: 1093.53 | U80: 3279.63 | V80: 2471.47 | W80: 11 | X80: 28072.44 | Y80: 21154.82 | Z80: 122 | AA80: 38869.2 | AB80: 29291.03 | AC80: 0 | AD80: 0 | AE80: 0 | AF80: 0 | AG80: 0 | AH80: 0 | AI80: 66941.64 | AJ80: 50445.85 | AK80: 16 | AL80: 1359.04 | AM80: 1024.14 | AN80: 0 | AO80: 0 | AP80: 0 | AQ80: 2271.68 | AR80: 1711.89 | AS80: 18092.24 | AT80: 13633.94 | AU80: 100846.43 | AV80: 75995.82 | AW80: 0 | AX80: 0
A81: ALIC815008 | B81: 1429.81 | C81: 1077.48 | D81: 1 | E81: 607.84 | F81: 458.06 | G81: 119 | H81: 4266.15 | I81: 3214.88 | J81: 6303.8 | K81: 4750.42 | L81: 26 | M81: 3918.2 | N81: 2952.68 | O81: 68 | P81: 1828.52 | Q81: 1377.94 | R81: 51 | S81: 2387.31 | T81: 1799.03 | U81: 4215.83 | V81: 3176.97 | W81: 8 | X81: 20416.32 | Y81: 15385.32 | Z81: 146 | AA81: 46515.6 | AB81: 35053.2 | AC81: 0 | AD81: 0 | AE81: 0 | AF81: 0 | AG81: 0 | AH81: 0 | AI81: 66931.92 | AJ81: 50438.52 | AK81: 21 | AL81: 1783.74 | AM81: 1344.19 | AN81: 0 | AO81: 0 | AP81: 0 | AQ81: 5387.13 | AR81: 4059.63 | AS81: 22230.41 | AT81: 16752.38 | AU81: 110771.03 | AV81: 83474.79 | AW81: 0 | AX81: 0
A82: ALIC816004 | B82: 1429.81 | C82: 1077.48 | D82: 1 | E82: 607.84 | F82: 458.06 | G82: 106 | H82: 3800.1 | I82: 2863.68 | J82: 5837.75 | K82: 4399.22 | L82: 25 | M82: 3767.5 | N82: 2839.11 | O82: 70 | P82: 1882.3 | Q82: 1418.46 | R82: 36 | S82: 1685.16 | T82: 1269.9 | U82: 3567.46 | V82: 2688.36 | W82: 15 | X82: 38280.6 | Y82: 28847.48 | Z82: 132 | AA82: 42055.2 | AB82: 31691.94 | AC82: 0 | AD82: 0 | AE82: 0 | AF82: 0 | AG82: 0 | AH82: 0 | AI82: 80335.8 | AJ82: 60539.42 | AK82: 17 | AL82: 1443.98 | AM82: 1088.15 | AN82: 0 | AO82: 0 | AP82: 0 | AQ82: 2726.02 | AR82: 2054.27 | AS82: 18494.25 | AT82: 13936.89 | AU82: 116172.76 | AV82: 87545.42 | AW82: 0 | AX82: 0
A83: ALIC81700X | B83: 1429.81 | C83: 1077.48 | D83: 1 | E83: 607.84 | F83: 458.06 | G83: 115 | H83: 4122.75 | I83: 3106.82 | J83: 6160.4 | K83: 4642.36 | L83: 26 | M83: 3918.2 | N83: 2952.68 | O83: 77 | P83: 2070.53 | Q83: 1560.31 | R83: 38 | S83: 1778.78 | T83: 1340.45 | U83: 3849.31 | V83: 2900.76 | W83: 12 | X83: 30624.48 | Y83: 23077.98 | Z83: 142 | AA83: 45241.2 | AB83: 34092.84 | AC83: 0 | AD83: 0 | AE83: 0 | AF83: 0 | AG83: 0 | AH83: 0 | AI83: 75865.68 | AJ83: 57170.82 | AK83: 15 | AL83: 1274.1 | AM83: 960.14 | AN83: 0 | AO83: 0 | AP83: 0 | AQ83: 4251.29 | AR83: 3203.69 | AS83: 20931.83 | AT83: 15773.8 | AU83: 116250.81 | AV83: 87604.25 | AW83: 0 | AX83: 0
A84: ALIC81800Q | B84: 1429.81 | C84: 1077.48 | D84: 1 | E84: 607.84 | F84: 458.06 | G84: 89 | H84: 3190.65 | I84: 2404.41 | J84: 5228.3 | K84: 3939.95 | L84: 23 | M84: 3466.1 | N84: 2611.98 | O84: 66 | P84: 1774.74 | Q84: 1337.41 | R84: 23 | S84: 1076.63 | T84: 811.33 | U84: 2851.37 | V84: 2148.74 | W84: 17 | X84: 43384.68 | Y84: 32693.81 | Z84: 113 | AA84: 36001.8 | AB84: 27130.22 | AC84: 0 | AD84: 0 | AE84: 0 | AF84: 0 | AG84: 0 | AH84: 0 | AI84: 79386.48 | AJ84: 59824.03 | AK84: 12 | AL84: 1019.28 | AM84: 768.11 | AN84: 0 | AO84: 0 | AP84: 0 | AQ84: 3018.09 | AR84: 2274.37 | AS84: 16218.62 | AT84: 12222.02 | AU84: 111188.24 | AV84: 83789.2 | AW84: 0 | AX84: 0
A85: ALIC81900G | B85: 1429.81 | C85: 1077.48 | D85: 1 | E85: 607.84 | F85: 458.06 | G85: 103 | H85: 3692.55 | I85: 2782.63 | J85: 5730.2 | K85: 4318.17 | L85: 24 | M85: 3616.8 | N85: 2725.55 | O85: 72 | P85: 1936.08 | Q85: 1458.99 | R85: 31 | S85: 1451.11 | T85: 1093.53 | U85: 3387.19 | V85: 2552.52 | W85: 13 | X85: 33176.52 | Y85: 25001.15 | Z85: 128 | AA85: 40780.8 | AB85: 30731.57 | AC85: 0 | AD85: 0 | AE85: 0 | AF85: 0 | AG85: 0 | AH85: 0 | AI85: 73957.32 | AJ85: 55732.72 | AK85: 16 | AL85: 1359.04 | AM85: 1024.14 | AN85: 0 | AO85: 0 | AP85: 0 | AQ85: 3634.69 | AR85: 2739.03 | AS85: 18477.1 | AT85: 13923.96 | AU85: 110162.34 | AV85: 83016.09 | AW85: 0 | AX85: 0
A86: ALIC82100G | B86: 1429.81 | C86: 1077.48 | D86: 1 | E86: 607.84 | F86: 458.06 | G86: 93 | H86: 3334.05 | I86: 2512.47 | J86: 5371.7 | K86: 4048.01 | L86: 20 | M86: 3014 | N86: 2271.29 | O86: 63 | P86: 1694.07 | Q86: 1276.62 | R86: 30 | S86: 1404.3 | T86: 1058.25 | U86: 3098.37 | V86: 2334.87 | W86: 5 | X86: 12760.2 | Y86: 9615.83 | Z86: 114 | AA86: 36320.4 | AB86: 27370.31 | AC86: 0 | AD86: 0 | AE86: 0 | AF86: 0 | AG86: 0 | AH86: 0 | AI86: 49080.6 | AJ86: 36986.14 | AK86: 12 | AL86: 1019.28 | AM86: 768.11 | AN86: 0 | AO86: 0 | AP86: 0 | AQ86: 3018.09 | AR86: 2274.37 | AS86: 16466.12 | AT86: 12408.53 | AU86: 81068.16 | AV86: 61091.32 | AW86: 0 | AX86: 0
A87: ALIC82200B | B87: 1429.81 | C87: 1077.48 | D87: 1 | E87: 607.84 | F87: 458.06 | G87: 65 | H87: 2330.25 | I87: 1756.03 | J87: 4367.9 | K87: 3291.57 | L87: 21 | M87: 3164.7 | N87: 2384.85 | O87: 44 | P87: 1183.16 | Q87: 891.61 | R87: 21 | S87: 983.01 | T87: 740.78 | U87: 2166.17 | V87: 1632.39 | W87: 17 | X87: 43384.68 | Y87: 32693.81 | Z87: 87 | AA87: 27718.2 | AB87: 20887.87 | AC87: 0 | AD87: 0 | AE87: 0 | AF87: 0 | AG87: 0 | AH87: 0 | AI87: 71102.88 | AJ87: 53581.68 | AK87: 12 | AL87: 1019.28 | AM87: 768.11 | AN87: 0 | AO87: 0 | AP87: 0 | AQ87: 973.58 | AR87: 733.67 | AS87: 11508.73 | AT87: 8672.74 | AU87: 94303.24 | AV87: 71065.01 | AW87: 0 | AX87: 0
A88: ALIC823007 | B88: 1429.81 | C88: 1077.48 | D88: 1 | E88: 607.84 | F88: 458.06 | G88: 69 | H88: 2473.65 | I88: 1864.09 | J88: 4511.3 | K88: 3399.63 | L88: 23 | M88: 3466.1 | N88: 2611.98 | O88: 51 | P88: 1371.39 | Q88: 1033.45 | R88: 18 | S88: 842.58 | T88: 634.95 | U88: 2213.97 | V88: 1668.4 | W88: 19 | X88: 48488.76 | Y88: 36540.14 | Z88: 93 | AA88: 29629.8 | AB88: 22328.41 | AC88: 0 | AD88: 0 | AE88: 0 | AF88: 0 | AG88: 0 | AH88: 0 | AI88: 78118.56 | AJ88: 58868.55 | AK88: 9 | AL88: 764.46 | AM88: 576.08 | AN88: 0 | AO88: 0 | AP88: 0 | AQ88: 1363.01 | AR88: 1027.14 | AS88: 12298.08 | AT88: 9267.58 | AU88: 102735.48 | AV88: 77419.36 | AW88: 0 | AX88: 0
A89: ALIC824003 | B89: 1429.81 | C89: 1077.48 | D89: 1 | E89: 607.84 | F89: 458.06 | G89: 111 | H89: 3979.35 | I89: 2998.76 | J89: 6017 | K89: 4534.3 | L89: 26 | M89: 3918.2 | N89: 2952.68 | O89: 78 | P89: 2097.42 | Q89: 1580.57 | R89: 33 | S89: 1544.73 | T89: 1164.08 | U89: 3642.15 | V89: 2744.65 | W89: 12 | X89: 30624.48 | Y89: 23077.98 | Z89: 138 | AA89: 43966.8 | AB89: 33132.48 | AC89: 0 | AD89: 0 | AE89: 0 | AF89: 0 | AG89: 0 | AH89: 0 | AI89: 74591.28 | AJ89: 56210.46 | AK89: 16 | AL89: 1359.04 | AM89: 1024.14 | AN89: 0 | AO89: 0 | AP89: 0 | AQ89: 1947.15 | AR89: 1467.33 | AS89: 19727.93 | AT89: 14866.56 | AU89: 111202.75 | AV89: 83800.12 | AW89: 0 | AX89: 0
A90: ALIC82500V | B90: 1429.81 | C90: 1077.48 | D90: 1 | E90: 607.84 | F90: 458.06 | G90: 106 | H90: 3800.1 | I90: 2863.68 | J90: 5837.75 | K90: 4399.22 | L90: 23 | M90: 3466.1 | N90: 2611.98 | O90: 87 | P90: 2339.43 | Q90: 1762.95 | R90: 19 | S90: 889.39 | T90: 670.23 | U90: 3228.82 | V90: 2433.18 | W90: 5 | X90: 12760.2 | Y90: 9615.83 | Z90: 130 | AA90: 41418 | AB90: 31211.76 | AC90: 0 | AD90: 0 | AE90: 0 | AF90: 0 | AG90: 0 | AH90: 0 | AI90: 54178.2 | AJ90: 40827.59 | AK90: 11 | AL90: 934.34 | AM90: 704.1 | AN90: 0 | AO90: 0 | AP90: 0 | AQ90: 4218.83 | AR90: 3179.22 | AS90: 19362.19 | AT90: 14590.95 | AU90: 91226.23 | AV90: 68746.24 | AW90: 0 | AX90: 0
A91: ALIC82600P | B91: 1429.81 | C91: 1077.48 | D91: 1 | E91: 607.84 | F91: 458.06 | G91: 112 | H91: 4015.2 | I91: 3025.77 | J91: 6052.85 | K91: 4561.31 | L91: 22 | M91: 3315.4 | N91: 2498.42 | O91: 49 | P91: 1317.61 | Q91: 992.92 | R91: 63 | S91: 2949.03 | T91: 2222.33 | U91: 4266.64 | V91: 3215.25 | W91: 4 | X91: 10208.16 | Y91: 7692.66 | Z91: 135 | AA91: 43011 | AB91: 32412.21 | AC91: 0 | AD91: 0 | AE91: 0 | AF91: 0 | AG91: 0 | AH91: 0 | AI91: 53219.16 | AJ91: 40104.87 | AK91: 32 | AL91: 2718.08 | AM91: 2048.29 | AN91: 0 | AO91: 0 | AP91: 0 | AQ91: 7074.66 | AR91: 5331.32 | AS91: 20924.08 | AT91: 15767.96 | AU91: 97570.87 | AV91: 73527.42 | AW91: 0 | AX91: 0
A92: ALIC82700E | B92: 1429.81 | C92: 1077.48 | D92: 1 | E92: 607.84 | F92: 458.06 | G92: 89 | H92: 3190.65 | I92: 2404.41 | J92: 5228.3 | K92: 3939.95 | L92: 20 | M92: 3014 | N92: 2271.29 | O92: 63 | P92: 1694.07 | Q92: 1276.62 | R92: 26 | S92: 1217.06 | T92: 917.15 | U92: 2911.13 | V92: 2193.77 | W92: 5 | X92: 12760.2 | Y92: 9615.83 | Z92: 110 | AA92: 35046 | AB92: 26409.95 | AC92: 0 | AD92: 0 | AE92: 0 | AF92: 0 | AG92: 0 | AH92: 0 | AI92: 47806.2 | AJ92: 36025.78 | AK92: 12 | AL92: 1019.28 | AM92: 768.11 | AN92: 0 | AO92: 0 | AP92: 0 | AQ92: 5971.27 | AR92: 4499.83 | AS92: 16833.54 | AT92: 12685.41 | AU92: 82783.72 | AV92: 62384.14 | AW92: 0 | AX92: 0
A93: ALIC82800A | B93: 1429.81 | C93: 1077.48 | D93: 2 | E93: 1215.68 | F93: 916.11 | G93: 143 | H93: 5126.55 | I93: 3863.26 | J93: 7772.04 | K93: 5856.85 | L93: 29 | M93: 4370.3 | N93: 3293.37 | O93: 106 | P93: 2850.34 | Q93: 2147.96 | R93: 37 | S93: 1731.97 | T93: 1305.18 | U93: 4582.31 | V93: 3453.14 | W93: 13 | X93: 33176.52 | Y93: 25001.15 | Z93: 173 | AA93: 55117.8 | AB93: 41535.64 | AC93: 0 | AD93: 0 | AE93: 0 | AF93: 0 | AG93: 0 | AH93: 0 | AI93: 88294.32 | AJ93: 66536.79 | AK93: 16 | AL93: 1359.04 | AM93: 1024.14 | AN93: 0 | AO93: 0 | AP93: 0 | AQ93: 6360.7 | AR93: 4793.29 | AS93: 26054.59 | AT93: 19634.2 | AU93: 138793.3 | AV93: 104591.78 | AW93: 0 | AX93: 0
A94: ALIC829006 | B94: 1429.81 | C94: 1077.48 | D94: 1 | E94: 607.84 | F94: 458.06 | G94: 107 | H94: 3835.95 | I94: 2890.69 | J94: 5873.6 | K94: 4426.23 | L94: 27 | M94: 4068.9 | N94: 3066.24 | O94: 64 | P94: 1720.96 | Q94: 1296.88 | R94: 43 | S94: 2012.83 | T94: 1516.83 | U94: 3733.79 | V94: 2813.71 | W94: 4 | X94: 10208.16 | Y94: 7692.66 | Z94: 135 | AA94: 43011 | AB94: 32412.21 | AC94: 0 | AD94: 0 | AE94: 0 | AF94: 0 | AG94: 0 | AH94: 0 | AI94: 53219.16 | AJ94: 40104.87 | AK94: 21 | AL94: 1783.74 | AM94: 1344.19 | AN94: 0 | AO94: 0 | AP94: 0 | AQ94: 5906.37 | AR94: 4450.92 | AS94: 20328.86 | AT94: 15319.41 | AU94: 94914.42 | AV94: 71525.57 | AW94: 0 | AX94: 0
A95: ALIC83000A | B95: 1429.81 | C95: 1077.48 | D95: 1 | E95: 607.84 | F95: 458.06 | G95: 99 | H95: 3549.15 | I95: 2674.57 | J95: 5586.8 | K95: 4210.11 | L95: 23 | M95: 3466.1 | N95: 2611.98 | O95: 59 | P95: 1586.51 | Q95: 1195.56 | R95: 40 | S95: 1872.4 | T95: 1411 | U95: 3458.91 | V95: 2606.56 | W95: 11 | X95: 28072.44 | Y95: 21154.82 | Z95: 123 | AA95: 39187.8 | AB95: 29531.12 | AC95: 0 | AD95: 0 | AE95: 0 | AF95: 0 | AG95: 0 | AH95: 0 | AI95: 67260.24 | AJ95: 50685.94 | AK95: 21 | AL95: 1783.74 | AM95: 1344.19 | AN95: 0 | AO95: 0 | AP95: 0 | AQ95: 2823.37 | AR95: 2127.63 | AS95: 17717.68 | AT95: 13351.68 | AU95: 102096.84 | AV95: 76938.09 | AW95: 0 | AX95: 0
A96: ALIC831006 | B96: 1429.81 | C96: 1077.48 | D96: 1 | E96: 607.84 | F96: 458.06 | G96: 96 | H96: 3441.6 | I96: 2593.52 | J96: 5479.25 | K96: 4129.06 | L96: 23 | M96: 3466.1 | N96: 2611.98 | O96: 83 | P96: 2231.87 | Q96: 1681.89 | R96: 13 | S96: 608.53 | T96: 458.58 | U96: 2840.4 | V96: 2140.47 | W96: 7 | X96: 17864.28 | Y96: 13462.16 | Z96: 120 | AA96: 38232 | AB96: 28810.85 | AC96: 0 | AD96: 0 | AE96: 0 | AF96: 0 | AG96: 0 | AH96: 0 | AI96: 56096.28 | AJ96: 42273.01 | AK96: 6 | AL96: 509.64 | AM96: 384.05 | AN96: 0 | AO96: 0 | AP96: 0 | AQ96: 2596.21 | AR96: 1956.45 | AS96: 17638.06 | AT96: 13291.68 | AU96: 88625.94 | AV96: 66786.7 | AW96: 0 | AX96: 0
A97: ALIC832002 | B97: 1429.81 | C97: 1077.48 | D97: 1 | E97: 607.84 | F97: 458.06 | G97: 96 | H97: 3441.6 | I97: 2593.52 | J97: 5479.25 | K97: 4129.06 | L97: 22 | M97: 3315.4 | N97: 2498.42 | O97: 57 | P97: 1532.73 | Q97: 1155.03 | R97: 39 | S97: 1825.59 | T97: 1375.73 | U97: 3358.32 | V97: 2530.76 | W97: 6 | X97: 15312.24 | Y97: 11538.99 | Z97: 119 | AA97: 37913.4 | AB97: 28570.76 | AC97: 0 | AD97: 0 | AE97: 0 | AF97: 0 | AG97: 0 | AH97: 0 | AI97: 53225.64 | AJ97: 40109.75 | AK97: 17 | AL97: 1443.98 | AM97: 1088.15 | AN97: 0 | AO97: 0 | AP97: 0 | AQ97: 2433.94 | AR97: 1834.17 | AS97: 16993.98 | AT97: 12806.31 | AU97: 86250.51 | AV97: 64996.62 | AW97: 0 | AX97: 0
A98: ALIC83300T | B98: 1429.81 | C98: 1077.48 | D98: 1 | E98: 607.84 | F98: 458.06 | G98: 111 | H98: 3979.35 | I98: 2998.76 | J98: 6017 | K98: 4534.3 | L98: 24 | M98: 3616.8 | N98: 2725.55 | O98: 86 | P98: 2312.54 | Q98: 1742.68 | R98: 25 | S98: 1170.25 | T98: 881.88 | U98: 3482.79 | V98: 2624.56 | W98: 9 | X98: 22968.36 | Y98: 17308.49 | Z98: 136 | AA98: 43329.6 | AB98: 32652.3 | AC98: 0 | AD98: 0 | AE98: 0 | AF98: 0 | AG98: 0 | AH98: 0 | AI98: 66297.96 | AJ98: 49960.79 | AK98: 11 | AL98: 934.34 | AM98: 704.1 | AN98: 0 | AO98: 0 | AP98: 0 | AQ98: 4024.12 | AR98: 3032.49 | AS98: 19523.11 | AT98: 14712.22 | AU98: 103896.12 | AV98: 78294.01 | AW98: 0 | AX98: 0
A99: ALIC83400N | B99: 1429.81 | C99: 1077.48 | D99: 1 | E99: 607.84 | F99: 458.06 | G99: 138 | H99: 4947.3 | I99: 3728.18 | J99: 6984.95 | K99: 5263.72 | L99: 26 | M99: 3918.2 | N99: 2952.68 | O99: 93 | P99: 2500.77 | Q99: 1884.53 | R99: 45 | S99: 2106.45 | T99: 1587.38 | U99: 4607.22 | V99: 3471.91 | W99: 7 | X99: 17864.28 | Y99: 13462.16 | Z99: 165 | AA99: 52569 | AB99: 39614.92 | AC99: 0 | AD99: 0 | AE99: 0 | AF99: 0 | AG99: 0 | AH99: 0 | AI99: 70433.28 | AJ99: 53077.08 | AK99: 24 | AL99: 2038.56 | AM99: 1536.22 | AN99: 0 | AO99: 0 | AP99: 0 | AQ99: 9735.77 | AR99: 7336.68 | AS99: 25856.11 | AT99: 19484.63 | AU99: 123574.09 | AV99: 93122.92 | AW99: 0 | AX99: 0
A100: ALIC83500D | B100: 1429.81 | C100: 1077.48 | D100: 1 | E100: 607.84 | F100: 458.06 | G100: 86 | H100: 3083.1 | I100: 2323.36 | J100: 5120.75 | K100: 3858.9 | L100: 23 | M100: 3466.1 | N100: 2611.98 | O100: 64 | P100: 1720.96 | Q100: 1296.88 | R100: 22 | S100: 1029.82 | T100: 776.05 | U100: 2750.78 | V100: 2072.93 | W100: 10 | X100: 25520.4 | Y100: 19231.65 | Z100: 110 | AA100: 35046 | AB100: 26409.95 | AC100: 0 | AD100: 0 | AE100: 0 | AF100: 0 | AG100: 0 | AH100: 0 | AI100: 60566.4 | AJ100: 45641.6 | AK100: 13 | AL100: 1104.22 | AM100: 832.12 | AN100: 0 | AO100: 0 | AP100: 0 | AQ100: 3504.88 | AR100: 2641.21 | AS100: 16345.28 | AT100: 12317.47 | AU100: 92858.41 | AV100: 69976.21 | AW100: 0 | AX100: 0
A101: ALIC836009 | B101: 1429.81 | C101: 1077.48 | D101: 1 | E101: 607.84 | F101: 458.06 | G101: 92 | H101: 3298.2 | I101: 2485.46 | J101: 5335.85 | K101: 4021 | L101: 18 | M101: 2712.6 | N101: 2044.16 | O101: 55 | P101: 1478.95 | Q101: 1114.51 | R101: 37 | S101: 1731.97 | T101: 1305.18 | U101: 3210.92 | V101: 2419.69 | W101: 5 | X101: 12760.2 | Y101: 9615.83 | Z101: 111 | AA101: 35364.6 | AB101: 26650.04 | AC101: 0 | AD101: 0 | AE101: 0 | AF101: 0 | AG101: 0 | AH101: 0 | AI101: 48124.8 | AJ101: 36265.87 | AK101: 14 | AL101: 1189.16 | AM101: 896.13 | AN101: 0 | AO101: 0 | AP101: 0 | AQ101: 4738.07 | AR101: 3570.51 | AS101: 16678.68 | AT101: 12568.71 | AU101: 81990.08 | AV101: 61786.07 | AW101: 0 | AX101: 0
A102: ALIC837005 | B102: 1429.81 | C102: 1077.48 | D102: 1 | E102: 607.84 | F102: 458.06 | G102: 85 | H102: 3047.25 | I102: 2296.35 | J102: 5084.9 | K102: 3831.89 | L102: 24 | M102: 3616.8 | N102: 2725.55 | O102: 58 | P102: 1559.62 | Q102: 1175.3 | R102: 27 | S102: 1263.87 | T102: 952.43 | U102: 2823.49 | V102: 2127.73 | W102: 8 | X102: 20416.32 | Y102: 15385.32 | Z102: 110 | AA102: 35046 | AB102: 26409.95 | AC102: 0 | AD102: 0 | AE102: 0 | AF102: 0 | AG102: 0 | AH102: 0 | AI102: 55462.32 | AJ102: 41795.27 | AK102: 15 | AL102: 1274.1 | AM102: 960.14 | AN102: 0 | AO102: 0 | AP102: 0 | AQ102: 2888.28 | AR102: 2176.55 | AS102: 15955.34 | AT102: 12023.62 | AU102: 87105.23 | AV102: 65640.75 | AW102: 0 | AX102: 0
A103: ALIC838001 | B103: 1429.81 | C103: 1077.48 | D103: 1 | E103: 607.84 | F103: 458.06 | G103: 96 | H103: 3441.6 | I103: 2593.52 | J103: 5479.25 | K103: 4129.06 | L103: 29 | M103: 4370.3 | N103: 3293.37 | O103: 31 | P103: 833.59 | Q103: 628.18 | R103: 65 | S103: 3042.65 | T103: 2292.88 | U103: 3876.24 | V103: 2921.06 | W103: 8 | X103: 20416.32 | Y103: 15385.32 | Z103: 126 | AA103: 40143.6 | AB103: 30251.39 | AC103: 0 | AD103: 0 | AE103: 0 | AF103: 0 | AG103: 0 | AH103: 0 | AI103: 60559.92 | AJ103: 45636.71 | AK103: 30 | AL103: 2548.2 | AM103: 1920.27 | AN103: 0 | AO103: 0 | AP103: 0 | AQ103: 1363.01 | AR103: 1027.14 | AS103: 17456.1 | AT103: 13154.56 | AU103: 95653.02 | AV103: 72082.17 | AW103: 0 | AX103: 0
A104: ALIS00100E | B104: 1429.81 | C104: 1077.48 | D104: 1 | E104: 607.84 | F104: 458.06 | G104: 88 | H104: 3154.8 | I104: 2377.39 | J104: 5192.45 | K104: 3912.93 | L104: 22 | M104: 3315.4 | N104: 2498.42 | O104: 0 | P104: 0 | Q104: 0 | R104: 88 | S104: 4119.28 | T104: 3104.2 | U104: 4119.28 | V104: 3104.2 | W104: 2 | X104: 5104.08 | Y104: 3846.33 | Z104: 111 | AA104: 35364.6 | AB104: 26650.04 | AC104: 0 | AD104: 0 | AE104: 0 | AF104: 88 | AG104: 28645.76 | AH104: 21586.86 | AI104: 69114.44 | AJ104: 52083.23 | AK104: 48 | AL104: 4077.12 | AM104: 3072.43 | AN104: 0 | AO104: 0 | AP104: 0 | AQ104: 1752.44 | AR104: 1320.6 | AS104: 15979.9 | AT104: 12042.13 | AU104: 103551.03 | AV104: 78033.94 | AW104: 9 | AX104: 36000
A105: ALIS003006 | B105: 1429.81 | C105: 1077.48 | D105: 3 | E105: 1823.52 | F105: 1374.17 | G105: 99 | H105: 3549.15 | I105: 2674.57 | J105: 6802.48 | K105: 5126.22 | L105: 28 | M105: 4219.6 | N105: 3179.8 | O105: 0 | P105: 0 | Q105: 0 | R105: 99 | S105: 4634.19 | T105: 3492.23 | U105: 4634.19 | V105: 3492.23 | W105: 6 | X105: 15312.24 | Y105: 11538.99 | Z105: 128 | AA105: 40780.8 | AB105: 30731.57 | AC105: 0 | AD105: 0 | AE105: 0 | AF105: 99 | AG105: 32226.48 | AH105: 24285.21 | AI105: 88319.52 | AJ105: 66555.77 | AK105: 42 | AL105: 3567.48 | AM105: 2688.38 | AN105: 0 | AO105: 0 | AP105: 0 | AQ105: 3407.52 | AR105: 2567.84 | AS105: 18284.67 | AT105: 13778.95 | AU105: 129235.46 | AV105: 97389.19 | AW105: 8 | AX105: 32000
A106: ALIS004002 | B106: 1429.81 | C106: 1077.48 | D106: 1 | E106: 607.84 | F106: 458.06 | G106: 88 | H106: 3154.8 | I106: 2377.39 | J106: 5192.45 | K106: 3912.93 | L106: 23 | M106: 3466.1 | N106: 2611.98 | O106: 0 | P106: 0 | Q106: 0 | R106: 88 | S106: 4119.28 | T106: 3104.2 | U106: 4119.28 | V106: 3104.2 | W106: 3 | X106: 7656.12 | Y106: 5769.5 | Z106: 112 | AA106: 35683.2 | AB106: 26890.13 | AC106: 0 | AD106: 0 | AE106: 0 | AF106: 88 | AG106: 28645.76 | AH106: 21586.86 | AI106: 71985.08 | AJ106: 54246.49 | AK106: 44 | AL106: 3737.36 | AM106: 2816.4 | AN106: 0 | AO106: 0 | AP106: 0 | AQ106: 2109.42 | AR106: 1589.62 | AS106: 16609.14 | AT106: 12516.31 | AU106: 107218.83 | AV106: 80797.93 | AW106: 9 | AX106: 36000
A107: ALIS00600N | B107: 1429.81 | C107: 1077.48 | D107: 3 | E107: 1823.52 | F107: 1374.17 | G107: 108 | H107: 3871.8 | I107: 2917.71 | J107: 7125.13 | K107: 5369.36 | L107: 30 | M107: 4521 | N107: 3406.93 | O107: 0 | P107: 0 | Q107: 0 | R107: 108 | S107: 5055.48 | T107: 3809.71 | U107: 5055.48 | V107: 3809.71 | W107: 6 | X107: 15312.24 | Y107: 11538.99 | Z107: 139 | AA107: 44285.4 | AB107: 33372.57 | AC107: 0 | AD107: 0 | AE107: 0 | AF107: 108 | AG107: 35156.16 | AH107: 26492.96 | AI107: 94753.8 | AJ107: 71404.52 | AK107: 48 | AL107: 4077.12 | AM107: 3072.43 | AN107: 0 | AO107: 0 | AP107: 0 | AQ107: 5776.56 | AR107: 4353.1 | AS107: 19709.96 | AT107: 14853.02 | AU107: 141019.05 | AV107: 106269.07 | AW107: 11 | AX107: 44000
A108: ALIS00700D | B108: 1429.81 | C108: 1077.48 | D108: 2 | E108: 1215.68 | F108: 916.11 | G108: 72 | H108: 2581.2 | I108: 1945.14 | J108: 5226.69 | K108: 3938.73 | L108: 25 | M108: 3767.5 | N108: 2839.11 | O108: 0 | P108: 0 | Q108: 0 | R108: 72 | S108: 3370.32 | T108: 2539.8 | U108: 3370.32 | V108: 2539.8 | W108: 4 | X108: 10208.16 | Y108: 7692.66 | Z108: 98 | AA108: 31222.8 | AB108: 23528.86 | AC108: 0 | AD108: 0 | AE108: 0 | AF108: 72 | AG108: 23437.44 | AH108: 17661.97 | AI108: 64868.4 | AJ108: 48883.49 | AK108: 36 | AL108: 3057.84 | AM108: 2304.33 | AN108: 0 | AO108: 0 | AP108: 0 | AQ108: 1849.8 | AR108: 1393.97 | AS108: 13769.27 | AT108: 10376.24 | AU108: 95909.82 | AV108: 72275.67 | AW108: 8 | AX108: 32000
A109: ALIS008009 | B109: 1429.81 | C109: 1077.48 | D109: 1 | E109: 607.84 | F109: 458.06 | G109: 98 | H109: 3513.3 | I109: 2647.55 | J109: 5550.95 | K109: 4183.09 | L109: 24 | M109: 3616.8 | N109: 2725.55 | O109: 0 | P109: 0 | Q109: 0 | R109: 98 | S109: 4587.38 | T109: 3456.96 | U109: 4587.38 | V109: 3456.96 | W109: 3 | X109: 7656.12 | Y109: 5769.5 | Z109: 123 | AA109: 39187.8 | AB109: 29531.12 | AC109: 0 | AD109: 0 | AE109: 0 | AF109: 98 | AG109: 31900.96 | AH109: 24039.91 | AI109: 78744.88 | AJ109: 59340.53 | AK109: 38 | AL109: 3227.72 | AM109: 2432.34 | AN109: 0 | AO109: 0 | AP109: 0 | AQ109: 4153.93 | AR109: 3130.32 | AS109: 17743.68 | AT109: 13371.27 | AU109: 117625.34 | AV109: 88640.06 | AW109: 8 | AX109: 32000
A110: ALIS009005 | B110: 1429.81 | C110: 1077.48 | D110: 2 | E110: 1215.68 | F110: 916.11 | G110: 104 | H110: 3728.4 | I110: 2809.65 | J110: 6373.89 | K110: 4803.24 | L110: 31 | M110: 4671.7 | N110: 3520.5 | O110: 0 | P110: 0 | Q110: 0 | R110: 104 | S110: 4868.24 | T110: 3668.61 | U110: 4868.24 | V110: 3668.61 | W110: 3 | X110: 7656.12 | Y110: 5769.5 | Z110: 136 | AA110: 43329.6 | AB110: 32652.3 | AC110: 0 | AD110: 0 | AE110: 0 | AF110: 104 | AG110: 33854.08 | AH110: 25511.74 | AI110: 84839.8 | AJ110: 63933.54 | AK110: 58 | AL110: 4926.52 | AM110: 3712.52 | AN110: 0 | AO110: 0 | AP110: 0 | AQ110: 3732.04 | AR110: 2812.39 | AS110: 20064.07 | AT110: 15119.87 | AU110: 129476.26 | AV110: 97570.67 | AW110: 11 | AX110: 44000
A111: ALIS01300R | B111: 1429.81 | C111: 1077.48 | D111: 4 | E111: 2431.36 | F111: 1832.22 | G111: 98 | H111: 3513.3 | I111: 2647.55 | J111: 7374.47 | K111: 5557.25 | L111: 69 | M111: 10398.3 | N111: 7835.95 | O111: 0 | P111: 0 | Q111: 0 | R111: 98 | S111: 4587.38 | T111: 3456.96 | U111: 4587.38 | V111: 3456.96 | W111: 5 | X111: 12760.2 | Y111: 9615.83 | Z111: 189 | AA111: 60215.4 | AB111: 45377.09 | AC111: 21 | AD111: 22416.03 | AE111: 16892.26 | AF111: 98 | AG111: 31900.96 | AH111: 24039.91 | AI111: 127292.59 | AJ111: 95925.09 | AK111: 46 | AL111: 3907.24 | AM111: 2944.42 | AN111: 33 | AO111: 10479.15 | AP111: 7896.87 | AQ111: 2985.64 | AR111: 2249.92 | AS111: 25474.84 | AT111: 19197.32 | AU111: 192499.61 | AV111: 145063.78 | AW111: 9 | AX111: 36000
A112: ALIS016008 | B112: 1429.81 | C112: 1077.48 | D112: 1 | E112: 607.84 | F112: 458.06 | G112: 134 | H112: 4803.9 | I112: 3620.12 | J112: 6841.55 | K112: 5155.66 | L112: 33 | M112: 4973.1 | N112: 3747.63 | O112: 0 | P112: 0 | Q112: 0 | R112: 134 | S112: 6272.54 | T112: 4726.86 | U112: 6272.54 | V112: 4726.86 | W112: 2 | X112: 5104.08 | Y112: 3846.33 | Z112: 168 | AA112: 53524.8 | AB112: 40335.19 | AC112: 0 | AD112: 0 | AE112: 0 | AF112: 134 | AG112: 43619.68 | AH112: 32870.9 | AI112: 102248.56 | AJ112: 77052.42 | AK112: 58 | AL112: 4926.52 | AM112: 3712.52 | AN112: 0 | AO112: 0 | AP112: 0 | AQ112: 3407.52 | AR112: 2567.84 | AS112: 24456.38 | AT112: 18429.83 | AU112: 153126.17 | AV112: 115392.76 | AW112: 11 | AX112: 44000
A113: ALIS017004 | B113: 1429.81 | C113: 1077.48 | D113: 3 | E113: 1823.52 | F113: 1374.17 | G113: 155 | H113: 5556.75 | I113: 4187.45 | J113: 8810.08 | K113: 6639.1 | L113: 34 | M113: 5123.8 | N113: 3861.19 | O113: 0 | P113: 0 | Q113: 0 | R113: 155 | S113: 7255.55 | T113: 5467.63 | U113: 7255.55 | V113: 5467.63 | W113: 5 | X113: 12760.2 | Y113: 9615.83 | Z113: 190 | AA113: 60534 | AB113: 45617.18 | AC113: 0 | AD113: 0 | AE113: 0 | AF113: 155 | AG113: 50455.6 | AH113: 38022.31 | AI113: 123749.8 | AJ113: 93255.32 | AK113: 62 | AL113: 5266.28 | AM113: 3968.56 | AN113: 0 | AO113: 0 | AP113: 0 | AQ113: 6620.32 | AR113: 4988.94 | AS113: 27714.69 | AT113: 20885.22 | AU113: 184540.52 | AV113: 139065.96 | AW113: 12 | AX113: 48000
A114: ALMM09700T | B114: 1429.81 | C114: 1077.48 | D114: 3 | E114: 1823.52 | F114: 1374.17 | G114: 31 | H114: 1111.35 | I114: 837.49 | J114: 4364.68 | K114: 3289.14 | L114: 16 | M114: 2411.2 | N114: 1817.03 | O114: 9 | P114: 242.01 | Q114: 182.37 | R114: 22 | S114: 1029.82 | T114: 776.05 | U114: 1271.83 | V114: 958.42 | W114: 3 | X114: 7656.12 | Y114: 5769.5 | Z114: 48 | AA114: 15292.8 | AB114: 11524.34 | AC114: 0 | AD114: 0 | AE114: 0 | AF114: 0 | AG114: 0 | AH114: 0 | AI114: 22948.92 | AJ114: 17293.84 | AK114: 0 | AL114: 0 | AM114: 0 | AN114: 0 | AO114: 0 | AP114: 0 | AR114: 0 | AS114: 6821.54 | AT114: 5140.57 | AU114: 37818.17 | AV114: 28499 | AW114: 0 | AX114: 0
A115: ALMM09800N | B115: 1429.81 | C115: 1077.48 | D115: 4 | E115: 2431.36 | F115: 1832.22 | G115: 39 | H115: 1398.15 | I115: 1053.62 | J115: 5259.32 | K115: 3963.32 | L115: 10 | M115: 1507 | N115: 1135.64 | O115: 12 | P115: 322.68 | Q115: 243.17 | R115: 27 | S115: 1263.87 | T115: 952.43 | U115: 1586.55 | V115: 1195.6 | W115: 4 | X115: 10208.16 | Y115: 7692.66 | Z115: 50 | AA115: 15930 | AB115: 12004.52 | AC115: 0 | AD115: 0 | AE115: 0 | AF115: 0 | AG115: 0 | AH115: 0 | AI115: 26138.16 | AJ115: 19697.18 | AK115: 0 | AL115: 0 | AM115: 0 | AN115: 0 | AO115: 0 | AP115: 0 | AR115: 0 | AS115: 7111.83 | AT115: 5359.33 | AU115: 41602.86 | AV115: 31351.07 | AW115: 0 | AX115: 0
A116: ALPS01000P | B116: 1429.81 | C116: 1077.48 | D116: 0 | E116: 0 | F116: 0 | G116: 51 | H116: 1828.35 | I116: 1377.81 | J116: 3258.16 | K116: 2455.29 | L116: 19 | M116: 2863.3 | N116: 2157.72 | O116: 0 | P116: 0 | Q116: 0 | R116: 51 | S116: 2387.31 | T116: 1799.03 | U116: 2387.31 | V116: 1799.03 | W116: 1 | X116: 2552.04 | Y116: 1923.17 | Z116: 71 | AA116: 22620.6 | AB116: 17046.42 | AC116: 0 | AD116: 0 | AE116: 0 | AF116: 51 | AG116: 16601.52 | AH116: 12510.57 | AI116: 41774.16 | AJ116: 31480.16 | AK116: 29 | AL116: 2463.26 | AM116: 1856.26 | AN116: 0 | AO116: 0 | AP116: 0 | AQ116: 2012.06 | AR116: 1516.25 | AS116: 10688.52 | AT116: 8054.65 | AU116: 65446.77 | AV116: 49319.36 | AW116: 6 | AX116: 24000
A117: ALPS020009 | B117: 1429.81 | C117: 1077.48 | D117: 0 | E117: 0 | F117: 0 | G117: 69 | H117: 2473.65 | I117: 1864.09 | J117: 3903.46 | K117: 2941.57 | L117: 19 | M117: 2863.3 | N117: 2157.72 | O117: 0 | P117: 0 | Q117: 0 | R117: 69 | S117: 3229.89 | T117: 2433.98 | U117: 3229.89 | V117: 2433.98 | W117: 1 | X117: 2552.04 | Y117: 1923.17 | Z117: 89 | AA117: 28355.4 | AB117: 21368.05 | AC117: 0 | AD117: 0 | AE117: 0 | AF117: 69 | AG117: 22460.88 | AH117: 16926.06 | AI117: 53368.32 | AJ117: 40217.28 | AK117: 38 | AL117: 3227.72 | AM117: 2432.34 | AN117: 0 | AO117: 0 | AP117: 0 | AQ117: 2271.68 | AR117: 1711.89 | AS117: 13232.74 | AT117: 9971.92 | AU117: 82097.11 | AV117: 61866.7 | AW117: 7 | AX117: 28000
A118: ALPS050005 | B118: 1429.81 | C118: 1077.48 | D118: 0 | E118: 0 | F118: 0 | G118: 91 | H118: 3262.35 | I118: 2458.44 | J118: 4692.16 | K118: 3535.92 | L118: 24 | M118: 3616.8 | N118: 2725.55 | O118: 0 | P118: 0 | Q118: 0 | R118: 91 | S118: 4259.71 | T118: 3210.03 | U118: 4259.71 | V118: 3210.03 | W118: 1 | X118: 2552.04 | Y118: 1923.17 | Z118: 116 | AA118: 36957.6 | AB118: 27850.49 | AC118: 0 | AD118: 0 | AE118: 0 | AF118: 91 | AG118: 29622.32 | AH118: 22322.77 | AI118: 69131.96 | AJ118: 52096.43 | AK118: 51 | AL118: 4331.94 | AM118: 3264.46 | AN118: 0 | AO118: 0 | AP118: 0 | AQ118: 2953.18 | AR118: 2225.46 | AS118: 17587.29 | AT118: 13253.42 | AU118: 106573.04 | AV118: 80311.27 | AW118: 11 | AX118: 44000
A119: ALTF01000R | B119: 1429.81 | C119: 1077.48 | D119: 0 | E119: 0 | F119: 0 | G119: 131 | H119: 4696.35 | I119: 3539.07 | J119: 6126.16 | K119: 4616.55 | L119: 34 | M119: 5123.8 | N119: 3861.19 | O119: 0 | P119: 0 | Q119: 0 | R119: 131 | S119: 6132.11 | T119: 4621.03 | U119: 6132.11 | V119: 4621.03 | W119: 1 | X119: 2552.04 | Y119: 1923.17 | Z119: 166 | AA119: 52887.6 | AB119: 39855.01 | AC119: 0 | AD119: 0 | AE119: 0 | AF119: 131 | AG119: 42643.12 | AH119: 32134.98 | AI119: 98082.76 | AJ119: 73913.16 | AK119: 58 | AL119: 4926.52 | AM119: 3712.52 | AN119: 0 | AO119: 0 | AP119: 0 | AQ119: 4997.69 | AR119: 3766.16 | AS119: 24563.66 | AT119: 18510.67 | AU119: 149952.7 | AV119: 113001.28 | AW119: 10 | AX119: 40000
A120: ALTF080003 | B120: 1429.81 | C120: 1077.48 | D120: 1 | E120: 607.84 | F120: 458.06 | G120: 131 | H120: 4696.35 | I120: 3539.07 | J120: 6734 | K120: 5074.61 | L120: 40 | M120: 6028 | N120: 4542.58 | O120: 0 | P120: 0 | Q120: 0 | R120: 131 | S120: 6132.11 | T120: 4621.03 | U120: 6132.11 | V120: 4621.03 | W120: 2 | X120: 5104.08 | Y120: 3846.33 | Z120: 172 | AA120: 54799.2 | AB120: 41295.55 | AC120: 0 | AD120: 0 | AE120: 0 | AF120: 131 | AG120: 42643.12 | AH120: 32134.98 | AI120: 102546.4 | AJ120: 77276.86 | AK120: 66 | AL120: 5606.04 | AM120: 4224.6 | AN120: 0 | AO120: 0 | AP120: 0 | AQ120: 3342.61 | AR120: 2518.92 | AS120: 24505.74 | AT120: 18467.02 | AU120: 154894.9 | AV120: 116725.62 | AW120: 12 | AX120: 48000
A121: ANIC80300L | B121: 1429.81 | C121: 1077.48 | D121: 1 | E121: 607.84 | F121: 458.06 | G121: 116 | H121: 4158.6 | I121: 3133.84 | J121: 6196.25 | K121: 4669.38 | L121: 27 | M121: 4068.9 | N121: 3066.24 | O121: 73 | P121: 1962.97 | Q121: 1479.25 | R121: 43 | S121: 2012.83 | T121: 1516.83 | U121: 3975.8 | V121: 2996.08 | W121: 7 | X121: 17864.28 | Y121: 13462.16 | Z121: 144 | AA121: 45878.4 | AB121: 34573.02 | AC121: 0 | AD121: 0 | AE121: 0 | AF121: 0 | AG121: 0 | AH121: 0 | AI121: 63742.68 | AJ121: 48035.18 | AK121: 20 | AL121: 1698.8 | AM121: 1280.18 | AN121: 0 | AO121: 0 | AP121: 0 | AQ121: 876.22 | AR121: 660.3 | AS121: 19986.34 | AT121: 15061.3 | AU121: 100544.99 | AV121: 75768.66 | AW121: 0 | AX121: 0
A122: ANIC80400C | B122: 1429.81 | C122: 1077.48 | D122: 1 | E122: 607.84 | F122: 458.06 | G122: 98 | H122: 3513.3 | I122: 2647.55 | J122: 5550.95 | K122: 4183.09 | L122: 24 | M122: 3616.8 | N122: 2725.55 | O122: 75 | P122: 2016.75 | Q122: 1519.78 | R122: 23 | S122: 1076.63 | T122: 811.33 | U122: 3093.38 | V122: 2331.11 | W122: 8 | X122: 20416.32 | Y122: 15385.32 | Z122: 123 | AA122: 39187.8 | AB122: 29531.12 | AC122: 0 | AD122: 0 | AE122: 0 | AF122: 0 | AG122: 0 | AH122: 0 | AI122: 59604.12 | AJ122: 44916.44 | AK122: 13 | AL122: 1104.22 | AM122: 832.12 | AN122: 0 | AO122: 0 | AP122: 0 | AQ122: 1817.34 | AR122: 1369.51 | AS122: 17186.75 | AT122: 12951.58 | AU122: 91973.56 | AV122: 69309.4 | AW122: 0 | AX122: 0
A123: ANIC805008 | B123: 1429.81 | C123: 1077.48 | D123: 1 | E123: 607.84 | F123: 458.06 | G123: 85 | H123: 3047.25 | I123: 2296.35 | J123: 5084.9 | K123: 3831.89 | L123: 23 | M123: 3466.1 | N123: 2611.98 | O123: 63 | P123: 1694.07 | Q123: 1276.62 | R123: 22 | S123: 1029.82 | T123: 776.05 | U123: 2723.89 | V123: 2052.67 | W123: 9 | X123: 22968.36 | Y123: 17308.49 | Z123: 109 | AA123: 34727.4 | AB123: 26169.86 | AC123: 0 | AD123: 0 | AE123: 0 | AF123: 0 | AG123: 0 | AH123: 0 | AI123: 57695.76 | AJ123: 43478.35 | AK123: 12 | AL123: 1019.28 | AM123: 768.11 | AN123: 0 | AO123: 0 | AP123: 0 | AQ123: 1298.1 | AR123: 978.22 | AS123: 15161.79 | AT123: 11425.61 | AU123: 86449.82 | AV123: 65146.83 | AW123: 0 | AX123: 0
A124: ANIC806004 | B124: 1429.81 | C124: 1077.48 | D124: 1 | E124: 607.84 | F124: 458.06 | G124: 78 | H124: 2796.3 | I124: 2107.23 | J124: 4833.95 | K124: 3642.77 | L124: 20 | M124: 3014 | N124: 2271.29 | O124: 58 | P124: 1559.62 | Q124: 1175.3 | R124: 20 | S124: 936.2 | T124: 705.5 | U124: 2495.82 | V124: 1880.8 | W124: 7 | X124: 17864.28 | Y124: 13462.16 | Z124: 99 | AA124: 31541.4 | AB124: 23768.95 | AC124: 0 | AD124: 0 | AE124: 0 | AF124: 0 | AG124: 0 | AH124: 0 | AI124: 49405.68 | AJ124: 37231.11 | AK124: 11 | AL124: 934.34 | AM124: 704.1 | AN124: 0 | AO124: 0 | AP124: 0 | AQ124: 1590.18 | AR124: 1198.33 | AS124: 15974.93 | AT124: 12038.38 | AU124: 78248.9 | AV124: 58966.78 | AW124: 0 | AX124: 0
A125: ANIC80700X | B125: 1429.81 | C125: 1077.48 | D125: 1 | E125: 607.84 | F125: 458.06 | G125: 83 | H125: 2975.55 | I125: 2242.31 | J125: 5013.2 | K125: 3777.85 | L125: 21 | M125: 3164.7 | N125: 2384.85 | O125: 63 | P125: 1694.07 | Q125: 1276.62 | R125: 20 | S125: 936.2 | T125: 705.5 | U125: 2630.27 | V125: 1982.12 | W125: 6 | X125: 15312.24 | Y125: 11538.99 | Z125: 105 | AA125: 33453 | AB125: 25209.5 | AC125: 0 | AD125: 0 | AE125: 0 | AF125: 0 | AG125: 0 | AH125: 0 | AI125: 48765.24 | AJ125: 36748.49 | AK125: 12 | AL125: 1019.28 | AM125: 768.11 | AN125: 0 | AO125: 0 | AP125: 0 | AQ125: 1070.93 | AR125: 807.03 | AS125: 14701.29 | AT125: 11078.59 | AU125: 76364.91 | AV125: 57547.04 | AW125: 0 | AX125: 0
A126: ANIC80800Q | B126: 1429.81 | C126: 1077.48 | D126: 1 | E126: 607.84 | F126: 458.06 | G126: 76 | H126: 2724.6 | I126: 2053.2 | J126: 4762.25 | K126: 3588.74 | L126: 23 | M126: 3466.1 | N126: 2611.98 | O126: 56 | P126: 1505.84 | Q126: 1134.77 | R126: 20 | S126: 936.2 | T126: 705.5 | U126: 2442.04 | V126: 1840.27 | W126: 9 | X126: 22968.36 | Y126: 17308.49 | Z126: 100 | AA126: 31860 | AB126: 24009.04 | AC126: 0 | AD126: 0 | AE126: 0 | AF126: 0 | AG126: 0 | AH126: 0 | AI126: 54828.36 | AJ126: 41317.53 | AK126: 11 | AL126: 934.34 | AM126: 704.1 | AN126: 0 | AO126: 0 | AP126: 0 | AQ126: 1947.15 | AR126: 1467.33 | AS126: 14833.22 | AT126: 11178.01 | AU126: 83213.46 | AV126: 62707.96 | AW126: 0 | AX126: 0
A127: ANIC80900G | B127: 1429.81 | C127: 1077.48 | D127: 1 | E127: 607.84 | F127: 458.06 | G127: 54 | H127: 1935.9 | I127: 1458.85 | J127: 3973.55 | K127: 2994.39 | L127: 20 | M127: 3014 | N127: 2271.29 | O127: 35 | P127: 941.15 | Q127: 709.23 | R127: 19 | S127: 889.39 | T127: 670.23 | U127: 1830.54 | V127: 1379.46 | W127: 10 | X127: 25520.4 | Y127: 19231.65 | Z127: 75 | AA127: 23895 | AB127: 18006.78 | AC127: 0 | AD127: 0 | AE127: 0 | AF127: 0 | AG127: 0 | AH127: 0 | AI127: 49415.4 | AJ127: 37238.43 | AK127: 9 | AL127: 764.46 | AM127: 576.08 | AN127: 0 | AO127: 0 | AP127: 0 | AQ127: 746.41 | AR127: 562.48 | AS127: 10565.94 | AT127: 7962.28 | AU127: 70310.3 | AV127: 52984.41 | AW127: 0 | AX127: 0
A128: ANIC81000Q | B128: 1429.81 | C128: 1077.48 | D128: 1 | E128: 607.84 | F128: 458.06 | G128: 73 | H128: 2617.05 | I128: 1972.16 | J128: 4654.7 | K128: 3507.7 | L128: 19 | M128: 2863.3 | N128: 2157.72 | O128: 56 | P128: 1505.84 | Q128: 1134.77 | R128: 17 | S128: 795.77 | T128: 599.68 | U128: 2301.61 | V128: 1734.45 | W128: 7 | X128: 17864.28 | Y128: 13462.16 | Z128: 93 | AA128: 29629.8 | AB128: 22328.41 | AC128: 0 | AD128: 0 | AE128: 0 | AF128: 0 | AG128: 0 | AH128: 0 | AI128: 47494.08 | AJ128: 35790.57 | AK128: 9 | AL128: 764.46 | AM128: 576.08 | AN128: 0 | AO128: 0 | AP128: 0 | AQ128: 1492.82 | AR128: 1124.96 | AS128: 12987.96 | AT128: 9787.46 | AU128: 72558.93 | AV128: 54678.94 | AW128: 0 | AX128: 0
A129: ANIC81100G | B129: 1429.81 | C129: 1077.48 | D129: 1 | E129: 607.84 | F129: 458.06 | G129: 83 | H129: 2975.55 | I129: 2242.31 | J129: 5013.2 | K129: 3777.85 | L129: 21 | M129: 3164.7 | N129: 2384.85 | O129: 66 | P129: 1774.74 | Q129: 1337.41 | R129: 17 | S129: 795.77 | T129: 599.68 | U129: 2570.51 | V129: 1937.09 | W129: 7 | X129: 17864.28 | Y129: 13462.16 | Z129: 105 | AA129: 33453 | AB129: 25209.5 | AC129: 0 | AD129: 0 | AE129: 0 | AF129: 0 | AG129: 0 | AH129: 0 | AI129: 51317.28 | AJ129: 38671.66 | AK129: 8 | AL129: 679.52 | AM129: 512.07 | AN129: 0 | AO129: 0 | AP129: 0 | AQ129: 713.96 | AR129: 538.03 | AS129: 14671.91 | AT129: 11056.45 | AU129: 78131.08 | AV129: 58878 | AW129: 0 | AX129: 0
A130: ANIC813007 | B130: 1429.81 | C130: 1077.48 | D130: 4 | E130: 2431.36 | F130: 1832.22 | G130: 100 | H130: 3585 | I130: 2701.58 | J130: 7446.17 | K130: 5611.28 | L130: 24 | M130: 3616.8 | N130: 2725.55 | O130: 59 | P130: 1586.51 | Q130: 1195.56 | R130: 41 | S130: 1919.21 | T130: 1446.28 | U130: 3505.72 | V130: 2641.84 | W130: 8 | X130: 20416.32 | Y130: 15385.32 | Z130: 125 | AA130: 39825 | AB130: 30011.3 | AC130: 0 | AD130: 0 | AE130: 0 | AF130: 0 | AG130: 0 | AH130: 0 | AI130: 60241.32 | AJ130: 45396.62 | AK130: 18 | AL130: 1528.92 | AM130: 1152.16 | AN130: 0 | AO130: 0 | AP130: 0 | AQ130: 3439.97 | AR130: 2592.29 | AS130: 19072.81 | AT130: 14372.88 | AU130: 98851.71 | AV130: 74492.62 | AW130: 0 | AX130: 0
A131: ANIC81500V | B131: 1429.81 | C131: 1077.48 | D131: 1 | E131: 607.84 | F131: 458.06 | G131: 119 | H131: 4266.15 | I131: 3214.88 | J131: 6303.8 | K131: 4750.42 | L131: 31 | M131: 4671.7 | N131: 3520.5 | O131: 82 | P131: 2204.98 | Q131: 1661.63 | R131: 37 | S131: 1731.97 | T131: 1305.18 | U131: 3936.95 | V131: 2966.81 | W131: 12 | X131: 30624.48 | Y131: 23077.98 | Z131: 151 | AA131: 48108.6 | AB131: 36253.65 | AC131: 0 | AD131: 0 | AE131: 0 | AF131: 0 | AG131: 0 | AH131: 0 | AI131: 78733.08 | AJ131: 59331.63 | AK131: 18 | AL131: 1528.92 | AM131: 1152.16 | AN131: 0 | AO131: 0 | AP131: 0 | AQ131: 1784.89 | AR131: 1345.06 | AS131: 20711.39 | AT131: 15607.68 | AU131: 117670.73 | AV131: 88674.26 | AW131: 0 | AX131: 0
A132: ANIC81600P | B132: 1429.81 | C132: 1077.48 | D132: 1 | E132: 607.84 | F132: 458.06 | G132: 102 | H132: 3656.7 | I132: 2755.61 | J132: 5694.35 | K132: 4291.15 | L132: 22 | M132: 3315.4 | N132: 2498.42 | O132: 68 | P132: 1828.52 | Q132: 1377.94 | R132: 34 | S132: 1591.54 | T132: 1199.35 | U132: 3420.06 | V132: 2577.29 | W132: 6 | X132: 15312.24 | Y132: 11538.99 | Z132: 125 | AA132: 39825 | AB132: 30011.3 | AC132: 0 | AD132: 0 | AE132: 0 | AF132: 0 | AG132: 0 | AH132: 0 | AI132: 55137.24 | AJ132: 41550.29 | AK132: 16 | AL132: 1359.04 | AM132: 1024.14 | AN132: 0 | AO132: 0 | AP132: 0 | AQ132: 3375.07 | AR132: 2543.38 | AS132: 18674.96 | AT132: 14073.07 | AU132: 90976.12 | AV132: 68557.74 | AW132: 0 | AX132: 0
A133: ANIC81700E | B133: 1429.81 | C133: 1077.48 | D133: 1 | E133: 607.84 | F133: 458.06 | G133: 122 | H133: 4373.7 | I133: 3295.93 | J133: 6411.35 | K133: 4831.47 | L133: 30 | M133: 4521 | N133: 3406.93 | O133: 86 | P133: 2312.54 | Q133: 1742.68 | R133: 36 | S133: 1685.16 | T133: 1269.9 | U133: 3997.7 | V133: 3012.58 | W133: 11 | X133: 28072.44 | Y133: 21154.82 | Z133: 153 | AA133: 48745.8 | AB133: 36733.84 | AC133: 0 | AD133: 0 | AE133: 0 | AF133: 0 | AG133: 0 | AH133: 0 | AI133: 76818.24 | AJ133: 57888.66 | AK133: 16 | AL133: 1359.04 | AM133: 1024.14 | AN133: 0 | AO133: 0 | AP133: 0 | AQ133: 1395.46 | AR133: 1051.59 | AS133: 21675.45 | AT133: 16334.17 | AU133: 116178.24 | AV133: 87549.54 | AW133: 0 | AX133: 0
A134: ANIC81800A | B134: 1429.81 | C134: 1077.48 | D134: 1 | E134: 607.84 | F134: 458.06 | G134: 115 | H134: 4122.75 | I134: 3106.82 | J134: 6160.4 | K134: 4642.36 | L134: 25 | M134: 3767.5 | N134: 2839.11 | O134: 91 | P134: 2446.99 | Q134: 1844 | R134: 24 | S134: 1123.44 | T134: 846.6 | U134: 3570.43 | V134: 2690.6 | W134: 8 | X134: 20416.32 | Y134: 15385.32 | Z134: 141 | AA134: 44922.6 | AB134: 33852.75 | AC134: 0 | AD134: 0 | AE134: 0 | AF134: 0 | AG134: 0 | AH134: 0 | AI134: 65338.92 | AJ134: 49238.07 | AK134: 12 | AL134: 1019.28 | AM134: 768.11 | AN134: 0 | AO134: 0 | AP134: 0 | AQ134: 9346.34 | AR134: 7043.21 | AS134: 22385.92 | AT134: 16869.57 | AU134: 111588.79 | AV134: 84091.03 | AW134: 0 | AX134: 0
A135: ANIC819006 | B135: 1429.81 | C135: 1077.48 | D135: 1 | E135: 607.84 | F135: 458.06 | G135: 96 | H135: 3441.6 | I135: 2593.52 | J135: 5479.25 | K135: 4129.06 | L135: 23 | M135: 3466.1 | N135: 2611.98 | O135: 73 | P135: 1962.97 | Q135: 1479.25 | R135: 23 | S135: 1076.63 | T135: 811.33 | U135: 3039.6 | V135: 2290.58 | W135: 7 | X135: 17864.28 | Y135: 13462.16 | Z135: 120 | AA135: 38232 | AB135: 28810.85 | AC135: 0 | AD135: 0 | AE135: 0 | AF135: 0 | AG135: 0 | AH135: 0 | AI135: 56096.28 | AJ135: 42273.01 | AK135: 12 | AL135: 1019.28 | AM135: 768.11 | AN135: 0 | AO135: 0 | AP135: 0 | AQ135: 1265.65 | AR135: 953.77 | AS135: 17309.3 | AT135: 13043.93 | AU135: 87675.46 | AV135: 66070.44 | AW135: 0 | AX135: 0
A136: ANIC82000A | B136: 1429.81 | C136: 1077.48 | D136: 1 | E136: 607.84 | F136: 458.06 | G136: 140 | H136: 5019 | I136: 3782.22 | J136: 7056.65 | K136: 5317.76 | L136: 26 | M136: 3918.2 | N136: 2952.68 | O136: 98 | P136: 2635.22 | Q136: 1985.85 | R136: 42 | S136: 1966.02 | T136: 1481.55 | U136: 4601.24 | V136: 3467.4 | W136: 7 | X136: 17864.28 | Y136: 13462.16 | Z136: 167 | AA136: 53206.2 | AB136: 40095.1 | AC136: 0 | AD136: 0 | AE136: 0 | AF136: 0 | AG136: 0 | AH136: 0 | AI136: 71070.48 | AJ136: 53557.26 | AK136: 16 | AL136: 1359.04 | AM136: 1024.14 | AN136: 0 | AO136: 0 | AP136: 0 | AQ136: 6587.87 | AR136: 4964.48 | AS136: 25358.34 | AT136: 19109.53 | AU136: 119951.82 | AV136: 90393.25 | AW136: 0 | AX136: 0
A137: ANIC82300T | B137: 1429.81 | C137: 1077.48 | D137: 1 | E137: 607.84 | F137: 458.06 | G137: 79 | H137: 2832.15 | I137: 2134.25 | J137: 4869.8 | K137: 3669.79 | L137: 20 | M137: 3014 | N137: 2271.29 | O137: 53 | P137: 1425.17 | Q137: 1073.98 | R137: 26 | S137: 1217.06 | T137: 917.15 | U137: 2642.23 | V137: 1991.13 | W137: 5 | X137: 12760.2 | Y137: 9615.83 | Z137: 100 | AA137: 31860 | AB137: 24009.04 | AC137: 0 | AD137: 0 | AE137: 0 | AF137: 0 | AG137: 0 | AH137: 0 | AI137: 44620.2 | AJ137: 33624.87 | AK137: 11 | AL137: 934.34 | AM137: 704.1 | AN137: 0 | AO137: 0 | AP137: 0 | AQ137: 1038.48 | AR137: 782.58 | AS137: 14014.36 | AT137: 10560.93 | AU137: 71133.41 | AV137: 53604.69 | AW137: 0 | AX137: 0
A138: ANIC82400N | B138: 1429.81 | C138: 1077.48 | D138: 1 | E138: 607.84 | F138: 458.06 | G138: 64 | H138: 2294.4 | I138: 1729.01 | J138: 4332.05 | K138: 3264.55 | L138: 17 | M138: 2561.9 | N138: 1930.6 | O138: 44 | P138: 1183.16 | Q138: 891.61 | R138: 20 | S138: 936.2 | T138: 705.5 | U138: 2119.36 | V138: 1597.11 | W138: 5 | X138: 12760.2 | Y138: 9615.83 | Z138: 82 | AA138: 26125.2 | AB138: 19687.42 | AC138: 0 | AD138: 0 | AE138: 0 | AF138: 0 | AG138: 0 | AH138: 0 | AI138: 38885.4 | AJ138: 29303.25 | AK138: 8 | AL138: 679.52 | AM138: 512.07 | AN138: 0 | AO138: 0 | AP138: 0 | AQ138: 2433.94 | AR138: 1834.17 | AS138: 12168.76 | AT138: 9170.13 | AU138: 63180.93 | AV138: 47611.88 | AW138: 0 | AX138: 0
A139: ANIC82500D | B139: 1429.81 | C139: 1077.48 | D139: 1 | E139: 607.84 | F139: 458.06 | G139: 52 | H139: 1864.2 | I139: 1404.82 | J139: 3901.85 | K139: 2940.36 | L139: 16 | M139: 2411.2 | N139: 1817.03 | O139: 36 | P139: 968.04 | Q139: 729.5 | R139: 16 | S139: 748.96 | T139: 564.4 | U139: 1717 | V139: 1293.9 | W139: 5 | X139: 12760.2 | Y139: 9615.83 | Z139: 68 | AA139: 21664.8 | AB139: 16326.15 | AC139: 0 | AD139: 0 | AE139: 0 | AF139: 0 | AG139: 0 | AH139: 0 | AI139: 34425 | AJ139: 25941.98 | AK139: 5 | AL139: 424.7 | AM139: 320.05 | AN139: 0 | AO139: 0 | AP139: 0 | AQ139: 2076.96 | AR139: 1565.15 | AS139: 9822.93 | AT139: 7402.36 | AU139: 54779.64 | AV139: 41280.83 | AW139: 0 | AX139: 0
A140: ANIC826009 | B140: 1429.81 | C140: 1077.48 | D140: 1 | E140: 607.84 | F140: 458.06 | G140: 114 | H140: 4086.9 | I140: 3079.8 | J140: 6124.55 | K140: 4615.34 | L140: 21 | M140: 3164.7 | N140: 2384.85 | O140: 67 | P140: 1801.63 | Q140: 1357.67 | R140: 47 | S140: 2200.07 | T140: 1657.93 | U140: 4001.7 | V140: 3015.6 | W140: 5 | X140: 12760.2 | Y140: 9615.83 | Z140: 136 | AA140: 43329.6 | AB140: 32652.3 | AC140: 0 | AD140: 0 | AE140: 0 | AF140: 0 | AG140: 0 | AH140: 0 | AI140: 56089.8 | AJ140: 42268.13 | AK140: 19 | AL140: 1613.86 | AM140: 1216.17 | AN140: 0 | AO140: 0 | AP140: 0 | AQ140: 1914.7 | AR140: 1442.88 | AS140: 19719.63 | AT140: 14860.31 | AU140: 92628.94 | AV140: 69803.28 | AW140: 0 | AX140: 0
A141: ANIC827005 | B141: 1429.81 | C141: 1077.48 | D141: 1 | E141: 607.84 | F141: 458.06 | G141: 41 | H141: 1469.85 | I141: 1107.65 | J141: 3507.5 | K141: 2643.19 | L141: 11 | M141: 1657.7 | N141: 1249.21 | O141: 26 | P141: 699.14 | Q141: 526.86 | R141: 15 | S141: 702.15 | T141: 529.13 | U141: 1401.29 | V141: 1055.99 | W141: 3 | X141: 7656.12 | Y141: 5769.5 | Z141: 52 | AA141: 16567.2 | AB141: 12484.7 | AC141: 0 | AD141: 0 | AE141: 0 | AF141: 0 | AG141: 0 | AH141: 0 | AI141: 24223.32 | AJ141: 18254.2 | AK141: 6 | AL141: 509.64 | AM141: 384.05 | AN141: 0 | AO141: 0 | AP141: 0 | AQ141: 746.41 | AR141: 562.48 | AS141: 7966.28 | AT141: 6003.23 | AU141: 40012.14 | AV141: 30152.35 | AW141: 0 | AX141: 0
A142: ANIC828001 | B142: 1429.81 | C142: 1077.48 | D142: 1 | E142: 607.84 | F142: 458.06 | G142: 101 | H142: 3620.85 | I142: 2728.6 | J142: 5658.5 | K142: 4264.14 | L142: 24 | M142: 3616.8 | N142: 2725.55 | O142: 74 | P142: 1989.86 | Q142: 1499.52 | R142: 27 | S142: 1263.87 | T142: 952.43 | U142: 3253.73 | V142: 2451.95 | W142: 5 | X142: 12760.2 | Y142: 9615.83 | Z142: 126 | AA142: 40143.6 | AB142: 30251.39 | AC142: 0 | AD142: 0 | AE142: 0 | AF142: 0 | AG142: 0 | AH142: 0 | AI142: 52903.8 | AJ142: 39867.22 | AK142: 12 | AL142: 1019.28 | AM142: 768.11 | AN142: 0 | AO142: 0 | AP142: 0 | AQ142: 2336.58 | AR142: 1760.8 | AS142: 21210.79 | AT142: 15984.02 | AU142: 89999.48 | AV142: 67821.79 | AW142: 0 | AX142: 0
A143: ANIC82900R | B143: 1429.81 | C143: 1077.48 | D143: 1 | E143: 607.84 | F143: 458.06 | G143: 115 | H143: 4122.75 | I143: 3106.82 | J143: 6160.4 | K143: 4642.36 | L143: 29 | M143: 4370.3 | N143: 3293.37 | O143: 76 | P143: 2043.64 | Q143: 1540.05 | R143: 39 | S143: 1825.59 | T143: 1375.73 | U143: 3869.23 | V143: 2915.78 | W143: 10 | X143: 25520.4 | Y143: 19231.65 | Z143: 145 | AA143: 46197 | AB143: 34813.11 | AC143: 0 | AD143: 0 | AE143: 0 | AF143: 0 | AG143: 0 | AH143: 0 | AI143: 71717.4 | AJ143: 54044.76 | AK143: 18 | AL143: 1528.92 | AM143: 1152.16 | AN143: 0 | AO143: 0 | AP143: 0 | AQ143: 2336.58 | AR143: 1760.8 | AS143: 20382.19 | AT143: 15359.6 | AU143: 110365.02 | AV143: 83168.83 | AW143: 0 | AX143: 0
A144: ANIC830001 | B144: 1429.81 | C144: 1077.48 | D144: 1 | E144: 607.84 | F144: 458.06 | G144: 122 | H144: 4373.7 | I144: 3295.93 | J144: 6411.35 | K144: 4831.47 | L144: 27 | M144: 4068.9 | N144: 3066.24 | O144: 87 | P144: 2339.43 | Q144: 1762.95 | R144: 35 | S144: 1638.35 | T144: 1234.63 | U144: 3977.78 | V144: 2997.58 | W144: 8 | X144: 20416.32 | Y144: 15385.32 | Z144: 150 | AA144: 47790 | AB144: 36013.56 | AC144: 0 | AD144: 0 | AE144: 0 | AF144: 0 | AG144: 0 | AH144: 0 | AI144: 68206.32 | AJ144: 51398.88 | AK144: 15 | AL144: 1274.1 | AM144: 960.14 | AN144: 0 | AO144: 0 | AP144: 0 | AQ144: 5549.39 | AR144: 4181.91 | AS144: 22369.62 | AT144: 16857.29 | AU144: 111857.46 | AV144: 84293.51 | AW144: 0 | AX144: 0
A145: ANIC83100R | B145: 1429.81 | C145: 1077.48 | D145: 1 | E145: 607.84 | F145: 458.06 | G145: 108 | H145: 3871.8 | I145: 2917.71 | J145: 5909.45 | K145: 4453.25 | L145: 24 | M145: 3616.8 | N145: 2725.55 | O145: 70 | P145: 1882.3 | Q145: 1418.46 | R145: 38 | S145: 1778.78 | T145: 1340.45 | U145: 3661.08 | V145: 2758.91 | W145: 5 | X145: 12760.2 | Y145: 9615.83 | Z145: 133 | AA145: 42373.8 | AB145: 31932.03 | AC145: 0 | AD145: 0 | AE145: 0 | AF145: 0 | AG145: 0 | AH145: 0 | AI145: 55134 | AJ145: 41547.86 | AK145: 16 | AL145: 1359.04 | AM145: 1024.14 | AN145: 0 | AO145: 0 | AP145: 0 | AQ145: 1557.72 | AR145: 1173.87 | AS145: 18543.67 | AT145: 13974.13 | AU145: 89781.76 | AV145: 67657.71 | AW145: 0 | AX145: 0
A146: ANIC83200L | B146: 1429.81 | C146: 1077.48 | D146: 1 | E146: 607.84 | F146: 458.06 | G146: 124 | H146: 4445.4 | I146: 3349.96 | J146: 6483.05 | K146: 4885.5 | L146: 25 | M146: 3767.5 | N146: 2839.11 | O146: 89 | P146: 2393.21 | Q146: 1803.47 | R146: 35 | S146: 1638.35 | T146: 1234.63 | U146: 4031.56 | V146: 3038.1 | W146: 7 | X146: 17864.28 | Y146: 13462.16 | Z146: 150 | AA146: 47790 | AB146: 36013.56 | AC146: 0 | AD146: 0 | AE146: 0 | AF146: 0 | AG146: 0 | AH146: 0 | AI146: 65654.28 | AJ146: 49475.72 | AK146: 19 | AL146: 1613.86 | AM146: 1216.17 | AN146: 0 | AO146: 0 | AP146: 0 | AQ146: 1947.15 | AR146: 1467.33 | AS146: 21543.69 | AT146: 16234.88 | AU146: 105041.09 | AV146: 79156.81 | AW146: 0 | AX146: 0
A147: ANIC83300C | B147: 1429.81 | C147: 1077.48 | D147: 1 | E147: 607.84 | F147: 458.06 | G147: 77 | H147: 2760.45 | I147: 2080.22 | J147: 4798.1 | K147: 3615.76 | L147: 18 | M147: 2712.6 | N147: 2044.16 | O147: 42 | P147: 1129.38 | Q147: 851.08 | R147: 35 | S147: 1638.35 | T147: 1234.63 | U147: 2767.73 | V147: 2085.71 | W147: 4 | X147: 10208.16 | Y147: 7692.66 | Z147: 96 | AA147: 30585.6 | AB147: 23048.68 | AC147: 0 | AD147: 0 | AE147: 0 | AF147: 0 | AG147: 0 | AH147: 0 | AI147: 40793.76 | AJ147: 30741.34 | AK147: 14 | AL147: 1189.16 | AM147: 896.13 | AN147: 0 | AO147: 0 | AP147: 0 | AQ147: 519.24 | AR147: 391.29 | AS147: 13051.04 | AT147: 9835 | AU147: 65831.63 | AV147: 49609.39 | AW147: 0 | AX147: 0
A148: ANIC834008 | B148: 1429.81 | C148: 1077.48 | D148: 1 | E148: 607.84 | F148: 458.06 | G148: 86 | H148: 3083.1 | I148: 2323.36 | J148: 5120.75 | K148: 3858.9 | L148: 24 | M148: 3616.8 | N148: 2725.55 | O148: 56 | P148: 1505.84 | Q148: 1134.77 | R148: 30 | S148: 1404.3 | T148: 1058.25 | U148: 2910.14 | V148: 2193.02 | W148: 10 | X148: 25520.4 | Y148: 19231.65 | Z148: 111 | AA148: 35364.6 | AB148: 26650.04 | AC148: 0 | AD148: 0 | AE148: 0 | AF148: 0 | AG148: 0 | AH148: 0 | AI148: 60885 | AJ148: 45881.69 | AK148: 16 | AL148: 1359.04 | AM148: 1024.14 | AN148: 0 | AO148: 0 | AP148: 0 | AQ148: 973.58 | AR148: 733.67 | AS148: 15190.28 | AT148: 11447.08 | AU148: 90055.59 | AV148: 67864.05 | AW148: 0 | AX148: 0
A149: ANIC835004 | B149: 1429.81 | C149: 1077.48 | D149: 1 | E149: 607.84 | F149: 458.06 | G149: 66 | H149: 2366.1 | I149: 1783.04 | J149: 4403.75 | K149: 3318.58 | L149: 18 | M149: 2712.6 | N149: 2044.16 | O149: 49 | P149: 1317.61 | Q149: 992.92 | R149: 17 | S149: 795.77 | T149: 599.68 | U149: 2113.38 | V149: 1592.6 | W149: 8 | X149: 20416.32 | Y149: 15385.32 | Z149: 85 | AA149: 27081 | AB149: 20407.69 | AC149: 0 | AD149: 0 | AE149: 0 | AF149: 0 | AG149: 0 | AH149: 0 | AI149: 47497.32 | AJ149: 35793.01 | AK149: 10 | AL149: 849.4 | AM149: 640.09 | AN149: 0 | AO149: 0 | AP149: 0 | AQ149: 1719.99 | AR149: 1296.15 | AS149: 11970.34 | AT149: 9020.6 | AU149: 71266.78 | AV149: 53705.19 | AW149: 0 | AX149: 0
A150: ANIC83600X | B150: 1429.81 | C150: 1077.48 | D150: 1 | E150: 607.84 | F150: 458.06 | G150: 92 | H150: 3298.2 | I150: 2485.46 | J150: 5335.85 | K150: 4021 | L150: 25 | M150: 3767.5 | N150: 2839.11 | O150: 65 | P150: 1747.85 | Q150: 1317.14 | R150: 27 | S150: 1263.87 | T150: 952.43 | U150: 3011.72 | V150: 2269.57 | W150: 8 | X150: 20416.32 | Y150: 15385.32 | Z150: 118 | AA150: 37594.8 | AB150: 28330.67 | AC150: 0 | AD150: 0 | AE150: 0 | AF150: 0 | AG150: 0 | AH150: 0 | AI150: 58011.12 | AJ150: 43715.99 | AK150: 12 | AL150: 1019.28 | AM150: 768.11 | AN150: 0 | AO150: 0 | AP150: 0 | AQ150: 1687.53 | AR150: 1271.69 | AS150: 16121.45 | AT150: 12148.79 | AU150: 88954.45 | AV150: 67034.26 | AW150: 0 | AX150: 0
A151: ANIC83700Q | B151: 1429.81 | C151: 1077.48 | D151: 1 | E151: 607.84 | F151: 458.06 | G151: 106 | H151: 3800.1 | I151: 2863.68 | J151: 5837.75 | K151: 4399.22 | L151: 26 | M151: 3918.2 | N151: 2952.68 | O151: 68 | P151: 1828.52 | Q151: 1377.94 | R151: 38 | S151: 1778.78 | T151: 1340.45 | U151: 3607.3 | V151: 2718.39 | W151: 8 | X151: 20416.32 | Y151: 15385.32 | Z151: 133 | AA151: 42373.8 | AB151: 31932.03 | AC151: 0 | AD151: 0 | AE151: 0 | AF151: 0 | AG151: 0 | AH151: 0 | AI151: 62790.12 | AJ151: 47317.35 | AK151: 15 | AL151: 1274.1 | AM151: 960.14 | AN151: 0 | AO151: 0 | AP151: 0 | AQ151: 2855.83 | AR151: 2152.09 | AS151: 18952.26 | AT151: 14282.03 | AU151: 99235.56 | AV151: 74781.9 | AW151: 0 | AX151: 0
A152: ANIC83800G | B152: 1429.81 | C152: 1077.48 | D152: 1 | E152: 607.84 | F152: 458.06 | G152: 52 | H152: 1864.2 | I152: 1404.82 | J152: 3901.85 | K152: 2940.36 | L152: 15 | M152: 2260.5 | N152: 1703.47 | O152: 35 | P152: 941.15 | Q152: 709.23 | R152: 17 | S152: 795.77 | T152: 599.68 | U152: 1736.92 | V152: 1308.91 | W152: 6 | X152: 15312.24 | Y152: 11538.99 | Z152: 68 | AA152: 21664.8 | AB152: 16326.15 | AC152: 0 | AD152: 0 | AE152: 0 | AF152: 0 | AG152: 0 | AH152: 0 | AI152: 36977.04 | AJ152: 27865.14 | AK152: 9 | AL152: 764.46 | AM152: 576.08 | AN152: 0 | AO152: 0 | AP152: 0 | AQ152: 1200.74 | AR152: 904.85 | AS152: 9336.66 | AT152: 7035.92 | AU152: 56178.17 | AV152: 42334.73 | AW152: 0 | AX152: 0
A153: ANIC83900B | B153: 1429.81 | C153: 1077.48 | D153: 1 | E153: 607.84 | F153: 458.06 | G153: 89 | H153: 3190.65 | I153: 2404.41 | J153: 5228.3 | K153: 3939.95 | L153: 23 | M153: 3466.1 | N153: 2611.98 | O153: 62 | P153: 1667.18 | Q153: 1256.35 | R153: 27 | S153: 1263.87 | T153: 952.43 | U153: 2931.05 | V153: 2208.78 | W153: 5 | X153: 12760.2 | Y153: 9615.83 | Z153: 113 | AA153: 36001.8 | AB153: 27130.22 | AC153: 0 | AD153: 0 | AE153: 0 | AF153: 0 | AG153: 0 | AH153: 0 | AI153: 48762 | AJ153: 36746.05 | AK153: 14 | AL153: 1189.16 | AM153: 896.13 | AN153: 0 | AO153: 0 | AP153: 0 | AQ153: 2271.68 | AR153: 1711.89 | AS153: 16293.64 | AT153: 12278.55 | AU153: 80141.93 | AV153: 60393.33 | AW153: 0 | AX153: 0
A154: ANIC84000G | B154: 1429.81 | C154: 1077.48 | D154: 1 | E154: 607.84 | F154: 458.06 | G154: 82 | H154: 2939.7 | I154: 2215.3 | J154: 4977.35 | K154: 3750.84 | L154: 20 | M154: 3014 | N154: 2271.29 | O154: 59 | P154: 1586.51 | Q154: 1195.56 | R154: 23 | S154: 1076.63 | T154: 811.33 | U154: 2663.14 | V154: 2006.89 | W154: 5 | X154: 12760.2 | Y154: 9615.83 | Z154: 103 | AA154: 32815.8 | AB154: 24729.31 | AC154: 0 | AD154: 0 | AE154: 0 | AF154: 0 | AG154: 0 | AH154: 0 | AI154: 45576 | AJ154: 34345.14 | AK154: 12 | AL154: 1019.28 | AM154: 768.11 | AN154: 0 | AO154: 0 | AP154: 0 | AQ154: 1947.15 | AR154: 1467.33 | AS154: 14717.44 | AT154: 11090.76 | AU154: 73914.36 | AV154: 55700.36 | AW154: 0 | AX154: 0
A155: ANIC84100B | B155: 1429.81 | C155: 1077.48 | D155: 1 | E155: 607.84 | F155: 458.06 | G155: 73 | H155: 2617.05 | I155: 1972.16 | J155: 4654.7 | K155: 3507.7 | L155: 20 | M155: 3014 | N155: 2271.29 | O155: 52 | P155: 1398.28 | Q155: 1053.72 | R155: 21 | S155: 983.01 | T155: 740.78 | U155: 2381.29 | V155: 1794.5 | W155: 5 | X155: 12760.2 | Y155: 9615.83 | Z155: 94 | AA155: 29948.4 | AB155: 22568.5 | AC155: 0 | AD155: 0 | AE155: 0 | AF155: 0 | AG155: 0 | AH155: 0 | AI155: 42708.6 | AJ155: 32184.33 | AK155: 11 | AL155: 934.34 | AM155: 704.1 | AN155: 0 | AO155: 0 | AP155: 0 | AQ155: 1590.18 | AR155: 1198.33 | AS155: 13391.01 | AT155: 10091.19 | AU155: 68674.12 | AV155: 51751.44 | AW155: 0 | AX155: 0
A156: ANIC842007 | B156: 1429.81 | C156: 1077.48 | D156: 1 | E156: 607.84 | F156: 458.06 | G156: 130 | H156: 4660.5 | I156: 3512.06 | J156: 6698.15 | K156: 5047.6 | L156: 29 | M156: 4370.3 | N156: 3293.37 | O156: 85 | P156: 2285.65 | Q156: 1722.42 | R156: 45 | S156: 2106.45 | T156: 1587.38 | U156: 4392.1 | V156: 3309.8 | W156: 11 | X156: 28072.44 | Y156: 21154.82 | Z156: 160 | AA156: 50976 | AB156: 38414.47 | AC156: 0 | AD156: 0 | AE156: 0 | AF156: 0 | AG156: 0 | AH156: 0 | AI156: 79048.44 | AJ156: 59569.29 | AK156: 23 | AL156: 1953.62 | AM156: 1472.21 | AN156: 0 | AO156: 0 | AP156: 0 | AQ156: 1135.84 | AR156: 855.95 | AS156: 22186.73 | AT156: 16719.46 | AU156: 119785.18 | AV156: 90267.68 | AW156: 0 | AX156: 0
A157: ANIC843003 | B157: 1429.81 | C157: 1077.48 | D157: 1 | E157: 607.84 | F157: 458.06 | G157: 126 | H157: 4517.1 | I157: 3403.99 | J157: 6554.75 | K157: 4939.53 | L157: 28 | M157: 4219.6 | N157: 3179.8 | O157: 90 | P157: 2420.1 | Q157: 1823.74 | R157: 36 | S157: 1685.16 | T157: 1269.9 | U157: 4105.26 | V157: 3093.64 | W157: 8 | X157: 20416.32 | Y157: 15385.32 | Z157: 155 | AA157: 49383 | AB157: 37214.02 | AC157: 0 | AD157: 0 | AE157: 0 | AF157: 0 | AG157: 0 | AH157: 0 | AI157: 69799.32 | AJ157: 52599.34 | AK157: 16 | AL157: 1359.04 | AM157: 1024.14 | AN157: 0 | AO157: 0 | AP157: 0 | AQ157: 2433.94 | AR157: 1834.17 | AS157: 21636.12 | AT157: 16304.54 | AU157: 110108.03 | AV157: 82975.16 | AW157: 0 | AX157: 0
A158: ANIC84400V | B158: 1429.81 | C158: 1077.48 | D158: 1 | E158: 607.84 | F158: 458.06 | G158: 126 | H158: 4517.1 | I158: 3403.99 | J158: 6554.75 | K158: 4939.53 | L158: 30 | M158: 4521 | N158: 3406.93 | O158: 89 | P158: 2393.21 | Q158: 1803.47 | R158: 37 | S158: 1731.97 | T158: 1305.18 | U158: 4125.18 | V158: 3108.65 | W158: 10 | X158: 25520.4 | Y158: 19231.65 | Z158: 157 | AA158: 50020.2 | AB158: 37694.2 | AC158: 0 | AD158: 0 | AE158: 0 | AF158: 0 | AG158: 0 | AH158: 0 | AI158: 75540.6 | AJ158: 56925.85 | AK158: 17 | AL158: 1443.98 | AM158: 1088.15 | AN158: 0 | AO158: 0 | AP158: 0 | AQ158: 1784.89 | AR158: 1345.06 | AS158: 22246.98 | AT158: 16764.87 | AU158: 116217.38 | AV158: 87579.04 | AW158: 0 | AX158: 0
A159: ANIC84500P | B159: 1429.81 | C159: 1077.48 | D159: 1 | E159: 607.84 | F159: 458.06 | G159: 95 | H159: 3405.75 | I159: 2566.5 | J159: 5443.4 | K159: 4102.04 | L159: 25 | M159: 3767.5 | N159: 2839.11 | O159: 70 | P159: 1882.3 | Q159: 1418.46 | R159: 25 | S159: 1170.25 | T159: 881.88 | U159: 3052.55 | V159: 2300.34 | W159: 7 | X159: 17864.28 | Y159: 13462.16 | Z159: 121 | AA159: 38550.6 | AB159: 29050.94 | AC159: 0 | AD159: 0 | AE159: 0 | AF159: 0 | AG159: 0 | AH159: 0 | AI159: 56414.88 | AJ159: 42513.1 | AK159: 13 | AL159: 1104.22 | AM159: 832.12 | AN159: 0 | AO159: 0 | AP159: 0 | AQ159: 1622.63 | AR159: 1222.78 | AS159: 20054.94 | AT159: 15112.99 | AU159: 91460.12 | AV159: 68922.48 | AW159: 0 | AX159: 0
A160: ANIC84600E | B160: 1429.81 | C160: 1077.48 | D160: 1 | E160: 607.84 | F160: 458.06 | G160: 83 | H160: 2975.55 | I160: 2242.31 | J160: 5013.2 | K160: 3777.85 | L160: 21 | M160: 3164.7 | N160: 2384.85 | O160: 57 | P160: 1532.73 | Q160: 1155.03 | R160: 26 | S160: 1217.06 | T160: 917.15 | U160: 2749.79 | V160: 2072.18 | W160: 6 | X160: 15312.24 | Y160: 11538.99 | Z160: 105 | AA160: 33453 | AB160: 25209.5 | AC160: 0 | AD160: 0 | AE160: 0 | AF160: 0 | AG160: 0 | AH160: 0 | AI160: 48765.24 | AJ160: 36748.49 | AK160: 10 | AL160: 849.4 | AM160: 640.09 | AN160: 0 | AO160: 0 | AP160: 0 | AQ160: 1427.91 | AR160: 1076.04 | AS160: 16910.22 | AT160: 12743.2 | AU160: 78880.46 | AV160: 59442.7 | AW160: 0 | AX160: 0
A161: ANIC84700A | B161: 1429.81 | C161: 1077.48 | D161: 1 | E161: 607.84 | F161: 458.06 | G161: 113 | H161: 4051.05 | I161: 3052.79 | J161: 6088.7 | K161: 4588.33 | L161: 26 | M161: 3918.2 | N161: 2952.68 | O161: 80 | P161: 2151.2 | Q161: 1621.1 | R161: 33 | S161: 1544.73 | T161: 1164.08 | U161: 3695.93 | V161: 2785.18 | W161: 9 | X161: 22968.36 | Y161: 17308.49 | Z161: 140 | AA161: 44604 | AB161: 33612.66 | AC161: 0 | AD161: 0 | AE161: 0 | AF161: 0 | AG161: 0 | AH161: 0 | AI161: 67572.36 | AJ161: 50921.15 | AK161: 17 | AL161: 1443.98 | AM161: 1088.15 | AN161: 0 | AO161: 0 | AP161: 0 | AQ161: 1492.82 | AR161: 1124.96 | AS161: 19431.05 | AT161: 14642.84 | AU161: 103643.04 | AV161: 78103.29 | AW161: 0 | AX161: 0
A162: ANIC848006 | B162: 1429.81 | C162: 1077.48 | D162: 1 | E162: 607.84 | F162: 458.06 | G162: 125 | H162: 4481.25 | I162: 3376.98 | J162: 6518.9 | K162: 4912.52 | L162: 28 | M162: 4219.6 | N162: 3179.8 | O162: 87 | P162: 2339.43 | Q162: 1762.95 | R162: 38 | S162: 1778.78 | T162: 1340.45 | U162: 4118.21 | V162: 3103.4 | W162: 10 | X162: 25520.4 | Y162: 19231.65 | Z162: 154 | AA162: 49064.4 | AB162: 36973.93 | AC162: 0 | AD162: 0 | AE162: 0 | AF162: 0 | AG162: 0 | AH162: 0 | AI162: 74584.8 | AJ162: 56205.58 | AK162: 17 | AL162: 1443.98 | AM162: 1088.15 | AN162: 0 | AO162: 0 | AP162: 0 | AQ162: 2239.23 | AR162: 1687.44 | AS162: 21439.77 | AT162: 16156.57 | AU162: 114564.49 | AV162: 86333.46 | AW162: 0 | AX162: 0
A163: ANIC849002 | B163: 1429.81 | C163: 1077.48 | D163: 1 | E163: 607.84 | F163: 458.06 | G163: 78 | H163: 2796.3 | I163: 2107.23 | J163: 4833.95 | K163: 3642.77 | L163: 20 | M163: 3014 | N163: 2271.29 | O163: 65 | P163: 1747.85 | Q163: 1317.14 | R163: 13 | S163: 608.53 | T163: 458.58 | U163: 2356.38 | V163: 1775.72 | W163: 7 | X163: 17864.28 | Y163: 13462.16 | Z163: 99 | AA163: 31541.4 | AB163: 23768.95 | AC163: 0 | AD163: 0 | AE163: 0 | AF163: 0 | AG163: 0 | AH163: 0 | AI163: 49405.68 | AJ163: 37231.11 | AK163: 7 | AL163: 594.58 | AM163: 448.06 | AN163: 0 | AO163: 0 | AP163: 0 | AQ163: 1200.74 | AR163: 904.85 | AS163: 13605.64 | AT163: 10252.93 | AU163: 75010.97 | AV163: 56526.73 | AW163: 0 | AX163: 0
A164: ANIC850006 | B164: 1429.81 | C164: 1077.48 | D164: 1 | E164: 607.84 | F164: 458.06 | G164: 107 | H164: 3835.95 | I164: 2890.69 | J164: 5873.6 | K164: 4426.23 | L164: 22 | M164: 3315.4 | N164: 2498.42 | O164: 71 | P164: 1909.19 | Q164: 1438.73 | R164: 36 | S164: 1685.16 | T164: 1269.9 | U164: 3594.35 | V164: 2708.63 | W164: 3 | X164: 7656.12 | Y164: 5769.5 | Z164: 130 | AA164: 41418 | AB164: 31211.76 | AC164: 0 | AD164: 0 | AE164: 0 | AF164: 0 | AG164: 0 | AH164: 0 | AI164: 49074.12 | AJ164: 36981.26 | AK164: 17 | AL164: 1443.98 | AM164: 1088.15 | AN164: 0 | AO164: 0 | AP164: 0 | AQ164: 1492.82 | AR164: 1124.96 | AS164: 18872.08 | AT164: 14221.61 | AU164: 83666.35 | AV164: 63049.26 | AW164: 0 | AX164: 0
A165: ANIC851002 | B165: 1429.81 | C165: 1077.48 | D165: 1 | E165: 607.84 | F165: 458.06 | G165: 62 | H165: 2222.7 | I165: 1674.98 | J165: 4260.35 | K165: 3210.52 | L165: 17 | M165: 2561.9 | N165: 1930.6 | O165: 41 | P165: 1102.49 | Q165: 830.81 | R165: 21 | S165: 983.01 | T165: 740.78 | U165: 2085.5 | V165: 1571.59 | W165: 5 | X165: 12760.2 | Y165: 9615.83 | Z165: 80 | AA165: 25488 | AB165: 19207.23 | AC165: 0 | AD165: 0 | AE165: 0 | AF165: 0 | AG165: 0 | AH165: 0 | AI165: 38248.2 | AJ165: 28823.06 | AK165: 9 | AL165: 764.46 | AM165: 576.08 | AN165: 0 | AO165: 0 | AP165: 0 | AQ165: 389.43 | AR165: 293.47 | AS165: 10813.78 | AT165: 8149.04 | AU165: 59123.62 | AV165: 44554.36 | AW165: 0 | AX165: 0
A166: ANIC85200T | B166: 1429.81 | C166: 1077.48 | D166: 1 | E166: 607.84 | F166: 458.06 | G166: 62 | H166: 2222.7 | I166: 1674.98 | J166: 4260.35 | K166: 3210.52 | L166: 14 | M166: 2109.8 | N166: 1589.9 | O166: 44 | P166: 1183.16 | Q166: 891.61 | R166: 18 | S166: 842.58 | T166: 634.95 | U166: 2025.74 | V166: 1526.56 | W166: 3 | X166: 7656.12 | Y166: 5769.5 | Z166: 76 | AA166: 24213.6 | AB166: 18246.87 | AC166: 0 | AD166: 0 | AE166: 0 | AF166: 0 | AG166: 0 | AH166: 0 | AI166: 31869.72 | AJ166: 24016.37 | AK166: 6 | AL166: 509.64 | AM166: 384.05 | AN166: 0 | AO166: 0 | AP166: 0 | AQ166: 519.24 | AR166: 391.29 | AS166: 10567.73 | AT166: 7963.62 | AU166: 51862.22 | AV166: 39082.31 | AW166: 0 | AX166: 0
A167: ANIS002001 | B167: 1429.81 | C167: 1077.48 | D167: 1 | E167: 607.84 | F167: 458.06 | G167: 62 | H167: 2222.7 | I167: 1674.98 | J167: 4260.35 | K167: 3210.52 | L167: 20 | M167: 3014 | N167: 2271.29 | O167: 0 | P167: 0 | Q167: 0 | R167: 62 | S167: 2902.22 | T167: 2187.05 | U167: 2902.22 | V167: 2187.05 | W167: 2 | X167: 5104.08 | Y167: 3846.33 | Z167: 83 | AA167: 26443.8 | AB167: 19927.51 | AC167: 0 | AD167: 0 | AE167: 0 | AF167: 62 | AG167: 20182.24 | AH167: 15208.92 | AI167: 51730.12 | AJ167: 38982.76 | AK167: 32 | AL167: 2718.08 | AM167: 2048.29 | AN167: 0 | AO167: 0 | AP167: 0 | AQ167: 1655.08 | AR167: 1247.23 | AS167: 11774.57 | AT167: 8873.07 | AU167: 78054.42 | AV167: 58820.21 | AW167: 6 | AX167: 24000
A168: ANIS00400L | B168: 1429.81 | C168: 1077.48 | D168: 1 | E168: 607.84 | F168: 458.06 | G168: 82 | H168: 2939.7 | I168: 2215.3 | J168: 4977.35 | K168: 3750.84 | L168: 29 | M168: 4370.3 | N168: 3293.37 | O168: 0 | P168: 0 | Q168: 0 | R168: 82 | S168: 3838.42 | T168: 2892.55 | U168: 3838.42 | V168: 2892.55 | W168: 2 | X168: 5104.08 | Y168: 3846.33 | Z168: 112 | AA168: 35683.2 | AB168: 26890.13 | AC168: 0 | AD168: 0 | AE168: 0 | AF168: 82 | AG168: 26692.64 | AH168: 20115.03 | AI168: 67479.92 | AJ168: 50851.49 | AK168: 32 | AL168: 2718.08 | AM168: 2048.29 | AN168: 0 | AO168: 0 | AP168: 0 | AQ168: 2109.42 | AR168: 1589.62 | AS168: 15600.25 | AT168: 11756.03 | AU168: 101093.74 | AV168: 76182.19 | AW168: 6 | AX168: 24000
A169: ANIS00800X | B169: 1429.81 | C169: 1077.48 | D169: 2 | E169: 1215.68 | F169: 916.11 | G169: 138 | H169: 4947.3 | I169: 3728.18 | J169: 7592.79 | K169: 5721.77 | L169: 40 | M169: 6028 | N169: 4542.58 | O169: 0 | P169: 0 | Q169: 0 | R169: 138 | S169: 6459.78 | T169: 4867.96 | U169: 6459.78 | V169: 4867.96 | W169: 3 | X169: 7656.12 | Y169: 5769.5 | Z169: 179 | AA169: 57029.4 | AB169: 42976.19 | AC169: 0 | AD169: 0 | AE169: 0 | AF169: 138 | AG169: 44921.76 | AH169: 33852.12 | AI169: 109607.28 | AJ169: 82597.81 | AK169: 51 | AL169: 4331.94 | AM169: 3264.46 | AN169: 0 | AO169: 0 | AP169: 0 | AQ169: 3667.14 | AR169: 2763.48 | AS169: 25426.6 | AT169: 19160.96 | AU169: 163113.53 | AV169: 122919.02 | AW169: 11 | AX169: 44000
A170: ANIS00900Q | B170: 1429.81 | C170: 1077.48 | D170: 1 | E170: 607.84 | F170: 458.06 | G170: 95 | H170: 3405.75 | I170: 2566.5 | J170: 5443.4 | K170: 4102.04 | L170: 25 | M170: 3767.5 | N170: 2839.11 | O170: 0 | P170: 0 | Q170: 0 | R170: 95 | S170: 4446.95 | T170: 3351.13 | U170: 4446.95 | V170: 3351.13 | W170: 2 | X170: 5104.08 | Y170: 3846.33 | Z170: 121 | AA170: 38550.6 | AB170: 29050.94 | AC170: 0 | AD170: 0 | AE170: 0 | AF170: 95 | AG170: 30924.4 | AH170: 23303.99 | AI170: 74579.08 | AJ170: 56201.26 | AK170: 53 | AL170: 4501.82 | AM170: 3392.48 | AN170: 0 | AO170: 0 | AP170: 0 | AQ170: 1265.65 | AR170: 953.77 | AS170: 17821.84 | AT170: 13430.17 | AU170: 111826.24 | AV170: 84269.96 | AW170: 9 | AX170: 36000
A171: ANIS01100Q | B171: 1429.81 | C171: 1077.48 | D171: 2 | E171: 1215.68 | F171: 916.11 | G171: 107 | H171: 3835.95 | I171: 2890.69 | J171: 6481.44 | K171: 4884.28 | L171: 28 | M171: 4219.6 | N171: 3179.8 | O171: 0 | P171: 0 | Q171: 0 | R171: 107 | S171: 5008.67 | T171: 3774.43 | U171: 5008.67 | V171: 3774.43 | W171: 5 | X171: 12760.2 | Y171: 9615.83 | Z171: 136 | AA171: 43329.6 | AB171: 32652.3 | AC171: 0 | AD171: 0 | AE171: 0 | AF171: 107 | AG171: 34830.64 | AH171: 26247.66 | AI171: 90920.44 | AJ171: 68515.79 | AK171: 46 | AL171: 3907.24 | AM171: 2944.42 | AN171: 0 | AO171: 0 | AP171: 0 | AQ171: 2498.85 | AR171: 1883.08 | AS171: 19223.45 | AT171: 14486.4 | AU171: 132259.69 | AV171: 99668.2 | AW171: 7 | AX171: 28000
A172: ANIS01200G | B172: 1429.81 | C172: 1077.48 | D172: 1 | E172: 607.84 | F172: 458.06 | G172: 132 | H172: 4732.2 | I172: 3566.09 | J172: 6769.85 | K172: 5101.63 | L172: 30 | M172: 4521 | N172: 3406.93 | O172: 0 | P172: 0 | Q172: 0 | R172: 132 | S172: 6178.92 | T172: 4656.31 | U172: 6178.92 | V172: 4656.31 | W172: 2 | X172: 5104.08 | Y172: 3846.33 | Z172: 163 | AA172: 51931.8 | AB172: 39134.74 | AC172: 0 | AD172: 0 | AE172: 0 | AF172: 132 | AG172: 42968.64 | AH172: 32380.29 | AI172: 100004.52 | AJ172: 75361.36 | AK172: 73 | AL172: 6200.62 | AM172: 4672.66 | AN172: 0 | AO172: 0 | AP172: 0 | AQ172: 3147.9 | AR172: 2372.19 | AS172: 23812.95 | AT172: 17944.95 | AU172: 150635.76 | AV172: 113516.03 | AW172: 16 | AX172: 64000
A173: ANIS01300B | B173: 1429.81 | C173: 1077.48 | D173: 2 | E173: 1215.68 | F173: 916.11 | G173: 137 | H173: 4911.45 | I173: 3701.17 | J173: 7556.94 | K173: 5694.76 | L173: 33 | M173: 4973.1 | N173: 3747.63 | O173: 0 | P173: 0 | Q173: 0 | R173: 137 | S173: 6412.97 | T173: 4832.68 | U173: 6412.97 | V173: 4832.68 | W173: 5 | X173: 12760.2 | Y173: 9615.83 | Z173: 171 | AA173: 54480.6 | AB173: 41055.46 | AC173: 0 | AD173: 0 | AE173: 0 | AF173: 137 | AG173: 44596.24 | AH173: 33606.81 | AI173: 111837.04 | AJ173: 84278.1 | AK173: 46 | AL173: 3907.24 | AM173: 2944.42 | AN173: 0 | AO173: 0 | AP173: 0 | AQ173: 5809.01 | AR173: 4377.55 | AS173: 24668.37 | AT173: 18589.58 | AU173: 165164.67 | AV173: 124464.72 | AW173: 12 | AX173: 48000
A174: ANIS014007 | B174: 1429.81 | C174: 1077.48 | D174: 3 | E174: 1823.52 | F174: 1374.17 | G174: 161 | H174: 5771.85 | I174: 4349.55 | J174: 9025.18 | K174: 6801.2 | L174: 49 | M174: 7384.3 | N174: 5564.66 | O174: 0 | P174: 0 | Q174: 0 | R174: 161 | S174: 7536.41 | T174: 5679.28 | U174: 7536.41 | V174: 5679.28 | W174: 4 | X174: 10208.16 | Y174: 7692.66 | Z174: 211 | AA174: 67224.6 | AB174: 50659.08 | AC174: 0 | AD174: 0 | AE174: 0 | AF174: 161 | AG174: 52408.72 | AH174: 39494.14 | AI174: 129841.48 | AJ174: 97845.88 | AK174: 69 | AL174: 5860.86 | AM174: 4416.62 | AN174: 0 | AO174: 0 | AP174: 0 | AQ174: 3667.14 | AR174: 2763.48 | AS174: 29224.11 | AT174: 22022.69 | AU174: 192539.48 | AV174: 145093.81 | AW174: 14 | AX174: 56000
A175: ANIS01600V | B175: 1429.81 | C175: 1077.48 | D175: 3 | E175: 1823.52 | F175: 1374.17 | G175: 178 | H175: 6381.3 | I175: 4808.82 | J175: 9634.63 | K175: 7260.47 | L175: 48 | M175: 7233.6 | N175: 5451.09 | O175: 0 | P175: 0 | Q175: 0 | R175: 178 | S175: 8332.18 | T175: 6278.96 | U175: 8332.18 | V175: 6278.96 | W175: 6 | X175: 15312.24 | Y175: 11538.99 | Z175: 227 | AA175: 72322.2 | AB175: 54500.53 | AC175: 0 | AD175: 0 | AE175: 0 | AF175: 178 | AG175: 57942.56 | AH175: 43664.33 | AI175: 145577 | AJ175: 109703.85 | AK175: 71 | AL175: 6030.74 | AM175: 4544.64 | AN175: 0 | AO175: 0 | AP175: 0 | AQ175: 5387.13 | AR175: 4059.63 | AS175: 32810.75 | AT175: 24725.51 | AU175: 215006.03 | AV175: 162024.15 | AW175: 15 | AX175: 60000
A176: ANIS01700P | B176: 1429.81 | C176: 1077.48 | D176: 2 | E176: 1215.68 | F176: 916.11 | G176: 63 | H176: 2258.55 | I176: 1702 | J176: 4904.04 | K176: 3695.59 | L176: 54 | M176: 8137.8 | N176: 6132.48 | O176: 0 | P176: 0 | Q176: 0 | R176: 63 | S176: 2949.03 | T176: 2222.33 | U176: 2949.03 | V176: 2222.33 | W176: 2 | X176: 5104.08 | Y176: 3846.33 | Z176: 129 | AA176: 41099.4 | AB176: 30971.67 | AC176: 11 | AD176: 11741.73 | AE176: 8848.33 | AF176: 63 | AG176: 20507.76 | AH176: 15454.23 | AI176: 78452.97 | AJ176: 59120.56 | AK176: 25 | AL176: 2123.5 | AM176: 1600.23 | AN176: 30 | AO176: 9526.5 | AP176: 7178.98 | AQ176: 1006.03 | AR176: 758.12 | AS176: 18430.03 | AT176: 13888.49 | AU176: 125529.9 | AV176: 94596.78 | AW176: 7 | AX176: 28000
A177: ANIS01800E | B177: 1429.81 | C177: 1077.48 | D177: 2 | E177: 1215.68 | F177: 916.11 | G177: 75 | H177: 2688.75 | I177: 2026.19 | J177: 5334.24 | K177: 4019.78 | L177: 28 | M177: 4219.6 | N177: 3179.8 | O177: 0 | P177: 0 | Q177: 0 | R177: 75 | S177: 3510.75 | T177: 2645.63 | U177: 3510.75 | V177: 2645.63 | W177: 3 | X177: 7656.12 | Y177: 5769.5 | Z177: 104 | AA177: 33134.4 | AB177: 24969.4 | AC177: 0 | AD177: 0 | AE177: 0 | AF177: 75 | AG177: 24414 | AH177: 18397.89 | AI177: 65204.52 | AJ177: 49136.79 | AK177: 25 | AL177: 2123.5 | AM177: 1600.23 | AN177: 0 | AO177: 0 | AP177: 0 | AQ177: 2726.02 | AR177: 2054.27 | AS177: 15778.02 | AT177: 11889.99 | AU177: 98896.65 | AV177: 74526.49 | AW177: 5 | AX177: 20000
A178: ANIS01900A | B178: 1429.81 | C178: 1077.48 | D178: 2 | E178: 1215.68 | F178: 916.11 | G178: 130 | H178: 4660.5 | I178: 3512.06 | J178: 7305.99 | K178: 5505.65 | L178: 51 | M178: 7685.7 | N178: 5791.79 | O178: 0 | P178: 0 | Q178: 0 | R178: 130 | S178: 6085.3 | T178: 4585.76 | U178: 6085.3 | V178: 4585.76 | W178: 3 | X178: 7656.12 | Y178: 5769.5 | Z178: 182 | AA178: 57985.2 | AB178: 43696.46 | AC178: 0 | AD178: 0 | AE178: 0 | AF178: 130 | AG178: 42317.6 | AH178: 31889.68 | AI178: 107958.92 | AJ178: 81355.64 | AK178: 54 | AL178: 4586.76 | AM178: 3456.49 | AN178: 0 | AO178: 0 | AP178: 0 | AQ178: 4316.19 | AR178: 3252.59 | AS178: 26312.09 | AT178: 19828.25 | AU178: 164250.95 | AV178: 123776.17 | AW178: 13 | AX178: 52000
A179: ANIS02100A | B179: 1429.81 | C179: 1077.48 | D179: 1 | E179: 607.84 | F179: 458.06 | G179: 92 | H179: 3298.2 | I179: 2485.46 | J179: 5335.85 | K179: 4021 | L179: 27 | M179: 4068.9 | N179: 3066.24 | O179: 0 | P179: 0 | Q179: 0 | R179: 92 | S179: 4306.52 | T179: 3245.31 | U179: 4306.52 | V179: 3245.31 | W179: 2 | X179: 5104.08 | Y179: 3846.33 | Z179: 120 | AA179: 38232 | AB179: 28810.85 | AC179: 0 | AD179: 0 | AE179: 0 | AF179: 92 | AG179: 29947.84 | AH179: 22568.08 | AI179: 73283.92 | AJ179: 55225.26 | AK179: 39 | AL179: 3312.66 | AM179: 2496.35 | AN179: 0 | AO179: 0 | AP179: 0 | AQ179: 1752.44 | AR179: 1320.6 | AS179: 16778.93 | AT179: 12644.26 | AU179: 108839.22 | AV179: 82019.02 | AW179: 7 | AX179: 28000
A180: ANIS022006 | B180: 1429.81 | C180: 1077.48 | D180: 2 | E180: 1215.68 | F180: 916.11 | G180: 95 | H180: 3405.75 | I180: 2566.5 | J180: 6051.24 | K180: 4560.09 | L180: 29 | M180: 4370.3 | N180: 3293.37 | O180: 0 | P180: 0 | Q180: 0 | R180: 95 | S180: 4446.95 | T180: 3351.13 | U180: 4446.95 | V180: 3351.13 | W180: 3 | X180: 7656.12 | Y180: 5769.5 | Z180: 125 | AA180: 39825 | AB180: 30011.3 | AC180: 0 | AD180: 0 | AE180: 0 | AF180: 95 | AG180: 30924.4 | AH180: 23303.99 | AI180: 78405.52 | AJ180: 59084.79 | AK180: 40 | AL180: 3397.6 | AM180: 2560.36 | AN180: 0 | AO180: 0 | AP180: 0 | AQ180: 1363.01 | AR180: 1027.14 | AS180: 17220.89 | AT180: 12977.31 | AU180: 115255.51 | AV180: 86854.19 | AW180: 10 | AX180: 40000
A181: ANIS023002 | B181: 1429.81 | C181: 1077.48 | D181: 1 | E181: 607.84 | F181: 458.06 | G181: 130 | H181: 4660.5 | I181: 3512.06 | J181: 6698.15 | K181: 5047.6 | L181: 40 | M181: 6028 | N181: 4542.58 | O181: 0 | P181: 0 | Q181: 0 | R181: 130 | S181: 6085.3 | T181: 4585.76 | U181: 6085.3 | V181: 4585.76 | W181: 2 | X181: 5104.08 | Y181: 3846.33 | Z181: 171 | AA181: 54480.6 | AB181: 41055.46 | AC181: 0 | AD181: 0 | AE181: 0 | AF181: 130 | AG181: 42317.6 | AH181: 31889.68 | AI181: 101902.28 | AJ181: 76791.47 | AK181: 51 | AL181: 4331.94 | AM181: 3264.46 | AN181: 0 | AO181: 0 | AP181: 0 | AQ181: 4738.07 | AR181: 3570.51 | AS181: 24710.62 | AT181: 18621.42 | AU181: 154494.36 | AV181: 116423.8 | AW181: 9 | AX181: 36000
A182: ANMM077007 | B182: 1429.81 | C182: 1077.48 | D182: 4 | E182: 2431.36 | F182: 1832.22 | G182: 25 | H182: 896.25 | I182: 675.4 | J182: 4757.42 | K182: 3585.1 | L182: 8 | M182: 1205.6 | N182: 908.52 | O182: 8 | P182: 215.12 | Q182: 162.11 | R182: 17 | S182: 795.77 | T182: 599.68 | U182: 1010.89 | V182: 761.79 | W182: 4 | X182: 10208.16 | Y182: 7692.66 | Z182: 34 | AA182: 10832.4 | AB182: 8163.07 | AC182: 0 | AD182: 0 | AE182: 0 | AF182: 0 | AG182: 0 | AH182: 0 | AI182: 21040.56 | AJ182: 15855.73 | AK182: 0 | AL182: 0 | AM182: 0 | AN182: 0 | AO182: 0 | AP182: 0 | AR182: 0 | AS182: 4789.6 | AT182: 3609.34 | AU182: 32804.07 | AV182: 24720.48 | AW182: 0 | AX182: 0
A183: ANPC010006 | B183: 1429.81 | C183: 1077.48 | D183: 0 | E183: 0 | F183: 0 | G183: 96 | H183: 3441.6 | I183: 2593.52 | J183: 4871.41 | K183: 3671 | L183: 21 | M183: 3164.7 | N183: 2384.85 | O183: 0 | P183: 0 | Q183: 0 | R183: 96 | S183: 4493.76 | T183: 3386.41 | U183: 4493.76 | V183: 3386.41 | W183: 1 | X183: 2552.04 | Y183: 1923.17 | Z183: 118 | AA183: 37594.8 | AB183: 28330.67 | AC183: 0 | AD183: 0 | AE183: 0 | AF183: 96 | AG183: 31249.92 | AH183: 23549.3 | AI183: 71396.76 | AJ183: 53803.14 | AK183: 40 | AL183: 3397.6 | AM183: 2560.36 | AN183: 0 | AO183: 0 | AP183: 0 | AQ183: 973.58 | AR183: 733.67 | AS183: 17281.37 | AT183: 13022.89 | AU183: 105579.18 | AV183: 79562.32 | AW183: 8 | AX183: 32000
A184: ANPC03000B | B184: 1429.81 | C184: 1077.48 | D184: 0 | E184: 0 | F184: 0 | G184: 44 | H184: 1577.4 | I184: 1188.7 | J184: 3007.21 | K184: 2266.18 | L184: 12 | M184: 1808.4 | N184: 1362.77 | O184: 0 | P184: 0 | Q184: 0 | R184: 44 | S184: 2059.64 | T184: 1552.1 | U184: 2059.64 | V184: 1552.1 | W184: 1 | X184: 2552.04 | Y184: 1923.17 | Z184: 57 | AA184: 18160.2 | AB184: 13685.15 | AC184: 0 | AD184: 0 | AE184: 0 | AF184: 44 | AG184: 14322.88 | AH184: 10793.43 | AI184: 35035.12 | AJ184: 26401.75 | AK184: 23 | AL184: 1953.62 | AM184: 1472.21 | AN184: 0 | AO184: 0 | AP184: 0 | AQ184: 908.67 | AR184: 684.76 | AS184: 9659.73 | AT184: 7279.37 | AU184: 54432.39 | AV184: 41019.14 | AW184: 4 | AX184: 16000
A185: ANPC040002 | B185: 1429.81 | C185: 1077.48 | D185: 0 | E185: 0 | F185: 0 | G185: 69 | H185: 2473.65 | I185: 1864.09 | J185: 3903.46 | K185: 2941.57 | L185: 18 | M185: 2712.6 | N185: 2044.16 | O185: 0 | P185: 0 | Q185: 0 | R185: 69 | S185: 3229.89 | T185: 2433.98 | U185: 3229.89 | V185: 2433.98 | W185: 1 | X185: 2552.04 | Y185: 1923.17 | Z185: 88 | AA185: 28036.8 | AB185: 21127.96 | AC185: 0 | AD185: 0 | AE185: 0 | AF185: 69 | AG185: 22460.88 | AH185: 16926.06 | AI185: 53049.72 | AJ185: 39977.19 | AK185: 37 | AL185: 3142.78 | AM185: 2368.33 | AN185: 0 | AO185: 0 | AP185: 0 | AQ185: 843.77 | AR185: 635.85 | AS185: 12610 | AT185: 9502.64 | AU185: 79492.22 | AV185: 59903.72 | AW185: 7 | AX185: 28000
A186: ANPC060007 | B186: 1429.81 | C186: 1077.48 | D186: 0 | E186: 0 | F186: 0 | G186: 61 | H186: 2186.85 | I186: 1647.97 | J186: 3616.66 | K186: 2725.45 | L186: 17 | M186: 2561.9 | N186: 1930.6 | O186: 0 | P186: 0 | Q186: 0 | R186: 61 | S186: 2855.41 | T186: 2151.78 | U186: 2855.41 | V186: 2151.78 | W186: 1 | X186: 2552.04 | Y186: 1923.17 | Z186: 79 | AA186: 25169.4 | AB186: 18967.14 | AC186: 0 | AD186: 0 | AE186: 0 | AF186: 61 | AG186: 19856.72 | AH186: 14963.62 | AI186: 47578.16 | AJ186: 35853.93 | AK186: 33 | AL186: 2803.02 | AM186: 2112.3 | AN186: 0 | AO186: 0 | AP186: 0 | AQ186: 584.15 | AR186: 440.2 | AS186: 11314.36 | AT186: 8526.27 | AU186: 71313.66 | AV186: 53740.53 | AW186: 6 | AX186: 24000
A187: ANPS010009 | B187: 1429.81 | C187: 1077.48 | D187: 0 | E187: 0 | F187: 0 | G187: 104 | H187: 3728.4 | I187: 2809.65 | J187: 5158.21 | K187: 3887.13 | L187: 24 | M187: 3616.8 | N187: 2725.55 | O187: 0 | P187: 0 | Q187: 0 | R187: 104 | S187: 4868.24 | T187: 3668.61 | U187: 4868.24 | V187: 3668.61 | W187: 1 | X187: 2552.04 | Y187: 1923.17 | Z187: 129 | AA187: 41099.4 | AB187: 30971.67 | AC187: 0 | AD187: 0 | AE187: 0 | AF187: 104 | AG187: 33854.08 | AH187: 25511.74 | AI187: 77505.52 | AJ187: 58406.58 | AK187: 56 | AL187: 4756.64 | AM187: 3584.51 | AN187: 0 | AO187: 0 | AP187: 0 | AQ187: 1882.25 | AR187: 1418.43 | AS187: 19233.21 | AT187: 14493.75 | AU187: 117020.87 | AV187: 88184.56 | AW187: 11 | AX187: 44000
A188: ANPS03000E | B188: 1429.81 | C188: 1077.48 | D188: 0 | E188: 0 | F188: 0 | G188: 70 | H188: 2509.5 | I188: 1891.11 | J188: 3939.31 | K188: 2968.59 | L188: 22 | M188: 3315.4 | N188: 2498.42 | O188: 0 | P188: 0 | Q188: 0 | R188: 70 | S188: 3276.7 | T188: 2469.25 | U188: 3276.7 | V188: 2469.25 | W188: 1 | X188: 2552.04 | Y188: 1923.17 | Z188: 93 | AA188: 29629.8 | AB188: 22328.41 | AC188: 0 | AD188: 0 | AE188: 0 | AF188: 70 | AG188: 22786.4 | AH188: 17171.36 | AI188: 54968.24 | AJ188: 41422.94 | AK188: 39 | AL188: 3312.66 | AM188: 2496.35 | AN188: 0 | AO188: 0 | AP188: 0 | AQ188: 1233.2 | AR188: 929.31 | AS188: 13485.98 | AT188: 10162.76 | AU188: 83531.49 | AV188: 62947.62 | AW188: 8 | AX188: 32000
A189: ANPS040005 | B189: 1429.81 | C189: 1077.48 | D189: 0 | E189: 0 | F189: 0 | G189: 89 | H189: 3190.65 | I189: 2404.41 | J189: 4620.46 | K189: 3481.89 | L189: 24 | M189: 3616.8 | N189: 2725.55 | O189: 0 | P189: 0 | Q189: 0 | R189: 89 | S189: 4166.09 | T189: 3139.48 | U189: 4166.09 | V189: 3139.48 | W189: 1 | X189: 2552.04 | Y189: 1923.17 | Z189: 114 | AA189: 36320.4 | AB189: 27370.31 | AC189: 0 | AD189: 0 | AE189: 0 | AF189: 89 | AG189: 28971.28 | AH189: 21832.16 | AI189: 67843.72 | AJ189: 51125.64 | AK189: 49 | AL189: 4162.06 | AM189: 3136.44 | AN189: 0 | AO189: 0 | AP189: 0 | AQ189: 1265.65 | AR189: 953.77 | AS189: 16153.61 | AT189: 12173.03 | AU189: 101828.39 | AV189: 76735.8 | AW189: 9 | AX189: 36000
A190: ANPS05000Q | B190: 1429.81 | C190: 1077.48 | D190: 0 | E190: 0 | F190: 0 | G190: 45 | H190: 1613.25 | I190: 1215.71 | J190: 3043.06 | K190: 2293.19 | L190: 15 | M190: 2260.5 | N190: 1703.47 | O190: 0 | P190: 0 | Q190: 0 | R190: 45 | S190: 2106.45 | T190: 1587.38 | U190: 2106.45 | V190: 1587.38 | W190: 2 | X190: 5104.08 | Y190: 3846.33 | Z190: 61 | AA190: 19434.6 | AB190: 14645.52 | AC190: 0 | AD190: 0 | AE190: 0 | AF190: 45 | AG190: 14648.4 | AH190: 11038.73 | AI190: 39187.08 | AJ190: 29530.58 | AK190: 25 | AL190: 2123.5 | AM190: 1600.23 | AN190: 0 | AO190: 0 | AP190: 0 | AQ190: 908.67 | AR190: 684.76 | AS190: 10586.31 | AT190: 7977.63 | AU190: 60215.57 | AV190: 45377.24 | AW190: 5 | AX190: 20000
A191: ANSD01000Q | B191: 1429.81 | C191: 1077.48 | D191: 1 | E191: 607.84 | F191: 458.06 | G191: 102 | H191: 3656.7 | I191: 2755.61 | J191: 5694.35 | K191: 4291.15 | L191: 27 | M191: 4068.9 | N191: 3066.24 | O191: 0 | P191: 0 | Q191: 0 | R191: 102 | S191: 4774.62 | T191: 3598.06 | U191: 4774.62 | V191: 3598.06 | W191: 4 | X191: 10208.16 | Y191: 7692.66 | Z191: 130 | AA191: 41418 | AB191: 31211.76 | AC191: 0 | AD191: 0 | AE191: 0 | AF191: 102 | AG191: 33203.04 | AH191: 25021.13 | AI191: 84829.2 | AJ191: 63925.55 | AK191: 40 | AL191: 3397.6 | AM191: 2560.36 | AN191: 0 | AO191: 0 | AP191: 0 | AQ191: 2596.21 | AR191: 1956.45 | AS191: 19547.12 | AT191: 14730.31 | AU191: 124908 | AV191: 94128.12 | AW191: 7 | AX191: 28000
A192: APIC804003 | B192: 1429.81 | C192: 1077.48 | D192: 1 | E192: 607.84 | F192: 458.06 | G192: 114 | H192: 4086.9 | I192: 3079.8 | J192: 6124.55 | K192: 4615.34 | L192: 29 | M192: 4370.3 | N192: 3293.37 | O192: 84 | P192: 2258.76 | Q192: 1702.16 | R192: 30 | S192: 1404.3 | T192: 1058.25 | U192: 3663.06 | V192: 2760.41 | W192: 15 | X192: 38280.6 | Y192: 28847.48 | Z192: 144 | AA192: 45878.4 | AB192: 34573.02 | AC192: 0 | AD192: 0 | AE192: 0 | AF192: 0 | AG192: 0 | AH192: 0 | AI192: 84159 | AJ192: 63420.5 | AK192: 15 | AL192: 1274.1 | AM192: 960.14 | AN192: 0 | AO192: 0 | AP192: 0 | AQ192: 2563.75 | AR192: 1931.99 | AS192: 20238.39 | AT192: 15251.24 | AU192: 122393.15 | AV192: 92232.99 | AW192: 0 | AX192: 0
A193: APIC80600P | B193: 1429.81 | C193: 1077.48 | D193: 1 | E193: 607.84 | F193: 458.06 | G193: 137 | H193: 4911.45 | I193: 3701.17 | J193: 6949.1 | K193: 5236.71 | L193: 32 | M193: 4822.4 | N193: 3634.06 | O193: 93 | P193: 2500.77 | Q193: 1884.53 | R193: 44 | S193: 2059.64 | T193: 1552.1 | U193: 4560.41 | V193: 3436.63 | W193: 12 | X193: 30624.48 | Y193: 23077.98 | Z193: 170 | AA193: 54162 | AB193: 40815.37 | AC193: 0 | AD193: 0 | AE193: 0 | AF193: 0 | AG193: 0 | AH193: 0 | AI193: 84786.48 | AJ193: 63893.35 | AK193: 22 | AL193: 1868.68 | AM193: 1408.2 | AN193: 0 | AO193: 0 | AP193: 0 | AQ193: 2498.85 | AR193: 1883.08 | AS193: 24292.31 | AT193: 18306.19 | AU193: 129778.23 | AV193: 97798.22 | AW193: 0 | AX193: 0
A194: APIC809006 | B194: 1429.81 | C194: 1077.48 | D194: 1 | E194: 607.84 | F194: 458.06 | G194: 51 | H194: 1828.35 | I194: 1377.81 | J194: 3866 | K194: 2913.35 | L194: 21 | M194: 3164.7 | N194: 2384.85 | O194: 38 | P194: 1021.82 | Q194: 770.02 | R194: 13 | S194: 608.53 | T194: 458.58 | U194: 1630.35 | V194: 1228.6 | W194: 12 | X194: 30624.48 | Y194: 23077.98 | Z194: 73 | AA194: 23257.8 | AB194: 17526.6 | AC194: 0 | AD194: 0 | AE194: 0 | AF194: 0 | AG194: 0 | AH194: 0 | AI194: 53882.28 | AJ194: 40604.58 | AK194: 6 | AL194: 509.64 | AM194: 384.05 | AN194: 0 | AO194: 0 | AP194: 0 | AQ194: 616.6 | AR194: 464.66 | AS194: 9545.09 | AT194: 7192.98 | AU194: 73214.66 | AV194: 55173.07 | AW194: 0 | AX194: 0
A195: APIC81000A | B195: 1429.81 | C195: 1077.48 | D195: 1 | E195: 607.84 | F195: 458.06 | G195: 145 | H195: 5198.25 | I195: 3917.29 | J195: 7235.9 | K195: 5452.83 | L195: 28 | M195: 4219.6 | N195: 3179.8 | O195: 97 | P195: 2608.33 | Q195: 1965.58 | R195: 48 | S195: 2246.88 | T195: 1693.2 | U195: 4855.21 | V195: 3658.78 | W195: 11 | X195: 28072.44 | Y195: 21154.82 | Z195: 174 | AA195: 55436.4 | AB195: 41775.73 | AC195: 0 | AD195: 0 | AE195: 0 | AF195: 0 | AG195: 0 | AH195: 0 | AI195: 83508.84 | AJ195: 62930.55 | AK195: 20 | AL195: 1698.8 | AM195: 1280.18 | AN195: 0 | AO195: 0 | AP195: 0 | AQ195: 1817.34 | AR195: 1369.51 | AS195: 24713.1 | AT195: 18623.29 | AU195: 128048.79 | AV195: 96494.94 | AW195: 0 | AX195: 0
A196: APIC811006 | B196: 1429.81 | C196: 1077.48 | D196: 1 | E196: 607.84 | F196: 458.06 | G196: 69 | H196: 2473.65 | I196: 1864.09 | J196: 4511.3 | K196: 3399.63 | L196: 21 | M196: 3164.7 | N196: 2384.85 | O196: 49 | P196: 1317.61 | Q196: 992.92 | R196: 20 | S196: 936.2 | T196: 705.5 | U196: 2253.81 | V196: 1698.42 | W196: 12 | X196: 30624.48 | Y196: 23077.98 | Z196: 91 | AA196: 28992.6 | AB196: 21848.23 | AC196: 0 | AD196: 0 | AE196: 0 | AF196: 0 | AG196: 0 | AH196: 0 | AI196: 59617.08 | AJ196: 44926.21 | AK196: 11 | AL196: 934.34 | AM196: 704.1 | AN196: 0 | AO196: 0 | AP196: 0 | AQ196: 324.53 | AR196: 244.56 | AS196: 13011.45 | AT196: 9805.16 | AU196: 83817.21 | AV196: 63162.93 | AW196: 0 | AX196: 0
A197: APIC81300T | B197: 1429.81 | C197: 1077.48 | D197: 1 | E197: 607.84 | F197: 458.06 | G197: 59 | H197: 2115.15 | I197: 1593.93 | J197: 4152.8 | K197: 3129.47 | L197: 20 | M197: 3014 | N197: 2271.29 | O197: 43 | P197: 1156.27 | Q197: 871.34 | R197: 16 | S197: 748.96 | T197: 564.4 | U197: 1905.23 | V197: 1435.74 | W197: 11 | X197: 28072.44 | Y197: 21154.82 | Z197: 80 | AA197: 25488 | AB197: 19207.23 | AC197: 0 | AD197: 0 | AE197: 0 | AF197: 0 | AG197: 0 | AH197: 0 | AI197: 53560.44 | AJ197: 40362.05 | AK197: 8 | AL197: 679.52 | AM197: 512.07 | AN197: 0 | AO197: 0 | AP197: 0 | AQ197: 454.34 | AR197: 342.38 | AS197: 10862.52 | AT197: 8185.77 | AU197: 74628.85 | AV197: 56238.77 | AW197: 0 | AX197: 0
A198: APIC817005 | B198: 1429.81 | C198: 1077.48 | D198: 1 | E198: 607.84 | F198: 458.06 | G198: 103 | H198: 3692.55 | I198: 2782.63 | J198: 5730.2 | K198: 4318.17 | L198: 29 | M198: 4370.3 | N198: 3293.37 | O198: 69 | P198: 1855.41 | Q198: 1398.2 | R198: 34 | S198: 1591.54 | T198: 1199.35 | U198: 3446.95 | V198: 2597.55 | W198: 10 | X198: 25520.4 | Y198: 19231.65 | Z198: 133 | AA198: 42373.8 | AB198: 31932.03 | AC198: 0 | AD198: 0 | AE198: 0 | AF198: 0 | AG198: 0 | AH198: 0 | AI198: 67894.2 | AJ198: 51163.68 | AK198: 17 | AL198: 1443.98 | AM198: 1088.15 | AN198: 0 | AO198: 0 | AP198: 0 | AQ198: 843.77 | AR198: 635.85 | AS198: 17914.41 | AT198: 13499.93 | AU198: 101643.81 | AV198: 76596.7 | AW198: 0 | AX198: 0
A199: APIC818001 | B199: 1429.81 | C199: 1077.48 | D199: 1 | E199: 607.84 | F199: 458.06 | G199: 141 | H199: 5054.85 | I199: 3809.23 | J199: 7092.5 | K199: 5344.77 | L199: 30 | M199: 4521 | N199: 3406.93 | O199: 97 | P199: 2608.33 | Q199: 1965.58 | R199: 44 | S199: 2059.64 | T199: 1552.1 | U199: 4667.97 | V199: 3517.68 | W199: 7 | X199: 17864.28 | Y199: 13462.16 | Z199: 172 | AA199: 54799.2 | AB199: 41295.55 | AC199: 0 | AD199: 0 | AE199: 0 | AF199: 0 | AG199: 0 | AH199: 0 | AI199: 72663.48 | AJ199: 54757.71 | AK199: 20 | AL199: 1698.8 | AM199: 1280.18 | AN199: 0 | AO199: 0 | AP199: 0 | AQ199: 1752.44 | AR199: 1320.6 | AS199: 24642.07 | AT199: 18569.76 | AU199: 117038.26 | AV199: 88197.63 | AW199: 0 | AX199: 0
A200: APIC820001 | B200: 1429.81 | C200: 1077.48 | D200: 1 | E200: 607.84 | F200: 458.06 | G200: 85 | H200: 3047.25 | I200: 2296.35 | J200: 5084.9 | K200: 3831.89 | L200: 21 | M200: 3164.7 | N200: 2384.85 | O200: 57 | P200: 1532.73 | Q200: 1155.03 | R200: 28 | S200: 1310.68 | T200: 987.7 | U200: 2843.41 | V200: 2142.73 | W200: 5 | X200: 12760.2 | Y200: 9615.83 | Z200: 107 | AA200: 34090.2 | AB200: 25689.68 | AC200: 0 | AD200: 0 | AE200: 0 | AF200: 0 | AG200: 0 | AH200: 0 | AI200: 46850.4 | AJ200: 35305.51 | AK200: 15 | AL200: 1274.1 | AM200: 960.14 | AN200: 0 | AO200: 0 | AP200: 0 | AQ200: 1363.01 | AR200: 1027.14 | AS200: 15230.63 | AT200: 11477.49 | AU200: 75811.15 | AV200: 57129.75 | AW200: 0 | AX200: 0
... 925 more rows

Sheet ripartizione (hidden)
A1: Descrizione | B1: Lordo Stato | C1: Lordo Dipendente
A2: Disponibilità fondo a.s. corrente | B2: =ROUND((C2*1.242)+(C2*dati_scuola!$B$10),2) -> 73945.56 | C2: =dati_scuola!C14 -> 55723.86
A3: Economie istituti contrattuali ee.ff. precedenti riutilizzate del fondo di istituto | B3: =ROUND((C3*1.242)+(C3*dati_scuola!$B$10),2) -> 0 | C3: =ROUND(dati_scuola!B14+dati_scuola!E14+dati_scuola!B37,2) -> 0
A4: Utilizzo economie o scorpori per personale ATA | B4: =ROUND((C4*1.242)+(C4*dati_scuola!$B$10),2) -> 0 | C4: =dati_scuola!B45 -> 0 | D4: 0
A5: Ore pagabili per ATA al netto del 24,20% e dell'8,50% - Costo orario 13,5 (media tra AA-AT e CS) | C5: =B4/132.7*100 -> 0 | D5: =ROUND(C5/13.5,0) -> 0
A6: Utilizzo economie o scorpori per personale DOCENTE | B6: =ROUND((C6*1.242)+(C6*dati_scuola!$B$10),2) -> 0 | C6: =dati_scuola!B44 -> 0 | D6: 0
A7: Ore pagabili per i personale docente al netto del 24,20% e del 8,50% | C7: =B6/132.7*100 -> 0 | D7: =ROUND(C7/17.5,0) -> 0
A8: Totale disponibilità compresi IDEI | B8: =SUM(B2+B3-B4-B6) -> 73945.56 | C8: =SUM(C2+C3-C4-C6) -> 55723.86
A10: Ipotesi di ripartizione a s. corrente
A11: Scorporo per IDEI | B11: =ROUND((C11*1.242)+(C11*dati_scuola!$B$10),2) -> 0 | C11: =dati_scuola!C40 -> 0 | D11: =dati_scuola!B40*100 -> 0 | E11: inserire qui a SX la percentuale da dedicare ai corsi di recupero
A12: Scorporo Ind. di direzione DSGA | B12: =ROUND((C12*1.242)+(C12*dati_scuola!$B$10),2) -> 5016.06 | C12: =dati_scuola!C35 -> 3780
A13: Ind. Di direzione al sost. del DSGA | B13: =ROUND((C13*1.242)+(C13*dati_scuola!$B$10),2) -> 708.09 | C13: =dati_scuola!D35 -> 533.6 | D13: =ROUND(C13/14.5,0) -> 37
A14: Disponibilità per docenti | B14: =(B8-B11-B12-B13)*D14 -> 51166.0575 | C14: =ROUND((B14)/(124.2+dati_scuola!$B$10*100)*100,2) -> 38557.69 | D14: =dati_scuola!B49 -> 0.75
A15: Disponibilità per ATA | B15: =(B8-B11-B12-B13)*D15 -> 17055.3525 | C15: =ROUND((B15)/(124.2+dati_scuola!$B$10*100)*100,2) -> 12852.56 | D15: =dati_scuola!B51 -> 0.25
A16: Fondo di riserva | B16: =(B8-B11-B12-B13)*D16 -> 0 | C16: =ROUND((B16)/(124.2+dati_scuola!$B$10*100)*100,2) -> 0 | D16: =dati_scuola!B52 -> 0
A17: Controllo | B17: =SUM(B11:B16) -> 73945.56 | C17: =ROUND((B17)/(124.2+dati_scuola!$B$10*100)*100,2) -> 55723.86
A19: Importi e Ore pagabili per i docenti (dopo aver tolto il 24,20% e l'8,50% a carico stato) | C19: =B14/132.7*100 -> 38557.69216 | D19: =ROUND(C19/17.5,0) -> 2203
A20: Importi e Ore pagabili per gli ata (dopo aver tolto il 24,20% e l'8,50% a carico stato) Costo orario 13,5 (media tra AA-AT e CS) | C20: =B15/132.7*100 -> 12852.56405 | D20: =ROUND(C20/13.5,0) -> 952
A21: Importi e Ore pagabili con fondo di riserva (dopo aver tolto il 24,20% e l'8,50% a carico stato) Costo orario 14,8 (media tra AA-AT e CS) | C21: =C16 -> 0 | D21: =ROUND(C21/14.8,0) -> 0
A23: Assegnazione FUNZIONI STRUMENTALI DOCENTI | B23: =ROUND((C23*1.242)+(C23*dati_scuola!$B$10),2) -> 4871.42 | C23: =dati_scuola!C15 -> 3671
A24: Assegnazione INCARICHI SPECIFICI ATA | B24: =ROUND((C24*1.242)+(C24*dati_scuola!$B$10),2) -> 4370.3 | C24: =dati_scuola!C16 -> 3293.37
A25: Assegnazione ORE ECCEDENTI | B25: =ROUND((C25*1.242)+(C25*dati_scuola!$B$10),2) -> 4493.77 | C25: =dati_scuola!C18 -> 3386.41
A26: Avanzo ee.ff. ORE ECCEDENTI | B26: =ROUND((C26*1.242)+(C26*dati_scuola!$B$10),2) -> 0
A27: Totale ORE ECCEDENTI | B27: =ROUND((C27*1.242)+(C27*dati_scuola!$B$10),2) -> 4493.77 | C27: =C25+C26 -> 3386.41 | D27: Ore eccedenti pagabili nell'anno scolastico | E27: =B27/35.95 -> 125.0005563
D28: Ore eccedenti pagabili mediamente a settimana | E28: =E27/33 -> 3.787895646
A30: Finanziamenti aree a rischio | B30: =ROUND((C30*1.242)+(C30*dati_scuola!$B$10),2) -> 2109.43 | C30: =dati_scuola!C20 -> 1589.62
A31: Finanziamenti progetti europei e comunitari | B31: =ROUND((C31*1.242)+(C31*dati_scuola!$B$10),2) -> 0 | C31: =dati_scuola!C68 -> 0
A32: Attività complementari di Educazione Fisica | B32: =ROUND((C32*1.242)+(C32*dati_scuola!$B$10),2) -> 4841.59 | C32: =dati_scuola!C21 -> 3648.52
A33: Turni notturni e festivi | B33: =ROUND((C33*1.242)+(C33*dati_scuola!$B$10),2) -> 0 | C33: =dati_scuola!C22 -> 0
A35: Valorizzazione personale scolastico | B35: =ROUND((C35*1.242)+(C35*dati_scuola!$B$10),2) -> 19713.08 | C35: =dati_scuola!C19 -> 14855.37
A36: Valorizzazione personale scolastico a favore del personale docente | B36: =ROUND((C36*1.242)+(C36*dati_scuola!$B$10),2) -> 9289 | C36: 7000
A37: Valorizzazione personale scolastico a favore del personale ATA | B37: =ROUND((C37*1.242)+(C37*dati_scuola!$B$10),2) -> 4068.66 | C37: 3066.06

Sheet FIS_docenti (hidden)
A1: N° | B1: COGNOME | C1: NOME | D1: Collaboratori DS | E1: Comitato Valutazione | F1: Coordinatori e segretari dei consigli di classe | G1: Referente mobilità internazionale | H1: Commissione PON | I1: Formazione classi | J1: ASPP - Sicurezza | K1: Dipartimenti | L1: Delegato vigilanza fumo | M1: Orientamento e open day (con progetti collegati) | N1: Commissione orario | O1: Commissione PTOF (aggiornamento) | P1: Attività di sostegno | Q1: TUTOR | R1: Accompagnatori viaggi estero | S1: TOTALE ORE | T1: Importo orario | U1: Totale
A2: 1 | B2: Previsione | S2: =SUM(D2:R2) -> 0 | T2: 17.5 | U2: =ROUND(S2*T2,2) -> 0
A3: =A2+1 -> 2 | B3: pp | C3: ll | D3: 10 | E3: 10 | F3: 10 | G3: 10 | H3: 10 | I3: 10 | J3: 10 | K3: 10 | L3: 10 | M3: 1 | N3: 25 | O3: 21 | P3: 20 | Q3: 20 | R3: 22 | S3: 199 | T3: 17.5 | U3: =ROUND(S3*T3,2) -> 3482.5
A4: 3 | S4: 0 | T4: 17.5 | U4: 0
A5: 4 | S5: 0 | T5: 17.5 | U5: 0
A6: 5 | S6: 0 | T6: 17.5 | U6: 0
A7: 6 | S7: 0 | T7: 17.5 | U7: 0
A8: 7 | S8: 0 | T8: 17.5 | U8: 0
A9: 8 | S9: 0 | T9: 17.5 | U9: 0
A10: 9 | S10: 0 | T10: 17.5 | U10: 0
A11: 10 | S11: 0 | T11: 17.5 | U11: 0
A12: 11 | S12: 0 | T12: 17.5 | U12: 0
A13: 12 | S13: 0 | T13: 17.5 | U13: 0
A14: 13 | S14: 0 | T14: 17.5 | U14: 0
A15: 14 | S15: 0 | T15: 17.5 | U15: 0
A16: 15 | S16: 0 | T16: 17.5 | U16: 0
A17: 16 | S17: 0 | T17: 17.5 | U17: 0
A18: 17 | S18: 0 | T18: 17.5 | U18: 0
A19: 18 | S19: 0 | T19: 17.5 | U19: 0
B20: TOTALI | D20: =SUM(D2:D19) -> 10 | E20: =SUM(E2:E19) -> 10 | F20: 10 | G20: 10 | H20: 10 | I20: 10 | J20: 10 | K20: 10 | L20: 10 | M20: 1 | N20: 25 | O20: 21 | P20: 20 | Q20: 20 | R20: 22 | S20: =SUM(S2:S19) -> 199 | U20: =SUM(U2:U19) -> 3482.5
S21: =SUM(D20:R20) -> 199
A23: Disponibilità Fondo Ist. LORDO DIPENDENTE | C23: =dati_scuola!C49 -> 38557.69 | E23: Ore pagabili | F23: Ore Pagate | G23: Avanzo/disavanzo ore
A24: impegni lordo DIPENDENTE | C24: =U20 -> 3482.5 | E24: =ripartizione!D19+40 -> 2243 | F24: =S20 -> 199 | G24: =E24-F24 -> 2044
A25: Residuo | C25: =C23-C24 -> 35075.19
G27: IL D.S.G.A | O27: IL DIRIGENTE SCOLASTICO
G28: =dati_scuola!B8 -> Danilo Postorino | N28: =dati_scuola!B7 -> Mario Rossi

Sheet corsi_recupero_docenti (hidden)
A1: N° | B1: COGNOME | C1: NOME | D1: Corso di recupero | E1: Sportello | Y1: TOTALE ORE | Z1: Importo orario | AA1: Totale
A2: 1 | B2: Previsione sportelli | Y2: =SUM(D2:X2) -> 0 | Z2: 35 | AA2: =ROUND(Y2*Z2,2) -> 0
A3: =A2+1 -> 2 | B3: rossi | C3: mario | Y3: =SUM(D3:X3) -> 0 | Z3: 35 | AA3: =ROUND(Y3*Z3,2) -> 0
A4: 3 | Z4: 35
A5: 4 | Z5: 35
A6: 5 | Z6: 35
A7: 6 | Z7: 35
A8: 7
A9: 8
A10: 9
A11: 10 | Z11: 35
B12: TOTALI | D12: =SUM(D2:D11) -> 0 | E12: 0 | F12: 0 | G12: 0 | H12: 0 | I12: 0 | J12: 0 | K12: 0 | L12: 0 | M12: 0 | N12: 0 | O12: 0 | P12: 0 | Q12: 0 | R12: 0 | S12: 0 | T12: 0 | U12: 0 | V12: 0 | W12: 0 | X12: 0 | Y12: 0 | AA12: =SUM(AA2:AA11) -> 0
A13: 1 | B13: Previsione Corsi recupero | Y13: =SUM(D13:X13) -> 0 | Z13: 50 | AA13: =ROUND(Y13*Z13,2) -> 0
A14: 2 | Z14: 50
A15: 3 | Z15: 50
A16: 4 | Z16: 50
A17: 5 | Z17: 50
A18: 6 | Z18: 50
A19: 7 | Z19: 50
A20: 8 | Z20: 50
A21: 9 | Z21: 50
A22: 10 | Z22: 50
B23: TOTALI | D23: =SUM(D2:D22) -> 0 | E23: =SUM(E2:E22) -> 0 | F23: 0 | G23: 0 | H23: 0 | I23: 0 | J23: 0 | K23: 0 | L23: 0 | M23: 0 | N23: 0 | O23: 0 | P23: 0 | Q23: 0 | R23: 0 | S23: 0 | T23: 0 | U23: 0 | V23: 0 | W23: 0 | X23: 0 | Y23: =SUM(Y2:Y22) -> 0 | AA23: =SUM(AA2:AA22) -> 0
Y24: =SUM(D23:X23) -> 0
A26: Disponibilità Fondo Ist. LORDO DIPENDENTE | C26: =dati_scuola!C40 -> 0
A27: impegni lordo DIPENDENTE | C27: =AA12+AA23 -> 0 | G27: IL D.S.G.A | O27: IL DIRIGENTE SCOLASTICO
A28: Residuo | C28: =C26-C27 -> 0 | G28: =dati_scuola!B8 -> Danilo Postorino | N28: =dati_scuola!B7 -> Mario Rossi

Sheet tabella_ATA (hidden)
A1: N° | B1: COGNOME | C1: NOME | D1: sostituzione DSGA | E1: Sostituzione colleghi assenti | F1: Gestione e manutenzione macchina lavasciuga | G1: Impatto Legge 107 | H1: Commissione elettorale e Commissione viaggi | I1: Protocollo informatico e comunicazione digitale | J1: Contabilità: gestione straordinaria (congedi, pensioni, esami "immaccolata", ecc.) | K1: sostituzione incaricati part-time | L1: Servizio esterno (posta, assicurazione, commissariato, succursali, ecc.) | M1: reperibilità notturna + privacy | N1: Orientamento + Collaborazione uffici | O1: Progetti servizi on-line | P1: Sicurezza - pronto soccorso (aggiornamento e collaborazione) | Q1: Collaborazione DSGA per turni e sostituzione CS + varie | R1: URP - Collaborazione con la dirigenza per le sostituzioni, sistemazione compiti in classe, ecc. | S1: manutenzione interna + centralino + domotica | T1: TOTALE ORE | U1: Assenze in mesi | V1: Ore decurtate in base alle assenze (totale ore/12*n° mesi assenza) | W1: Totale ore da pagare | X1: Importo orario | Y1: Totale
B2: Previsione | T2: =SUM(D2:S2) -> 0 | V2: =ROUND((T2/12)*U2,0) -> 0 | W2: =T2-V2 -> 0 | X2: 14.5 | Y2: =W2*X2 -> 0
A3: 1 | T3: 0 | V3: =ROUND((T3/12)*U3,0) -> 0 | W3: =T3-V3 -> 0 | X3: 14.5 | Y3: =W3*X3 -> 0
A4: =A3+1 -> 2 | T4: 0 | V4: 0 | W4: 0 | X4: 14.5 | Y4: 0
A5: 3 | T5: 0 | V5: =ROUND((T5/12)*U5,0) -> 0 | W5: =T5-V5 -> 0 | X5: 14.5 | Y5: 0
A6: 4 | T6: 0 | V6: 0 | W6: 0 | X6: 14.5 | Y6: 0
A7: 5 | T7: 0 | V7: 0 | W7: 0 | X7: 14.5 | Y7: 0
A8: 6 | T8: 0 | V8: 0 | W8: 0 | X8: 14.5 | Y8: 0
A9: 7 | T9: 0 | V9: 0 | W9: 0 | X9: 14.5 | Y9: 0
B10: Totali | C10: Ass.ti amm.vi | D10: =SUM(D2:D9) -> 0 | E10: 0 | F10: 0 | G10: 0 | H10: 0 | I10: 0 | J10: 0 | K10: 0 | L10: 0 | M10: 0 | N10: 0 | O10: 0 | P10: 0 | Q10: 0 | R10: 0 | S10: 0 | T10: 0 | V10: 0 | W10: =SUM(W2:W9) -> 0 | X10: 14.5 | Y10: =SUM(Y2:Y9) -> 0
B11: Previsione | T11: =SUM(D11:S11) -> 0 | V11: =ROUND((T11/12)*U11,0) -> 0 | W11: =T11-V11 -> 0 | X11: 14.5 | Y11: =W11*X11 -> 0
A12: 8 | T12: =SUM(D12:S12) -> 0 | V12: 0 | W12: =T12-V12 -> 0 | X12: 14.5 | Y12: =W12*X12 -> 0
A13: =A12+1 -> 9 | T13: =SUM(D13:S13) -> 0 | V13: =ROUND((T13/12)*U13,0) -> 0 | W13: =T13-V13 -> 0 | X13: 14.5 | Y13: =W13*X13 -> 0
A14: =A13+1 -> 10 | T14: =SUM(D14:S14) -> 0 | V14: =ROUND((T14/12)*U14,0) -> 0 | W14: =T14-V14 -> 0 | X14: 14.5 | Y14: =W14*X14 -> 0
A15: =A14+1 -> 11 | T15: =SUM(D15:S15) -> 0 | V15: 0 | W15: =T15-V15 -> 0 | X15: 14.5 | Y15: =W15*X15 -> 0
B16: Totali | C16: Ass.ti Tecnici | D16: =SUM(D11:D15) -> 0 | E16: =SUM(E11:E15) -> 0 | F16: 0 | G16: 0 | H16: 0 | I16: 0 | J16: 0 | K16: 0 | L16: 0 | M16: 0 | N16: 0 | O16: 0 | P16: 0 | Q16: 0 | R16: 0 | S16: 0 | T16: =SUM(T11:T15) -> 0 | V16: 0 | W16: =SUM(W12:W15) -> 0 | X16: 14.5 | Y16: =SUM(Y11:Y15) -> 0
B17: Previsione | T17: =SUM(D17:S17) -> 0 | V17: =ROUND((T17/12)*U17,0) -> 0 | W17: =T17-V17 -> 0 | X17: 12.5 | Y17: =W17*X17 -> 0
A18: 12 | T18: 0 | V18: =ROUND((T18/12)*U18,0) -> 0 | W18: 0 | X18: 12.5 | Y18: =W18*X18 -> 0
A19: =A18+1 -> 13 | T19: 0 | V19: =ROUND((T19/12)*U19,0) -> 0 | W19: 0 | X19: 12.5 | Y19: =W19*X19 -> 0
A20: =A19+1 -> 14 | T20: 0 | V20: =ROUND((T20/12)*U20,0) -> 0 | W20: 0 | X20: 12.5 | Y20: 0
A21: 15 | T21: 0 | V21: 0 | W21: 0 | X21: 12.5 | Y21: 0
A22: 16 | T22: 0 | V22: =ROUND((T22/12)*U22,0) -> 0 | W22: 0 | X22: 12.5 | Y22: 0
A23: 17 | T23: 0 | V23: 0 | W23: 0 | X23: 12.5 | Y23: 0
A24: 18 | T24: 0 | V24: =ROUND((T24/12)*U24,0) -> 0 | W24: 0 | X24: 12.5 | Y24: 0
A25: 19 | T25: 0 | V25: =ROUND((T25/12)*U25,0) -> 0 | W25: 0 | X25: 12.5 | Y25: 0
A26: 20 | T26: =SUM(D26:S26) -> 0 | V26: =ROUND((T26/12)*U26,0) -> 0 | W26: =T26-V26 -> 0 | X26: 12.5 | Y26: 0
A27: 21 | T27: 0 | V27: 0 | W27: 0 | X27: 12.5 | Y27: 0
A28: 22 | T28: 0 | V28: =ROUND((T28/12)*U28,0) -> 0 | W28: 0 | X28: 12.5 | Y28: 0
A29: 23 | T29: 0 | V29: 0 | W29: 0 | X29: 12.5 | Y29: 0
A30: 24 | T30: 0 | V30: 0 | W30: 0 | X30: 12.5 | Y30: 0
A31: 25 | T31: 0 | V31: 0 | W31: 0 | X31: 12.5 | Y31: 0
A32: 26 | T32: 0 | V32: 0 | W32: 0 | X32: 12.5 | Y32: 0
A33: 27 | T33: 0 | V33: 0 | W33: 0 | X33: 12.5 | Y33: 0
A34: 28 | T34: 0 | V34: 0 | W34: 0 | X34: 12.5 | Y34: 0
A35: 29 | T35: 0 | V35: =ROUND((T35/12)*U35,0) -> 0 | W35: 0 | X35: 12.5 | Y35: 0
A36: 30 | T36: 0 | V36: 0 | W36: 0 | X36: 12.5 | Y36: 0
B37: Totali | C37: Coll. Scol.ci | D37: =SUM(D17:D36) -> 0 | T37: =SUM(T17:T36) -> 0 | V37: 0 | W37: =SUM(W17:W36) -> 0 | X37: 12.5 | Y37: =SUM(Y17:Y36) -> 0
B38: TOTALI | D38: =SUM(D2:D37) -> 0 | E38: =SUM(E2:E37) -> 0 | F38: 0 | G38: 0 | H38: 0 | I38: 0 | J38: 0 | K38: 0 | L38: 0 | M38: 0 | N38: 0 | O38: 0 | P38: 0 | Q38: 0 | R38: 0 | S38: 0 | T38: =T10+T16+T37 -> 0 | V38: =V37+V16+V10 -> 0 | W38: =W37+W16+W10 -> 0 | Y38: =Y37+Y16+Y10 -> 0
A40: Disponibilità Fondo Ist. Lordo DIPENDENTE | D40: =dati_scuola!C51+dati_scuola!D35 -> 13386.16 | K40: IL D.S.G.A | Q40: IL DIRIGENTE SCOLASTICO
A41: impegni lordo DIPENDENTE | D41: =Y38 -> 0 | K41: =dati_scuola!B8 -> Danilo Postorino | P41: =dati_scuola!B7 -> Mario Rossi
A42: Residuo | D42: =D40-D41 -> 13386.16

Sheet funzioni_strumentali_docenti (hidden)
A1: COGNOME e NOME | B1: Tip. Funzione | C1: Totale ore | D1: Compenso orario | E1: TOTALE LORDO DIPENDENTE
B2: Innovazione tecnologica | D2: 17.5 | E2: =C2*D2 -> 0
B3: Autovalutazione | D3: 17.5 | E3: 0
B4: Orientamento in uscita | D4: 17.5 | E4: 0
B5: Animatore digitale | D5: 17.5 | E5: 0
B6: Orientamento in entrata | D6: 17.5 | E6: 0
B7: Supporto alunni | D7: 17.5 | E7: 0
B8: TOTALE | C8: =SUM(C2:C7) -> 0 | E8: =SUM(E2:E7) -> 0
A10: Disponibilità lordo dipendente | B10: =dati_scuola!F15 -> 3671
A11: impegni | B11: =E8 -> 0
A12: Disponibilità residua | B12: =B10-B11 -> 3671
C14: IL D.S.G.A | E14: IL DIRIGENTE SCOLASTICO
C15: =dati_scuola!B8 -> Danilo Postorino | E15: =dati_scuola!B7 -> Mario Rossi

Sheet tabella_ATA_incarichi_agg (hidden)
A1: N° | B1: COGNOME | C1: NOME | D1: Responsabile Uff. Alunni/Uff. Personale | E1: Responsabile uff. magazzino e collaborazione adempimenti privacy | F1: Pulizie straordinarie + ausilio alunni diversamente abili | G1: TOTALE ORE | H1: Assenze | I1: Ore decurtate in base alle assenze | J1: Totale ore da pagare | K1: Importo orario | L1: Totale lordo dipendente
A2: 1 | G2: =SUM(D2:F2) -> 0 | I2: =ROUND((G2/12)*H2,0) -> 0 | J2: =G2-I2 -> 0 | K2: 14.5 | L2: =ROUND(J2*K2,2) -> 0
A3: =A2+1 -> 2 | G3: 0 | I3: 0 | J3: 0 | K3: 14.5 | L3: 0
A4: =A3+1 -> 3 | G4: 0 | I4: 0 | J4: 0 | K4: 14.5 | L4: 0
A5: =A4+1 -> 4 | G5: 0 | I5: 0 | J5: 0 | K5: 14.5 | L5: 0
A6: =A5+1 -> 5 | G6: 0 | I6: 0 | J6: 0 | K6: 14.5 | L6: 0
A7: =A6+1 -> 6 | G7: 0 | I7: 0 | J7: 0 | K7: 14.5 | L7: 0
A8: Totale Assistenti Amministrativi/Tecnici | G8: =SUM(G2:G3) -> 0 | L8: =SUM(L2:L7) -> 0
A9: 1 | G9: =SUM(D9:F9) -> 0 | I9: =ROUND((G9/12)*H9,0) -> 0 | J9: =G9-I9 -> 0 | K9: 12.5 | L9: =ROUND(J9*K9,2) -> 0
A10: =A9+1 -> 2 | G10: 0 | I10: 0 | J10: 0 | K10: 12.5 | L10: 0
A11: =A10+1 -> 3 | G11: 0 | I11: 0 | J11: 0 | K11: 12.5 | L11: 0
A12: =A11+1 -> 4 | G12: 0 | I12: 0 | J12: 0 | K12: 12.5 | L12: 0
A13: =A12+1 -> 5 | G13: 0 | I13: 0 | J13: 0 | K13: 12.5 | L13: 0
A14: =A13+1 -> 6 | G14: 0 | I14: 0 | J14: 0 | K14: 12.5 | L14: 0
A15: Totale Collaboratori Scolastici | D15: =SUM(D2:D14) -> 0 | E15: =SUM(E2:E14) -> 0 | F15: =SUM(F2:F14) -> 0 | G15: =SUM(G9:G14) -> 0 | L15: =SUM(L9:L14) -> 0
A18: Disponibilità complessiva lordo dipendente | C18: =dati_scuola!F16 -> 3293.37 | F18: IL DSGA | J18: IL DIRIGENTE SCOLASTICO
A19: impegni lordo dipendente | C19: =L8+L15 -> 0 | F19: =dati_scuola!B8 -> Danilo Postorino | J19: =dati_scuola!B7 -> Mario Rossi
A20: Residuo | C20: =C18-C19 -> 3293.37

Sheet ore_eccedenti (hidden)
A1: Prog. | B1: Cognome | C1: Nome | D1: Ore a pagamento | E1: T.I. / T.D | F1: Importo orario | G1: Totale | I1: Ordine scuola | J1: Importi orari
A2: 1 | B2: Pinco | C2: Pallino | E2: T.I. | G2: =ROUND(D2*F2,2) -> 0 | I2: infanzia | J2: 18.78
A3: =A2+1 -> 2 | E3: T.I. | G3: =ROUND(D3*F3,2) -> 0 | I3: primaria | J3: 19.43
A4: =A3+1 -> 3 | E4: T.I. | G4: 0 | I4: media e scuole superiori II° | J4: 28.21
A5: 4 | E5: T.I. | G5: 0
A6: 5 | E6: T.I. | G6: 0
A7: 6 | E7: T.I. | G7: 0
A8: 7 | E8: T.I. | G8: 0
A9: 8 | E9: T.I. | G9: 0
A10: 9 | E10: T.I. | G10: 0
B11: Totale | D11: =SUM(D2:D10) -> 0 | G11: =SUM(G2:G10) -> 0
B14: Disponibilità complessiva lordo dipendente scuola secondaria + scuola primaria | D14: =dati_scuola!F18+dati_scuola!F17 -> 3386.41
B15: impegni lordo Stato | D15: =G11 -> 0 | F15: IL DIRETTORE SGA | I15: IL DIRIGENTE SCOLASTICO
B16: Residuo | D16: =D14-D15 -> 3386.41 | F16: =dati_scuola!B8 -> Danilo Postorino | I16: =dati_scuola!B7 -> Mario Rossi

Sheet Valorizzazione_docenti (hidden)
A1: N° | B1: COGNOME | C1: NOME | D1: attività 1 | E1: attività 2 | F1: attività 3 | Y1: TOTALE ORE | Z1: Importo orario | AA1: Totale
A2: DOCENTI
A3: 1 | B3: Docenti | Y3: =SUM(D3:X3) -> 0 | Z3: 17.5 | AA3: =ROUND(Y3*Z3,2) -> 0
A4: =A3+1 -> 2 | Y4: 0 | Z4: 17.5 | AA4: =ROUND(Y4*Z4,2) -> 0
A5: 3 | Y5: 0 | Z5: 17.5 | AA5: 0
A6: 4 | Y6: 0 | Z6: 17.5 | AA6: 0
A7: 5 | Y7: 0 | Z7: 17.5 | AA7: 0
A8: 6 | Y8: 0 | Z8: 17.5 | AA8: 0
A9: 7 | Y9: 0 | Z9: 17.5 | AA9: 0
A10: 8 | Y10: 0 | Z10: 17.5 | AA10: 0
A11: 9 | Y11: 0 | Z11: 17.5 | AA11: 0
A12: 10 | Y12: =SUM(D12:X12) -> 0 | Z12: 17.5 | AA12: =ROUND(Y12*Z12,2) -> 0
B13: TOTALI | D13: =SUM(D3:D12) -> 0 | E13: =SUM(E3:E12) -> 0 | F13: 0 | G13: 0 | H13: 0 | I13: 0 | J13: 0 | K13: 0 | L13: 0 | M13: 0 | N13: 0 | O13: 0 | P13: 0 | Q13: 0 | R13: 0 | S13: 0 | T13: 0 | U13: 0 | V13: 0 | W13: 0 | X13: 0 | Y13: 0 | AA13: =SUM(AA3:AA12) -> 0
A16: Disponibilità Valorizzazione docenti LORDO DIPENDENTE | C16: =dati_scuola!C55 -> 10398.76
A17: impegni lordo DIPENDENTE | C17: =AA13 -> 0
A18: Residuo | C18: =C16-C17 -> 10398.76 | I18: Il Direttore S.G.A. | S18: Il Dirigente Scolastico
H19: =dati_scuola!B8 -> Danilo Postorino | R19: =dati_scuola!B7 -> Mario Rossi

Sheet Valorizzazione_ATA (hidden)
A1: N° | B1: COGNOME | C1: NOME | D1: attività 1 | E1: attività 2 | F1: attività 3 | Y1: TOTALE ORE | Z1: Importo orario | AA1: Totale
A2: Personale ATA
A3: 1 | B3: DSGA | Y3: =SUM(D3:X3) -> 0 | Z3: 18.5 | AA3: =ROUND(Y3*Z3,2) -> 0
A4: =A3+1 -> 2 | B4: Assistenti Amministrativi e tecnici | Y4: 0 | Z4: 14.5 | AA4: 0
A5: =A4+1 -> 3 | B5: Collaboratori Scolastici | Y5: 0 | Z5: 12.5 | AA5: 0
A6: 4 | Y6: 0 | Z6: 12.5 | AA6: 0
A7: 5 | Y7: 0 | Z7: 12.5 | AA7: 0
A8: 6 | Y8: 0 | Z8: 12.5 | AA8: 0
A9: 7 | Y9: 0 | Z9: 12.5 | AA9: 0
A10: 8 | Y10: 0 | Z10: 12.5 | AA10: 0
A11: 9 | Y11: 0 | Z11: 12.5 | AA11: 0
A12: 10 | Y12: 0 | Z12: 12.5 | AA12: 0
B13: TOTALI | D13: =SUM(D3:D12) -> 0 | E13: =SUM(E3:E12) -> 0 | F13: 0 | G13: 0 | H13: 0 | I13: 0 | J13: 0 | K13: 0 | L13: 0 | M13: 0 | N13: 0 | O13: 0 | P13: 0 | Q13: 0 | R13: 0 | S13: 0 | T13: 0 | U13: 0 | V13: 0 | W13: 0 | X13: 0 | Y13: 0 | AA13: =SUM(AA3:AA12) -> 0
A16: Disponibilità valorizzazione personale ATA LORDO DIPENDENTE | C16: =dati_scuola!C56 -> 4456.61
A17: impegni lordo DIPENDENTE | C17: =AA13 -> 0 | I17: Il Direttore S.G.A. | S17: Il Dirigente Scolastico
A18: Residuo | C18: =C16-C17 -> 4456.61 | H18: =dati_scuola!B8 -> Danilo Postorino | R18: =dati_scuola!B7 -> Mario Rossi

Sheet aree_rischio_docenti (hidden)
A1: N° | B1: COGNOME | C1: NOME | D1: attività 1 | E1: attività 2 | F1: attività 3 | Y1: TOTALE ORE | Z1: Importo orario | AA1: Totale
A2: DOCENTI
A3: 1 | B3: Docenti | Y3: =SUM(D3:X3) -> 0 | Z3: 35 | AA3: =ROUND(Y3*Z3,2) -> 0
A4: =A3+1 -> 2 | Y4: 0 | Z4: 35 | AA4: =ROUND(Y4*Z4,2) -> 0
A5: 3 | Y5: 0 | Z5: 35 | AA5: 0
A6: 4 | Y6: 0 | Z6: 35 | AA6: 0
A7: 5 | Y7: 0 | Z7: 35 | AA7: 0
A8: 6 | Y8: 0 | Z8: 35 | AA8: 0
A9: 7 | Y9: 0 | Z9: 35 | AA9: 0
A10: 8 | Y10: 0 | Z10: 35 | AA10: 0
A11: 9 | Y11: 0 | Z11: 35 | AA11: 0
A12: 10 | Y12: =SUM(D12:X12) -> 0 | Z12: 35 | AA12: =ROUND(Y12*Z12,2) -> 0
B13: TOTALI | D13: =SUM(D3:D12) -> 0 | E13: =SUM(E3:E12) -> 0 | F13: 0 | G13: 0 | H13: 0 | I13: 0 | J13: 0 | K13: 0 | L13: 0 | M13: 0 | N13: 0 | O13: 0 | P13: 0 | Q13: 0 | R13: 0 | S13: 0 | T13: 0 | U13: 0 | V13: 0 | W13: 0 | X13: 0 | Y13: 0 | AA13: =SUM(AA3:AA12) -> 0
A16: Disponibilità Valorizzazione docenti LORDO DIPENDENTE | C16: =dati_scuola!C59 -> 1112.73
A17: impegni lordo DIPENDENTE | C17: =AA13 -> 0
A18: Residuo | C18: =C16-C17 -> 1112.73 | I18: Il Direttore S.G.A. | S18: Il Dirigente Scolastico
H19: =dati_scuola!B8 -> Danilo Postorino | R19: =dati_scuola!B7 -> Mario Rossi

Sheet aree_rischio_ATA (hidden)
A1: N° | B1: COGNOME | C1: NOME | D1: attività 1 | E1: attività 2 | F1: attività 3 | Y1: TOTALE ORE | Z1: Importo orario | AA1: Totale
A2: DOCENTI
A3: 1 | B3: DSGA | Y3: =SUM(D3:X3) -> 0 | Z3: 18.5 | AA3: =ROUND(Y3*Z3,2) -> 0
A4: =A3+1 -> 2 | B4: Assistente amm.vo e tecnico | Y4: 0 | Z4: 14.5 | AA4: =ROUND(Y4*Z4,2) -> 0
A5: 3 | B5: Collaboratore scolastico | Y5: 0 | Z5: 12.5 | AA5: 0
A6: 4 | Y6: 0 | Z6: 12.5 | AA6: 0
A7: 5 | Y7: 0 | Z7: 12.5 | AA7: 0
A8: 6 | Y8: 0 | Z8: 12.5 | AA8: 0
A9: 7 | Y9: 0 | Z9: 12.5 | AA9: 0
A10: 8 | Y10: 0 | Z10: 12.5 | AA10: 0
A11: 9 | Y11: 0 | Z11: 12.5 | AA11: 0
A12: 10 | Y12: =SUM(D12:X12) -> 0 | Z12: 12.5 | AA12: =ROUND(Y12*Z12,2) -> 0
B13: TOTALI | D13: =SUM(D3:D12) -> 0 | E13: =SUM(E3:E12) -> 0 | F13: 0 | G13: 0 | H13: 0 | I13: 0 | J13: 0 | K13: 0 | L13: 0 | M13: 0 | N13: 0 | O13: 0 | P13: 0 | Q13: 0 | R13: 0 | S13: 0 | T13: 0 | U13: 0 | V13: 0 | W13: 0 | X13: 0 | Y13: 0 | AA13: =SUM(AA3:AA12) -> 0
A16: Disponibilità Valorizzazione docenti LORDO DIPENDENTE | C16: =dati_scuola!C60 -> 476.89
A17: impegni lordo DIPENDENTE | C17: =AA13 -> 0
A18: Residuo | C18: =C16-C17 -> 476.89 | I18: Il Direttore S.G.A. | S18: Il Dirigente Scolastico
H19: =dati_scuola!B8 -> Danilo Postorino | R19: =dati_scuola!B7 -> Mario Rossi

Sheet stampa_unione (hidden)
A1: Anno scolastico | B1: fondo istituto | C1: FI_lordo_stato senza avanzi | D1: FI_lordo_stato | E1: Avanzo FI meno tutti altri avanzi | F1: FI + avanzo solo FI | G1: Avanzo fondo istituto es precedenti | H1: Avanzo fondo istituto es precedenti LS | I1: Economie riutilizzate - OE | J1: Avanzo FIS + altri avanzi LS | K1: Fondo Istituto + avanzo es precedenti | L1: Impegni FIS anno corrente | M1: indennità di direzione DSGA | N1: FI meno IA+IAS LD | O1: indennità di direzione SOSTITUTO DSGA | P1: IA+IAS | Q1: IA+IAS_lordo_stato | R1: Funzioni Strumentali | S1: FS_lordo stato | T1: Incarichi aggiuntivi ATA | U1: Incarichi_aggiuntivi_lordo_stato | V1: Totale_lordo_stato_FI_FS_IA | W1: AVANZO ORE ECCEDENTI | X1: ORE ECCEDENTI | Y1: OE Ore eccedenti LS | Z1: OE+AOE | AA1: Economie FIS | AB1: Economie FS | AC1: Economie IS | AD1: Economie OE | AE1: Economie valorizzazione | AF1: Economie Aree a rischio | AG1: Economie attivita complementari EF | AH1: Economie ore notturne e festive | AI1: Economie PTCO | AJ1: Economie Progetti europei | AK1: Totali economie | AL1: Turni notturni e festivi LD | AM1: Turni notturni e festivi LS | AN1: Valorizzazione personale scolastico LD | AO1: Valorizzazione personale scolastico LS | AP1: Valorizzazione personale DOCENTE LD | AQ1: Valorizzazione personale DOCENTI LS | AR1: Valorizzazione personale ATA LD | AS1: Valorizzazione personale ATA LS | AT1: Aree a rischio LD | AU1: Aree a rischio LS | AV1: Area a rischio DOCENTI LD | AW1: Aree a rischio DOCENTI LS | AX1: Aree a rischio ATA LD | AY1: Aree a rischio ATA LS | AZ1: Notturni e festivi LD | BA1: Notturni e festivi LS | BB1: Notturni e festivi EDUCATIVO LD | BC1: Notturni e festivi EDUCATIVO LS | BD1: Notturni e festivi ATA LD | BE1: Notturni e festivi ATA LS | BF1: Totali economie LD | BG1: FI economie + assegnazioni - IA + IAS LD | BH1: FS economie + assegnazione LD | BI1: FS economie riutilizzate + assegnazione LD | BJ1: FS economie riutilizzate + assegnazione LS | BK1: FS importi non utilizzati | BL1: FS meno importi non utilizzati | BM1: IS economie + assegnazione LD | BN1: IS economie riutilizzate + assegnazione LD | BO1: IS economie riutilizzate + assegnazione LS | BP1: IS importi non utilizzati | BQ1: IS meno importi non utilizzati | BR1: OE economie + Assegnazione LD | BS1: OE economie riutilizzate + assegnazione LD | BT1: OE economie riutilizzate + assegnazione LS | BU1: OE importi non utilizzati | BV1: OE meno importi non utilizzati | BW1: Valorizzazione economie + assegnazione LD | BX1: Valorizzazione economie riutilizzate + assegnazione LD | BY1: Valorizzazione economie riutilizzate + assegnazione LS | BZ1: Valorizzazione importi non utilizzati | CA1: Valorizzazione meno importi non utilizzati | CB1: Aree a rischio economie + assegnazione LD | CC1: Aree a rischio economie riutilizzate + assegnazione LD | CD1: Aree a rischio economie riutilizzate + assegnazione LS | CE1: Aree a rischio importi non utilizzati | CF1: Aree a rischio meno importi non utilizzati | CG1: Attivita complementari EF economie + assegnazione LD | CH1: Attività complementari EF economie riutilizzate + assegnazione LD | CI1: Attività complementari EF economie riutilizzate + assegnazione LS | CJ1: Attività complementari importi non utilizzati | CK1: Attività complementari meno importi non utilizzati | CL1: Ore notturne economie + assegnazione LD | CM1: Ore notturne economie riutilizzate + assegnazione LD | CN1: Ore notturne economie riutilizzate + assegnazione LS | CO1: Ore notturne importi non utilizzati | CP1: Ore notturne meno importi non utilizzati | CQ1: PTCO economie + assegnazione LD | CR1: PTCO economie + assegnazione LS | CS1: PTCO importi non utilizzati | CT1: PTCO meno importi non utilizzati | CU1: Progetti europei economie + assegnazione LD | CV1: Progetti europei economie + assegnazione LS | CW1: Progetti europei importi non utilizzati | CX1: Progetti europei meno importi non utilizzati | CY1: Progetti europei docenti LD | CZ1: Progetti europei docenti LS | DA1: Progetti europei ATA LD | DB1: Progetti europei ATA LS | DC1: Avanzo progetti europei LS | DD1: Avanzo progetti europei LS | DE1: Indennità direzione a seguito rilevazione SIDI | DF1: Indennità direzione a seguito rilevazione importi non utilizzati | DG1: Indennità direzione a seguito rilevazione meno importi non utilizzati | DH1: Differenza avanzi - avanzi utilizzati nel FIS LD | DI1: Differenza avanzi - avanzi utilizzati nel FIS LS | DJ1: Impegni anno corrente | DK1: Totale importi non utilizzati | DL1: Totali assegnazioni anno corrente LD | DM1: Totali economie + assegnazioni anno corrente meno IA+IAS LD | DN1: Totali assegnazioni + economie + PTCO + Progetti europei | DO1: Fondo docenti | DP1: Fondo docenti_lordo_stato | DQ1: Importo MOF certificato a.s. precedente LS | DR1: Economie MOF as precedente LS | DS1: Impegnato MOF a.s. precedente LS | DT1: Importo MOF certificato a.s. precedente LD | DU1: Impegnato MOF a.s. precedente LD | DV1: Importo OE a.s. precedente LS | DW1: Economie OE as precedente LS | DX1: Impegnato OE a.s. precedente LS | DY1: Importo OE certificato a.s. precedente LD | DZ1: Impegnato OE a.s. precedente LD | EA1: Totale MOF e OE as precedente LD | EB1: Totale Impegnato MOF e OE as precedente LD | EC1: Impegni didattici in termini di flessibilità (art. 88, comma 1) LD | ED1: Impegni didattici in termini di flessibilità (art. 88, comma 1) LS | EE1: Particolare impegno professionale (art. 88, comma 2, lettera a) CCNL 29/11/2007) LD | EF1: Particolare impegno professionale (art. 88, comma 2, lettera a) CCNL 29/11/2007) LS | EG1: Attività aggiuntive di insegnamento (art. 88, comma 2, lettera b) LD | EH1: Attività aggiuntive di insegnamento (art. 88, comma 2, lettera b) LS | EI1: Attività aggiuntive funzionali all'insegnamento LD | EJ1: Attività aggiuntive funzionali all'insegnamento LS | EK1: Compensi attribuiti ai collaboratori del DS LD | EL1: Compensi attribuiti ai collaboratori del DS LS | EM1: Compensi per il personale docente per ogni altra attività deliberata nell’ambito del PTOF LD | EN1: Compensi per il personale docente per ogni altra attività deliberata nell’ambito del PTOF LS | EO1: Particolare impegno per la valutazione degli alunni LD | EP1: Particolare impegno per la valutazione degli alunni LS | EQ1: Accantonamento Docenti LD | ER1: Accantonamento Docenti LS | ES1: Fondo ATA | ET1: Compensi per il personale ATA per ogni altra attività deliberata nell'ambito del PTOF LD | EU1: Compensi per il personale ATA per ogni altra attività deliberata nell'ambito del PTOF LS | EV1: Compensi DSGA (art. 89 CCNL 29/11/2007, sostituito dall’art. 3 della S.C. personale ATA 25/7/2008) LD | EW1: Compensi DSGA (art. 89 CCNL 29/11/2007, sostituito dall’art. 3 della S.C. personale ATA 25/7/2008) LS | EX1: Prestazioni aggiuntive del personale ATA (art. 88, comma 2, lettera e) CCNL 29/11/2007) LD | EY1: Prestazioni aggiuntive del personale ATA (art. 88, comma 2, lettera e) CCNL 29/11/2007) LS | EZ1: Accantonamento ATA LD | FA1: Accantonamento ATA LS | FB1: Fondo ATA+scorpori_ATA | FC1: Fondo ATA_lordo_stato | FD1: Fondo_netto_IA_IAS+avanziMOF | FE1: Fondo_netto_IA_IAS meno_avanziMOF | FF1: Totale FI + FS + IA + OE + EDUFISICA + AREERISCHIO + VPS-IA- IAS | FG1: Totale FI + FS + IA + OE + AOE + EDUFISICA + AREERISCHIO -IA- IAS+avanzi_mof | FH1: Totale FI + FS + IA + OE + AOE + EDUFISICA + AREERISCHIO -IA- IAS+avanzi_mof | FI1: Totale FI+FS+IA+EDUFISICA+AREERISCHIO+PROGEU LS | FJ1: Totale FI+FS+IA+EDUFISICA+AREERISCHIO+PROGEU + avanzo_mof LS | FK1: Totale IA IAS OE | FL1: Totale fisse + variabili LD | FM1: Totale fisse + variabili LS | FN1: IDEI | FO1: IDEI_lordo_stato | FP1: Compensi Collaboratori_DS | FQ1: Compensi Collaboratori_DS_lordo_stato | FR1: FI_docenti_meno_compensi_coll_DS_meno_scorporo_docenti | FS1: FI_docenti_meno_compensi_coll_DS_lordo_stato | FT1: Totale MOF docenti + EDUFISICA + PROGEURO + AREERISCHIO | FU1: Totale MOF docenti_lordo_stato | FV1: Totale MOF ATA | FW1: Totale MOF ATA_lordo_stato | FX1: Totale MOF docenti ATA senza accantonamenti | FY1: Totale MOF LORDO STATO | FZ1: Percentuale utilizzazione MOF LS | GA1: Totale MOF + avanzi LORDO STATO | GB1: Totale MOF docenti_meno_FS | GC1: Totale MOF ATA_meno_IA | GD1: Totale generale | GE1: Totale generale meno accantonamenti | GF1: Totale generale + avanzi | GG1: Totale generale + avanzi-OE-AOE | GH1: Totale generale + AvOE | GI1: Totale generale_meno_OE_AOE | GJ1: Totale generale_meno_OE_AOE_IA_IAS | GK1: FIS Docenti+IDEI | GL1: Scorpori ATA | GM1: Importo scorpori ATA | GN1: Scorpori DOCENTI | GO1: importi scorpori DOCENTI | GP1: Finaziamenti Aree a rischio LD | GQ1: Finaziamenti Aree a rischio LS | GR1: Finanziamenti PTCO LD | GS1: Finanziamenti PTCO LS | GT1: Indennita_sost_dsga_SIDI LD | GU1: Indennita_sost_dsga_SIDI LS | GV1: Totale avanzi + progettieuropei + PTCO + IDSOSTSIDI | GW1: Totale avanzi + progettieuropei + PTCO + IDSOSTSIDI LS | GX1: Attivita_complementare_ed_fisica_LD | GY1: Attivita_complementare_ed_fisica_LS | GZ1: n incarichi specifici AA | HA1: n incarichi specifici AT | HB1: =SUM(V1) -> 0 | HC1: Importo LD incarichi AA | HD1: Importo LD incarichi AT | HE1: Importo LD incarichi CS | HF1: Cognome e Nome del DS | HG1: Cognome e Nome del DSGA | HH1: Nome istituto | HI1: Nota assegnazione | HJ1: Progetti nazionali comunitari LD | HK1: Progetti nazionali comunitari LS | HL1: Finanziamenti ex l. 440/97 LD | HM1: Finanziamenti ex l. 440/97 LS | HN1: Risorse corsi per il recupero LD | HO1: Risorse corsi per il recupero LS | HP1: Risorse formazione LD | HQ1: Risorse formazione LS | HR1: Altre risorse LD | HS1: Altre risorse LS | HT1: Fondo Riserva LD | HU1: Fondo Riserva LS | HV1: Personale docente | HW1: Personale ATA | HX1: Totale personale | HY1: Percentuale docenti | HZ1: Percentuale ATA | IA1: Percentuale FR
A2: 2022/2023 | B2: =ROUND(ripartizione!C2,2) -> 55723.86 | C2: =ripartizione!B2 -> 73945.56 | D2: =ROUND(ripartizione!B8,2) -> 73945.56 | E2: =dati_scuola!B14 -> 0 | F2: =B2+E2 -> 55723.86 | G2: =ROUND(ripartizione!C3,2) -> 0 | H2: =ripartizione!B3 -> 0 | I2: =dati_scuola!B23-dati_scuola!B17-dati_scuola!B18-dati_scuola!E17-dati_scuola!E18 -> 0 | J2: =ROUND(((dati_scuola!B23-dati_scuola!B17-dati_scuola!B18-dati_scuola!E17-dati_scuola!E18+dati_scuola!B37+DD2)*1.242)+((dati_scuola!B23-dati_scuola!B17-dati_scuola!B18-dati_scuola!E17-dati_scuola!E18+dati_scuola!B37+DD2)*dati_scuola!$B$10),2) -> 0 | K2: =B2+G2 -> 55723.86 | L2: =K2-EQ2-EZ2 -> 4313.61 | M2: =ROUND(ripartizione!C12,2) -> 3780 | N2: =ROUND(B2-P2,2) -> 51410.26 | O2: =ROUND(ripartizione!C13,2) -> 533.6 | P2: =ROUND(M2+O2,2) -> 4313.6 | Q2: =ROUND(ripartizione!B12+ripartizione!B13,2) -> 5724.15 | R2: =ROUND(ripartizione!C23,2) -> 3671 | S2: =ROUND(ripartizione!B23,2) -> 4871.42 | T2: =ROUND(ripartizione!C24,2) -> 3293.37 | U2: =ROUND(ripartizione!B24,2) -> 4370.3 | V2: =ROUND(D2+S2+U2,2) -> 83187.28 | W2: =ROUND(dati_scuola!B17+dati_scuola!B18,2) -> 0 | X2: =ROUND(dati_scuola!$C$17+dati_scuola!$C$18,2) -> 3386.41 | Y2: =ROUND(X2+X2*32.7/100,2) -> 4493.77 | Z2: =ROUND(W2+X2,2) -> 3386.41 | AA2: =dati_scuola!B14 -> 0 | AB2: =dati_scuola!B15 -> 0 | AC2: =dati_scuola!B16 -> 0 | AD2: =dati_scuola!B17+dati_scuola!B18 -> 0 | AE2: =dati_scuola!B19 -> 0 | AF2: =dati_scuola!B20 -> 0 | AG2: =dati_scuola!B21 -> 0 | AH2: =dati_scuola!B22 -> 0 | AI2: =ROUND((dati_scuola!B67)/(124.2+dati_scuola!$B$10*100)*100,2) -> 0 | AJ2: =ROUND((dati_scuola!B68)/(124.2+dati_scuola!$B$10*100)*100,2) -> 0 | AK2: =dati_scuola!B23+AI2+AJ2 -> 0 | AL2: =dati_scuola!C22 -> 0 | AM2: =ROUND((AL2*1.242)+(AL2*dati_scuola!$B$10),2) -> 0 | AN2: =ripartizione!C35 -> 14855.37 | AO2: =ROUND((AN2*1.242)+(AN2*dati_scuola!$B$10),2) -> 19713.08 | AP2: =dati_scuola!C55 -> 10398.76 | AQ2: =ROUND((AP2*1.242)+(AP2*dati_scuola!$B$10),2) -> 13799.15 | AR2: =dati_scuola!C56 -> 4456.61 | AS2: =ROUND((AR2*1.242)+(AR2*dati_scuola!$B$10),2) -> 5913.92 | AT2: =dati_scuola!F20 -> 1589.62 | AU2: =ROUND((AT2*1.242)+(AT2*dati_scuola!$B$10),2) -> 2109.43 | AV2: =dati_scuola!C59 -> 1112.73 | AW2: =ROUND((AV2*1.242)+(AV2*dati_scuola!$B$10),2) -> 1476.59 | AX2: =dati_scuola!C60 -> 476.89 | AY2: =ROUND((AX2*1.242)+(AX2*dati_scuola!$B$10),2) -> 632.83 | AZ2: =dati_scuola!$F$22 -> 0 | BA2: =ROUND((AZ2*1.242)+(AZ2*dati_scuola!$B$10),2) -> 0 | BB2: =dati_scuola!$C$63 -> 0 | BC2: =ROUND((BB2*1.242)+(BB2*dati_scuola!$B$10),2) -> 0 | BD2: =dati_scuola!$C$64 -> 0 | BE2: =ROUND((BD2*1.242)+(BD2*dati_scuola!$B$10),2) -> 0 | BF2: =dati_scuola!B23 -> 0 | BG2: =AA2+B2-P2 -> 51410.26 | BH2: =R2+AB2 -> 3671 | BI2: =dati_scuola!F15 -> 3671 | BJ2: =ROUND((BI2*1.242)+(BI2*dati_scuola!$B$10),2) -> 4871.42 | BK2: =dati_scuola!C79 -> 0 | BL2: =BI2-BK2 -> 3671 | BM2: =T2+AC2 -> 3293.37 | BN2: =dati_scuola!F16 -> 3293.37 | BO2: =ROUND((BN2*1.242)+(BN2*dati_scuola!$B$10),2) -> 4370.3 | BP2: =dati_scuola!C80 -> 0 | BQ2: =BN2-BP2 -> 3293.37 | BR2: =X2+AD2 -> 3386.41 | BS2: =dati_scuola!F17+dati_scuola!F18 -> 3386.41 | BT2: =ROUND((BS2*1.242)+(BS2*dati_scuola!$B$10),2) -> 4493.77 | BU2: =dati_scuola!C81 -> 0 | BV2: =BS2-BU2 -> 3386.41 | BW2: =AN2+AE2 -> 14855.37 | BX2: =dati_scuola!F19 -> 14855.37 | BY2: =ROUND((BX2*1.242)+(BX2*dati_scuola!$B$10),2) -> 19713.08 | BZ2: =dati_scuola!C87 -> 0 | CA2: =BX2-BZ2 -> 14855.37 | CB2: =AF2+GP2 -> 1589.62 | CC2: =dati_scuola!F20 -> 1589.62 | CD2: =ROUND((CC2*1.242)+(CC2*dati_scuola!$B$10),2) -> 2109.43 | CE2: =dati_scuola!C83 -> 0 | CF2: =CC2-CE2 -> 1589.62 | CG2: =AG2+GX2 -> 3648.52 | CH2: =dati_scuola!F21 -> 3648.52 | CI2: =ROUND((CH2*1.242)+(CH2*dati_scuola!$B$10),2) -> 4841.59 | CJ2: =dati_scuola!C82 -> 0 | CK2: =CH2-CJ2 -> 3648.52 | CL2: =AH2+AL2 -> 0 | CM2: =dati_scuola!F22 -> 0 | CN2: =ROUND((CM2*1.242)+(CM2*dati_scuola!$B$10),2) -> 0 | CO2: =dati_scuola!C86 -> 0 | CP2: =CM2-CO2 -> 0 | CQ2: =ROUND((CR2)/(124.2+dati_scuola!$B$10*100)*100,2) -> 0 | CR2: =ROUND(dati_scuola!B67+dati_scuola!C67,2) -> 0 | CS2: =dati_scuola!C85 -> 0 | CT2: =CQ2-CS2 -> 0 | CU2: =ROUND((CV2)/(124.2+dati_scuola!$B$10*100)*100,2) -> 0 | CV2: =ROUND(dati_scuola!B68+dati_scuola!C68,2) -> 0 | CW2: =dati_scuola!C84 -> 0 | CX2: =CU2-CW2 -> 0 | CY2: =ROUND((dati_scuola!E68)/(124.2+dati_scuola!$B$10*100)*100,2) -> 0 | CZ2: =dati_scuola!E68 -> 0 | DA2: =ROUND((dati_scuola!F68)/(124.2+dati_scuola!$B$10*100)*100,2) -> 0 | DB2: =dati_scuola!F68 -> 0 | DC2: =dati_scuola!B68 -> 0 | DD2: =ROUND((DC2)/(124.2+dati_scuola!$B$10*100)*100,2) -> 0 | DE2: =dati_scuola!B88 -> 0 | DF2: =dati_scuola!C88 -> 0 | DG2: =DE2-DF2 -> 0 | DH2: =ROUND(dati_scuola!B23-dati_scuola!B14-dati_scuola!E14,2) -> 0 | DI2: =ROUND((DH2*1.242)+(DH2*dati_scuola!$B$10),2) -> 0 | DJ2: =ROUND(L2+BL2+BQ2+BV2+CA2+CF2+CK2+CP2+CT2+CX2,2) -> 34757.9 | DK2: =ROUND(EQ2+EZ2+BK2+BP2+BU2+BZ2+CE2+CJ2+CO2+CS2+CW2+DF2,2) -> 51410.25 | DL2: =ROUND(dati_scuola!C23-P2,2) -> 81854.55 | DM2: =BF2+DL2 -> 81854.55 | DN2: =DL2+CQ2+CU2 -> 81854.55 | DO2: =ROUND(ripartizione!C14+ripartizione!C6,2) -> 38557.69 | DP2: =ROUND(ripartizione!B14+ripartizione!B6,2) -> 51166.06 | DQ2: =dati_scuola!B91 -> 0 | DR2: =dati_scuola!B92 -> 0 | DS2: =DQ2-DR2 -> 0 | DT2: =ROUND((DQ2)/(124.2+dati_scuola!$B$10*100)*100,2) -> 0 | DU2: =ROUND((DS2)/(124.2+dati_scuola!$B$10*100)*100,2) -> 0 | DV2: =dati_scuola!B93 -> 0 | DW2: =dati_scuola!B94 -> 0 | DX2: =DV2-DW2 -> 0 | DY2: =ROUND((DV2)/(124.2+dati_scuola!$B$10*100)*100,2) -> 0 | DZ2: =ROUND((DX2)/(124.2+dati_scuola!$B$10*100)*100,2) -> 0 | EA2: =DT2+DY2 -> 0 | EB2: =DU2+DZ2 -> 0 | EC2: =dati_scuola!#REF! ->  | ED2: =ROUND((EC2*1.242)+(EC2*dati_scuola!$B$10),2) ->  | EE2: =dati_scuola!E49 -> 0 | EF2: =ROUND((EE2*1.242)+(EE2*dati_scuola!$B$10),2) -> 0 | EG2: =dati_scuola!F49 -> 0 | EH2: =ROUND((EG2*1.242)+(EG2*dati_scuola!$B$10),2) -> 0 | EI2: =dati_scuola!G49 -> 0 | EJ2: =ROUND((EI2*1.242)+(EI2*dati_scuola!$B$10),2) -> 0 | EK2: =dati_scuola!H49 -> 0 | EL2: =ROUND((EK2*1.242)+(EK2*dati_scuola!$B$10),2) -> 0 | EM2: =dati_scuola!I49 -> 0 | EN2: =ROUND((EM2*1.242)+(EM2*dati_scuola!$B$10),2) -> 0 | EO2: =dati_scuola!J49 -> 0 | EP2: =ROUND((EO2*1.242)+(EO2*dati_scuola!$B$10),2) -> 0 | EQ2: =dati_scuola!K49 -> 38557.69 | ER2: =ROUND((EQ2*1.242)+(EQ2*dati_scuola!$B$10),2) -> 51166.05 | ES2: =ROUND(ripartizione!C15+ripartizione!C4,2)-GM2 -> 12852.56 | ET2: =dati_scuola!G51 -> 0 | EU2: =ROUND((ET2*1.242)+(ET2*dati_scuola!$B$10),2) -> 0 | EV2: =dati_scuola!I51 -> 0 | EW2: =ROUND((EV2*1.242)+(EV2*dati_scuola!$B$10),2) -> 0 | EX2: =dati_scuola!E51 -> 0 | EY2: =ROUND((EX2*1.242)+(EX2*dati_scuola!$B$10),2) -> 0 | EZ2: =dati_scuola!K51 -> 12852.56 | FA2: =ROUND((EZ2*1.242)+(EZ2*dati_scuola!$B$10),2) -> 17055.35 | FB2: =ES2+GM2 -> 12852.56 | FC2: =ROUND(ripartizione!B15+ripartizione!B4,2) -> 17055.35 | FD2: =ROUND(B2+G2-M2-O2,2) -> 51410.26 | FE2: =FD2-G2 -> 51410.26 | FF2: =ROUND(B2+R2+T2+X2+AN2+GX2+GP2+AL2-P2,2) -> 81854.55 | FG2: =ROUND(FF2+G2+W2,2) -> 81854.55 | FH2: =ROUND((FG2*1.242)+(FG2*dati_scuola!$B$10),2) -> 108620.99 | FI2: =D2+S2+U2+GY2+GQ2+HK2-H2 -> 90138.3 | FJ2: =FI2+H2 -> 90138.3 | FK2: =ROUND(M2+O2+BS2,2) -> 7700.01 | FL2: =ROUND(FF2+GV2,2) -> 81854.55 | FM2: =ROUND((FL2*1.242)+(FL2*dati_scuola!$B$10),2) -> 108620.99 | FN2: =ROUND(dati_scuola!C40,2) -> 0 | FO2: =ROUND(ripartizione!B11,2) -> 0 | FP2: =SUMIF(Incarichi!D7:D566,'Dati Incarichi'!C1,Incarichi!P7:P566) -> 400 | FQ2: =ROUND((FP2*1.242)+(FP2*dati_scuola!$B$10),2) -> 530.8 | FR2: =ROUND(DO2-FP2,2)-GO2 -> 38157.69 | FS2: =ROUND(DP2-FQ2,2) -> 50635.26 | FT2: =ROUND(BI2+AP2+DO2+FN2+AV2+CY2+CH2+CQ2+BB2,2) -> 57388.7 | FU2: =ROUND(SUM(EF2+EH2+EJ2+EL2+EN2+EP2+FO2+BC2+BJ2+CI2+AW2+CZ2+AQ2),2) -> 24988.75 | FV2: =ROUND(M2+AR2+O2+BN2+AX2+DA2+ES2+GM2+BD2,2) -> 25393.03 | FW2: =EY2+EU2+EW2+Q2+BE2+BO2+AY2+AS2+DB2 -> 16641.2 | FX2: =FU2+FW2 -> 41629.95 | FY2: =AM2+C2+S2+U2+GY2+GQ2+AO2+HK2 -> 109851.38 | FZ2: =FX2/GA2*100 -> 37.89661086 | GA2: =FY2+J2 -> 109851.38 | GB2: =ROUND(FT2-R2,2) -> 53717.7 | GC2: =ROUND(FV2-T2,2) -> 22099.66 | GD2: =ROUND(P2+BI2+AP2+CM2+AR2+CQ2+BN2+BS2+DO2+ES2+FN2+CC2+CU2+CH2+GM2+HT2,2) -> 86168.14 | GE2: =GD2-EQ2-EZ2 -> 34757.89 | GF2: =ROUND(F2+BH2+BM2+BR2+BW2+CB2+CG2+CL2+CQ2+CU2,2) -> 86168.15 | GG2: =GF2+GT2-Z2 -> 82781.74 | GH2: =GD2-W2 -> 86168.14 | GI2: =GH2-X2 -> 82781.73 | GJ2: =ROUND(GH2-Z2-P2,2) -> 78468.13 | GK2: =ROUND(DO2+FN2,2) -> 38557.69 | GL2: =ripartizione!A4 -> Utilizzo economie o scorpori per personale ATA | GM2: =ripartizione!C4 -> 0 | GN2: =ripartizione!A6 -> Utilizzo economie o scorpori per personale DOCENTE | GO2: =ripartizione!C6 -> 0 | GP2: =ripartizione!C30 -> 1589.62 | GQ2: =ripartizione!B30 -> 2109.43 | GR2: =ROUND((GS2)/(124.2+dati_scuola!$B$10*100)*100,2) -> 0 | GS2: =ROUND(dati_scuola!C67,2) -> 0 | GT2: =dati_scuola!B37 -> 0 | GU2: =ROUND((GT2*1.242)+(GT2*dati_scuola!$B$10),2) -> 0 | GV2: =ROUND(G2+CQ2+CU2+DH2,2) -> 0 | GW2: =ROUND((GV2*1.242)+(GV2*dati_scuola!$B$10),2) -> 0 | GX2: =ripartizione!C32 -> 3648.52 | GY2: =ripartizione!B32 -> 4841.59 | GZ2: _____ | HA2: _____ | HB2: _____ | HC2: =SUMIFS(Incarichi!P7:P566, Incarichi!D7:D566, 'Dati Incarichi'!P1, Incarichi!F7:F566, "<>Coll._Scol") -> 1085 | HE2: =SUMIFS(Incarichi!P7:P566, Incarichi!D7:D566, 'Dati Incarichi'!P1, Incarichi!F7:F566, "Coll._Scol") -> 450 | HF2: =dati_scuola!B7 -> Mario Rossi | HG2: =dati_scuola!B8 -> Danilo Postorino | HH2: _____________ | HI2: =dati_scuola!B3 -> Prot. 46445 del 4 ottobre 2022 | HJ2: =ROUND((HK2)/(124.2+dati_scuola!$B$10*100)*100,2) -> 0 | HK2: =ROUND(dati_scuola!C68,2) -> 0 | HL2: =ROUND((HM2)/(124.2+dati_scuola!$B$10*100)*100,2) -> 0 | HM2: =SUM(dati_scuola!B71+dati_scuola!C71) -> 0 | HN2: =ROUND((HO2)/(124.2+dati_scuola!$B$10*100)*100,2) -> 0 | HO2: =SUM(dati_scuola!B72+dati_scuola!C72) -> 0 | HP2: =ROUND((HQ2)/(124.2+dati_scuola!$B$10*100)*100,2) -> 0 | HQ2: =SUM(dati_scuola!B73+dati_scuola!C73) -> 0 | HR2: =ROUND((HS2)/(124.2+dati_scuola!$B$10*100)*100,2) -> 0 | HS2: =SUM(dati_scuola!B74+dati_scuola!C74) -> 0 | HT2: =dati_scuola!C52 -> 0 | HU2: =ROUND((HT2*1.242)+(HT2*dati_scuola!$B$10),2) -> 0 | HV2: =dati_scuola!B26 -> 96 | HW2: =dati_scuola!B27 -> 30 | HX2: =dati_scuola!B28 -> 126 | HY2: =ROUND(dati_scuola!B49*100,2) -> 75 | HZ2: =ROUND(dati_scuola!B51*100,2) -> 25 | IA2: =ROUND(dati_scuola!B52*100,2) -> 0

Sheet Dati (hidden)
A1: Irap | B1: contratto | C1: tipo personale | D1: manuale
A2: 0.085 | B2: 1 | C2: Docente | D2: SI
A3: 0.0865 | B3: 2 | C3: ATA | D3: NO

Sheet Dati Incarichi
A1: Incarico | B1: Animatore | C1: CollaboratoreDS | D1: Commissione | E1: Coordinatore | F1: Funzioni_Strumentali | G1: Progetto | H1: Referente | I1: Responsabile | J1: Tutor | K1: Valorizzazione | L1: Area_a_Rischio | M1: Ore_eccedenti | N1: Corsi_Recupero | O1: Pratica_Sportiva | P1: Attività_aggiuntive_ATA | Q1: Iincarichi_specifici | R1: Ind._Direzione | S1: altro_Docenti
B2: Animatore digitale | C2: Primo collaboratore | D2: Continuità | E2: Classe Infanzia | F2: Innovazione tecnologica | G2: Apprendimento alunni | H2: Ambiente MEDIA | I2: Biblioteca Primaria | J2: Docenti neoimmessi in ruolo | K2: Attività 1 | L2: Attività 1 | M2: Infanzia | N2: Corsi Recupero | O2: Att. Complementari Educazione Fisica | P2: sostituzione DSGA | Q2: Assistenza Hand | R2: DSGA | S2: Altro Docenti 1
C3: Secondo collaboratore | D3: Flessibilità | E3: Classe Primaria | F3: Autovalutazione | G3: Apprendimento docenti | H3: Ambiente primaria | I3: Biblioteca I Grado | K3: Attività 2 | L3: Attività 2 | M3: Primaria | N3: Sportello | P3: Sostituzione colleghi assenti | Q3: Piccola manutenzione | R3: Sostituto DSGA | S3: Altro Docenti 2
D4: Regolamenti | E4: Classe I Grado | F4: Orientamento in uscita | G4: Bosco amico mio | H4: Attività sportive | I4: Biblioteca | K4: Attività 3 | L4: Attività 3 | M4: Sec. I Grado | P4: Gestione e manutenzione macchina lavasciuga | Q4: altro incarico | S4: Altro Docenti 3
D5: Uscite didattiche | E5: Classe II Grado | F5: Animatore digitale | G5: Costruiamo un robot | H5: Cittadinanza e costituzione media | I5: Laboratorio artistico | K5: Attività 4 | L5: Attività 4 | M5: Sec. II Grado | P5: Impatto Legge 107 | S5: Altro Docenti 4
F6: Orientamento in entrata | G6: Il Natale racconta | H6: Cittadinanza e costituzioneprimaria | I6: Laboratorio multimediale | K6: Attività 5 | L6: Attività 5 | P6: Commissione elettorale e Commissione viaggi | S6: Altro Docenti 5
F7: Supporto alunni | G7: Impariamo danzando | H7: Handicap media | I7: Palestra | K7: Attività 6 | L7: Attività 6 | P7: Protocollo informatico e comunicazione digitale | S7: Altro Docenti 6
G8: Magiche note | H8: Handicap primaria | I8: Laboratorio scientifico | K8: Attività 7 | L8: Attività 7 | P8: Contabilità: gestione straordinaria (congedi, pensioni, esami "immaccolata", ecc.) | S8: Altro Docenti 7
G9: Musica e parole | H9: Legalità media | K9: Attività 8 | L9: Attività 8 | P9: sostituzione incaricati part-time | S9: Altro Docenti 8
G10: Natale in giro per il mondo | H10: Legalità primaria | K10: Attività 9 | L10: Attività 9 | P10: Servizio esterno (posta, assicurazione, commissariato, succursali, ecc.) | S10: Altro Docenti 9
G11: Natale in musica | H11: Salute e alimentazione infanzia | K11: Attività 10 | L11: Attività 10 | P11: reperibilità notturna + privacy | S11: Altro Docenti 10
G12: Nel paese di Letterello | H12: Salute e alimentazione media | P12: Orientamento + Collaborazione uffici | S12: Altro Docenti 11
G13: Redazione giornalistica | H13: Salute e alimentazione primaria | P13: Progetti servizi on-line | S13: Altro Docenti 12
G14: Sermo latinus | H14: Sito web | P14: Sicurezza - pronto soccorso (aggiornamento e collaborazione) | S14: Altro Docenti 13
G15: Ti portero nel cuore | P15: Collaborazione DSGA per turni e sostituzione CS + varie | S15: Altro Docenti 14
G16: Tutti in scena | P16: URP - Collaborazione con la dirigenza per le sostituzioni, sistemazione compiti in classe, ecc. | S16: Altro Docenti 15
G17: Una pulce sull'albero di babbo natale | P17: manutenzione interna + centralino + domotica
G18: Viva la mamma | P18: Prestazioni agg. Estensive

Sheet Dati_Personale
A1: Personale | B1: Docente | C1: Ass._Amm.vo | D1: Coll._Scol | E1: Ass._Tecnico | F1: DSGA | G1: Cuoco | H1: Infermiere | I1: Guardarobiere | J1: Personale_Educativo | K1: Coll_Scol_Servizi
B2: Bagala` Carmela | C2: Pirrottina Andrea | D2: Bartuccio Emma | E2: Barone Marco | F2: Postorino Danilo | G2: Pallo Pinco | H2: Rossi Mario | I2: Bianchi Andrea | J2: Verdi Giuseppe | K2: Renzi Luca
B3: Bagala' Anunziata | C3: Pirrottina Carmelo | D3: Borghi Elisa | E3: Barone Giuseppe
B4: Barbaro Francesca | C4: Pirrottina Anna | D4: Brilla Natale | E4: Mimmiti Elio
B5: Barbaro Luisa | C5: Pitasi Ludovica | D5: Brizzi Stella
B6: Barbaro Mario | C6: Polimeni Luca | D6: Caccamo Pia
B7: Barbaro Ezia | C7: Porcino Maria | D7: Porretta Michele
B8: Bardo Luana | D8: Previtera Santina
D9: Priolo Luca
D10: Pugliese Luigi
D11: Quattrone Ennio

Sheet Incarichi
B1: Ministero dell'Istruzione
B2: =dati_scuola!B5 -> I.C. Foscolo
B3: Compensi Accessori MOF Anno Scolastico 2021-22
CW4: Indicare Percentuale IRAP | CX4: 0.085
Q5: Contributi a carico Dipendente | T5: Ritenuta IRPEF | W5: Compenso | Y5: Contributi e oneri a carico dello Stato
B6: Num. Prot. | C6: Data | D6: Tipo Incarico | E6: Dettaglio Incarico | F6: qualifica | G6: Cognome e Nome del dipendente | H6: tipo contratto | I6: ore frontali | J6: compenso unitario lordo dip. | K6: ore non frontali | L6: compenso unitario lordo dip. | M6: aliquota IRPEF max | N6: LORDO Imponibile previdenziale | P6: LORDO Imponibile previdenziale | Q6: I.N.P.D.A.P. 8,80% | R6: F/do Credito 0,35% | T6: Imponibile fiscale | U6: I.R.P.E.F. ritenuta | W6: Compenso netto dipendente | Y6: INPDAP 24,20% | Z6: IRAP 8,50% | AA6: INPS 1,61% | CR6: 0.088 | CS6: 0.0035 | DE6: 0.242 | DF6: =SUM(CX4) -> 0.085 | DI6: 0.0161
A7: 1 | B7: 1590 | C7: 2020-11-15 | D7: CollaboratoreDS | E7: Primo collaboratore | F7: Docente | G7: Barbaro Mario | H7: 2 | I7: 0 | J7: 35 | K7: 1 | L7: 100 | M7: 0.38 | N7: =SUM(I7*J7)+(K7*L7) -> 100 | P7: =SUM(I7*J7)+(K7*L7) -> 100 | Q7: =ROUND(CR7,2) -> 8.8 | R7: =ROUND(CS7,2) -> 0.35 | T7: =SUM(P7-Q7-R7) -> 90.85 | U7: =ROUND(CW7,2) -> 34.52 | W7: =SUM(T7-U7) -> 56.33 | Y7: =ROUND(DE7,2) -> 24.2 | Z7: =ROUND(DF7,2) -> 8.5 | AA7: =ROUND(DI7,2) -> 1.61 | CP7: =IF(H7=1,"T.I. tesoro",IF(H7=2,"T.D. tesoro",IF(H7=3,"T.D. tesoro",IF(H7=4,"T.D. scuola",IF(H7=5," tesoro",IF(H7=6," scuola"," ")))))) -> T.D. tesoro | CQ7: =SUM(P7) -> 100 | CR7: =IF(H7=1,CQ7*$CR$6,IF(H7=2,CQ7*$CR$6,IF(H7=3,CQ7*$CR$6,0))) -> 8.8 | CS7: =IF(H7=1,CQ7*$CS$6,IF(H7=2,CQ7*$CS$6,IF(H7=3,CQ7*$CS$6,0))) -> 0.35 | CU7: =SUM(T7) -> 90.85 | CV7: =SUM(M7) -> 0.38 | CW7: =SUM(CU7*CV7) -> 34.523 | CX7: =IF(H7=4,O7,IF(H7=6,O7,"0")) -> 0 | CY7: =SUM(CU7*CX7) -> 0 | CZ7: =IF(H7=4,#REF!,IF(H7=6,#REF!,"0")) -> 0 | DA7: =SUM(CU7*CZ7) -> 0 | DE7: =IF(H7=1,CQ7*$DE$6,IF(H7=2,CQ7*$DE$6,IF(H7=3,CQ7*$DE$6,0))) -> 24.2 | DF7: =SUM(CQ7*$DF$6) -> 8.5 | DH7: =IF(H7=2,CQ7,IF(H7=3,CQ7,IF(H7=4,CQ7,"0"))) -> 100 | DI7: =SUM(DH7*$DI$6) -> 1.61
A8: 2 | B8: 111 | C8: 2020-11-15 | D8: CollaboratoreDS | E8: Secondo collaboratore | F8: Docente | G8: Barbaro Luisa | H8: 1 | I8: 0 | J8: 35 | K8: 1 | L8: 300 | M8: 0.38 | N8: =SUM(I8*J8)+(K8*L8) -> 300 | P8: =SUM(I8*J8)+(K8*L8) -> 300 | Q8: =ROUND(CR8,2) -> 26.4 | R8: =ROUND(CS8,2) -> 1.05 | T8: 272.55 | U8: =ROUND(CW8,2) -> 103.57 | W8: =SUM(T8-U8) -> 168.98 | Y8: =ROUND(DE8,2) -> 72.6 | Z8: =ROUND(DF8,2) -> 25.5 | AA8: =ROUND(DI8,2) -> 0 | CP8: T.I. tesoro | CQ8: 300 | CR8: 26.4 | CS8: 1.05 | CU8: =SUM(T8) -> 272.55 | CV8: 0.38 | CW8: =SUM(CU8*CV8) -> 103.569 | CX8: 0 | CY8: =SUM(CU8*CX8) -> 0 | CZ8: =IF(H8=4,#REF!,IF(H8=6,#REF!,"0")) -> 0 | DA8: =SUM(CU8*CZ8) -> 0 | DE8: 72.6 | DF8: =SUM(CQ8*$DF$6) -> 25.5 | DH8: 0 | DI8: =SUM(DH8*$DI$6) -> 0
A9: 3 | B9: 2522 | C9: 2020-11-16 | D9: Commissione | E9: Legalità media | F9: Docente | G9: Barbaro Mario | H9: 1 | I9: 0 | J9: 35 | K9: 10 | L9: 17.5 | M9: 0.38 | N9: 175 | P9: 175 | Q9: 15.4 | R9: 0.61 | T9: 158.99 | U9: 60.42 | W9: 98.57 | Y9: 42.35 | Z9: 14.88 | AA9: 0 | CP9: T.I. tesoro | CQ9: 175 | CR9: 15.4 | CS9: 0.6125 | CU9: 158.99 | CV9: 0.38 | CW9: 60.4162 | CX9: 0 | CY9: 0 | CZ9: =IF(H9=4,#REF!,IF(H9=6,#REF!,"0")) -> 0 | DA9: 0 | DE9: 42.35 | DF9: 14.875 | DH9: 0 | DI9: 0
A10: 4 | B10: 225 | C10: 2020-11-17 | D10: Referente | E10: Legalità media | F10: Docente | G10: Barbaro Ezia | H10: 1 | I10: 0 | J10: 35 | K10: 15 | L10: 17.5 | M10: 0.38 | N10: 262.5 | P10: 262.5 | Q10: 23.1 | R10: 0.92 | T10: 238.48 | U10: 90.62 | W10: 147.86 | Y10: 63.53 | Z10: 22.31 | AA10: 0 | CP10: T.I. tesoro | CQ10: 262.5 | CR10: 23.1 | CS10: 0.91875 | CU10: 238.48 | CV10: 0.38 | CW10: 90.6224 | CX10: 0 | CY10: 0 | CZ10: =IF(H10=4,#REF!,IF(H10=6,#REF!,"0")) -> 0 | DA10: 0 | DE10: 63.525 | DF10: 22.3125 | DH10: 0 | DI10: 0
A11: 5 | B11: 265 | C11: 2020-11-17 | D11: Progetto | E11: Il Natale racconta | F11: Docente | G11: Barbaro Gabriella | H11: 1 | I11: 10 | J11: 35 | K11: 10 | L11: 17.5 | M11: 0.38 | N11: 525 | P11: 525 | Q11: 46.2 | R11: 1.84 | T11: 476.96 | U11: 181.24 | W11: 295.72 | Y11: 127.05 | Z11: 44.63 | AA11: 0 | CP11: T.I. tesoro | CQ11: 525 | CR11: 46.2 | CS11: 1.8375 | CU11: 476.96 | CV11: 0.38 | CW11: 181.2448 | CX11: 0 | CY11: 0 | CZ11: =IF(H11=4,#REF!,IF(H11=6,#REF!,"0")) -> 0 | DA11: 0 | DE11: 127.05 | DF11: 44.625 | DH11: 0 | DI11: 0
A12: 6 | B12: 225 | C12: 2020-11-17 | D12: Referente | E12: Sito web | F12: Docente | G12: Bardo Luana | H12: 1 | I12: 0 | J12: 35 | K12: 25 | L12: 17.5 | M12: 0.38 | N12: 437.5 | P12: 437.5 | Q12: 38.5 | R12: 1.53 | T12: 397.47 | U12: 151.04 | W12: 246.43 | Y12: 105.88 | Z12: 37.19 | AA12: 0 | CP12: T.I. tesoro | CQ12: 437.5 | CR12: 38.5 | CS12: 1.53125 | CU12: 397.47 | CV12: 0.38 | CW12: 151.0386 | CX12: 0 | CY12: 0 | CZ12: =IF(H12=4,#REF!,IF(H12=6,#REF!,"0")) -> 0 | DA12: 0 | DE12: 105.875 | DF12: 37.1875 | DH12: 0 | DI12: 0
A13: 7 | B13: 554 | C13: 2020-11-17 | D13: Animatore | E13: Animatore digitale | F13: Docente | G13: Bagala' Anunziata | H13: 1 | I13: 0 | J13: 35 | K13: 10 | L13: 17.5 | M13: 0.38 | N13: 175 | P13: 175 | Q13: 15.4 | R13: 0.61 | T13: 158.99 | U13: 60.42 | W13: 98.57 | Y13: 42.35 | Z13: 14.88 | AA13: 0 | CP13: T.I. tesoro | CQ13: 175 | CR13: 15.4 | CS13: 0.6125 | CU13: 158.99 | CV13: 0.38 | CW13: 60.4162 | CX13: 0 | CY13: 0 | CZ13: =IF(H13=4,#REF!,IF(H13=6,#REF!,"0")) -> 0 | DA13: 0 | DE13: 42.35 | DF13: 14.875 | DH13: 0 | DI13: 0
A14: 8 | B14: 885 | C14: 2020-11-17 | D14: Tutor | E14: Docenti neoimmessi in ruolo | F14: Docente | G14: Bagala' Anunziata | H14: 1 | I14: 0 | J14: 35 | K14: 15 | L14: 17.5 | M14: 0.38 | N14: 262.5 | P14: 262.5 | Q14: 23.1 | R14: 0.92 | T14: 238.48 | U14: 90.62 | W14: 147.86 | Y14: 63.53 | Z14: 22.31 | AA14: 0 | CP14: T.I. tesoro | CQ14: 262.5 | CR14: 23.1 | CS14: 0.91875 | CU14: 238.48 | CV14: 0.38 | CW14: 90.6224 | CX14: 0 | CY14: 0 | CZ14: =IF(H14=4,#REF!,IF(H14=6,#REF!,"0")) -> 0 | DA14: 0 | DE14: 63.525 | DF14: 22.3125 | DH14: 0 | DI14: 0
A15: 9 | B15: 445 | C15: 2020-11-17 | D15: Funzioni_Strumentali | E15: Autovalutazione | F15: Docente | G15: Barbaro Ezia | H15: 1 | I15: 0 | J15: 35 | K15: 1 | L15: 300 | M15: 0.38 | N15: 300 | P15: 300 | Q15: 26.4 | R15: 1.05 | T15: 272.55 | U15: 103.57 | W15: 168.98 | Y15: 72.6 | Z15: 25.5 | AA15: 0 | CP15: T.I. tesoro | CQ15: 300 | CR15: 26.4 | CS15: 1.05 | CU15: 272.55 | CV15: 0.38 | CW15: 103.569 | CX15: 0 | CY15: 0 | CZ15: =IF(H15=4,#REF!,IF(H15=6,#REF!,"0")) -> 0 | DA15: 0 | DE15: 72.6 | DF15: 25.5 | DH15: 0 | DI15: 0
A16: 10 | B16: 8854 | C16: 2020-11-17 | D16: Ore_eccedenti | E16: Infanzia | F16: Docente | G16: Barbaro Luisa | H16: 1 | I16: 0 | J16: 35 | K16: 1 | L16: 300 | M16: 0.38 | N16: 300 | P16: 300 | Q16: 26.4 | R16: 1.05 | T16: 272.55 | U16: 103.57 | W16: 168.98 | Y16: 72.6 | Z16: 25.5 | AA16: 0 | CP16: T.I. tesoro | CQ16: 300 | CR16: 26.4 | CS16: 1.05 | CU16: 272.55 | CV16: 0.38 | CW16: 103.569 | CX16: 0 | CY16: 0 | CZ16: =IF(H16=4,#REF!,IF(H16=6,#REF!,"0")) -> 0 | DA16: 0 | DE16: 72.6 | DF16: 25.5 | DH16: 0 | DI16: 0
A17: 11 | B17: 88554 | C17: 2020-11-17 | D17: Valorizzazione | E17: Attività 1 | F17: Docente | G17: Barbaro Francesca | H17: 1 | I17: 0 | J17: 35 | K17: 1 | L17: 500 | M17: 0.38 | N17: 500 | P17: 500 | Q17: 44 | R17: 1.75 | T17: 454.25 | U17: 172.62 | W17: 281.63 | Y17: 121 | Z17: 42.5 | AA17: 0 | CP17: T.I. tesoro | CQ17: 500 | CR17: 44 | CS17: 1.75 | CU17: 454.25 | CV17: 0.38 | CW17: 172.615 | CX17: 0 | CY17: 0 | CZ17: =IF(H17=4,#REF!,IF(H17=6,#REF!,"0")) -> 0 | DA17: 0 | DE17: 121 | DF17: 42.5 | DH17: 0 | DI17: 0
A18: 12 | B18: 555 | C18: 2020-11-17 | D18: Valorizzazione | E18: Attività 3 | F18: Docente | G18: Barbaro Ezia | H18: 1 | I18: 0 | J18: 35 | K18: 1 | L18: 100 | M18: 0.38 | N18: 100 | P18: 100 | Q18: 8.8 | R18: 0.35 | T18: 90.85 | U18: 34.52 | W18: 56.33 | Y18: 24.2 | Z18: 8.5 | AA18: 0 | CP18: T.I. tesoro | CQ18: 100 | CR18: 8.8 | CS18: 0.35 | CU18: 90.85 | CV18: 0.38 | CW18: 34.523 | CX18: 0 | CY18: 0 | CZ18: =IF(H18=4,#REF!,IF(H18=6,#REF!,"0")) -> 0 | DA18: 0 | DE18: 24.2 | DF18: 8.5 | DH18: 0 | DI18: 0
A19: 13 | B19: 52585 | C19: 2020-11-17 | D19: Commissione | E19: Flessibilità | F19: Docente | G19: Pirrottina Carmelo | H19: 1 | I19: 0 | J19: 35 | K19: 1 | L19: 400 | M19: 0.38 | N19: 400 | P19: 400 | Q19: 35.2 | R19: 1.4 | T19: 363.4 | U19: 138.09 | W19: 225.31 | Y19: 96.8 | Z19: 34 | AA19: 0 | CP19: T.I. tesoro | CQ19: 400 | CR19: 35.2 | CS19: 1.4 | CU19: 363.4 | CV19: 0.38 | CW19: 138.092 | CX19: 0 | CY19: 0 | CZ19: =IF(H19=4,#REF!,IF(H19=6,#REF!,"0")) -> 0 | DA19: 0 | DE19: 96.8 | DF19: 34 | DH19: 0 | DI19: 0
A20: 14 | B20: 55 | C20: 2020-11-17 | D20: Commissione | E20: Flessibilità | F20: Docente | G20: Bagala` Carmela | H20: 1 | I20: 0 | J20: 35 | K20: 1 | L20: 200 | M20: 0.38 | N20: 200 | P20: 200 | Q20: 17.6 | R20: 0.7 | T20: 181.7 | U20: 69.05 | W20: 112.65 | Y20: 48.4 | Z20: 17 | AA20: 0 | CP20: T.I. tesoro | CQ20: 200 | CR20: 17.6 | CS20: 0.7 | CU20: 181.7 | CV20: 0.38 | CW20: 69.046 | CX20: 0 | CY20: 0 | CZ20: =IF(H20=4,#REF!,IF(H20=6,#REF!,"0")) -> 0 | DA20: 0 | DE20: 48.4 | DF20: 17 | DH20: 0 | DI20: 0
A21: 15 | B21: 2500 | C21: 2020-11-18 | D21: Commissione | E21: Flessibilità | F21: Docente | G21: Barbaro Luisa | H21: 1 | I21: 0 | J21: 35 | K21: 10 | L21: 17.5 | M21: 0.38 | N21: 175 | P21: 175 | Q21: 15.4 | R21: 0.61 | T21: 158.99 | U21: 60.42 | W21: 98.57 | Y21: 42.35 | Z21: 14.88 | AA21: 0 | CP21: T.I. tesoro | CQ21: 175 | CR21: 15.4 | CS21: 0.6125 | CU21: 158.99 | CV21: 0.38 | CW21: 60.4162 | CX21: 0 | CY21: 0 | CZ21: =IF(H21=4,#REF!,IF(H21=6,#REF!,"0")) -> 0 | DA21: 0 | DE21: 42.35 | DF21: 14.875 | DH21: 0 | DI21: 0
A22: 16 | B22: 133 | C22: 2020-11-18 | D22: Progetto | E22: Costruiamo un robot | F22: Docente | G22: Barbaro Luisa | H22: 1 | I22: 10 | J22: 35 | K22: 5 | L22: 17.5 | M22: 0.38 | N22: 437.5 | P22: 437.5 | Q22: 38.5 | R22: 1.53 | T22: 397.47 | U22: 151.04 | W22: 246.43 | Y22: 105.88 | Z22: 37.19 | AA22: 0 | CP22: T.I. tesoro | CQ22: 437.5 | CR22: 38.5 | CS22: 1.53125 | CU22: 397.47 | CV22: 0.38 | CW22: 151.0386 | CX22: 0 | CY22: 0 | CZ22: =IF(H22=4,#REF!,IF(H22=6,#REF!,"0")) -> 0 | DA22: 0 | DE22: 105.875 | DF22: 37.1875 | DH22: 0 | DI22: 0
A23: 17 | B23: 134 | C23: 2020-11-19 | D23: Progetto | E23: Costruiamo un robot | F23: Docente | G23: Barbaro Mario | H23: 1 | I23: 20 | J23: 35 | K23: 1 | L23: 17.5 | M23: 0.38 | N23: 717.5 | P23: 717.5 | Q23: 63.14 | R23: 2.51 | T23: 651.85 | U23: 247.7 | W23: 404.15 | Y23: 173.64 | Z23: 60.99 | AA23: 0 | CP23: T.I. tesoro | CQ23: 717.5 | CR23: 63.14 | CS23: 2.51125 | CU23: 651.85 | CV23: 0.38 | CW23: 247.703 | CX23: 0 | CY23: 0 | CZ23: =IF(H23=4,#REF!,IF(H23=6,#REF!,"0")) -> 0 | DA23: 0 | DE23: 173.635 | DF23: 60.9875 | DH23: 0 | DI23: 0
A24: 18 | B24: 135 | C24: 2020-11-20 | D24: Progetto | E24: Costruiamo un robot | F24: Docente | G24: Bagala` Carmela | H24: 1 | I24: 20 | J24: 35 | K24: 2 | L24: 17.5 | M24: 0.38 | N24: 735 | P24: 735 | Q24: 64.68 | R24: 2.57 | T24: 667.75 | U24: 253.75 | W24: 414 | Y24: 177.87 | Z24: 62.48 | AA24: 0 | CP24: T.I. tesoro | CQ24: 735 | CR24: 64.68 | CS24: 2.5725 | CU24: 667.75 | CV24: 0.38 | CW24: 253.745 | CX24: 0 | CY24: 0 | CZ24: =IF(H24=4,#REF!,IF(H24=6,#REF!,"0")) -> 0 | DA24: 0 | DE24: 177.87 | DF24: 62.475 | DH24: 0 | DI24: 0
A25: 19 | B25: 136 | C25: 2020-12-20 | D25: Commissione | E25: Regolamenti | F25: Docente | G25: Barbaro Francesca | H25: 1 | I25: 10 | J25: 35 | K25: 10 | L25: 17.5 | M25: 0.38 | N25: 525 | P25: 525 | Q25: 46.2 | R25: 1.84 | T25: 476.96 | U25: 181.24 | W25: 295.72 | Y25: 127.05 | Z25: 44.63 | AA25: 0 | CP25: T.I. tesoro | CQ25: 525 | CR25: 46.2 | CS25: 1.8375 | CU25: 476.96 | CV25: 0.38 | CW25: 181.2448 | CX25: 0 | CY25: 0 | CZ25: =IF(H25=4,#REF!,IF(H25=6,#REF!,"0")) -> 0 | DA25: 0 | DE25: 127.05 | DF25: 44.625 | DH25: 0 | DI25: 0
A26: 20 | B26: 137 | C26: 2020-12-20 | D26: Attività_aggiuntive_ATA | E26: Prestazioni agg. Estensive | F26: Ass._Amm.vo | G26: Pirrottina Anna | H26: 1 | I26: 10 | J26: 14.5 | K26: 0 | L26: 0 | M26: 0.38 | N26: 145 | P26: 145 | Q26: 12.76 | R26: 0.51 | T26: 131.73 | U26: 50.06 | W26: 81.67 | Y26: 35.09 | Z26: 12.33 | AA26: 0 | CP26: T.I. tesoro | CQ26: 145 | CR26: 12.76 | CS26: 0.5075 | CU26: 131.73 | CV26: 0.38 | CW26: 50.0574 | CX26: 0 | CY26: 0 | CZ26: =IF(H26=4,#REF!,IF(H26=6,#REF!,"0")) -> 0 | DA26: 0 | DE26: 35.09 | DF26: 12.325 | DH26: 0 | DI26: 0
A27: 21 | B27: 138 | C27: 2020-12-20 | D27: Attività_aggiuntive_ATA | E27: Prestazioni agg. Estensive | F27: Ass._Amm.vo | G27: Pitasi Ludovica | H27: 1 | I27: 20 | J27: 14.5 | K27: 0 | L27: 0 | M27: 0.38 | N27: 290 | P27: 290 | Q27: 25.52 | R27: 1.02 | T27: 263.46 | U27: 100.11 | W27: 163.35 | Y27: 70.18 | Z27: 24.65 | AA27: 0 | CP27: T.I. tesoro | CQ27: 290 | CR27: 25.52 | CS27: 1.015 | CU27: 263.46 | CV27: 0.38 | CW27: 100.1148 | CX27: 0 | CY27: 0 | CZ27: =IF(H27=4,#REF!,IF(H27=6,#REF!,"0")) -> 0 | DA27: 0 | DE27: 70.18 | DF27: 24.65 | DH27: 0 | DI27: 0
A28: 22 | B28: 139 | C28: 2020-12-20 | D28: Attività_aggiuntive_ATA | E28: Prestazioni agg. Estensive | F28: Coll._Scol | G28: Porcino Maria | H28: 1 | I28: 20 | J28: 12.5 | K28: 1 | L28: 200 | M28: 0.38 | N28: 450 | P28: 450 | Q28: 39.6 | R28: 1.58 | T28: 408.82 | U28: 155.35 | W28: 253.47 | Y28: 108.9 | Z28: 38.25 | AA28: 0 | CP28: T.I. tesoro | CQ28: 450 | CR28: 39.6 | CS28: 1.575 | CU28: 408.82 | CV28: 0.38 | CW28: 155.3516 | CX28: 0 | CY28: 0 | CZ28: =IF(H28=4,#REF!,IF(H28=6,#REF!,"0")) -> 0 | DA28: 0 | DE28: 108.9 | DF28: 38.25 | DH28: 0 | DI28: 0
A29: 23 | B29: 140 | C29: 2020-12-20 | D29: Attività_aggiuntive_ATA | E29: Prestazioni agg. Estensive | F29: Ass._Tecnico | G29: Barone Giuseppe | H29: 1 | I29: 20 | J29: 12.5 | K29: 1 | L29: 200 | M29: 0.38 | N29: =SUM(I29*J29)+(K29*L29) -> 450 | P29: 450 | Q29: 39.6 | R29: 1.58 | T29: 408.82 | U29: 155.35 | W29: 253.47 | Y29: 108.9 | Z29: 38.25 | AA29: 0 | CP29: T.I. tesoro | CQ29: 450 | CR29: 39.6 | CS29: 1.575 | CU29: 408.82 | CV29: 0.38 | CW29: 155.3516 | CX29: 0 | CY29: 0 | CZ29: =IF(H29=4,#REF!,IF(H29=6,#REF!,"0")) -> 0 | DA29: 0 | DE29: 108.9 | DF29: 38.25 | DH29: 0 | DI29: 0
A30: 24 | B30: 140 | C30: 2020-12-20 | D30: Attività_aggiuntive_ATA | E30: Prestazioni agg. Estensive | F30: Ass._Tecnico | G30: Barone Giuseppe | H30: 1 | I30: 0 | J30: 12.5 | K30: 1 | L30: 200 | M30: 0.38 | N30: =SUM(I30*J30)+(K30*L30) -> 200 | P30: 200 | Q30: 17.6 | R30: 0.7 | T30: 181.7 | U30: 69.05 | W30: 112.65 | Y30: 48.4 | Z30: 17 | AA30: 0 | CP30: T.I. tesoro | CQ30: 200 | CR30: 17.6 | CS30: 0.7 | CU30: 181.7 | CV30: 0.38 | CW30: 69.046 | CX30: 0 | CY30: 0 | CZ30: =IF(H30=4,#REF!,IF(H30=6,#REF!,"0")) -> 0 | DA30: 0 | DE30: 48.4 | DF30: 17 | DH30: 0 | DI30: 0
A31: 25 | N31: 0 | P31: 0 | Q31: 0 | R31: 0 | T31: 0 | U31: 0 | W31: 0 | Y31: 0 | Z31: 0 | AA31: 0 | CQ31: 0 | CR31: 0 | CS31: 0 | CU31: 0 | CV31: 0 | CW31: 0 | CX31: 0 | CY31: 0 | CZ31: =IF(H31=4,#REF!,IF(H31=6,#REF!,"0")) -> 0 | DA31: 0 | DE31: 0 | DF31: 0 | DH31: 0 | DI31: 0
A32: 26 | N32: 0 | P32: 0 | Q32: 0 | R32: 0 | T32: 0 | U32: 0 | W32: 0 | Y32: 0 | Z32: 0 | AA32: 0 | CQ32: 0 | CR32: 0 | CS32: 0 | CU32: 0 | CV32: 0 | CW32: 0 | CX32: 0 | CY32: 0 | CZ32: =IF(H32=4,#REF!,IF(H32=6,#REF!,"0")) -> 0 | DA32: 0 | DE32: 0 | DF32: 0 | DH32: 0 | DI32: 0
A33: 27 | N33: 0 | P33: 0 | Q33: 0 | R33: 0 | T33: 0 | U33: 0 | W33: 0 | Y33: 0 | Z33: 0 | AA33: 0 | CQ33: 0 | CR33: 0 | CS33: 0 | CU33: 0 | CV33: 0 | CW33: 0 | CX33: 0 | CY33: 0 | CZ33: =IF(H33=4,#REF!,IF(H33=6,#REF!,"0")) -> 0 | DA33: 0 | DE33: 0 | DF33: 0 | DH33: 0 | DI33: 0
A34: 28 | N34: 0 | P34: 0 | Q34: 0 | R34: 0 | T34: 0 | U34: 0 | W34: 0 | Y34: 0 | Z34: 0 | AA34: 0 | CQ34: 0 | CR34: 0 | CS34: 0 | CU34: 0 | CV34: 0 | CW34: 0 | CX34: 0 | CY34: 0 | CZ34: =IF(H34=4,#REF!,IF(H34=6,#REF!,"0")) -> 0 | DA34: 0 | DE34: 0 | DF34: 0 | DH34: 0 | DI34: 0
A35: 29 | N35: 0 | P35: 0 | Q35: 0 | R35: 0 | T35: 0 | U35: 0 | W35: 0 | Y35: 0 | Z35: 0 | AA35: 0 | CQ35: 0 | CR35: 0 | CS35: 0 | CU35: 0 | CV35: 0 | CW35: 0 | CX35: 0 | CY35: 0 | CZ35: =IF(H35=4,#REF!,IF(H35=6,#REF!,"0")) -> 0 | DA35: 0 | DE35: 0 | DF35: 0 | DH35: 0 | DI35: 0
A36: 30 | N36: 0 | P36: =SUM(I36*J36)+(K36*L36) -> 0 | Q36: =ROUND(CR36,2) -> 0 | R36: =ROUND(CS36,2) -> 0 | T36: 0 | U36: =ROUND(CW36,2) -> 0 | W36: =SUM(T36-U36) -> 0 | Y36: =ROUND(DE36,2) -> 0 | Z36: =ROUND(DF36,2) -> 0 | AA36: =ROUND(DI36,2) -> 0 | CQ36: 0 | CR36: 0 | CS36: 0 | CU36: =SUM(T36) -> 0 | CV36: 0 | CW36: =SUM(CU36*CV36) -> 0 | CX36: 0 | CY36: =SUM(CU36*CX36) -> 0 | CZ36: =IF(H36=4,#REF!,IF(H36=6,#REF!,"0")) -> 0 | DA36: =SUM(CU36*CZ36) -> 0 | DE36: 0 | DF36: =SUM(CQ36*$DF$6) -> 0 | DH36: 0 | DI36: 0
A37: 31 | N37: 0 | P37: 0 | Q37: 0 | R37: 0 | T37: 0 | U37: 0 | W37: 0 | Y37: 0 | Z37: 0 | AA37: 0 | CQ37: 0 | CR37: 0 | CS37: 0 | CU37: 0 | CV37: 0 | CW37: 0 | CX37: 0 | CY37: 0 | CZ37: =IF(H37=4,#REF!,IF(H37=6,#REF!,"0")) -> 0 | DA37: 0 | DE37: 0 | DF37: 0 | DH37: 0 | DI37: 0
A38: 32 | N38: 0 | P38: 0 | Q38: 0 | R38: 0 | T38: 0 | U38: 0 | W38: 0 | Y38: 0 | Z38: 0 | AA38: 0 | CQ38: 0 | CR38: 0 | CS38: 0 | CU38: 0 | CV38: 0 | CW38: 0 | CX38: 0 | CY38: 0 | CZ38: =IF(H38=4,#REF!,IF(H38=6,#REF!,"0")) -> 0 | DA38: 0 | DE38: 0 | DF38: 0 | DH38: 0 | DI38: 0
A39: 33 | N39: 0 | P39: 0 | Q39: 0 | R39: 0 | T39: 0 | U39: 0 | W39: 0 | Y39: 0 | Z39: 0 | AA39: 0 | CQ39: 0 | CR39: 0 | CS39: 0 | CU39: 0 | CV39: 0 | CW39: 0 | CX39: 0 | CY39: 0 | CZ39: =IF(H39=4,#REF!,IF(H39=6,#REF!,"0")) -> 0 | DA39: 0 | DE39: 0 | DF39: 0 | DH39: 0 | DI39: 0
A40: 34 | N40: 0 | P40: 0 | Q40: 0 | R40: 0 | T40: 0 | U40: 0 | W40: 0 | Y40: 0 | Z40: 0 | AA40: 0 | CQ40: 0 | CR40: 0 | CS40: 0 | CU40: 0 | CV40: 0 | CW40: 0 | CX40: 0 | CY40: 0 | CZ40: =IF(H40=4,#REF!,IF(H40=6,#REF!,"0")) -> 0 | DA40: 0 | DE40: 0 | DF40: 0 | DH40: 0 | DI40: 0
A41: 35 | N41: 0 | P41: 0 | Q41: 0 | R41: 0 | T41: 0 | U41: 0 | W41: 0 | Y41: 0 | Z41: 0 | AA41: 0 | CQ41: 0 | CR41: 0 | CS41: 0 | CU41: 0 | CV41: 0 | CW41: 0 | CX41: 0 | CY41: 0 | CZ41: =IF(H41=4,#REF!,IF(H41=6,#REF!,"0")) -> 0 | DA41: 0 | DE41: 0 | DF41: 0 | DH41: 0 | DI41: 0
A42: 36 | N42: 0 | P42: 0 | Q42: 0 | R42: 0 | T42: 0 | U42: 0 | W42: 0 | Y42: 0 | Z42: 0 | AA42: 0 | CQ42: 0 | CR42: 0 | CS42: 0 | CU42: 0 | CV42: 0 | CW42: 0 | CX42: 0 | CY42: 0 | CZ42: =IF(H42=4,#REF!,IF(H42=6,#REF!,"0")) -> 0 | DA42: 0 | DE42: 0 | DF42: 0 | DH42: 0 | DI42: 0
A43: 37 | N43: 0 | P43: 0 | Q43: 0 | R43: 0 | T43: 0 | U43: 0 | W43: 0 | Y43: 0 | Z43: 0 | AA43: 0 | CQ43: 0 | CR43: 0 | CS43: 0 | CU43: 0 | CV43: 0 | CW43: 0 | CX43: 0 | CY43: 0 | CZ43: =IF(H43=4,#REF!,IF(H43=6,#REF!,"0")) -> 0 | DA43: 0 | DE43: 0 | DF43: 0 | DH43: 0 | DI43: 0
A44: 38 | N44: 0 | P44: 0 | Q44: 0 | R44: 0 | T44: 0 | U44: 0 | W44: 0 | Y44: 0 | Z44: 0 | AA44: 0 | CQ44: 0 | CR44: 0 | CS44: 0 | CU44: 0 | CV44: 0 | CW44: 0 | CX44: 0 | CY44: 0 | CZ44: =IF(H44=4,#REF!,IF(H44=6,#REF!,"0")) -> 0 | DA44: 0 | DE44: 0 | DF44: 0 | DH44: 0 | DI44: 0
A45: 39 | N45: 0 | P45: 0 | Q45: 0 | R45: 0 | T45: 0 | U45: 0 | W45: 0 | Y45: 0 | Z45: 0 | AA45: 0 | CQ45: 0 | CR45: 0 | CS45: 0 | CU45: 0 | CV45: 0 | CW45: 0 | CX45: 0 | CY45: 0 | CZ45: =IF(H45=4,#REF!,IF(H45=6,#REF!,"0")) -> 0 | DA45: 0 | DE45: 0 | DF45: 0 | DH45: 0 | DI45: 0
A46: 40 | N46: 0 | P46: 0 | Q46: 0 | R46: 0 | T46: 0 | U46: 0 | W46: 0 | Y46: 0 | Z46: 0 | AA46: 0 | CQ46: 0 | CR46: 0 | CS46: 0 | CU46: 0 | CV46: 0 | CW46: 0 | CX46: 0 | CY46: 0 | CZ46: =IF(H46=4,#REF!,IF(H46=6,#REF!,"0")) -> 0 | DA46: 0 | DE46: 0 | DF46: 0 | DH46: 0 | DI46: 0
A47: 41 | N47: 0 | P47: 0 | Q47: 0 | R47: 0 | T47: 0 | U47: 0 | W47: 0 | Y47: 0 | Z47: 0 | AA47: 0 | CQ47: 0 | CR47: 0 | CS47: 0 | CU47: 0 | CV47: 0 | CW47: 0 | CX47: 0 | CY47: 0 | CZ47: =IF(H47=4,#REF!,IF(H47=6,#REF!,"0")) -> 0 | DA47: 0 | DE47: 0 | DF47: 0 | DH47: 0 | DI47: 0
A48: 42 | N48: 0 | P48: 0 | Q48: 0 | R48: 0 | T48: 0 | U48: 0 | W48: 0 | Y48: 0 | Z48: 0 | AA48: 0 | CQ48: 0 | CR48: 0 | CS48: 0 | CU48: 0 | CV48: 0 | CW48: 0 | CX48: 0 | CY48: 0 | CZ48: =IF(H48=4,#REF!,IF(H48=6,#REF!,"0")) -> 0 | DA48: 0 | DE48: 0 | DF48: 0 | DH48: 0 | DI48: 0
A49: 43 | N49: 0 | P49: 0 | Q49: 0 | R49: 0 | T49: 0 | U49: 0 | W49: 0 | Y49: 0 | Z49: 0 | AA49: 0 | CQ49: 0 | CR49: 0 | CS49: 0 | CU49: 0 | CV49: 0 | CW49: 0 | CX49: 0 | CY49: 0 | CZ49: =IF(H49=4,#REF!,IF(H49=6,#REF!,"0")) -> 0 | DA49: 0 | DE49: 0 | DF49: 0 | DH49: 0 | DI49: 0
A50: 44 | N50: 0 | P50: 0 | Q50: 0 | R50: 0 | T50: 0 | U50: 0 | W50: 0 | Y50: 0 | Z50: 0 | AA50: 0 | CQ50: 0 | CR50: 0 | CS50: 0 | CU50: 0 | CV50: 0 | CW50: 0 | CX50: 0 | CY50: 0 | CZ50: =IF(H50=4,#REF!,IF(H50=6,#REF!,"0")) -> 0 | DA50: 0 | DE50: 0 | DF50: 0 | DH50: 0 | DI50: 0
A51: 45 | N51: 0 | P51: 0 | Q51: 0 | R51: 0 | T51: 0 | U51: 0 | W51: 0 | Y51: 0 | Z51: 0 | AA51: 0 | CQ51: 0 | CR51: 0 | CS51: 0 | CU51: 0 | CV51: 0 | CW51: 0 | CX51: 0 | CY51: 0 | CZ51: =IF(H51=4,#REF!,IF(H51=6,#REF!,"0")) -> 0 | DA51: 0 | DE51: 0 | DF51: 0 | DH51: 0 | DI51: 0
A52: 46 | N52: 0 | P52: 0 | Q52: 0 | R52: 0 | T52: 0 | U52: 0 | W52: 0 | Y52: 0 | Z52: 0 | AA52: 0 | CQ52: 0 | CR52: 0 | CS52: 0 | CU52: 0 | CV52: 0 | CW52: 0 | CX52: 0 | CY52: 0 | CZ52: =IF(H52=4,#REF!,IF(H52=6,#REF!,"0")) -> 0 | DA52: 0 | DE52: 0 | DF52: 0 | DH52: 0 | DI52: 0
A53: 47 | N53: 0 | P53: 0 | Q53: 0 | R53: 0 | T53: 0 | U53: 0 | W53: 0 | Y53: 0 | Z53: 0 | AA53: 0 | CQ53: 0 | CR53: 0 | CS53: 0 | CU53: 0 | CV53: 0 | CW53: 0 | CX53: 0 | CY53: 0 | CZ53: =IF(H53=4,#REF!,IF(H53=6,#REF!,"0")) -> 0 | DA53: 0 | DE53: 0 | DF53: 0 | DH53: 0 | DI53: 0
A54: 48 | N54: 0 | P54: 0 | Q54: 0 | R54: 0 | T54: 0 | U54: 0 | W54: 0 | Y54: 0 | Z54: 0 | AA54: 0 | CQ54: 0 | CR54: 0 | CS54: 0 | CU54: 0 | CV54: 0 | CW54: 0 | CX54: 0 | CY54: 0 | CZ54: =IF(H54=4,#REF!,IF(H54=6,#REF!,"0")) -> 0 | DA54: 0 | DE54: 0 | DF54: 0 | DH54: 0 | DI54: 0
A55: 49 | N55: 0 | P55: 0 | Q55: 0 | R55: 0 | T55: 0 | U55: 0 | W55: 0 | Y55: 0 | Z55: 0 | AA55: 0 | CQ55: 0 | CR55: 0 | CS55: 0 | CU55: 0 | CV55: 0 | CW55: 0 | CX55: 0 | CY55: 0 | CZ55: =IF(H55=4,#REF!,IF(H55=6,#REF!,"0")) -> 0 | DA55: 0 | DE55: 0 | DF55: 0 | DH55: 0 | DI55: 0
A56: 50 | N56: 0 | P56: 0 | Q56: 0 | R56: 0 | T56: 0 | U56: 0 | W56: 0 | Y56: 0 | Z56: 0 | AA56: 0 | CQ56: 0 | CR56: 0 | CS56: 0 | CU56: 0 | CV56: 0 | CW56: 0 | CX56: 0 | CY56: 0 | CZ56: =IF(H56=4,#REF!,IF(H56=6,#REF!,"0")) -> 0 | DA56: 0 | DE56: 0 | DF56: 0 | DH56: 0 | DI56: 0
A57: 51 | N57: 0 | P57: 0 | Q57: 0 | R57: 0 | T57: 0 | U57: 0 | W57: 0 | Y57: 0 | Z57: 0 | AA57: 0 | CQ57: 0 | CR57: 0 | CS57: 0 | CU57: 0 | CV57: 0 | CW57: 0 | CX57: 0 | CY57: 0 | CZ57: =IF(H57=4,#REF!,IF(H57=6,#REF!,"0")) -> 0 | DA57: 0 | DE57: 0 | DF57: 0 | DH57: 0 | DI57: 0
A58: 52 | N58: 0 | P58: 0 | Q58: 0 | R58: 0 | T58: 0 | U58: 0 | W58: 0 | Y58: 0 | Z58: 0 | AA58: 0 | CQ58: 0 | CR58: 0 | CS58: 0 | CU58: 0 | CV58: 0 | CW58: 0 | CX58: 0 | CY58: 0 | CZ58: =IF(H58=4,#REF!,IF(H58=6,#REF!,"0")) -> 0 | DA58: 0 | DE58: 0 | DF58: 0 | DH58: 0 | DI58: 0
A59: 53 | N59: 0 | P59: 0 | Q59: 0 | R59: 0 | T59: 0 | U59: 0 | W59: 0 | Y59: 0 | Z59: 0 | AA59: 0 | CQ59: 0 | CR59: 0 | CS59: 0 | CU59: 0 | CV59: 0 | CW59: 0 | CX59: 0 | CY59: 0 | CZ59: =IF(H59=4,#REF!,IF(H59=6,#REF!,"0")) -> 0 | DA59: 0 | DE59: 0 | DF59: 0 | DH59: 0 | DI59: 0
A60: 54 | N60: 0 | P60: 0 | Q60: 0 | R60: 0 | T60: 0 | U60: 0 | W60: 0 | Y60: 0 | Z60: 0 | AA60: 0 | CQ60: 0 | CR60: 0 | CS60: 0 | CU60: 0 | CV60: 0 | CW60: 0 | CX60: 0 | CY60: 0 | CZ60: =IF(H60=4,#REF!,IF(H60=6,#REF!,"0")) -> 0 | DA60: 0 | DE60: 0 | DF60: 0 | DH60: 0 | DI60: 0
A61: 55 | N61: 0 | P61: 0 | Q61: 0 | R61: 0 | T61: 0 | U61: 0 | W61: 0 | Y61: 0 | Z61: 0 | AA61: 0 | CQ61: 0 | CR61: 0 | CS61: 0 | CU61: 0 | CV61: 0 | CW61: 0 | CX61: 0 | CY61: 0 | CZ61: =IF(H61=4,#REF!,IF(H61=6,#REF!,"0")) -> 0 | DA61: 0 | DE61: 0 | DF61: 0 | DH61: 0 | DI61: 0
A62: 56 | N62: 0 | P62: 0 | Q62: 0 | R62: 0 | T62: 0 | U62: 0 | W62: 0 | Y62: 0 | Z62: 0 | AA62: 0 | CQ62: 0 | CR62: 0 | CS62: 0 | CU62: 0 | CV62: 0 | CW62: 0 | CX62: 0 | CY62: 0 | CZ62: =IF(H62=4,#REF!,IF(H62=6,#REF!,"0")) -> 0 | DA62: 0 | DE62: 0 | DF62: 0 | DH62: 0 | DI62: 0
A63: 57 | N63: 0 | P63: 0 | Q63: 0 | R63: 0 | T63: 0 | U63: 0 | W63: 0 | Y63: 0 | Z63: 0 | AA63: 0 | CQ63: 0 | CR63: 0 | CS63: 0 | CU63: 0 | CV63: 0 | CW63: 0 | CX63: 0 | CY63: 0 | CZ63: =IF(H63=4,#REF!,IF(H63=6,#REF!,"0")) -> 0 | DA63: 0 | DE63: 0 | DF63: 0 | DH63: 0 | DI63: 0
A64: 58 | N64: 0 | P64: 0 | Q64: 0 | R64: 0 | T64: 0 | U64: 0 | W64: 0 | Y64: 0 | Z64: 0 | AA64: 0 | CQ64: 0 | CR64: 0 | CS64: 0 | CU64: 0 | CV64: 0 | CW64: 0 | CX64: 0 | CY64: 0 | CZ64: =IF(H64=4,#REF!,IF(H64=6,#REF!,"0")) -> 0 | DA64: 0 | DE64: 0 | DF64: 0 | DH64: 0 | DI64: 0
A65: 59 | N65: 0 | P65: 0 | Q65: 0 | R65: 0 | T65: 0 | U65: 0 | W65: 0 | Y65: 0 | Z65: 0 | AA65: 0 | CQ65: 0 | CR65: 0 | CS65: 0 | CU65: 0 | CV65: 0 | CW65: 0 | CX65: 0 | CY65: 0 | CZ65: =IF(H65=4,#REF!,IF(H65=6,#REF!,"0")) -> 0 | DA65: 0 | DE65: 0 | DF65: 0 | DH65: 0 | DI65: 0
A66: 60 | N66: 0 | P66: 0 | Q66: 0 | R66: 0 | T66: 0 | U66: 0 | W66: 0 | Y66: 0 | Z66: 0 | AA66: 0 | CQ66: 0 | CR66: 0 | CS66: 0 | CU66: 0 | CV66: 0 | CW66: 0 | CX66: 0 | CY66: 0 | CZ66: =IF(H66=4,#REF!,IF(H66=6,#REF!,"0")) -> 0 | DA66: 0 | DE66: 0 | DF66: 0 | DH66: 0 | DI66: 0
A67: 61 | N67: 0 | P67: 0 | Q67: 0 | R67: 0 | T67: 0 | U67: 0 | W67: 0 | Y67: 0 | Z67: 0 | AA67: 0 | CQ67: 0 | CR67: 0 | CS67: 0 | CU67: 0 | CV67: 0 | CW67: 0 | CX67: 0 | CY67: 0 | CZ67: =IF(H67=4,#REF!,IF(H67=6,#REF!,"0")) -> 0 | DA67: 0 | DE67: 0 | DF67: 0 | DH67: 0 | DI67: 0
A68: 62 | N68: 0 | P68: 0 | Q68: 0 | R68: 0 | T68: 0 | U68: 0 | W68: 0 | Y68: 0 | Z68: 0 | AA68: 0 | CQ68: 0 | CR68: 0 | CS68: 0 | CU68: 0 | CV68: 0 | CW68: 0 | CX68: 0 | CY68: 0 | CZ68: =IF(H68=4,#REF!,IF(H68=6,#REF!,"0")) -> 0 | DA68: 0 | DE68: 0 | DF68: 0 | DH68: 0 | DI68: 0
A69: 63 | N69: 0 | P69: 0 | Q69: 0 | R69: 0 | T69: 0 | U69: 0 | W69: 0 | Y69: 0 | Z69: 0 | AA69: 0 | CQ69: 0 | CR69: 0 | CS69: 0 | CU69: 0 | CV69: 0 | CW69: 0 | CX69: 0 | CY69: 0 | CZ69: =IF(H69=4,#REF!,IF(H69=6,#REF!,"0")) -> 0 | DA69: 0 | DE69: 0 | DF69: 0 | DH69: 0 | DI69: 0
A70: 64 | N70: 0 | P70: 0 | Q70: 0 | R70: 0 | T70: 0 | U70: 0 | W70: 0 | Y70: 0 | Z70: 0 | AA70: 0 | CQ70: 0 | CR70: 0 | CS70: 0 | CU70: 0 | CV70: 0 | CW70: 0 | CX70: 0 | CY70: 0 | CZ70: =IF(H70=4,#REF!,IF(H70=6,#REF!,"0")) -> 0 | DA70: 0 | DE70: 0 | DF70: 0 | DH70: 0 | DI70: 0
A71: 65 | N71: 0 | P71: 0 | Q71: 0 | R71: 0 | T71: =SUM(P71-Q71-R71) -> 0 | U71: 0 | W71: 0 | Y71: 0 | Z71: 0 | AA71: 0 | CP71: =IF(H71=1,"T.I. tesoro",IF(H71=2,"T.D. tesoro",IF(H71=3,"T.D. tesoro",IF(H71=4,"T.D. scuola",IF(H71=5," tesoro",IF(H71=6," scuola"," ")))))) ->  | CQ71: =SUM(P71) -> 0 | CR71: =IF(H71=1,CQ71*$CR$6,IF(H71=2,CQ71*$CR$6,IF(H71=3,CQ71*$CR$6,0))) -> 0 | CS71: =IF(H71=1,CQ71*$CS$6,IF(H71=2,CQ71*$CS$6,IF(H71=3,CQ71*$CS$6,0))) -> 0 | CU71: 0 | CV71: =SUM(M71) -> 0 | CW71: 0 | CX71: =IF(H71=4,O71,IF(H71=6,O71,"0")) -> 0 | CY71: 0 | CZ71: =IF(H71=4,#REF!,IF(H71=6,#REF!,"0")) -> 0 | DA71: 0 | DE71: =IF(H71=1,CQ71*$DE$6,IF(H71=2,CQ71*$DE$6,IF(H71=3,CQ71*$DE$6,0))) -> 0 | DF71: 0 | DH71: =IF(H71=2,CQ71,IF(H71=3,CQ71,IF(H71=4,CQ71,"0"))) -> 0 | DI71: 0
A72: 66 | N72: =SUM(I72*J72)+(K72*L72) -> 0 | P72: 0 | Q72: 0 | R72: 0 | T72: 0 | U72: 0 | W72: 0 | Y72: 0 | Z72: 0 | AA72: 0 | CQ72: 0 | CR72: 0 | CS72: 0 | CU72: 0 | CV72: 0 | CW72: 0 | CX72: 0 | CY72: 0 | CZ72: =IF(H72=4,#REF!,IF(H72=6,#REF!,"0")) -> 0 | DA72: 0 | DE72: 0 | DF72: 0 | DH72: 0 | DI72: =SUM(DH72*$DI$6) -> 0
A73: 67 | N73: 0 | P73: 0 | Q73: 0 | R73: 0 | T73: 0 | U73: 0 | W73: 0 | Y73: 0 | Z73: 0 | AA73: 0 | CQ73: 0 | CR73: 0 | CS73: 0 | CU73: 0 | CV73: 0 | CW73: 0 | CX73: 0 | CY73: 0 | CZ73: =IF(H73=4,#REF!,IF(H73=6,#REF!,"0")) -> 0 | DA73: 0 | DE73: 0 | DF73: 0 | DH73: 0 | DI73: 0
A74: 68 | N74: 0 | P74: 0 | Q74: 0 | R74: 0 | T74: 0 | U74: 0 | W74: 0 | Y74: 0 | Z74: 0 | AA74: 0 | CQ74: 0 | CR74: 0 | CS74: 0 | CU74: 0 | CV74: 0 | CW74: 0 | CX74: 0 | CY74: 0 | CZ74: =IF(H74=4,#REF!,IF(H74=6,#REF!,"0")) -> 0 | DA74: 0 | DE74: 0 | DF74: 0 | DH74: 0 | DI74: 0
A75: 69 | N75: 0 | P75: 0 | Q75: 0 | R75: 0 | T75: 0 | U75: 0 | W75: 0 | Y75: 0 | Z75: 0 | AA75: 0 | CQ75: 0 | CR75: 0 | CS75: 0 | CU75: 0 | CV75: 0 | CW75: 0 | CX75: 0 | CY75: 0 | CZ75: =IF(H75=4,#REF!,IF(H75=6,#REF!,"0")) -> 0 | DA75: 0 | DE75: 0 | DF75: 0 | DH75: 0 | DI75: 0
A76: 70 | N76: 0 | P76: 0 | Q76: 0 | R76: 0 | T76: 0 | U76: 0 | W76: 0 | Y76: 0 | Z76: 0 | AA76: 0 | CQ76: 0 | CR76: 0 | CS76: 0 | CU76: 0 | CV76: 0 | CW76: 0 | CX76: 0 | CY76: 0 | CZ76: =IF(H76=4,#REF!,IF(H76=6,#REF!,"0")) -> 0 | DA76: 0 | DE76: 0 | DF76: 0 | DH76: 0 | DI76: 0
A77: 71 | N77: 0 | P77: 0 | Q77: 0 | R77: 0 | T77: 0 | U77: 0 | W77: 0 | Y77: 0 | Z77: 0 | AA77: 0 | CQ77: 0 | CR77: 0 | CS77: 0 | CU77: 0 | CV77: 0 | CW77: 0 | CX77: 0 | CY77: 0 | CZ77: =IF(H77=4,#REF!,IF(H77=6,#REF!,"0")) -> 0 | DA77: 0 | DE77: 0 | DF77: 0 | DH77: 0 | DI77: 0
A78: 72 | N78: 0 | P78: 0 | Q78: 0 | R78: 0 | T78: 0 | U78: 0 | W78: 0 | Y78: 0 | Z78: 0 | AA78: 0 | CQ78: 0 | CR78: 0 | CS78: 0 | CU78: 0 | CV78: 0 | CW78: 0 | CX78: 0 | CY78: 0 | CZ78: =IF(H78=4,#REF!,IF(H78=6,#REF!,"0")) -> 0 | DA78: 0 | DE78: 0 | DF78: 0 | DH78: 0 | DI78: 0
A79: 73 | N79: 0 | P79: 0 | Q79: 0 | R79: 0 | T79: 0 | U79: 0 | W79: 0 | Y79: 0 | Z79: 0 | AA79: 0 | CQ79: 0 | CR79: 0 | CS79: 0 | CU79: 0 | CV79: 0 | CW79: 0 | CX79: 0 | CY79: 0 | CZ79: =IF(H79=4,#REF!,IF(H79=6,#REF!,"0")) -> 0 | DA79: 0 | DE79: 0 | DF79: 0 | DH79: 0 | DI79: 0
A80: 74 | N80: 0 | P80: 0 | Q80: 0 | R80: 0 | T80: 0 | U80: 0 | W80: 0 | Y80: 0 | Z80: 0 | AA80: 0 | CQ80: 0 | CR80: 0 | CS80: 0 | CU80: 0 | CV80: 0 | CW80: 0 | CX80: 0 | CY80: 0 | CZ80: =IF(H80=4,#REF!,IF(H80=6,#REF!,"0")) -> 0 | DA80: 0 | DE80: 0 | DF80: 0 | DH80: 0 | DI80: 0
A81: 75 | N81: 0 | P81: 0 | Q81: 0 | R81: 0 | T81: 0 | U81: 0 | W81: 0 | Y81: 0 | Z81: 0 | AA81: 0 | CQ81: 0 | CR81: 0 | CS81: 0 | CU81: 0 | CV81: 0 | CW81: 0 | CX81: 0 | CY81: 0 | CZ81: =IF(H81=4,#REF!,IF(H81=6,#REF!,"0")) -> 0 | DA81: 0 | DE81: 0 | DF81: 0 | DH81: 0 | DI81: 0
A82: 76 | N82: 0 | P82: 0 | Q82: 0 | R82: 0 | T82: 0 | U82: 0 | W82: 0 | Y82: 0 | Z82: 0 | AA82: 0 | CQ82: 0 | CR82: 0 | CS82: 0 | CU82: 0 | CV82: 0 | CW82: 0 | CX82: 0 | CY82: 0 | CZ82: =IF(H82=4,#REF!,IF(H82=6,#REF!,"0")) -> 0 | DA82: 0 | DE82: 0 | DF82: 0 | DH82: 0 | DI82: 0
A83: 77 | N83: 0 | P83: 0 | Q83: 0 | R83: 0 | T83: 0 | U83: 0 | W83: 0 | Y83: 0 | Z83: 0 | AA83: 0 | CQ83: 0 | CR83: 0 | CS83: 0 | CU83: 0 | CV83: 0 | CW83: 0 | CX83: 0 | CY83: 0 | CZ83: =IF(H83=4,#REF!,IF(H83=6,#REF!,"0")) -> 0 | DA83: 0 | DE83: 0 | DF83: 0 | DH83: 0 | DI83: 0
A84: 78 | N84: 0 | P84: 0 | Q84: 0 | R84: 0 | T84: 0 | U84: 0 | W84: 0 | Y84: 0 | Z84: 0 | AA84: 0 | CQ84: 0 | CR84: 0 | CS84: 0 | CU84: 0 | CV84: 0 | CW84: 0 | CX84: 0 | CY84: 0 | CZ84: =IF(H84=4,#REF!,IF(H84=6,#REF!,"0")) -> 0 | DA84: 0 | DE84: 0 | DF84: 0 | DH84: 0 | DI84: 0
A85: 79 | N85: 0 | P85: 0 | Q85: 0 | R85: 0 | T85: 0 | U85: 0 | W85: 0 | Y85: 0 | Z85: 0 | AA85: 0 | CQ85: 0 | CR85: 0 | CS85: 0 | CU85: 0 | CV85: 0 | CW85: 0 | CX85: 0 | CY85: 0 | CZ85: =IF(H85=4,#REF!,IF(H85=6,#REF!,"0")) -> 0 | DA85: 0 | DE85: 0 | DF85: 0 | DH85: 0 | DI85: 0
A86: 80 | N86: 0 | P86: 0 | Q86: 0 | R86: 0 | T86: 0 | U86: 0 | W86: 0 | Y86: 0 | Z86: 0 | AA86: 0 | CQ86: 0 | CR86: 0 | CS86: 0 | CU86: 0 | CV86: 0 | CW86: 0 | CX86: 0 | CY86: 0 | CZ86: =IF(H86=4,#REF!,IF(H86=6,#REF!,"0")) -> 0 | DA86: 0 | DE86: 0 | DF86: 0 | DH86: 0 | DI86: 0
A87: 81 | N87: 0 | P87: 0 | Q87: 0 | R87: 0 | T87: 0 | U87: 0 | W87: 0 | Y87: 0 | Z87: 0 | AA87: 0 | CQ87: 0 | CR87: 0 | CS87: 0 | CU87: 0 | CV87: 0 | CW87: 0 | CX87: 0 | CY87: 0 | CZ87: =IF(H87=4,#REF!,IF(H87=6,#REF!,"0")) -> 0 | DA87: 0 | DE87: 0 | DF87: 0 | DH87: 0 | DI87: 0
A88: 82 | N88: 0 | P88: 0 | Q88: 0 | R88: 0 | T88: 0 | U88: 0 | W88: 0 | Y88: 0 | Z88: 0 | AA88: 0 | CQ88: 0 | CR88: 0 | CS88: 0 | CU88: 0 | CV88: 0 | CW88: 0 | CX88: 0 | CY88: 0 | CZ88: =IF(H88=4,#REF!,IF(H88=6,#REF!,"0")) -> 0 | DA88: 0 | DE88: 0 | DF88: 0 | DH88: 0 | DI88: 0
A89: 83 | N89: 0 | P89: 0 | Q89: 0 | R89: 0 | T89: 0 | U89: 0 | W89: 0 | Y89: 0 | Z89: 0 | AA89: 0 | CQ89: 0 | CR89: 0 | CS89: 0 | CU89: 0 | CV89: 0 | CW89: 0 | CX89: 0 | CY89: 0 | CZ89: =IF(H89=4,#REF!,IF(H89=6,#REF!,"0")) -> 0 | DA89: 0 | DE89: 0 | DF89: 0 | DH89: 0 | DI89: 0
A90: 84 | N90: 0 | P90: 0 | Q90: 0 | R90: 0 | T90: 0 | U90: 0 | W90: 0 | Y90: 0 | Z90: 0 | AA90: 0 | CQ90: 0 | CR90: 0 | CS90: 0 | CU90: 0 | CV90: 0 | CW90: 0 | CX90: 0 | CY90: 0 | CZ90: =IF(H90=4,#REF!,IF(H90=6,#REF!,"0")) -> 0 | DA90: 0 | DE90: 0 | DF90: 0 | DH90: 0 | DI90: 0
A91: 85 | N91: 0 | P91: 0 | Q91: 0 | R91: 0 | T91: 0 | U91: 0 | W91: 0 | Y91: 0 | Z91: 0 | AA91: 0 | CQ91: 0 | CR91: 0 | CS91: 0 | CU91: 0 | CV91: 0 | CW91: 0 | CX91: 0 | CY91: 0 | CZ91: =IF(H91=4,#REF!,IF(H91=6,#REF!,"0")) -> 0 | DA91: 0 | DE91: 0 | DF91: 0 | DH91: 0 | DI91: 0
A92: 86 | N92: 0 | P92: 0 | Q92: 0 | R92: 0 | T92: 0 | U92: 0 | W92: 0 | Y92: 0 | Z92: 0 | AA92: 0 | CQ92: 0 | CR92: 0 | CS92: 0 | CU92: 0 | CV92: 0 | CW92: 0 | CX92: 0 | CY92: 0 | CZ92: =IF(H92=4,#REF!,IF(H92=6,#REF!,"0")) -> 0 | DA92: 0 | DE92: 0 | DF92: 0 | DH92: 0 | DI92: 0
A93: 87 | N93: 0 | P93: 0 | Q93: 0 | R93: 0 | T93: 0 | U93: 0 | W93: 0 | Y93: 0 | Z93: 0 | AA93: 0 | CQ93: 0 | CR93: 0 | CS93: 0 | CU93: 0 | CV93: 0 | CW93: 0 | CX93: 0 | CY93: 0 | CZ93: =IF(H93=4,#REF!,IF(H93=6,#REF!,"0")) -> 0 | DA93: 0 | DE93: 0 | DF93: 0 | DH93: 0 | DI93: 0
A94: 88 | N94: 0 | P94: 0 | Q94: 0 | R94: 0 | T94: 0 | U94: 0 | W94: 0 | Y94: 0 | Z94: 0 | AA94: 0 | CQ94: 0 | CR94: 0 | CS94: 0 | CU94: 0 | CV94: 0 | CW94: 0 | CX94: 0 | CY94: 0 | CZ94: =IF(H94=4,#REF!,IF(H94=6,#REF!,"0")) -> 0 | DA94: 0 | DE94: 0 | DF94: 0 | DH94: 0 | DI94: 0
A95: 89 | N95: 0 | P95: 0 | Q95: 0 | R95: 0 | T95: 0 | U95: 0 | W95: 0 | Y95: 0 | Z95: 0 | AA95: 0 | CQ95: 0 | CR95: 0 | CS95: 0 | CU95: 0 | CV95: 0 | CW95: 0 | CX95: 0 | CY95: 0 | CZ95: =IF(H95=4,#REF!,IF(H95=6,#REF!,"0")) -> 0 | DA95: 0 | DE95: 0 | DF95: 0 | DH95: 0 | DI95: 0
A96: 90 | N96: 0 | P96: 0 | Q96: 0 | R96: 0 | T96: 0 | U96: 0 | W96: 0 | Y96: 0 | Z96: 0 | AA96: 0 | CQ96: 0 | CR96: 0 | CS96: 0 | CU96: 0 | CV96: 0 | CW96: 0 | CX96: 0 | CY96: 0 | CZ96: =IF(H96=4,#REF!,IF(H96=6,#REF!,"0")) -> 0 | DA96: 0 | DE96: 0 | DF96: 0 | DH96: 0 | DI96: 0
A97: 91 | N97: 0 | P97: 0 | Q97: 0 | R97: 0 | T97: 0 | U97: 0 | W97: 0 | Y97: 0 | Z97: 0 | AA97: 0 | CQ97: 0 | CR97: 0 | CS97: 0 | CU97: 0 | CV97: 0 | CW97: 0 | CX97: 0 | CY97: 0 | CZ97: =IF(H97=4,#REF!,IF(H97=6,#REF!,"0")) -> 0 | DA97: 0 | DE97: 0 | DF97: 0 | DH97: 0 | DI97: 0
A98: 92 | N98: 0 | P98: 0 | Q98: 0 | R98: 0 | T98: 0 | U98: 0 | W98: 0 | Y98: 0 | Z98: 0 | AA98: 0 | CQ98: 0 | CR98: 0 | CS98: 0 | CU98: 0 | CV98: 0 | CW98: 0 | CX98: 0 | CY98: 0 | CZ98: =IF(H98=4,#REF!,IF(H98=6,#REF!,"0")) -> 0 | DA98: 0 | DE98: 0 | DF98: 0 | DH98: 0 | DI98: 0
A99: 93 | N99: 0 | P99: 0 | Q99: 0 | R99: 0 | T99: 0 | U99: 0 | W99: 0 | Y99: 0 | Z99: 0 | AA99: 0 | CQ99: 0 | CR99: 0 | CS99: 0 | CU99: 0 | CV99: 0 | CW99: 0 | CX99: 0 | CY99: 0 | CZ99: =IF(H99=4,#REF!,IF(H99=6,#REF!,"0")) -> 0 | DA99: 0 | DE99: 0 | DF99: 0 | DH99: 0 | DI99: 0
A100: 94 | N100: 0 | P100: =SUM(I100*J100)+(K100*L100) -> 0 | Q100: =ROUND(CR100,2) -> 0 | R100: =ROUND(CS100,2) -> 0 | T100: 0 | U100: =ROUND(CW100,2) -> 0 | W100: =SUM(T100-U100) -> 0 | Y100: =ROUND(DE100,2) -> 0 | Z100: =ROUND(DF100,2) -> 0 | AA100: =ROUND(DI100,2) -> 0 | CQ100: 0 | CR100: 0 | CS100: 0 | CU100: =SUM(T100) -> 0 | CV100: 0 | CW100: =SUM(CU100*CV100) -> 0 | CX100: 0 | CY100: =SUM(CU100*CX100) -> 0 | CZ100: =IF(H100=4,#REF!,IF(H100=6,#REF!,"0")) -> 0 | DA100: =SUM(CU100*CZ100) -> 0 | DE100: 0 | DF100: =SUM(CQ100*$DF$6) -> 0 | DH100: 0 | DI100: 0
A101: 95 | N101: 0 | P101: 0 | Q101: 0 | R101: 0 | T101: 0 | U101: 0 | W101: 0 | Y101: 0 | Z101: 0 | AA101: 0 | CQ101: 0 | CR101: 0 | CS101: 0 | CU101: 0 | CV101: 0 | CW101: 0 | CX101: 0 | CY101: 0 | CZ101: =IF(H101=4,#REF!,IF(H101=6,#REF!,"0")) -> 0 | DA101: 0 | DE101: 0 | DF101: 0 | DH101: 0 | DI101: 0
A102: 96 | N102: 0 | P102: 0 | Q102: 0 | R102: 0 | T102: 0 | U102: 0 | W102: 0 | Y102: 0 | Z102: 0 | AA102: 0 | CQ102: 0 | CR102: 0 | CS102: 0 | CU102: 0 | CV102: 0 | CW102: 0 | CX102: 0 | CY102: 0 | CZ102: =IF(H102=4,#REF!,IF(H102=6,#REF!,"0")) -> 0 | DA102: 0 | DE102: 0 | DF102: 0 | DH102: 0 | DI102: 0
A103: 97 | N103: 0 | P103: 0 | Q103: 0 | R103: 0 | T103: 0 | U103: 0 | W103: 0 | Y103: 0 | Z103: 0 | AA103: 0 | CQ103: 0 | CR103: 0 | CS103: 0 | CU103: 0 | CV103: 0 | CW103: 0 | CX103: 0 | CY103: 0 | CZ103: =IF(H103=4,#REF!,IF(H103=6,#REF!,"0")) -> 0 | DA103: 0 | DE103: 0 | DF103: 0 | DH103: 0 | DI103: 0
A104: 98 | N104: 0 | P104: 0 | Q104: 0 | R104: 0 | T104: 0 | U104: 0 | W104: 0 | Y104: 0 | Z104: 0 | AA104: 0 | CQ104: 0 | CR104: 0 | CS104: 0 | CU104: 0 | CV104: 0 | CW104: 0 | CX104: 0 | CY104: 0 | CZ104: =IF(H104=4,#REF!,IF(H104=6,#REF!,"0")) -> 0 | DA104: 0 | DE104: 0 | DF104: 0 | DH104: 0 | DI104: 0
A105: 99 | N105: 0 | P105: 0 | Q105: 0 | R105: 0 | T105: 0 | U105: 0 | W105: 0 | Y105: 0 | Z105: 0 | AA105: 0 | CQ105: 0 | CR105: 0 | CS105: 0 | CU105: 0 | CV105: 0 | CW105: 0 | CX105: 0 | CY105: 0 | CZ105: =IF(H105=4,#REF!,IF(H105=6,#REF!,"0")) -> 0 | DA105: 0 | DE105: 0 | DF105: 0 | DH105: 0 | DI105: 0
A106: 100 | N106: 0 | P106: 0 | Q106: 0 | R106: 0 | T106: 0 | U106: 0 | W106: 0 | Y106: 0 | Z106: 0 | AA106: 0 | CQ106: 0 | CR106: 0 | CS106: 0 | CU106: 0 | CV106: 0 | CW106: 0 | CX106: 0 | CY106: 0 | CZ106: =IF(H106=4,#REF!,IF(H106=6,#REF!,"0")) -> 0 | DA106: 0 | DE106: 0 | DF106: 0 | DH106: 0 | DI106: 0
A107: 101 | N107: 0 | P107: 0 | Q107: 0 | R107: 0 | T107: 0 | U107: 0 | W107: 0 | Y107: 0 | Z107: 0 | AA107: 0 | CQ107: 0 | CR107: 0 | CS107: 0 | CU107: 0 | CV107: 0 | CW107: 0 | CX107: 0 | CY107: 0 | CZ107: =IF(H107=4,#REF!,IF(H107=6,#REF!,"0")) -> 0 | DA107: 0 | DE107: 0 | DF107: 0 | DH107: 0 | DI107: 0
A108: 102 | N108: 0 | P108: 0 | Q108: 0 | R108: 0 | T108: 0 | U108: 0 | W108: 0 | Y108: 0 | Z108: 0 | AA108: 0 | CQ108: 0 | CR108: 0 | CS108: 0 | CU108: 0 | CV108: 0 | CW108: 0 | CX108: 0 | CY108: 0 | CZ108: =IF(H108=4,#REF!,IF(H108=6,#REF!,"0")) -> 0 | DA108: 0 | DE108: 0 | DF108: 0 | DH108: 0 | DI108: 0
A109: 103 | N109: 0 | P109: 0 | Q109: 0 | R109: 0 | T109: 0 | U109: 0 | W109: 0 | Y109: 0 | Z109: 0 | AA109: 0 | CQ109: 0 | CR109: 0 | CS109: 0 | CU109: 0 | CV109: 0 | CW109: 0 | CX109: 0 | CY109: 0 | CZ109: =IF(H109=4,#REF!,IF(H109=6,#REF!,"0")) -> 0 | DA109: 0 | DE109: 0 | DF109: 0 | DH109: 0 | DI109: 0
A110: 104 | N110: 0 | P110: 0 | Q110: 0 | R110: 0 | T110: 0 | U110: 0 | W110: 0 | Y110: 0 | Z110: 0 | AA110: 0 | CQ110: 0 | CR110: 0 | CS110: 0 | CU110: 0 | CV110: 0 | CW110: 0 | CX110: 0 | CY110: 0 | CZ110: =IF(H110=4,#REF!,IF(H110=6,#REF!,"0")) -> 0 | DA110: 0 | DE110: 0 | DF110: 0 | DH110: 0 | DI110: 0
A111: 105 | N111: 0 | P111: 0 | Q111: 0 | R111: 0 | T111: 0 | U111: 0 | W111: 0 | Y111: 0 | Z111: 0 | AA111: 0 | CQ111: 0 | CR111: 0 | CS111: 0 | CU111: 0 | CV111: 0 | CW111: 0 | CX111: 0 | CY111: 0 | CZ111: =IF(H111=4,#REF!,IF(H111=6,#REF!,"0")) -> 0 | DA111: 0 | DE111: 0 | DF111: 0 | DH111: 0 | DI111: 0
A112: 106 | N112: 0 | P112: 0 | Q112: 0 | R112: 0 | T112: 0 | U112: 0 | W112: 0 | Y112: 0 | Z112: 0 | AA112: 0 | CQ112: 0 | CR112: 0 | CS112: 0 | CU112: 0 | CV112: 0 | CW112: 0 | CX112: 0 | CY112: 0 | CZ112: =IF(H112=4,#REF!,IF(H112=6,#REF!,"0")) -> 0 | DA112: 0 | DE112: 0 | DF112: 0 | DH112: 0 | DI112: 0
A113: 107 | N113: 0 | P113: 0 | Q113: 0 | R113: 0 | T113: 0 | U113: 0 | W113: 0 | Y113: 0 | Z113: 0 | AA113: 0 | CQ113: 0 | CR113: 0 | CS113: 0 | CU113: 0 | CV113: 0 | CW113: 0 | CX113: 0 | CY113: 0 | CZ113: =IF(H113=4,#REF!,IF(H113=6,#REF!,"0")) -> 0 | DA113: 0 | DE113: 0 | DF113: 0 | DH113: 0 | DI113: 0
A114: 108 | N114: 0 | P114: 0 | Q114: 0 | R114: 0 | T114: 0 | U114: 0 | W114: 0 | Y114: 0 | Z114: 0 | AA114: 0 | CQ114: 0 | CR114: 0 | CS114: 0 | CU114: 0 | CV114: 0 | CW114: 0 | CX114: 0 | CY114: 0 | CZ114: =IF(H114=4,#REF!,IF(H114=6,#REF!,"0")) -> 0 | DA114: 0 | DE114: 0 | DF114: 0 | DH114: 0 | DI114: 0
A115: 109 | N115: 0 | P115: 0 | Q115: 0 | R115: 0 | T115: 0 | U115: 0 | W115: 0 | Y115: 0 | Z115: 0 | AA115: 0 | CQ115: 0 | CR115: 0 | CS115: 0 | CU115: 0 | CV115: 0 | CW115: 0 | CX115: 0 | CY115: 0 | CZ115: =IF(H115=4,#REF!,IF(H115=6,#REF!,"0")) -> 0 | DA115: 0 | DE115: 0 | DF115: 0 | DH115: 0 | DI115: 0
A116: 110 | N116: 0 | P116: 0 | Q116: 0 | R116: 0 | T116: 0 | U116: 0 | W116: 0 | Y116: 0 | Z116: 0 | AA116: 0 | CQ116: 0 | CR116: 0 | CS116: 0 | CU116: 0 | CV116: 0 | CW116: 0 | CX116: 0 | CY116: 0 | CZ116: =IF(H116=4,#REF!,IF(H116=6,#REF!,"0")) -> 0 | DA116: 0 | DE116: 0 | DF116: 0 | DH116: 0 | DI116: 0
A117: 111 | N117: 0 | P117: 0 | Q117: 0 | R117: 0 | T117: 0 | U117: 0 | W117: 0 | Y117: 0 | Z117: 0 | AA117: 0 | CQ117: 0 | CR117: 0 | CS117: 0 | CU117: 0 | CV117: 0 | CW117: 0 | CX117: 0 | CY117: 0 | CZ117: =IF(H117=4,#REF!,IF(H117=6,#REF!,"0")) -> 0 | DA117: 0 | DE117: 0 | DF117: 0 | DH117: 0 | DI117: 0
A118: 112 | N118: 0 | P118: 0 | Q118: 0 | R118: 0 | T118: 0 | U118: 0 | W118: 0 | Y118: 0 | Z118: 0 | AA118: 0 | CQ118: 0 | CR118: 0 | CS118: 0 | CU118: 0 | CV118: 0 | CW118: 0 | CX118: 0 | CY118: 0 | CZ118: =IF(H118=4,#REF!,IF(H118=6,#REF!,"0")) -> 0 | DA118: 0 | DE118: 0 | DF118: 0 | DH118: 0 | DI118: 0
A119: 113 | N119: 0 | P119: 0 | Q119: 0 | R119: 0 | T119: 0 | U119: 0 | W119: 0 | Y119: 0 | Z119: 0 | AA119: 0 | CQ119: 0 | CR119: 0 | CS119: 0 | CU119: 0 | CV119: 0 | CW119: 0 | CX119: 0 | CY119: 0 | CZ119: =IF(H119=4,#REF!,IF(H119=6,#REF!,"0")) -> 0 | DA119: 0 | DE119: 0 | DF119: 0 | DH119: 0 | DI119: 0
A120: 114 | N120: 0 | P120: 0 | Q120: 0 | R120: 0 | T120: 0 | U120: 0 | W120: 0 | Y120: 0 | Z120: 0 | AA120: 0 | CQ120: 0 | CR120: 0 | CS120: 0 | CU120: 0 | CV120: 0 | CW120: 0 | CX120: 0 | CY120: 0 | CZ120: =IF(H120=4,#REF!,IF(H120=6,#REF!,"0")) -> 0 | DA120: 0 | DE120: 0 | DF120: 0 | DH120: 0 | DI120: 0
A121: 115 | N121: 0 | P121: 0 | Q121: 0 | R121: 0 | T121: 0 | U121: 0 | W121: 0 | Y121: 0 | Z121: 0 | AA121: 0 | CQ121: 0 | CR121: 0 | CS121: 0 | CU121: 0 | CV121: 0 | CW121: 0 | CX121: 0 | CY121: 0 | CZ121: =IF(H121=4,#REF!,IF(H121=6,#REF!,"0")) -> 0 | DA121: 0 | DE121: 0 | DF121: 0 | DH121: 0 | DI121: 0
A122: 116 | N122: 0 | P122: 0 | Q122: 0 | R122: 0 | T122: 0 | U122: 0 | W122: 0 | Y122: 0 | Z122: 0 | AA122: 0 | CQ122: 0 | CR122: 0 | CS122: 0 | CU122: 0 | CV122: 0 | CW122: 0 | CX122: 0 | CY122: 0 | CZ122: =IF(H122=4,#REF!,IF(H122=6,#REF!,"0")) -> 0 | DA122: 0 | DE122: 0 | DF122: 0 | DH122: 0 | DI122: 0
A123: 117 | N123: 0 | P123: 0 | Q123: 0 | R123: 0 | T123: 0 | U123: 0 | W123: 0 | Y123: 0 | Z123: 0 | AA123: 0 | CQ123: 0 | CR123: 0 | CS123: 0 | CU123: 0 | CV123: 0 | CW123: 0 | CX123: 0 | CY123: 0 | CZ123: =IF(H123=4,#REF!,IF(H123=6,#REF!,"0")) -> 0 | DA123: 0 | DE123: 0 | DF123: 0 | DH123: 0 | DI123: 0
A124: 118 | N124: 0 | P124: 0 | Q124: 0 | R124: 0 | T124: 0 | U124: 0 | W124: 0 | Y124: 0 | Z124: 0 | AA124: 0 | CQ124: 0 | CR124: 0 | CS124: 0 | CU124: 0 | CV124: 0 | CW124: 0 | CX124: 0 | CY124: 0 | CZ124: =IF(H124=4,#REF!,IF(H124=6,#REF!,"0")) -> 0 | DA124: 0 | DE124: 0 | DF124: 0 | DH124: 0 | DI124: 0
A125: 119 | N125: 0 | P125: 0 | Q125: 0 | R125: 0 | T125: 0 | U125: 0 | W125: 0 | Y125: 0 | Z125: 0 | AA125: 0 | CQ125: 0 | CR125: 0 | CS125: 0 | CU125: 0 | CV125: 0 | CW125: 0 | CX125: 0 | CY125: 0 | CZ125: =IF(H125=4,#REF!,IF(H125=6,#REF!,"0")) -> 0 | DA125: 0 | DE125: 0 | DF125: 0 | DH125: 0 | DI125: 0
A126: 120 | N126: 0 | P126: 0 | Q126: 0 | R126: 0 | T126: 0 | U126: 0 | W126: 0 | Y126: 0 | Z126: 0 | AA126: 0 | CQ126: 0 | CR126: 0 | CS126: 0 | CU126: 0 | CV126: 0 | CW126: 0 | CX126: 0 | CY126: 0 | CZ126: =IF(H126=4,#REF!,IF(H126=6,#REF!,"0")) -> 0 | DA126: 0 | DE126: 0 | DF126: 0 | DH126: 0 | DI126: 0
A127: 121 | N127: 0 | P127: 0 | Q127: 0 | R127: 0 | T127: 0 | U127: 0 | W127: 0 | Y127: 0 | Z127: 0 | AA127: 0 | CQ127: 0 | CR127: 0 | CS127: 0 | CU127: 0 | CV127: 0 | CW127: 0 | CX127: 0 | CY127: 0 | CZ127: =IF(H127=4,#REF!,IF(H127=6,#REF!,"0")) -> 0 | DA127: 0 | DE127: 0 | DF127: 0 | DH127: 0 | DI127: 0
A128: 122 | N128: 0 | P128: 0 | Q128: 0 | R128: 0 | T128: 0 | U128: 0 | W128: 0 | Y128: 0 | Z128: 0 | AA128: 0 | CQ128: 0 | CR128: 0 | CS128: 0 | CU128: 0 | CV128: 0 | CW128: 0 | CX128: 0 | CY128: 0 | CZ128: =IF(H128=4,#REF!,IF(H128=6,#REF!,"0")) -> 0 | DA128: 0 | DE128: 0 | DF128: 0 | DH128: 0 | DI128: 0
A129: 123 | N129: 0 | P129: 0 | Q129: 0 | R129: 0 | T129: 0 | U129: 0 | W129: 0 | Y129: 0 | Z129: 0 | AA129: 0 | CQ129: 0 | CR129: 0 | CS129: 0 | CU129: 0 | CV129: 0 | CW129: 0 | CX129: 0 | CY129: 0 | CZ129: =IF(H129=4,#REF!,IF(H129=6,#REF!,"0")) -> 0 | DA129: 0 | DE129: 0 | DF129: 0 | DH129: 0 | DI129: 0
A130: 124 | N130: 0 | P130: 0 | Q130: 0 | R130: 0 | T130: 0 | U130: 0 | W130: 0 | Y130: 0 | Z130: 0 | AA130: 0 | CQ130: 0 | CR130: 0 | CS130: 0 | CU130: 0 | CV130: 0 | CW130: 0 | CX130: 0 | CY130: 0 | CZ130: =IF(H130=4,#REF!,IF(H130=6,#REF!,"0")) -> 0 | DA130: 0 | DE130: 0 | DF130: 0 | DH130: 0 | DI130: 0
A131: 125 | N131: 0 | P131: 0 | Q131: 0 | R131: 0 | T131: 0 | U131: 0 | W131: 0 | Y131: 0 | Z131: 0 | AA131: 0 | CQ131: 0 | CR131: 0 | CS131: 0 | CU131: 0 | CV131: 0 | CW131: 0 | CX131: 0 | CY131: 0 | CZ131: =IF(H131=4,#REF!,IF(H131=6,#REF!,"0")) -> 0 | DA131: 0 | DE131: 0 | DF131: 0 | DH131: 0 | DI131: 0
A132: 126 | N132: 0 | P132: 0 | Q132: 0 | R132: 0 | T132: 0 | U132: 0 | W132: 0 | Y132: 0 | Z132: 0 | AA132: 0 | CQ132: 0 | CR132: 0 | CS132: 0 | CU132: 0 | CV132: 0 | CW132: 0 | CX132: 0 | CY132: 0 | CZ132: =IF(H132=4,#REF!,IF(H132=6,#REF!,"0")) -> 0 | DA132: 0 | DE132: 0 | DF132: 0 | DH132: 0 | DI132: 0
A133: 127 | N133: 0 | P133: 0 | Q133: 0 | R133: 0 | T133: 0 | U133: 0 | W133: 0 | Y133: 0 | Z133: 0 | AA133: 0 | CQ133: 0 | CR133: 0 | CS133: 0 | CU133: 0 | CV133: 0 | CW133: 0 | CX133: 0 | CY133: 0 | CZ133: =IF(H133=4,#REF!,IF(H133=6,#REF!,"0")) -> 0 | DA133: 0 | DE133: 0 | DF133: 0 | DH133: 0 | DI133: 0
A134: 128 | N134: 0 | P134: 0 | Q134: 0 | R134: 0 | T134: 0 | U134: 0 | W134: 0 | Y134: 0 | Z134: 0 | AA134: 0 | CQ134: 0 | CR134: 0 | CS134: 0 | CU134: 0 | CV134: 0 | CW134: 0 | CX134: 0 | CY134: 0 | CZ134: =IF(H134=4,#REF!,IF(H134=6,#REF!,"0")) -> 0 | DA134: 0 | DE134: 0 | DF134: 0 | DH134: 0 | DI134: 0
A135: 129 | N135: 0 | P135: 0 | Q135: 0 | R135: 0 | T135: =SUM(P135-Q135-R135) -> 0 | U135: 0 | W135: 0 | Y135: 0 | Z135: 0 | AA135: 0 | CP135: =IF(H135=1,"T.I. tesoro",IF(H135=2,"T.D. tesoro",IF(H135=3,"T.D. tesoro",IF(H135=4,"T.D. scuola",IF(H135=5," tesoro",IF(H135=6," scuola"," ")))))) ->  | CQ135: =SUM(P135) -> 0 | CR135: =IF(H135=1,CQ135*$CR$6,IF(H135=2,CQ135*$CR$6,IF(H135=3,CQ135*$CR$6,0))) -> 0 | CS135: =IF(H135=1,CQ135*$CS$6,IF(H135=2,CQ135*$CS$6,IF(H135=3,CQ135*$CS$6,0))) -> 0 | CU135: 0 | CV135: =SUM(M135) -> 0 | CW135: 0 | CX135: =IF(H135=4,O135,IF(H135=6,O135,"0")) -> 0 | CY135: 0 | CZ135: =IF(H135=4,#REF!,IF(H135=6,#REF!,"0")) -> 0 | DA135: 0 | DE135: =IF(H135=1,CQ135*$DE$6,IF(H135=2,CQ135*$DE$6,IF(H135=3,CQ135*$DE$6,0))) -> 0 | DF135: 0 | DH135: =IF(H135=2,CQ135,IF(H135=3,CQ135,IF(H135=4,CQ135,"0"))) -> 0 | DI135: 0
A136: 130 | N136: =SUM(I136*J136)+(K136*L136) -> 0 | P136: 0 | Q136: 0 | R136: 0 | T136: 0 | U136: 0 | W136: 0 | Y136: 0 | Z136: 0 | AA136: 0 | CQ136: 0 | CR136: 0 | CS136: 0 | CU136: 0 | CV136: 0 | CW136: 0 | CX136: 0 | CY136: 0 | CZ136: =IF(H136=4,#REF!,IF(H136=6,#REF!,"0")) -> 0 | DA136: 0 | DE136: 0 | DF136: 0 | DH136: 0 | DI136: =SUM(DH136*$DI$6) -> 0
A137: 131 | N137: 0 | P137: 0 | Q137: 0 | R137: 0 | T137: 0 | U137: 0 | W137: 0 | Y137: 0 | Z137: 0 | AA137: 0 | CQ137: 0 | CR137: 0 | CS137: 0 | CU137: 0 | CV137: 0 | CW137: 0 | CX137: 0 | CY137: 0 | CZ137: =IF(H137=4,#REF!,IF(H137=6,#REF!,"0")) -> 0 | DA137: 0 | DE137: 0 | DF137: 0 | DH137: 0 | DI137: 0
A138: 132 | N138: 0 | P138: 0 | Q138: 0 | R138: 0 | T138: 0 | U138: 0 | W138: 0 | Y138: 0 | Z138: 0 | AA138: 0 | CQ138: 0 | CR138: 0 | CS138: 0 | CU138: 0 | CV138: 0 | CW138: 0 | CX138: 0 | CY138: 0 | CZ138: =IF(H138=4,#REF!,IF(H138=6,#REF!,"0")) -> 0 | DA138: 0 | DE138: 0 | DF138: 0 | DH138: 0 | DI138: 0
A139: 133 | N139: 0 | P139: 0 | Q139: 0 | R139: 0 | T139: 0 | U139: 0 | W139: 0 | Y139: 0 | Z139: 0 | AA139: 0 | CQ139: 0 | CR139: 0 | CS139: 0 | CU139: 0 | CV139: 0 | CW139: 0 | CX139: 0 | CY139: 0 | CZ139: =IF(H139=4,#REF!,IF(H139=6,#REF!,"0")) -> 0 | DA139: 0 | DE139: 0 | DF139: 0 | DH139: 0 | DI139: 0
A140: 134 | N140: 0 | P140: 0 | Q140: 0 | R140: 0 | T140: 0 | U140: 0 | W140: 0 | Y140: 0 | Z140: 0 | AA140: 0 | CQ140: 0 | CR140: 0 | CS140: 0 | CU140: 0 | CV140: 0 | CW140: 0 | CX140: 0 | CY140: 0 | CZ140: =IF(H140=4,#REF!,IF(H140=6,#REF!,"0")) -> 0 | DA140: 0 | DE140: 0 | DF140: 0 | DH140: 0 | DI140: 0
A141: 135 | N141: 0 | P141: 0 | Q141: 0 | R141: 0 | T141: 0 | U141: 0 | W141: 0 | Y141: 0 | Z141: 0 | AA141: 0 | CQ141: 0 | CR141: 0 | CS141: 0 | CU141: 0 | CV141: 0 | CW141: 0 | CX141: 0 | CY141: 0 | CZ141: =IF(H141=4,#REF!,IF(H141=6,#REF!,"0")) -> 0 | DA141: 0 | DE141: 0 | DF141: 0 | DH141: 0 | DI141: 0
A142: 136 | N142: 0 | P142: 0 | Q142: 0 | R142: 0 | T142: 0 | U142: 0 | W142: 0 | Y142: 0 | Z142: 0 | AA142: 0 | CQ142: 0 | CR142: 0 | CS142: 0 | CU142: 0 | CV142: 0 | CW142: 0 | CX142: 0 | CY142: 0 | CZ142: =IF(H142=4,#REF!,IF(H142=6,#REF!,"0")) -> 0 | DA142: 0 | DE142: 0 | DF142: 0 | DH142: 0 | DI142: 0
A143: 137 | N143: 0 | P143: 0 | Q143: 0 | R143: 0 | T143: 0 | U143: 0 | W143: 0 | Y143: 0 | Z143: 0 | AA143: 0 | CQ143: 0 | CR143: 0 | CS143: 0 | CU143: 0 | CV143: 0 | CW143: 0 | CX143: 0 | CY143: 0 | CZ143: =IF(H143=4,#REF!,IF(H143=6,#REF!,"0")) -> 0 | DA143: 0 | DE143: 0 | DF143: 0 | DH143: 0 | DI143: 0
A144: 138 | N144: 0 | P144: 0 | Q144: 0 | R144: 0 | T144: 0 | U144: 0 | W144: 0 | Y144: 0 | Z144: 0 | AA144: 0 | CQ144: 0 | CR144: 0 | CS144: 0 | CU144: 0 | CV144: 0 | CW144: 0 | CX144: 0 | CY144: 0 | CZ144: =IF(H144=4,#REF!,IF(H144=6,#REF!,"0")) -> 0 | DA144: 0 | DE144: 0 | DF144: 0 | DH144: 0 | DI144: 0
A145: 139 | N145: 0 | P145: 0 | Q145: 0 | R145: 0 | T145: 0 | U145: 0 | W145: 0 | Y145: 0 | Z145: 0 | AA145: 0 | CQ145: 0 | CR145: 0 | CS145: 0 | CU145: 0 | CV145: 0 | CW145: 0 | CX145: 0 | CY145: 0 | CZ145: =IF(H145=4,#REF!,IF(H145=6,#REF!,"0")) -> 0 | DA145: 0 | DE145: 0 | DF145: 0 | DH145: 0 | DI145: 0
A146: 140 | N146: 0 | P146: 0 | Q146: 0 | R146: 0 | T146: 0 | U146: 0 | W146: 0 | Y146: 0 | Z146: 0 | AA146: 0 | CQ146: 0 | CR146: 0 | CS146: 0 | CU146: 0 | CV146: 0 | CW146: 0 | CX146: 0 | CY146: 0 | CZ146: =IF(H146=4,#REF!,IF(H146=6,#REF!,"0")) -> 0 | DA146: 0 | DE146: 0 | DF146: 0 | DH146: 0 | DI146: 0
A147: 141 | N147: 0 | P147: 0 | Q147: 0 | R147: 0 | T147: 0 | U147: 0 | W147: 0 | Y147: 0 | Z147: 0 | AA147: 0 | CQ147: 0 | CR147: 0 | CS147: 0 | CU147: 0 | CV147: 0 | CW147: 0 | CX147: 0 | CY147: 0 | CZ147: =IF(H147=4,#REF!,IF(H147=6,#REF!,"0")) -> 0 | DA147: 0 | DE147: 0 | DF147: 0 | DH147: 0 | DI147: 0
A148: 142 | N148: 0 | P148: 0 | Q148: 0 | R148: 0 | T148: 0 | U148: 0 | W148: 0 | Y148: 0 | Z148: 0 | AA148: 0 | CQ148: 0 | CR148: 0 | CS148: 0 | CU148: 0 | CV148: 0 | CW148: 0 | CX148: 0 | CY148: 0 | CZ148: =IF(H148=4,#REF!,IF(H148=6,#REF!,"0")) -> 0 | DA148: 0 | DE148: 0 | DF148: 0 | DH148: 0 | DI148: 0
A149: 144 | N149: =SUM(I149*J149)+(K149*L149) -> 0 | P149: =SUM(I149*J149)+(K149*L149) -> 0 | Q149: =ROUND(CR149,2) -> 0 | R149: =ROUND(CS149,2) -> 0 | T149: =SUM(P149-Q149-R149) -> 0 | U149: =ROUND(CW149,2) -> 0 | W149: =SUM(T149-U149) -> 0 | Y149: =ROUND(DE149,2) -> 0 | Z149: =ROUND(DF149,2) -> 0 | AA149: =ROUND(DI149,2) -> 0 | CP149: =IF(H149=1,"T.I. tesoro",IF(H149=2,"T.D. tesoro",IF(H149=3,"T.D. tesoro",IF(H149=4,"T.D. scuola",IF(H149=5," tesoro",IF(H149=6," scuola"," ")))))) ->  | CQ149: =SUM(P149) -> 0 | CR149: =IF(H149=1,CQ149*$CR$6,IF(H149=2,CQ149*$CR$6,IF(H149=3,CQ149*$CR$6,0))) -> 0 | CS149: =IF(H149=1,CQ149*$CS$6,IF(H149=2,CQ149*$CS$6,IF(H149=3,CQ149*$CS$6,0))) -> 0 | CU149: =SUM(T149) -> 0 | CV149: =SUM(M149) -> 0 | CW149: =SUM(CU149*CV149) -> 0 | CX149: =IF(H149=4,O149,IF(H149=6,O149,"0")) -> 0 | CY149: =SUM(CU149*CX149) -> 0 | CZ149: =IF(H149=4,#REF!,IF(H149=6,#REF!,"0")) -> 0 | DA149: =SUM(CU149*CZ149) -> 0 | DE149: =IF(H149=1,CQ149*$DE$6,IF(H149=2,CQ149*$DE$6,IF(H149=3,CQ149*$DE$6,0))) -> 0 | DF149: =SUM(CQ149*$DF$6) -> 0 | DH149: =IF(H149=2,CQ149,IF(H149=3,CQ149,IF(H149=4,CQ149,"0"))) -> 0 | DI149: =SUM(DH149*$DI$6) -> 0
A150: 145 | N150: 0 | P150: 0 | Q150: 0 | R150: 0 | T150: 0 | U150: 0 | W150: 0 | Y150: 0 | Z150: 0 | AA150: 0 | CQ150: 0 | CR150: 0 | CS150: 0 | CU150: 0 | CV150: 0 | CW150: 0 | CX150: 0 | CY150: 0 | CZ150: =IF(H150=4,#REF!,IF(H150=6,#REF!,"0")) -> 0 | DA150: 0 | DE150: 0 | DF150: 0 | DH150: 0 | DI150: 0
A151: 146 | N151: 0 | P151: 0 | Q151: 0 | R151: 0 | T151: 0 | U151: 0 | W151: 0 | Y151: 0 | Z151: 0 | AA151: 0 | CQ151: 0 | CR151: 0 | CS151: 0 | CU151: 0 | CV151: 0 | CW151: 0 | CX151: 0 | CY151: 0 | CZ151: =IF(H151=4,#REF!,IF(H151=6,#REF!,"0")) -> 0 | DA151: 0 | DE151: 0 | DF151: 0 | DH151: 0 | DI151: 0
A152: 147 | N152: 0 | P152: 0 | Q152: 0 | R152: 0 | T152: 0 | U152: 0 | W152: 0 | Y152: 0 | Z152: 0 | AA152: 0 | CQ152: 0 | CR152: 0 | CS152: 0 | CU152: 0 | CV152: 0 | CW152: 0 | CX152: 0 | CY152: 0 | CZ152: =IF(H152=4,#REF!,IF(H152=6,#REF!,"0")) -> 0 | DA152: 0 | DE152: 0 | DF152: 0 | DH152: 0 | DI152: 0
A153: 148 | N153: 0 | P153: 0 | Q153: 0 | R153: 0 | T153: 0 | U153: 0 | W153: 0 | Y153: 0 | Z153: 0 | AA153: 0 | CQ153: 0 | CR153: 0 | CS153: 0 | CU153: 0 | CV153: 0 | CW153: 0 | CX153: 0 | CY153: 0 | CZ153: =IF(H153=4,#REF!,IF(H153=6,#REF!,"0")) -> 0 | DA153: 0 | DE153: 0 | DF153: 0 | DH153: 0 | DI153: 0
A154: 149 | N154: 0 | P154: 0 | Q154: 0 | R154: 0 | T154: 0 | U154: 0 | W154: 0 | Y154: 0 | Z154: 0 | AA154: 0 | CQ154: 0 | CR154: 0 | CS154: 0 | CU154: 0 | CV154: 0 | CW154: 0 | CX154: 0 | CY154: 0 | CZ154: =IF(H154=4,#REF!,IF(H154=6,#REF!,"0")) -> 0 | DA154: 0 | DE154: 0 | DF154: 0 | DH154: 0 | DI154: 0
A155: 150 | N155: 0 | P155: 0 | Q155: 0 | R155: 0 | T155: 0 | U155: 0 | W155: 0 | Y155: 0 | Z155: 0 | AA155: 0 | CQ155: 0 | CR155: 0 | CS155: 0 | CU155: 0 | CV155: 0 | CW155: 0 | CX155: 0 | CY155: 0 | CZ155: =IF(H155=4,#REF!,IF(H155=6,#REF!,"0")) -> 0 | DA155: 0 | DE155: 0 | DF155: 0 | DH155: 0 | DI155: 0
A156: 151 | N156: 0 | P156: 0 | Q156: 0 | R156: 0 | T156: 0 | U156: 0 | W156: 0 | Y156: 0 | Z156: 0 | AA156: 0 | CQ156: 0 | CR156: 0 | CS156: 0 | CU156: 0 | CV156: 0 | CW156: 0 | CX156: 0 | CY156: 0 | CZ156: =IF(H156=4,#REF!,IF(H156=6,#REF!,"0")) -> 0 | DA156: 0 | DE156: 0 | DF156: 0 | DH156: 0 | DI156: 0
A157: 152 | N157: 0 | P157: 0 | Q157: 0 | R157: 0 | T157: 0 | U157: 0 | W157: 0 | Y157: 0 | Z157: 0 | AA157: 0 | CQ157: 0 | CR157: 0 | CS157: 0 | CU157: 0 | CV157: 0 | CW157: 0 | CX157: 0 | CY157: 0 | CZ157: =IF(H157=4,#REF!,IF(H157=6,#REF!,"0")) -> 0 | DA157: 0 | DE157: 0 | DF157: 0 | DH157: 0 | DI157: 0
A158: 153 | N158: 0 | P158: 0 | Q158: 0 | R158: 0 | T158: 0 | U158: 0 | W158: 0 | Y158: 0 | Z158: 0 | AA158: 0 | CQ158: 0 | CR158: 0 | CS158: 0 | CU158: 0 | CV158: 0 | CW158: 0 | CX158: 0 | CY158: 0 | CZ158: =IF(H158=4,#REF!,IF(H158=6,#REF!,"0")) -> 0 | DA158: 0 | DE158: 0 | DF158: 0 | DH158: 0 | DI158: 0
A159: 154 | N159: 0 | P159: 0 | Q159: 0 | R159: 0 | T159: 0 | U159: 0 | W159: 0 | Y159: 0 | Z159: 0 | AA159: 0 | CQ159: 0 | CR159: 0 | CS159: 0 | CU159: 0 | CV159: 0 | CW159: 0 | CX159: 0 | CY159: 0 | CZ159: =IF(H159=4,#REF!,IF(H159=6,#REF!,"0")) -> 0 | DA159: 0 | DE159: 0 | DF159: 0 | DH159: 0 | DI159: 0
A160: 155 | N160: 0 | P160: 0 | Q160: 0 | R160: 0 | T160: 0 | U160: 0 | W160: 0 | Y160: 0 | Z160: 0 | AA160: 0 | CQ160: 0 | CR160: 0 | CS160: 0 | CU160: 0 | CV160: 0 | CW160: 0 | CX160: 0 | CY160: 0 | CZ160: =IF(H160=4,#REF!,IF(H160=6,#REF!,"0")) -> 0 | DA160: 0 | DE160: 0 | DF160: 0 | DH160: 0 | DI160: 0
A161: 156 | N161: 0 | P161: 0 | Q161: 0 | R161: 0 | T161: 0 | U161: 0 | W161: 0 | Y161: 0 | Z161: 0 | AA161: 0 | CQ161: 0 | CR161: 0 | CS161: 0 | CU161: 0 | CV161: 0 | CW161: 0 | CX161: 0 | CY161: 0 | CZ161: =IF(H161=4,#REF!,IF(H161=6,#REF!,"0")) -> 0 | DA161: 0 | DE161: 0 | DF161: 0 | DH161: 0 | DI161: 0
A162: 157 | N162: 0 | P162: 0 | Q162: 0 | R162: 0 | T162: 0 | U162: 0 | W162: 0 | Y162: 0 | Z162: 0 | AA162: 0 | CQ162: 0 | CR162: 0 | CS162: 0 | CU162: 0 | CV162: 0 | CW162: 0 | CX162: 0 | CY162: 0 | CZ162: =IF(H162=4,#REF!,IF(H162=6,#REF!,"0")) -> 0 | DA162: 0 | DE162: 0 | DF162: 0 | DH162: 0 | DI162: 0
A163: 158 | N163: 0 | P163: 0 | Q163: 0 | R163: 0 | T163: 0 | U163: 0 | W163: 0 | Y163: 0 | Z163: 0 | AA163: 0 | CQ163: 0 | CR163: 0 | CS163: 0 | CU163: 0 | CV163: 0 | CW163: 0 | CX163: 0 | CY163: 0 | CZ163: =IF(H163=4,#REF!,IF(H163=6,#REF!,"0")) -> 0 | DA163: 0 | DE163: 0 | DF163: 0 | DH163: 0 | DI163: 0
A164: 159 | N164: 0 | P164: 0 | Q164: 0 | R164: 0 | T164: 0 | U164: 0 | W164: 0 | Y164: 0 | Z164: 0 | AA164: 0 | CQ164: 0 | CR164: 0 | CS164: 0 | CU164: 0 | CV164: 0 | CW164: 0 | CX164: 0 | CY164: 0 | CZ164: =IF(H164=4,#REF!,IF(H164=6,#REF!,"0")) -> 0 | DA164: 0 | DE164: 0 | DF164: 0 | DH164: 0 | DI164: 0
A165: 160 | N165: 0 | P165: 0 | Q165: 0 | R165: 0 | T165: 0 | U165: 0 | W165: 0 | Y165: 0 | Z165: 0 | AA165: 0 | CQ165: 0 | CR165: 0 | CS165: 0 | CU165: 0 | CV165: 0 | CW165: 0 | CX165: 0 | CY165: 0 | CZ165: =IF(H165=4,#REF!,IF(H165=6,#REF!,"0")) -> 0 | DA165: 0 | DE165: 0 | DF165: 0 | DH165: 0 | DI165: 0
A166: 161 | N166: 0 | P166: 0 | Q166: 0 | R166: 0 | T166: 0 | U166: 0 | W166: 0 | Y166: 0 | Z166: 0 | AA166: 0 | CQ166: 0 | CR166: 0 | CS166: 0 | CU166: 0 | CV166: 0 | CW166: 0 | CX166: 0 | CY166: 0 | CZ166: =IF(H166=4,#REF!,IF(H166=6,#REF!,"0")) -> 0 | DA166: 0 | DE166: 0 | DF166: 0 | DH166: 0 | DI166: 0
A167: 162 | N167: 0 | P167: 0 | Q167: 0 | R167: 0 | T167: 0 | U167: 0 | W167: 0 | Y167: 0 | Z167: 0 | AA167: 0 | CQ167: 0 | CR167: 0 | CS167: 0 | CU167: 0 | CV167: 0 | CW167: 0 | CX167: 0 | CY167: 0 | CZ167: =IF(H167=4,#REF!,IF(H167=6,#REF!,"0")) -> 0 | DA167: 0 | DE167: 0 | DF167: 0 | DH167: 0 | DI167: 0
A168: 163 | N168: 0 | P168: 0 | Q168: 0 | R168: 0 | T168: 0 | U168: 0 | W168: 0 | Y168: 0 | Z168: 0 | AA168: 0 | CQ168: 0 | CR168: 0 | CS168: 0 | CU168: 0 | CV168: 0 | CW168: 0 | CX168: 0 | CY168: 0 | CZ168: =IF(H168=4,#REF!,IF(H168=6,#REF!,"0")) -> 0 | DA168: 0 | DE168: 0 | DF168: 0 | DH168: 0 | DI168: 0
A169: 164 | N169: 0 | P169: 0 | Q169: 0 | R169: 0 | T169: 0 | U169: 0 | W169: 0 | Y169: 0 | Z169: 0 | AA169: 0 | CQ169: 0 | CR169: 0 | CS169: 0 | CU169: 0 | CV169: 0 | CW169: 0 | CX169: 0 | CY169: 0 | CZ169: =IF(H169=4,#REF!,IF(H169=6,#REF!,"0")) -> 0 | DA169: 0 | DE169: 0 | DF169: 0 | DH169: 0 | DI169: 0
A170: 165 | N170: 0 | P170: 0 | Q170: 0 | R170: 0 | T170: 0 | U170: 0 | W170: 0 | Y170: 0 | Z170: 0 | AA170: 0 | CQ170: 0 | CR170: 0 | CS170: 0 | CU170: 0 | CV170: 0 | CW170: 0 | CX170: 0 | CY170: 0 | CZ170: =IF(H170=4,#REF!,IF(H170=6,#REF!,"0")) -> 0 | DA170: 0 | DE170: 0 | DF170: 0 | DH170: 0 | DI170: 0
A171: 166 | N171: 0 | P171: 0 | Q171: 0 | R171: 0 | T171: 0 | U171: 0 | W171: 0 | Y171: 0 | Z171: 0 | AA171: 0 | CQ171: 0 | CR171: 0 | CS171: 0 | CU171: 0 | CV171: 0 | CW171: 0 | CX171: 0 | CY171: 0 | CZ171: =IF(H171=4,#REF!,IF(H171=6,#REF!,"0")) -> 0 | DA171: 0 | DE171: 0 | DF171: 0 | DH171: 0 | DI171: 0
A172: 167 | N172: 0 | P172: 0 | Q172: 0 | R172: 0 | T172: 0 | U172: 0 | W172: 0 | Y172: 0 | Z172: 0 | AA172: 0 | CQ172: 0 | CR172: 0 | CS172: 0 | CU172: 0 | CV172: 0 | CW172: 0 | CX172: 0 | CY172: 0 | CZ172: =IF(H172=4,#REF!,IF(H172=6,#REF!,"0")) -> 0 | DA172: 0 | DE172: 0 | DF172: 0 | DH172: 0 | DI172: 0
A173: 168 | N173: 0 | P173: 0 | Q173: 0 | R173: 0 | T173: 0 | U173: 0 | W173: 0 | Y173: 0 | Z173: 0 | AA173: 0 | CQ173: 0 | CR173: 0 | CS173: 0 | CU173: 0 | CV173: 0 | CW173: 0 | CX173: 0 | CY173: 0 | CZ173: =IF(H173=4,#REF!,IF(H173=6,#REF!,"0")) -> 0 | DA173: 0 | DE173: 0 | DF173: 0 | DH173: 0 | DI173: 0
A174: 169 | N174: 0 | P174: 0 | Q174: 0 | R174: 0 | T174: 0 | U174: 0 | W174: 0 | Y174: 0 | Z174: 0 | AA174: 0 | CQ174: 0 | CR174: 0 | CS174: 0 | CU174: 0 | CV174: 0 | CW174: 0 | CX174: 0 | CY174: 0 | CZ174: =IF(H174=4,#REF!,IF(H174=6,#REF!,"0")) -> 0 | DA174: 0 | DE174: 0 | DF174: 0 | DH174: 0 | DI174: 0
A175: 170 | N175: 0 | P175: 0 | Q175: 0 | R175: 0 | T175: 0 | U175: 0 | W175: 0 | Y175: 0 | Z175: 0 | AA175: 0 | CQ175: 0 | CR175: 0 | CS175: 0 | CU175: 0 | CV175: 0 | CW175: 0 | CX175: 0 | CY175: 0 | CZ175: =IF(H175=4,#REF!,IF(H175=6,#REF!,"0")) -> 0 | DA175: 0 | DE175: 0 | DF175: 0 | DH175: 0 | DI175: 0
A176: 171 | N176: 0 | P176: 0 | Q176: 0 | R176: 0 | T176: 0 | U176: 0 | W176: 0 | Y176: 0 | Z176: 0 | AA176: 0 | CQ176: 0 | CR176: 0 | CS176: 0 | CU176: 0 | CV176: 0 | CW176: 0 | CX176: 0 | CY176: 0 | CZ176: =IF(H176=4,#REF!,IF(H176=6,#REF!,"0")) -> 0 | DA176: 0 | DE176: 0 | DF176: 0 | DH176: 0 | DI176: 0
A177: 172 | N177: 0 | P177: 0 | Q177: 0 | R177: 0 | T177: 0 | U177: 0 | W177: 0 | Y177: 0 | Z177: 0 | AA177: 0 | CQ177: 0 | CR177: 0 | CS177: 0 | CU177: 0 | CV177: 0 | CW177: 0 | CX177: 0 | CY177: 0 | CZ177: =IF(H177=4,#REF!,IF(H177=6,#REF!,"0")) -> 0 | DA177: 0 | DE177: 0 | DF177: 0 | DH177: 0 | DI177: 0
A178: 173 | N178: 0 | P178: 0 | Q178: 0 | R178: 0 | T178: 0 | U178: 0 | W178: 0 | Y178: 0 | Z178: 0 | AA178: 0 | CQ178: 0 | CR178: 0 | CS178: 0 | CU178: 0 | CV178: 0 | CW178: 0 | CX178: 0 | CY178: 0 | CZ178: =IF(H178=4,#REF!,IF(H178=6,#REF!,"0")) -> 0 | DA178: 0 | DE178: 0 | DF178: 0 | DH178: 0 | DI178: 0
A179: 174 | N179: 0 | P179: 0 | Q179: 0 | R179: 0 | T179: 0 | U179: 0 | W179: 0 | Y179: 0 | Z179: 0 | AA179: 0 | CQ179: 0 | CR179: 0 | CS179: 0 | CU179: 0 | CV179: 0 | CW179: 0 | CX179: 0 | CY179: 0 | CZ179: =IF(H179=4,#REF!,IF(H179=6,#REF!,"0")) -> 0 | DA179: 0 | DE179: 0 | DF179: 0 | DH179: 0 | DI179: 0
A180: 175 | N180: 0 | P180: 0 | Q180: 0 | R180: 0 | T180: 0 | U180: 0 | W180: 0 | Y180: 0 | Z180: 0 | AA180: 0 | CQ180: 0 | CR180: 0 | CS180: 0 | CU180: 0 | CV180: 0 | CW180: 0 | CX180: 0 | CY180: 0 | CZ180: =IF(H180=4,#REF!,IF(H180=6,#REF!,"0")) -> 0 | DA180: 0 | DE180: 0 | DF180: 0 | DH180: 0 | DI180: 0
A181: 176 | N181: 0 | P181: 0 | Q181: 0 | R181: 0 | T181: 0 | U181: 0 | W181: 0 | Y181: 0 | Z181: 0 | AA181: 0 | CQ181: 0 | CR181: 0 | CS181: 0 | CU181: 0 | CV181: 0 | CW181: 0 | CX181: 0 | CY181: 0 | CZ181: =IF(H181=4,#REF!,IF(H181=6,#REF!,"0")) -> 0 | DA181: 0 | DE181: 0 | DF181: 0 | DH181: 0 | DI181: 0
A182: 177 | N182: 0 | P182: 0 | Q182: 0 | R182: 0 | T182: 0 | U182: 0 | W182: 0 | Y182: 0 | Z182: 0 | AA182: 0 | CQ182: 0 | CR182: 0 | CS182: 0 | CU182: 0 | CV182: 0 | CW182: 0 | CX182: 0 | CY182: 0 | CZ182: =IF(H182=4,#REF!,IF(H182=6,#REF!,"0")) -> 0 | DA182: 0 | DE182: 0 | DF182: 0 | DH182: 0 | DI182: 0
A183: 178 | N183: 0 | P183: 0 | Q183: 0 | R183: 0 | T183: 0 | U183: 0 | W183: 0 | Y183: 0 | Z183: 0 | AA183: 0 | CQ183: 0 | CR183: 0 | CS183: 0 | CU183: 0 | CV183: 0 | CW183: 0 | CX183: 0 | CY183: 0 | CZ183: =IF(H183=4,#REF!,IF(H183=6,#REF!,"0")) -> 0 | DA183: 0 | DE183: 0 | DF183: 0 | DH183: 0 | DI183: 0
A184: 179 | N184: 0 | P184: 0 | Q184: 0 | R184: 0 | T184: 0 | U184: 0 | W184: 0 | Y184: 0 | Z184: 0 | AA184: 0 | CQ184: 0 | CR184: 0 | CS184: 0 | CU184: 0 | CV184: 0 | CW184: 0 | CX184: 0 | CY184: 0 | CZ184: =IF(H184=4,#REF!,IF(H184=6,#REF!,"0")) -> 0 | DA184: 0 | DE184: 0 | DF184: 0 | DH184: 0 | DI184: 0
A185: 180 | N185: 0 | P185: 0 | Q185: 0 | R185: 0 | T185: 0 | U185: 0 | W185: 0 | Y185: 0 | Z185: 0 | AA185: 0 | CQ185: 0 | CR185: 0 | CS185: 0 | CU185: 0 | CV185: 0 | CW185: 0 | CX185: 0 | CY185: 0 | CZ185: =IF(H185=4,#REF!,IF(H185=6,#REF!,"0")) -> 0 | DA185: 0 | DE185: 0 | DF185: 0 | DH185: 0 | DI185: 0
A186: 181 | N186: 0 | P186: 0 | Q186: 0 | R186: 0 | T186: 0 | U186: 0 | W186: 0 | Y186: 0 | Z186: 0 | AA186: 0 | CQ186: 0 | CR186: 0 | CS186: 0 | CU186: 0 | CV186: 0 | CW186: 0 | CX186: 0 | CY186: 0 | CZ186: =IF(H186=4,#REF!,IF(H186=6,#REF!,"0")) -> 0 | DA186: 0 | DE186: 0 | DF186: 0 | DH186: 0 | DI186: 0
A187: 182 | N187: 0 | P187: 0 | Q187: 0 | R187: 0 | T187: 0 | U187: 0 | W187: 0 | Y187: 0 | Z187: 0 | AA187: 0 | CQ187: 0 | CR187: 0 | CS187: 0 | CU187: 0 | CV187: 0 | CW187: 0 | CX187: 0 | CY187: 0 | CZ187: =IF(H187=4,#REF!,IF(H187=6,#REF!,"0")) -> 0 | DA187: 0 | DE187: 0 | DF187: 0 | DH187: 0 | DI187: 0
A188: 183 | N188: 0 | P188: 0 | Q188: 0 | R188: 0 | T188: 0 | U188: 0 | W188: 0 | Y188: 0 | Z188: 0 | AA188: 0 | CQ188: 0 | CR188: 0 | CS188: 0 | CU188: 0 | CV188: 0 | CW188: 0 | CX188: 0 | CY188: 0 | CZ188: =IF(H188=4,#REF!,IF(H188=6,#REF!,"0")) -> 0 | DA188: 0 | DE188: 0 | DF188: 0 | DH188: 0 | DI188: 0
A189: 184 | N189: 0 | P189: 0 | Q189: 0 | R189: 0 | T189: 0 | U189: 0 | W189: 0 | Y189: 0 | Z189: 0 | AA189: 0 | CQ189: 0 | CR189: 0 | CS189: 0 | CU189: 0 | CV189: 0 | CW189: 0 | CX189: 0 | CY189: 0 | CZ189: =IF(H189=4,#REF!,IF(H189=6,#REF!,"0")) -> 0 | DA189: 0 | DE189: 0 | DF189: 0 | DH189: 0 | DI189: 0
A190: 185 | N190: 0 | P190: 0 | Q190: 0 | R190: 0 | T190: 0 | U190: 0 | W190: 0 | Y190: 0 | Z190: 0 | AA190: 0 | CQ190: 0 | CR190: 0 | CS190: 0 | CU190: 0 | CV190: 0 | CW190: 0 | CX190: 0 | CY190: 0 | CZ190: =IF(H190=4,#REF!,IF(H190=6,#REF!,"0")) -> 0 | DA190: 0 | DE190: 0 | DF190: 0 | DH190: 0 | DI190: 0
A191: 186 | N191: 0 | P191: 0 | Q191: 0 | R191: 0 | T191: 0 | U191: 0 | W191: 0 | Y191: 0 | Z191: 0 | AA191: 0 | CQ191: 0 | CR191: 0 | CS191: 0 | CU191: 0 | CV191: 0 | CW191: 0 | CX191: 0 | CY191: 0 | CZ191: =IF(H191=4,#REF!,IF(H191=6,#REF!,"0")) -> 0 | DA191: 0 | DE191: 0 | DF191: 0 | DH191: 0 | DI191: 0
A192: 187 | N192: 0 | P192: 0 | Q192: 0 | R192: 0 | T192: 0 | U192: 0 | W192: 0 | Y192: 0 | Z192: 0 | AA192: 0 | CQ192: 0 | CR192: 0 | CS192: 0 | CU192: 0 | CV192: 0 | CW192: 0 | CX192: 0 | CY192: 0 | CZ192: =IF(H192=4,#REF!,IF(H192=6,#REF!,"0")) -> 0 | DA192: 0 | DE192: 0 | DF192: 0 | DH192: 0 | DI192: 0
A193: 188 | N193: 0 | P193: 0 | Q193: 0 | R193: 0 | T193: 0 | U193: 0 | W193: 0 | Y193: 0 | Z193: 0 | AA193: 0 | CQ193: 0 | CR193: 0 | CS193: 0 | CU193: 0 | CV193: 0 | CW193: 0 | CX193: 0 | CY193: 0 | CZ193: =IF(H193=4,#REF!,IF(H193=6,#REF!,"0")) -> 0 | DA193: 0 | DE193: 0 | DF193: 0 | DH193: 0 | DI193: 0
A194: 189 | N194: 0 | P194: 0 | Q194: 0 | R194: 0 | T194: 0 | U194: 0 | W194: 0 | Y194: 0 | Z194: 0 | AA194: 0 | CQ194: 0 | CR194: 0 | CS194: 0 | CU194: 0 | CV194: 0 | CW194: 0 | CX194: 0 | CY194: 0 | CZ194: =IF(H194=4,#REF!,IF(H194=6,#REF!,"0")) -> 0 | DA194: 0 | DE194: 0 | DF194: 0 | DH194: 0 | DI194: 0
A195: 190 | N195: 0 | P195: 0 | Q195: 0 | R195: 0 | T195: 0 | U195: 0 | W195: 0 | Y195: 0 | Z195: 0 | AA195: 0 | CQ195: 0 | CR195: 0 | CS195: 0 | CU195: 0 | CV195: 0 | CW195: 0 | CX195: 0 | CY195: 0 | CZ195: =IF(H195=4,#REF!,IF(H195=6,#REF!,"0")) -> 0 | DA195: 0 | DE195: 0 | DF195: 0 | DH195: 0 | DI195: 0
A196: 191 | N196: 0 | P196: 0 | Q196: 0 | R196: 0 | T196: 0 | U196: 0 | W196: 0 | Y196: 0 | Z196: 0 | AA196: 0 | CQ196: 0 | CR196: 0 | CS196: 0 | CU196: 0 | CV196: 0 | CW196: 0 | CX196: 0 | CY196: 0 | CZ196: =IF(H196=4,#REF!,IF(H196=6,#REF!,"0")) -> 0 | DA196: 0 | DE196: 0 | DF196: 0 | DH196: 0 | DI196: 0
A197: 192 | N197: 0 | P197: 0 | Q197: 0 | R197: 0 | T197: 0 | U197: 0 | W197: 0 | Y197: 0 | Z197: 0 | AA197: 0 | CQ197: 0 | CR197: 0 | CS197: 0 | CU197: 0 | CV197: 0 | CW197: 0 | CX197: 0 | CY197: 0 | CZ197: =IF(H197=4,#REF!,IF(H197=6,#REF!,"0")) -> 0 | DA197: 0 | DE197: 0 | DF197: 0 | DH197: 0 | DI197: 0
A198: 193 | N198: 0 | P198: 0 | Q198: 0 | R198: 0 | T198: =SUM(P198-Q198-R198) -> 0 | U198: 0 | W198: 0 | Y198: 0 | Z198: 0 | AA198: 0 | CQ198: 0 | CR198: 0 | CS198: 0 | CU198: 0 | CV198: 0 | CW198: 0 | CX198: 0 | CY198: 0 | CZ198: =IF(H198=4,#REF!,IF(H198=6,#REF!,"0")) -> 0 | DA198: 0 | DE198: 0 | DF198: 0 | DH198: 0 | DI198: 0
A199: 194 | N199: 0 | P199: 0 | Q199: 0 | R199: 0 | T199: 0 | U199: 0 | W199: 0 | Y199: 0 | Z199: 0 | AA199: 0 | CQ199: 0 | CR199: 0 | CS199: 0 | CU199: 0 | CV199: 0 | CW199: 0 | CX199: 0 | CY199: 0 | CZ199: =IF(H199=4,#REF!,IF(H199=6,#REF!,"0")) -> 0 | DA199: 0 | DE199: 0 | DF199: 0 | DH199: 0 | DI199: 0
A200: 195 | N200: 0 | P200: 0 | Q200: 0 | R200: 0 | T200: 0 | U200: 0 | W200: 0 | Y200: 0 | Z200: 0 | AA200: 0 | CQ200: 0 | CR200: 0 | CS200: 0 | CU200: 0 | CV200: 0 | CW200: 0 | CX200: 0 | CY200: 0 | CZ200: =IF(H200=4,#REF!,IF(H200=6,#REF!,"0")) -> 0 | DA200: 0 | DE200: 0 | DF200: 0 | DH200: 0 | DI200: 0
... 388 more rows

Sheet Ind. direzione_dsga
A1: N° | B1: Nome e Cognome | D1: Quota di indennità spettante (lordo dipendente)
A2: 1 | B2: =dati_scuola!B8 -> Danilo Postorino | D2: =IF(dati_scuola!B10=8.5%,ROUND(E33/132.7*100,2),ROUND(E33/132.85*100,2)) -> 3780
A3: 2
A4: 3
A5: TOTALI | D5: =SUM(D2:D2) -> 3780
B7: IL DSGA | E7: IL DIRIGENTE SCOLASTICO
B8: =dati_scuola!B8 -> Danilo Postorino | E8: =dati_scuola!B7 -> Mario Rossi
A12: Come si calcola l'Indennità di Direzione DSGA Titolare
A17: 1 - Quota pagata dal Tesoro | E17: anno | F17: mese
A18: Parametro base | E18: 1984.2 | F18: =E18/12 -> 165.35
A21: 2 - Quota pagata dalla Scuola | E21: anno | F21: mese
A22: Parametro base | D22: 30 | E22: =D23*D22 -> 3780 | F22: =E22/12 -> 315
A23: Personale in Organico di diritto | D23: =dati_scuola!B28 -> 126
A25: 3 - Parametri aggiuntivi | E25: =dati_scuola!B35 -> 0
A27: - Accesso al FIS | D27: ESCLUSO
E28: 0
A31: TOTALE Indennità direzione | E31: =E18+E22+E25+E28 -> 5764.2
A32: Totale quota scuola | E32: =E31-E18+dati_scuola!B34 -> 3780
A33: Totale quota scuola compreso oneri carico stato (24,20 e 8,50) | E33: =ROUND((E32*1.242)+(E32*dati_scuola!$B$10),2) -> 5016.06
A35: Rideterminazione Tabella 9
E37: Misura tabellare annua lorda
A39: Parametro base in misura fissa (pagato dal MEF) | E39: 1984.2
A43: Valori annui lordi rideterminati a decorrere dal 1/9/2008
A45: a) azienda agraria, | E45: 1220 | F45: da moltiplicare per il numero delle aziende funzionanti presso l’istituto
A47: b) convitti ed educandati annessi | E47: 820 | F47: da moltiplicare per il numero dei convitti e degli educandati funzionanti presso l’istituto
A49: c) istituti verticalizzati ed istituti con almeno due punti di erogazione del servizio scolastico, istituti di secondo grado aggregati ed istituti tecnici, professionali e d’arte con laboratori e/o reparti di lavorazione | E49: 750 | F49: spettante in misura unica, indipendentemente dall’esistenza di più situazioni di cui alla lettera c)
A54: d) scuole medie, scuole elementari e licei non rientranti nelle tipologie di cui alla lettera c) | E54: 650
A56: e) Complessità organizzativa | E56: 30 | F56: valore unitario da moltiplicare per il numero del pers. docente in organico dell'autonomia + personale ATA in org. di diritto
A59: Come si calcola l'Indennità di direzione al sostituto del DSGA
A61: Quota fissa annua | F61: 1984.2
A62: Meno CIA – Compenso Individuale Accessorio Ass.ti amm.vi | F62: 961.2
A63: Differenza tra Ind. Dir. (Quota fissa) e CIA Ass.ti Amm.vi | F63: =F61-F62 -> 1023
A64: Ind. Direzione parte variabile assegnata al DSGA | F64: =D2-dati_scuola!B34 -> 3780
A65: Quota annua Ind. di amm.ne al sostituto | F65: =F63+F64 -> 4803
A66: / 12 mesi = quota mensile Ind. di amm.ne al sostituto | F66: =F65/12 -> 400.25
A67: / 360 gg. = quota giornaliera Ind. di amm.ne al sostituto | F67: =ROUND(F65/360,2) -> 13.34
A69: Stima giorni di assenza ipotizzati per il DSGA titolare | F69: =dati_scuola!B33 -> 40
A70: Quota da accantonare per la contrattazione | F70: =F67*F69 -> 533.6

Sheet Report
A1: Etichette di riga | B1: Conteggio di Dettaglio Incarico | C1: Somma di LORDO Imponibile previdenziale
A2: Animatore | B2: 1 | C2: 175
A3: Animatore digitale | B3: 1 | C3: 175
A4: Docente | B4: 1 | C4: 175
A5: CollaboratoreDS | B5: 2 | C5: 400
A6: Primo collaboratore | B6: 1 | C6: 100
A7: Docente | B7: 1 | C7: 100
A8: Secondo collaboratore | B8: 1 | C8: 300
A9: Docente | B9: 1 | C9: 300
A10: Commissione | B10: 5 | C10: 1475
A11: Legalità media | B11: 1 | C11: 175
A12: Docente | B12: 1 | C12: 175
A13: Flessibilità | B13: 3 | C13: 775
A14: Docente | B14: 3 | C14: 775
A15: Regolamenti | B15: 1 | C15: 525
A16: Docente | B16: 1 | C16: 525
A17: Funzioni_Strumentali | B17: 1 | C17: 300
A18: Autovalutazione | B18: 1 | C18: 300
A19: Docente | B19: 1 | C19: 300
A20: Ore_eccedenti | B20: 1 | C20: 300
A21: Infanzia | B21: 1 | C21: 300
A22: Docente | B22: 1 | C22: 300
A23: Progetto | B23: 4 | C23: 2415
A24: Il Natale racconta | B24: 1 | C24: 525
A25: Docente | B25: 1 | C25: 525
A26: Costruiamo un robot | B26: 3 | C26: 1890
A27: Docente | B27: 3 | C27: 1890
A28: Referente | B28: 2 | C28: 700
A29: Legalità media | B29: 1 | C29: 262.5
A30: Docente | B30: 1 | C30: 262.5
A31: Sito web | B31: 1 | C31: 437.5
A32: Docente | B32: 1 | C32: 437.5
A33: Tutor | B33: 1 | C33: 262.5
A34: Docenti neoimmessi in ruolo | B34: 1 | C34: 262.5
A35: Docente | B35: 1 | C35: 262.5
A36: Valorizzazione | B36: 2 | C36: 600
A37: Attività 1 | B37: 1 | C37: 500
A38: Docente | B38: 1 | C38: 500
A39: Attività 3 | B39: 1 | C39: 100
A40: Docente | B40: 1 | C40: 100
A41: (vuoto) | C41: 0
A42: (vuoto) | C42: 0
A43: (vuoto) | C43: 0
A44: Attività_aggiuntive_ATA | B44: 5 | C44: 1535
A45: Prestazioni agg. Estensive | B45: 5 | C45: 1535
A46: Ass._Amm.vo | B46: 2 | C46: 435
A47: Coll._Scol | B47: 1 | C47: 450
A48: Ass._Tecnico | B48: 2 | C48: 650
A49: Totale complessivo | B49: 24 | C49: 8162.5
